Workbook

Sheet Summary
E1: =" Xilinx Power Estimator (XPE) - " & VERSION -> Xilinx Power Estimator (XPE) - 2023.1 | AO1: =VCCINT/0.85 -> 1 | AQ1: Pkgs | AR1: =IF(PROCESS<>"Maximum",2,68) -> 2 | AS1: CLKROW | AT1: CLKCOL | AU1: LUT | AV1: FF | AW1: BRAM | AX1: MMCM | AY1: PLL | AZ1: DSP | BA1: GT | BB1: PCIE / MAC | BD1: 3.3 Pins | BE1: Pins | BF1: Banks | BG1: ThetaJA | BH1: ThetaJB | BI1: ThetaJC | BJ1: JA250 | BK1: JA500 | BL1: JA750 | BM1: Pkgs | BN1: Max Iccint | BO1: PS | BP1: RFADC | BQ1: RFDAC | BR1: DFE | BS1: GTF
D2: Kintex® UltraScale+TM, Virtex® UltraScale+, Zynq® UltraScale+ | O2: ="Release: " & TEXT(RELEASE_DATE,"d-mmm-yyyy") -> Release: 16-May-2023 | AQ2: FFVA1760 | AR2: =MATCH("*"&OFFSET(PARTS,OFFSET(PARTS,-1,0),0),OFFSET(STATIC_DATA,AR4,1,AR5,1),FALSE) -> 3 | AS2: 11 | AT2: 4 | AU2: 522720 | AV2: 1045440 | AW2: 984 | AX2: 11 | AY2: 22 | AZ2: 1968 | BB2: 5 | BC2: 0 | BD2: 96 | BE2: 512 | BF2: 17 | BG2: 6.7 | BH2: 1.8 | BI2: 0.06 | BJ2: 4 | BK2: 3.4 | BL2: 3.1 | BM2: FFVA1156 | BN2: =OFFSET(Thermal_Data!$A$1,OFFSET(PACKAGES,-1,5),11) -> 77 | BO2: =IF(OR(LEFT(FAMILY,4)="Zynq",MID(FAMILY,4,4)="Zynq"),1,0) -> 0 | BP2: =OFFSET(PARTS,OFFSET(PARTS,-1,0),42)+OFFSET(PARTS,OFFSET(PARTS,-1,0),49) -> 0 | BQ2: =OFFSET(PARTS,OFFSET(PARTS,-1,0),43)+OFFSET(PARTS,OFFSET(PARTS,-1,0),50) -> 0 | BR2: =OFFSET(PARTS,OFFSET(PARTS,-1,0),65) -> 0 | BS2: =OFFSET(PACKAGES,OFFSET(PACKAGES,-1,0),22) -> 0
AP3: 1 | AQ3: FFVB1517 | AR3: =IF(PROCESS<>"Maximum",1,6) -> 1 | AS3: 1 | AU3: 161280 | AW3: =OFFSET(PARTS,OFFSET(PARTS,-1,0),38) -> 128 | BA3: 44 | BB3: 4 | BG3: =OFFSET(Thermal_Data!$A$1,OFFSET(PACKAGES,-1,5),4) -> 6.261530811 | BH3: =OFFSET(Thermal_Data!$A$1,OFFSET(PACKAGES,-1,5),2) -> 1.768608326 | BI3: =OFFSET(Thermal_Data!$A$1,OFFSET(PACKAGES,-1,5),3) -> 0.1 | BJ3: =OFFSET(Thermal_Data!$A$1,OFFSET(PACKAGES,-1,5),5) -> 3.888508041 | BK3: =OFFSET(Thermal_Data!$A$1,OFFSET(PACKAGES,-1,5),6) -> 3.239979057 | BL3: =OFFSET(Thermal_Data!$A$1,OFFSET(PACKAGES,-1,5),7) -> 3.110607776 | BM3: FFVE1517
AQ4: FFVC1517 | AR4: =MATCH("Device Static Current (mA)",OFFSET(STATIC_DATA,0,0,AR5,1),FALSE) -> 3 | AS4: =IF(AND(NUM_PS>0,OPTIMIZATION="Powered Off"),0,1) -> 1 | BB4: 4 | BM4: FFVE1760
B5: Project | F5: Confidence Level | I5: Low - Early Estimation | N5: Last Updated: 7/27/2023 | AQ5: FFVD1924 | AR5: =MATCH("Binning Factor",OFFSET(STATIC_DATA,3,0,_LastStaticDataRow,1),FALSE) -> 193 | BA5: 0 | BB5: =OFFSET(PARTS,OFFSET(PARTS,-1,0),46) -> 0 | BM5: FFVA1760
B6: Settings | G6: Summary | T6: =IF(NUM_HBMS>0," Total On-Chip Power: " & TEXT(TOTAL_POWER,"0.0 W"),"") ->  | AQ6: FFVE1924 | AR6: =MATCH("Device Voltage Scaling",OFFSET(STATIC_DATA,3,0,_LastStaticDataRow,1),FALSE) -> 384 | BA6: 32
B7: Device | G7: Total On-Chip Power | J7: =SUM(J12:J30) -> 17.09624162 | M7: =P7/TOTAL_POWER -> 0.7312430223 | N7: Transceiver…… | P7: =SUM(J26:J27) -> 12.50150739 | AQ7: FFVJ1924 | AR7: =MATCH("*"&OFFSET(PARTS,OFFSET(PARTS,-1,0),0),OFFSET(STATIC_DATA,AR5,1,AR6,1),FALSE)+AR5-1 -> 198
B8: Family | C8: Kintex UltraScale+ | M8: =P8/TOTAL_POWER -> 0.004532123895 | N8: I/O……………… | P8: =J25 -> 0.07748228516 | AR8: Static Data End Row | AS8: 830 | BA8: Device static flags and multipliers | BC8: Device type data | BE8: =IF(AND(LEFT(SPEEDGRADE,3)="-2L",GRADE="Industrial"),4,IF(OR(LEFT(GRADE,1)="Q",LEFT(GRADE,1)="M"),3,IF(OR(LEFT(SPEEDGRADE,3)="-1L",LEFT(SPEEDGRADE,3)="-2L"),2,IF(GRADE="Industrial",1,0)))) -> 2
B9: Device | C9: XCKU15P | G9: Junction Temperature | J9: =IF(ISBLANK(USER_TJ),IF(TJA*TOTAL_POWER+AMBIENT_TEMP > 125, "125+",TJA*TOTAL_POWER+AMBIENT_TEMP),USER_TJ) -> 37.58242824 | M9: =P9/TOTAL_POWER -> 0.1809299701 | N9: =IF(NUM_PS>0,"PS+FPGA Dyn..","Core Dynamic..") -> Core Dynamic.. | P9: =SUM(J16:J24,J28) -> 3.093222485 | BA9: Device static flags and multipliers | BB9: =MATCH("DEVICE_TYPE",OFFSET(STATIC_DATA,3,0,_LastStaticDataRow,1),FALSE) -> 752 | BC9: =MATCH("*"&OFFSET(PARTS,OFFSET(PARTS,-1,0),0),OFFSET(STATIC_DATA,BB9,0,AR5,1),FALSE)+BB9-1 ->  | BD9: value | BE9: column
B10: Package | C10: FFVA1760 | G10: Thermal Margin | J10: =IF(ISBLANK(USER_TJ),TJ_MAX - (TJA*TOTAL_POWER + AMBIENT_TEMP),TJ_MAX-USER_TJ) -> 62.41757176 | K10: =IF(ISBLANK(USER_TJ),IF(THERMAL_MARGIN_C/TJA+TOTAL_POWER>=0,(MAX_AMBIENT - AMBIENT_TEMP)/TJA,""),(TJ_MAX-USER_TJ)/TJA) -> 81.37597151 | M10: =P10/TOTAL_POWER -> 0.08329488375 | N10: Device Static….. | P10: =J29+J30 -> 1.424029458 | U10: =IF(NUM_HBMS>0,TOTAL_POWER-IF(NUM_HBMS>0,X10,0),"") ->  | X10: =IF(NUM_HBMS>0,HBM_STACK_POWER+HBM!$AQ$4+HBM!$AQ$5+HBM!$AQ$6,"") ->  | AO10: 10 | AP10: 14.4689672 | AQ10: 1.117323367 | BA10: IS_MAXWELL | BB10: =BD10 -> 0 | BC10: IS_MAXWELL | BD10: =IF(ISERROR($BC$9),0,OFFSET(STATIC_DATA,$BC$9,BE10)) -> 0 | BE10: 2
B11: Speed Grade | C11: -1L | G11: Effective ΘJA | J11: =IF(USER_THETAJA>0,USER_THETAJA,$V57) -> 0.7359762758 | L11: Power supplied to off-chip devices… | P11: =VCCO_OFFCHIP -> 0 | AO11: 25 | AP11: 14.59215405 | AQ11: 1.240510217 | BA11: IS_RAISE_RAM | BB11: =BD23*IF(PROCESS="Maximum",1,0) -> 0 | BC11: MAXWELL_MULT | BD11: =IF(ISERROR($BC$9),1,OFFSET(STATIC_DATA,$BC$9,BE11)) -> 1 | BE11: 3
B12: Temp Grade | C12: Industrial | AO12: 40 | AP12: 14.81924984 | AQ12: 1.46760601 | BA12: IS_RAISE_PS | BB12: =BD12*IF(PROCESS="Maximum",1,0) -> 0 | BC12: IS_RAISE_PS | BD12: =IF(ISERROR($BC$9),0,OFFSET(STATIC_DATA,$BC$9,BE12)) -> 0 | BE12: 4
B13: Process | C13: Typical | G13: On-Chip Power | M13: Power Supply | U13: =IF(NUM_HBMS>0,IF(ISBLANK(USER_TJ),IF(TJA*U10+AMBIENT_TEMP > 125, "125+",TJA*U10+AMBIENT_TEMP),USER_TJ),"") ->  | X13: =IF(NUM_HBMS>0,IF(ISBLANK(USER_HBM_TJ),IF(TJA*X10+AMBIENT_TEMP>125,"125+",TJA*X10+AMBIENT_TEMP),USER_HBM_TJ),"") ->  | AO13: 55 | AP13: 15.21331436 | AQ13: 1.861670528 | BA13: RAISE_PSFP_MULT | BB13: =IF(_IS_RAISE_PS=1,OFFSET(BD13,$BE$8,0),1) -> 1 | BC13: PSFP_BIN_1E_2E_3E | BD13: =IF(ISERROR($BC$9),1,OFFSET(STATIC_DATA,$BC$9,BE13)) -> 1 | BE13: 5
B14: Voltage ID Used | C14: No | G14: Resource | J14: Power | M14: Source | O14: Voltage | P14: Total (A) | Q14: Static | R14: Active | AO14: 70 | AP14: 15.8692599 | AQ14: 2.517616074 | AW14: Static | AX14: =IF(AND(PROCESS="Maximum",NOT(EXACT($Z$1,"nomtpf"))),1,0) -> 0 | BA14: RAISE_PSLP_MULT | BB14: =IF(_IS_RAISE_PS=1,OFFSET(BD18,$BE$8,0),1) -> 1 | BC14: PSFP_BIN_1I_2I | BD14: 1 | BE14: 6
B15: Characterization | C15: =Production_Status&" (± "& IF(Production_Status="Preview","30",IF(Production_Status="Advance","25",IF(Production_Status="Production","15","20"))) &"% accuracy)" -> Production (± 15% accuracy) | I15: (Jump to sheet) | J15: (W) | K15: (%) | M15: VCCINT | O15: 0.85 | P15: =MAX(ICCINT_POWERUP,Q15+R15)*PL_POWERED -> 6.930789676 | Q15: =AX15*ICCQ_TEMP*PL_POWERED -> 0.485619489 | R15: =(CLOCK_POWER+LOGIC_POWER+Other_INTPOWER+BRAM_INTPOWER+DSP_POWER+MMCMINT_POWER+PLLINT_POWER+GTH_INTPOWER+GTY_INTPOWER+GTM_INTPOWER+IO!AC501+URAM_INTPOWER+HBM!D6+'SD-FEC'!$D$4+DFE_POWER) / VCCINT -> 6.445170187 | AO15: 85 | AP15: 16.92002091 | AQ15: 3.56837708 | AX15: =IF(AND($AX$14>0,OFFSET(PARTS,OFFSET(PARTS,-1,0),52)>0),OFFSET(PARTS,OFFSET(PARTS,-1,0),52),1) -> 1 | BA15: RAISE_RAM_VCCINT_MULT | BB15: =IF(_IS_RAISE_RAM=1,OFFSET(BD24,$BE$8,0),1) -> 1 | BC15: PSFP_BIN_1LI_2LE | BD15: 1 | BE15: 7
G16: Core Dynamic | J16: =CLOCK_POWER -> 0.001188828142 | K16: =IF(AND(ISNUMBER(J16),J16>0),J16/TOTAL_POWER,0)*100 -> 0.006953739706 | M16: VCCINT_IO | O16: 0.85 | P16: =MAX(OFFSET(ICCINT_POWERUP,0,1),Q16+R16)*PL_POWERED -> 0.1060132942 | Q16: =(AX16*J61+AX16*I61) -> 0.1023013254 | R16: =(IOINT_POWER+HBM!D7)/VCCINT_IO -> 0.00371196875 | AO16: 100 | AP16: 18.54272353 | AQ16: 5.191079704 | AX16: =IF(AND($AX$14>0,OFFSET(PARTS,OFFSET(PARTS,-1,0),53)>0),OFFSET(PARTS,OFFSET(PARTS,-1,0),53),1) -> 1 | BA16: RAISE_RAM_VCCRAM_MULT | BB16: =IF(_IS_RAISE_RAM=1,OFFSET(BD29,$BE$8,0),1) -> 1 | BC16: PSFP_BIN_1Q_1M | BD16: 1 | BE16: 8
B17: Environment | J17: =LOGIC_POWER -> 2.918616072 | K17: 17.0716824 | M17: VCCBRAM | O17: 0.85 | P17: =MAX(ICCBRAM_POWERUP,Q17+R17)*PL_POWERED -> 0.01370882772 | Q17: =AX17*ICCBRAM_TEMP -> 0.006687309584 | R17: =(BRAM_BRAMPOWER+URAM_BRAMPOWER)/VCCBRAM -> 0.007021518133 | AX17: =IF(AND($AX$14>0,OFFSET(PARTS,OFFSET(PARTS,-1,0),54)>0),OFFSET(PARTS,OFFSET(PARTS,-1,0),54),1) -> 1 | BA17: IS_NON_EG_MAX | BB17: =IF(OR(PROCESS="Typical",AND(GRADE="Extended",OR(RIGHT(SPEEDGRADE,2)="-1",RIGHT(SPEEDGRADE,2)="-2",RIGHT(SPEEDGRADE,2)="-3"))),0,1) -> 0 | BC17: PSFP_BIN_2LVI | BD17: 1 | BE17: 9
B18: Junction Temperature | E18: =JUNCTION_TEMP -> 37.58242824 | J18: =BRAM_POWER -> 0.1079050984 | K18: 0.6311626895 | M18: VCCAUX | O18: 1.8 | P18: =MAX(ICCAUX_POWERUP,Q18+R18)*PL_POWERED -> 0.3282708626 | Q18: =AX18*ICCAUXQ_TEMP -> 0.3282708626 | R18: =(MMCMAUX_POWER+PLLAUX_POWER+Other_AUXPOWER+HBM!D8) / VCCAUX -> 0 | AO18: =VCC_MIN -> 0.825 | AP18: 14.54092199 | AX18: =IF(AND($AX$14>0,OFFSET(PARTS,OFFSET(PARTS,-1,0),55)>0),OFFSET(PARTS,OFFSET(PARTS,-1,0),55),1) -> 1 | BA18: IS_EG_MAX | BB18: =IF(AND(_IS_NON_EG_MAX=0,PROCESS="Maximum"),1,0) -> 0 | BC18: PSLP_BIN_1E_2E_3E | BD18: 1 | BE18: 10
B19: Ambient Temp | C19: 25 | J19: =DSP_POWER -> 0.06069581906 | K19: 0.3550243405 | M19: VCCAUX_IO | O19: 1.8 | P19: =MAX(ICCAUXIO_POWERUP,Q19+R19)*PL_POWERED -> 0.1029662473 | Q19: =AX19*H61 -> 0.07288193483 | R19: =IO!E6 -> 0.0300843125 | AO19: =(AO18+AO20)/2 -> 0.8375 | AP19: 14.64122758 | AX19: =IF(AND($AX$14>0,OFFSET(PARTS,OFFSET(PARTS,-1,0),56)>0),OFFSET(PARTS,OFFSET(PARTS,-1,0),56),1) -> 1 | BA19: MAXWELL_PS_MULT | BB19: =$BD$11 -> 1 | BC19: PSLP_BIN_1I_2I | BD19: 1 | BE19: 11
B20: Effective ΘJA | E20: =TJA -> 0.7359762758 | J20: =PLL_POWER -> 0 | K20: 0 | M20: VCCO 3.3V | O20: 3.3 | P20: =IF(Q20>0,MAX(OFFSET(ICCO_POWERUP,1,0),IO!G7+Q20),0)*PL_POWERED -> 0 | Q20: =AW20*AX20 -> 0 | R20: =IO!G7 -> 0 | AO20: =IF(RIGHT(SPEEDGRADE,6)="0.72V)", 0.72,IF(SPEEDGRADE="-3", 0.9,0.85)) -> 0.85 | AP20: 14.7430542 | AW20: =IF(OR(IO!BA501>0,LEFT(CFG_BANK,1)="3"),J63,0)*PL_POWERED -> 0 | AX20: =IF(AND($AX$14>0,OFFSET(PARTS,OFFSET(PARTS,-1,0),59)>0),OFFSET(PARTS,OFFSET(PARTS,-1,0),59),1) -> 1 | BA20: MAXWELL_BRAM_VCCINT_MULT | BB20: =$BD$11 -> 1 | BC20: PSLP_BIN_1LI_2LE | BD20: 1 | BE20: 12
B21: Airflow | C21: 250 | J21: =MMCM_POWER -> 0 | K21: 0 | M21: VCCO 2.5V | O21: 2.5 | P21: =IF(Q21>0,MAX(OFFSET(ICCO_POWERUP,1,0),IO!G8+Q21),0)*PL_POWERED -> 0 | Q21: =AW21*AX21 -> 0 | R21: =IO!G8 -> 0 | AO21: =(AO20+AO22)/2 -> 0.863 | AP21: 14.84641151 | AW21: =IF(OR(IO!BB501>0,LEFT(CFG_BANK,1)="2"),J63,0)*PL_POWERED -> 0 | AX21: 1 | BA21: MAXWELL_BRAM_IG_VCCBRAM_MULT | BB21: =IF(AND(_IS_EG_MAX=1,_IS_MAXWELL=1),OFFSET(STATIC_DATA,$Q61+1,6+1)/OFFSET(STATIC_DATA,$Q61+1,6),1) -> 1 | BC21: PSLP_BIN_1Q_1M | BD21: 1 | BE21: 13
B22: Heat Sink | C22: Medium Profile | J22: =Other_INTPOWER+Other_AUXPOWER+Other_XADCPOWER+Other_VCUINTPower+Other_VCUPLLPower+'SD-FEC'!$D$4+'SD-FEC'!$D$5+'RFADC-DAC_Caher'!$D$11+'RFADC-DAC'!$D$11+DFE_POWER -> 0.004816666667 | K22: 0.02817383361 | M22: VCCO 1.8V | O22: 1.8 | P22: =IF(Q22>0,MAX(ICCO_POWERUP,IO!G9+Q22),0)*PL_POWERED -> 2.653416038e-05 | Q22: 2.653416038e-05 | R22: =IO!G9 -> 0 | AO22: =VCC_MAX -> 0.876 | AP22: 14.95130946 | AW22: =IF(OR(IO!BC501>0,LEFT(CFG_BANK,3)="1.8"),ICCOQ_D,0)*PL_POWERED -> 2.653416038e-05 | AX22: 1 | BA22: MAXWELL_BRAM_VCCBRAM_MULT | BB22: =$BD$11*_MAXWELL_BRAM_IG_VCCBRAM_MULT -> 1 | BC22: PSLP_BIN_2LVI | BD22: 1 | BE22: 14
B23: ΘSA | C23: 2 | J23: =IF(OR(NUM_CMACS + NUM_GTM_CMACS > 0, NUM_ILMACS + NUM_GTM_ILMACS > 0), CMAC_POWER + ILMAC_POWER, 0) + IF(NUM_PCIES > 0, PCIE_POWER, 0) -> 0 | K23: 0 | M23: VCCO 1.5V | O23: 1.5 | P23: =IF(Q23>0,MAX(ICCO_POWERUP,IO!G10+Q23),0)*PL_POWERED -> 0 | Q23: 0 | R23: =IO!G10 -> 0 | AW23: =IF(OR(IO!BD501>0,LEFT(CFG_BANK,3)="1.5"),ICCOQ_D,0)*PL_POWERED -> 0 | AX23: 1 | BA23: PSFP_IG_MULT | BB23: =OFFSET(STATIC_DATA,PS!$AL$4+PS!$AL5,13+IF(PROCESS="Maximum",5,0))/OFFSET(STATIC_DATA,PS!$AL$4+PS!$AL5,13+IF(PROCESS="Maximum",5,0)+1) -> 1 | BC23: IS_RAISE_RAM | BD23: =IF(ISERROR($BC$9),0,OFFSET(STATIC_DATA,$BC$9,BE23)) -> 0 | BE23: 15
B24: Board Selection | C24: Medium (10"x10") | J24: =URAM_POWER -> 0 | K24: =IF(AND(ISNUMBER(J24),J24>0),J24/TOTAL_POWER,0)*100 -> 0 | M24: VCCO 1.35V | O24: 1.35 | P24: =IF(Q24>0,MAX(ICCO_POWERUP,IO!G11+Q24),0)*PL_POWERED -> 0 | Q24: 0 | R24: =IO!G11 -> 0 | AW24: =IF(IO!BE501>0,ICCOQ_D,0)*PL_POWERED -> 0 | AX24: 1 | BA24: PSLP_IG_MULT | BB24: =OFFSET(STATIC_DATA,PS!$AL$4+PS!$AL6,13+IF(PROCESS="Maximum",5,0))/OFFSET(STATIC_DATA,PS!$AL$4+PS!$AL6,13+IF(PROCESS="Maximum",5,0)+1) -> 1 | BC24: RAM_VCCINT_BIN_1E_2E_3E | BD24: =IF(ISERROR($BC$9),1,OFFSET(STATIC_DATA,$BC$9,BE24)) -> 1 | BE24: 16
B25: # of Board Layers | C25: 12 to 15 | G25: I/O | J25: =IO_POWER -> 0.07748228516 | K25: =IF(AND(ISNUMBER(J25),J25>0),J25/TOTAL_POWER,0)*100 -> 0.4532123895 | M25: VCCO 1.2V | O25: 1.2 | P25: =IF(Q25>0,MAX(ICCO_POWERUP,IO!G12+Q25),0)*PL_POWERED -> 0.01582978729 | Q25: 2.653416038e-05 | R25: =IO!G12 -> 0.01580325312 | AW25: =IF(IO!BF501>0,ICCOQ_D,0)*PL_POWERED -> 2.653416038e-05 | AX25: 1 | BA25: PSDDR_IG_MULT | BB25: =OFFSET(STATIC_DATA,PS!$AL$4+PS!$AL8,13+IF(PROCESS="Maximum",5,0))/OFFSET(STATIC_DATA,PS!$AL$4+PS!$AL8,13+IF(PROCESS="Maximum",5,0)+1) -> 1 | BC25: RAM_VCCINT_BIN_1I_2I | BD25: 1 | BE25: 17
B26: ΘJB | C26: 2.4 | G26: Transceiver | J26: =IF(NUM_GTFS>0,GTF_POWER,IF(NUM_GTMS>0,GTM_POWER,IF(NUM_GTHS>0,GTH_POWER,IF(NUM_GTPS>0,GTP_POWER,0)))) -> 6.77979233 | K26: 39.65662443 | M26: Vcco 1.0V | O26: 1 | P26: =IF(Q26>0,MAX(ICCO_POWERUP,IO!G13+Q26),0)*PL_POWERED -> 0 | Q26: 0 | R26: =IO!G13 -> 0 | AW26: =IF(IO!BG501>0,ICCOQ_D,0)*PL_POWERED -> 0 | AX26: 1 | BA26: GTH_AVCC_SCALE | BB26: =BD34 -> 1 | BC26: RAM_VCCINT_BIN_1LI_2LE | BD26: 1 | BE26: 18
B27: Board Temperature | C27: 25 | J27: =IF(NUM_GTZS>0,GTZ_POWER,IF(NUM_GTYS>0,GTY_POWER,0)) -> 5.721715061 | K27: 33.4676778 | M27: MGTVCCAUX | O27: 1.8 | P27: =MAX(IGTVCCAUX_POWERUP,Q27+R27)*PL_POWERED -> 0.1100433221 | Q27: =IF(AND(O27>0,NUM_GTFS>0),GTFAUXQ,IF(AND(O27>0,NUM_GTMS>0),GTMAUXQ,IF(AND(O27>0,NUM_GTHS>0),GTHAUXQ,0)))*PL_POWERED*AX27 -> 4.33221232e-05 | R27: =IF(AND(O27>0,NUM_GTFS>0),GTF_AUXPOWER/GTVCCAUX,IF(AND(O27>0,NUM_GTMS>0),GTM_AUXPOWER/GTVCCAUX,IF(AND(O27>0,NUM_GTHS>0),GTH_AUXPOWER/GTVCCAUX,0))) -> 0.11 | AO27: Temp | AP27: 50 | AQ27: 85 | AR27: =TJ_MAX -> 100 | AX27: 1 | BC27: RAM_VCCINT_BIN_1Q_1M | BD27: 1 | BE27: 19
G28: =IF(NUM_PS>0,"PS Dynamic Static",IF(HBM!$T$1>0,"HBM","")) ->  | J28: =IF(NUM_PS>0,PS_POWER,IF(HBM!$T$1>0,HBM!$G$3,0)) -> 0 | K28: 0 | M28: MGTAVCC | O28: 0.9 | P28: =MAX(IAVCC_POWERUP,Q28+R28)*PL_POWERED -> 2.316877615 | Q28: =IF(AND(O28>0,NUM_GTFS>0),GTFAVCCQ,IF(AND(O28>0,NUM_GTMS>0),GTMAVCCQ,IF(AND(O28>0,NUM_GTHS>0),GTHAVCCQ,IF(AND(O28>0,NUM_GTPS>0),GTPAVCCQ,0))))*PL_POWERED*AX28 -> 0.03302458664 | R28: =IF(AND(O28>0,NUM_GTFS>0),GTF_AVCC/O28,IF(AND(O28>0,NUM_GTMS>0),GTM_AVDD/O28,IF(AND(O28>0,NUM_GTHS>0),GTH_AVDD/O28,IF(AND(O28>0,NUM_GTPS>0),GTP_AVCCPOWER/O28,0)))) -> 2.283853028 | AO28: ="Typical (" & IF(RIGHT(SPEEDGRADE,6)="0.72V)","0.72",IF(SPEEDGRADE="-3","0.9",0.85))&"V)" -> Typical (0.85V) | AP28: 15.05827176 | AQ28: 16.92002091 | AR28: 18.54272353 | AX28: 1 | BC28: RAM_VCCINT_BIN_2LVI | BD28: 1 | BE28: 20
B29: =IF(NUM_PS>0,"PL","")&" Implementation" -> Implementation | J29: =IF(NUM_PS>0,PS_STATIC,IF(HBM!$T$1>0,HBM!$Q$10,0)) -> 0 | K29: 0 | M29: MGTAVTT | O29: 1.2 | P29: =MAX(IF(NUM_GTHS>0,GTHBSCAN_AVTT,0),IAVTT_POWERUP,Q29+R29)*PL_POWERED -> 2.736580101 | Q29: =IF(AND(O29>0,NUM_GTFS>0),GTFAVTTQ,IF(AND(O29>0,NUM_GTMS>0),GTMVTTXQ,IF(AND(O29>0,NUM_GTHS>0),GTHVTTXQ,IF(AND(O29>0,NUM_GTPS>0),GTPVTTXQ,0))))*PL_POWERED*AX29 -> 0.05203332756 | R29: =IF(AND(O29>0,NUM_GTFS>0),GTF_AVTT/AVTT,IF(AND(O29>0,NUM_GTMS>0),GTM_VTTX/AVTT,IF(AND(O29>0,NUM_GTHS>0),GTH_VTTX/O29,IF(AND(O29>0,NUM_GTPS>0),GTP_AVTTPOWER/O29,0)))) -> 2.684546774 | AO29: ="Maximum (" & VCC_MAX &"V)" -> Maximum (0.876V) | AP29: 15.91319549 | AQ29: 18.99429431 | AR29: 21.5278055 | AX29: 1 | BC29: RAM_VCCRAM_BIN_1E_2E_3E | BD29: 1 | BE29: 21
B30: =IF(NUM_PS>0,"Usage/","")&"Optimization" -> Optimization | C30: None | F30: =IF(C30="Power Optimization",2,IF(C30="Default",1,3)) -> 3 | G30: =IF(NUM_PS>0,"PL Static ","Device Static") -> Device Static | H30: =J29+J30 -> 1.424029458 | J30: =PL_STATIC -> 1.424029458 | K30: 8.329488375 | M30: - | O30: 0.85 | P30: =MAX($AF$69,Q30+R30)*PL_POWERED -> 0 | Q30: =IF(NUM_GTMS>0,GTMVCCINTQ,0)*AX30 -> 0 | R30: =IF(NUM_GTMS>0,GTM_INTGTPOWER/VCCINT_GT,0) -> 0 | AX30: 1 | BC30: RAM_VCCRAM_BIN_1I_2I | BD30: 1 | BE30: 22
M31: MGTYVCCAUX | O31: 1.8 | P31: =MAX(OFFSET(IGTVCCAUX_POWERUP,0,3),Q31+R31)*PL_POWERED -> 0.08884913508 | Q31: =IF(NUM_GTYS>0,GTYAUXQ,0)*AX31 -> 0.00291313508 | R31: =IF(NUM_GTYS>0,GTY!D6,0) -> 0.085936 | AX31: =IF(AND($AX$14>0,OFFSET(PARTS,OFFSET(PARTS,-1,0),59)>0),OFFSET(PARTS,OFFSET(PARTS,-1,0),59),1) -> 1 | BC31: RAM_VCCRAM_BIN_1LI_2LE | BD31: 1 | BE31: 23
B32: Messages | C32: =IF(LEN(OVERMAP)>3,"Number of " & OVERMAP & " exceeds part size.","") ->  | M32: MGTYAVCC | O32: 0.9 | P32: =MAX(OFFSET(IAVCC_POWERUP,0,3),Q32+R32)*PL_POWERED -> 1.336589019 | Q32: =IF(NUM_GTYS>0,GTYAVCCQ,0)*AX32 -> 0.06123473332 | R32: =IF(NUM_GTYS>0,GTY!D7,0) -> 1.275354286 | AX32: =IF(AND($AX$14>0,OFFSET(PARTS,OFFSET(PARTS,-1,0),59)>0),OFFSET(PARTS,OFFSET(PARTS,-1,0),59),1) -> 1 | BC32: RAM_VCCRAM_BIN_1Q_1M | BD32: 1 | BE32: 24
C33: =IF(IOERRORS>0,"WARNING: Unsupported I/O standard(s) for current selections, ignored for power calculations","") ->  | M33: MGTYAVTT | O33: 1.2 | P33: =MAX(IF(NUM_GTYS>0,GTYBSCAN_AVTT,0),OFFSET(IAVTT_POWERUP,0,3),Q33+R33)*PL_POWERED -> 2.803011477 | Q33: =IF(NUM_GTYS>0,GTYVTTXQ,0)*AX33 -> 0.02455242583 | R33: =IF(NUM_GTYS>0,GTY!D8,0) -> 2.778459051 | AX33: =IF(AND($AX$14>0,OFFSET(PARTS,OFFSET(PARTS,-1,0),59)>0),OFFSET(PARTS,OFFSET(PARTS,-1,0),59),1) -> 1 | BC33: RAM_VCCRAM_BIN_2LVI | BD33: 1 | BE33: 25
M34: - | O34: 0.9 | P34: =MAX(IF(OR(NUM_FECS>0,'SD-FEC'!$S$1>0,'SD-FEC'!$S$2>0),ICCSDFEC_POWERUP,0),(Q34+R34))*PL_POWERED -> 0 | Q34: =IF(VCCINT_VCU>0,IF(OR('SD-FEC'!$S$1>0,'SD-FEC'!$S$2>0),'SD-FEC'!$AO$2,OFFSET(Other_VCUINTPower,0,2)/VCCINT_VCU),0)*PL_POWERED -> 0 | R34: =IF(VCCINT_VCU>0,IF('SD-FEC'!$S$1>0,'SD-FEC'!$D$5/VCCINT_VCU,Other_VCUINTPower/VCCINT_VCU),0) -> 0 | AW34: =VCCADCQ -> 0.008 | AX34: 1 | BC34: GTH_AVCC_SCALE | BD34: =IF(ISERROR($BC$9),1,OFFSET(STATIC_DATA,$BC$9,BE34)) -> 1 | BE34: 26
M35: VCCADC | O35: 1.8 | P35: =(Q35+R35)*PL_POWERED -> 0.008 | Q35: =AW34*AX34 -> 0.008 | R35: =Other_XADCPOWER/VCCADC -> 0
M36: - | O36: 1.2 | P36: =MAX(IF(HBM!$T$1>0,AE69,0),Q36+R36)*PL_POWERED -> 0 | Q36: =IF(HBM!$T$1>0,SUM(HBM!$AP$3:$AP$4),0) -> 0 | R36: =IF(AND(O27>0,HBM!$T$1>0),HBM!$D$9/O27,0) -> 0
M37: - | O37: 1.2 | P37: =MAX(IF(HBM!$T$1>0,AC69,0),Q37+R37)*PL_POWERED -> 0 | Q37: =IF(HBM!$T$1>0,HBM!$AP$5,0) -> 0 | R37: =IF(AND(O28>0,HBM!$T$1>0),HBM!$D$10/O28,0) -> 0
M38: - | O38: 2.5 | P38: =MAX(IF(HBM!$T$1>0,AD69,0),Q38+R38)*PL_POWERED -> 0 | Q38: =IF(HBM!$T$1>0,HBM!$AP$6,0) -> 0 | R38: =IF(AND(O29>0,HBM!$T$1>0),HBM!$D$11/O29,0) -> 0
M39: -
B40: XILINX Power Advantage (check for updates) | F40: File Support Request (WebCase) | M40: Xilinx Power Estimator User Guide
B41: =COPYRIGHT -> © Copyright 1994-2023 Xilinx, Inc. All Rights Reserved | F41: Whitepaper - 7 Steps for Worst Case Power Estimation | M41: Introduction to XPE (video)
B43: Legend | D43: User Entry | G43: Calculated Value | I43: Summary Value | L43: User Override | N43: Warning | P43: Error
U44: JEDEC | V44: =IF(AIRFLOW=250,THETAJA250,IF(AIRFLOW=500,THETAJA500,IF(AIRFLOW=750,THETAJA750,THETAJA))) -> 3.888508041
Y45: Opt
G46: Pbram | H46: Iccauxq | I46: Tj | J46: Iccq | U46: BoardType | V46: =IF(EXACT("Small (4""x4"")",BOARD),1,IF(EXACT("Medium (10""x10"")",BOARD),2,IF(EXACT("Large (20""x20"")",BOARD),3,0))) -> 2 | X46: Airflow | Y46: None | AA46: Leakage | AB46: =PL_POWERED*(ICCQ_TEMP*VCCINT+ICCBRAM_TEMP*VCCBRAM+ICCAUXQ_TEMP*VCCAUX+J61*O16+I61*O16+H61*O19+AW20*VCCO33+AW21*VCCO25+AW22*VCCO18+AW23*VCCO15+AW24*VCCO135+AW25*VCCO12+AW26*VCCO10+GTX_LEAKAGE+GTH_LEAKAGE+AW34*VCCADC+GTY_LEAKAGE+GTM_LEAKAGE+GTF_LEAKAGE+Other!AJ12+'SD-FEC'!$AP$2+'RFADC-DAC_Caher'!$E$11+'RFADC-DAC'!$E$11) -> 1.424029458 | AD46: =Q15*1000 -> 485.619489 | AM46: Utilization | AN46: =AM47&AM48&AM49&AM50&AM51&AM52 -> 
F47: =PL_POWERED*((OFFSET(VccScale,2,0)*(O56*TemperatureEstimate^5+P56*TemperatureEstimate^4+Q56*TemperatureEstimate^3+R56*TemperatureEstimate^2+S56*TemperatureEstimate+T56)+(OFFSET(VccScale,2,1)*Iccbramq*1000*_Bram_Vccbram_Mult*(O63*TemperatureEstimate^5+P63*TemperatureEstimate^4+Q63*TemperatureEstimate^3+R63*TemperatureEstimate^2+S63*TemperatureEstimate+T63)))/1000+URAM!V501*_Bram_Vccbram_Mult) -> 0.006687309584 | G47: =PL_POWERED*((OFFSET(VccScale,2,0)*($O$56*I47^5+$P$56*I47^4+$Q$56*I47^3+$R$56*I47^2+$S$56*I47+$T$56)+(OFFSET(VccScale,2,1)*Iccbramq*1000*_Bram_Vccbram_Mult*($O$63*I47^5+$P$63*I47^4+$Q$63*I47^3+$R$63*I47^2+$S$63*I47+$T$63)))/1000+URAM!$BI$501)*VCCBRAM -> 0.00564981996 | H47: =PL_POWERED*VccAuxScale*($O$55*$I47^5+$P$55*$I47^4+$Q$55*$I47^3+$R$55*$I47^2+$S$55*$I47+$T$55)/1000 -> 0.3283773566 | I47: =TemperatureEstimate2 -> 37.43414776 | J47: =PL_POWERED*(VccScale*($O$54*$I47^5+$P$54*$I47^4+$Q$54*$I47^3+$R$54*$I47^2+$S$54*$I47+$T$54)+OFFSET(VccScale,0,1)*OFFSET(Iccbramq,0,2))/1000+URAM!U501*_Bram_Vccint_Mult -> 0.482678817 | K47: Non-int Leakage | U47: BoardLyr | V47: =IF(EXACT("8 to 11",LAYERS),1,IF(EXACT("12 to 15",LAYERS),2,IF(EXACT("16 or more",LAYERS),3,0))) -> 2 | X47: N/A | Y47: Default | AA47: CLOCK | AB47: =CLOCK_POWER -> 0.001188828142 | AD47: 102.3013254 | AM47: =IF(IO!L11>1,"I/O, ","") -> 
E48: Temp | F48: =MIN($F$52,IF(ISBLANK(USER_TJ),I53,USER_TJ)) -> 37.58930799 | G48: =PL_POWERED*((OFFSET(VccScale,2,0)*($O$56*I48^5+$P$56*I48^4+$Q$56*I48^3+$R$56*I48^2+$S$56*I48+$T$56)+(OFFSET(VccScale,2,1)*Iccbramq*_Bram_Vccbram_Mult*1000*($O$63*I48^5+$P$63*I48^4+$Q$63*I48^3+$R$63*I48^2+$S$63*I48+$T$63)))/1000+URAM!$BI$501)*VCCBRAM -> 0.00568379963 | H48: 0.3282721346 | I48: =MIN($F$52,IF(ISBLANK(USER_TJ),TJA*(SUM(J$12:J$28,AW34)-IF(NUM_HBMS>0,HBM_STACK_POWER,0)+$G47+$H47*VCCAUX+$J47*VCCINT+$H55*VCCAUX_IO+$J55*VCCINT_IO+$I55*VCCINT_IO+psiccq1+gthiccq1+gtyiccq1+gtmiccq1+vcuiccq1+sdfeciccq1+rficcq1)+AMBIENT_TEMP,USER_TJ)) -> 37.58744756 | J48: =PL_POWERED*(VccScale*($O$54*$I48^5+$P$54*$I48^4+$Q$54*$I48^3+$R$54*$I48^2+$S$54*$I48+$T$54)+OFFSET(VccScale,0,1)*OFFSET(Iccbramq,0,2))/1000+URAM!U501*_Bram_Vccint_Mult -> 0.4855688065 | K48: Scaled ICCQ_D | L48: =PL_POWERED*ICCQ_DES*PROCESS_FACTOR*VccScale -> 0.2931058699 | P48: Max Adj | Q48: Typ Adj | U48: Airflow | V48: =IF(AIRFLOW=250,1,IF(AIRFLOW=500,2,IF(AIRFLOW=750,3,0))) -> 1 | X48: 0 | Y48: Power Optimization | AA48: LOGIC | AB48: =LOGIC_POWER -> 2.918616072 | AD48: 6.687309584 | AM48: =IF(Logic!I4>1,"Registers, ","") -> 
E49: Initial | F49: =MIN($F$52,IF(ISBLANK(USER_TJ),TJA*(SUM(J12:J28)-IF(NUM_HBMS>0,HBM_STACK_POWER,0)+(Iccauxq_d*VccAuxScale*VCCAUX+ICCQ_DES*VccScale*VCCINT+VccAuxScale*L84*VCCAUX_IO+VccioScale*L83*VCCINT_IO))+AMBIENT_TEMP,USER_TJ)) -> 37.3196573 | G49: =PL_POWERED*((OFFSET(VccScale,2,0)*($O$56*I49^5+$P$56*I49^4+$Q$56*I49^3+$R$56*I49^2+$S$56*I49+$T$56)+(OFFSET(VccScale,2,1)*Iccbramq*_Bram_Vccbram_Mult*1000*($O$63*I49^5+$P$63*I49^4+$Q$63*I49^3+$R$63*I49^2+$S$63*I49+$T$63)))/1000+URAM!$BI$501)*VCCBRAM -> 0.005684193177 | H49: 0.328270924 | I49: =MIN($F$52,IF(ISBLANK(USER_TJ),TJA*(SUM(J$12:J$28,AW34)-IF(NUM_HBMS>0,HBM_STACK_POWER,0)+$G48+$H48*VCCAUX+$J48*VCCINT+$H56*VCCAUX_IO+$J56*VCCINT_IO+$I56*VCCINT_IO+OFFSET(psiccq1,0,1)+gthiccq1+gtyiccq1+gtmiccq1+OFFSET(vcuiccq1,0,1)+OFFSET(sdfeciccq1,1,0)+rficcq1)+AMBIENT_TEMP,USER_TJ)) -> 37.58921815 | J49: =PL_POWERED*(VccScale*($O$54*$I49^5+$P$54*$I49^4+$Q$54*$I49^3+$R$54*$I49^2+$S$54*$I49+$T$54)+OFFSET(VccScale,0,1)*_Bram_Vccint_Mult*BRAM!I4*(O62*I49^5+P62*I49^4+Q62*I49^3+R62*I49^2+S62*I49+T62))/1000+URAM!U501*_Bram_Vccint_Mult -> 0.4856177818 | K49: Non-aux Leakage | L49: =L48+IF(IO!AT504>0,ICCOQ_D, 0)*VCCO33+IF(IO!AT508>0,ICCOQ_D, 0)*VCCO25+IF(IO!AT509>0,ICCOQ_D, 0)*VCCO18+IF(IO!AS510>0,ICCOQ_D, 0)*VCCO15+IF(IO!AT511>0,ICCOQ_D, 0)*VCCO135+IF(IO!AT512>0,ICCOQ_D, 0)*VCCO12+GTH_LEAKAGE -> 0.3854653745 | N49: =OFFSET(MMF_Factor,1,-2)+2 -> 4 | O49: MMF Factor | P49: =IF(PROCESS<>"Maximum",1,OFFSET(STATIC_DATA,OFFSET(FACTOROW,5,0),OFFSET(MMF_Factor,0,-2)+15+3+6+4+7)*OFFSET(POWER_SCALE,10,OFFSET(POWER_SCALE,1,1))) -> 1 | Q49: =IF(PROCESS<>"Typical",1,OFFSET(STATIC_DATA,OFFSET(FACTOROW,5,0),OFFSET(MMF_Factor,0,-2))*OFFSET(POWER_SCALE,10,OFFSET(POWER_SCALE,1,1))) -> 1 | R49: =IF(PROCESS<>"Maximum",1,OFFSET(STATIC_DATA,OFFSET(FACTOROW,5,0),OFFSET(MMF_Factor,0,-2)+27+3+10+8+7+5)*OFFSET(POWER_SCALE,10,OFFSET(POWER_SCALE,1,1))) -> 1 | S49: =IF(PROCESS<>"Typical",1,OFFSET(STATIC_DATA,OFFSET(FACTOROW,5,0),OFFSET(MMF_Factor,0,-2)+9+3+4+9)*OFFSET(POWER_SCALE,10,OFFSET(POWER_SCALE,1,1))) -> 1 | U49: Heatsink | V49: =IF(EXACT("Custom",HEATSINK),1,IF(EXACT("Low Profile",HEATSINK),0,IF(EXACT("Medium Profile",HEATSINK),2,IF(EXACT("High Profile",HEATSINK),4,3)))) -> 2 | X49: 250 | Y49: Imported-BramPwrOpt | AA49: BRAM | AB49: =BRAM_POWER -> 0.1079050984 | AD49: 328.2708626 | AM49: =IF(Logic!I5>1,"LUTs, ","") -> 
E50: Temp2 | F50: =MIN($F$52,IF(ISBLANK(USER_TJ),TJA*(SUM(J12:J28,AW34)-IF(NUM_HBMS>0,HBM_STACK_POWER,0)+PL_POWERED*((O55*F49^5+P55*F49^4+Q55*F49^3+R55*F49^2+S55*F49+T55)/1000*VccAuxScale*VCCAUX+(O54*F49^5+P54*F49^4+Q54*F49^3+R54*F49^2+S54*F49+T54)/1000*VccScale*VCCINT*_Bram_Vccint_Mult+(O58*F49^5+P58*F49^4+Q58*F49^3+R58*F49^2+S58*F49+T58)/1000*VccAuxScale*VCCAUX_IO+(O57*F49^5+P57*F49^4+Q57*F49^3+R57*F49^2+S57*F49+T57)/1000*VccioScale*VCCINT_IO+(O59*F49^5+P59*F49^4+Q59*F49^3+R59*F49^2+S59*F49+T59)/1000*VccioScale*VCCINT_IO))+AMBIENT_TEMP,USER_TJ)) -> 37.43414776 | G50: =PL_POWERED*((OFFSET(VccScale,2,0)*($O$56*I50^5+$P$56*I50^4+$Q$56*I50^3+$R$56*I50^2+$S$56*I50+$T$56)+(OFFSET(VccScale,2,1)*Iccbramq*_Bram_Vccbram_Mult*1000*($O$63*I50^5+$P$63*I50^4+$Q$63*I50^3+$R$63*I50^2+$S$63*I50+$T$63)))/1000+URAM!$BI$501)*VCCBRAM -> 0.005684199893 | H50: 0.3282709033 | I50: =MIN($F$52,IF(ISBLANK(USER_TJ),TJA*(SUM(J$12:J$28,AW34)-IF(NUM_HBMS>0,HBM_STACK_POWER,0)+$G49+$H49*VCCAUX+$J49*VCCINT+$H57*VCCAUX_IO+$J57*VCCINT_IO+$I57*VCCINT_IO+OFFSET(psiccq1,0,2)+gthiccq1+gtyiccq1+gtmiccq1+OFFSET(vcuiccq1,0,2)+OFFSET(sdfeciccq1,2,0)+rficcq1)+AMBIENT_TEMP,USER_TJ)) -> 37.58924836 | J50: =PL_POWERED*(VccScale*($O$54*$I50^5+$P$54*$I50^4+$Q$54*$I50^3+$R$54*$I50^2+$S$54*$I50+$T$54)+OFFSET(VccScale,0,1)*BRAM!I4*(O62*I50^5+P62*I50^4+Q62*I50^3+R62*I50^2+S62*I50+T62))/1000+URAM!U501*_Bram_Vccint_Mult -> 0.485618356 | K50: Scaled ICCAUXQ_D | L50: =Iccauxq_d*IF(PROCESS="Typical",1,2)/0.121 -> 2.809911178 | N50: =IF(AND(LEFT(SPEEDGRADE,3)="-2L",GRADE="Industrial"),4,IF(OR(LEFT(GRADE,1)="Q",LEFT(GRADE,1)="M"),3,IF(OR(LEFT(SPEEDGRADE,3)="-1L",LEFT(SPEEDGRADE,3)="-2L"),2,IF(GRADE="Industrial",1,0)))) -> 2 | O50: MMF Aux | P50: =IF(PROCESS<>"Maximum",1,OFFSET(STATIC_DATA,OFFSET(FACTOROW,5,0),OFFSET(MMF_Factor,0,-2)+26+3+7+7+2)*OFFSET(POWER_SCALE,10,OFFSET(POWER_SCALE,1,1))) -> 1 | Q50: =IF(PROCESS<>"Typical",1,OFFSET(STATIC_DATA,OFFSET(FACTOROW,5,0),OFFSET(MMF_Factor,0,-2)+3+7)*OFFSET(POWER_SCALE,10,OFFSET(POWER_SCALE,1,1))) -> 1 | R50: =IF(PROCESS<>"Maximum",1,OFFSET(STATIC_DATA,OFFSET(FACTOROW,5,0),OFFSET(MMF_Factor,0,-2)+30+3+11+8+7+6)*OFFSET(POWER_SCALE,10,OFFSET(POWER_SCALE,1,1))) -> 1 | S50: =IF(PROCESS<>"Typical",1,OFFSET(STATIC_DATA,OFFSET(FACTOROW,5,0),OFFSET(MMF_Factor,0,-2)+12+3+5+10)*OFFSET(POWER_SCALE,10,OFFSET(POWER_SCALE,1,1))) -> 1 | U50: Pkg size | V50: =OFFSET(Thermal_Data!$A$1,OFFSET(PACKAGES,-1,5),10) -> 1806.25 | X50: 500 | Y50: Imported-NoPwrOpt | AA50: DSP | AB50: =DSP_POWER -> 0.06069581906 | AD50: 72.88193483 | AM50: =IF(BRAM!H4>1,"BRAMs, ","") -> 
E51: Initial2 | F51: =MIN($F$52,IF(ISBLANK(USER_TJ),TJA*(SUM(J12:J21,J23:J28,Other_INTPOWER+Other!H19+Other!F22+Other_XADCPOWER+Other!S12)-IF(NUM_HBMS>0,HBM_STACK_POWER,0)+(Iccauxq_d*VccAuxScale*VCCAUX+ICCQ_DES*VccScale*VCCINT+VccAuxScale*L84*VCCAUX_IO+VccioScale*L83*VCCINT_IO))+AMBIENT_TEMP,USER_TJ)) -> 37.3196573 | G51: =PL_POWERED*((OFFSET(VccScale,2,0)*($O$56*I51^5+$P$56*I51^4+$Q$56*I51^3+$R$56*I51^2+$S$56*I51+$T$56)+(OFFSET(VccScale,2,1)*Iccbramq*_Bram_Vccbram_Mult*1000*($O$63*I51^5+$P$63*I51^4+$Q$63*I51^3+$R$63*I51^2+$S$63*I51+$T$63)))/1000+URAM!$BI$501)*VCCBRAM -> 0.005684199971 | H51: 0.3282709031 | I51: =MIN($F$52,IF(ISBLANK(USER_TJ),TJA*(SUM(J$12:J$28,AW34)-IF(NUM_HBMS>0,HBM_STACK_POWER,0)+$G50+$H50*VCCAUX+$J50*VCCINT+$H58*VCCAUX_IO+$J58*VCCINT_IO+$I58*VCCINT_IO+OFFSET(psiccq1,0,3)+gthiccq1+gtyiccq1+gtmiccq1+OFFSET(vcuiccq1,0,3)+OFFSET(sdfeciccq1,3,0)+rficcq1)+AMBIENT_TEMP,USER_TJ)) -> 37.58924871 | J51: =PL_POWERED*(VccScale*($O$54*$I51^5+$P$54*$I51^4+$Q$54*$I51^3+$R$54*$I51^2+$S$54*$I51+$T$54)+OFFSET(VccScale,0,1)*BRAM!I4*_Bram_Vccint_Mult*(O62*I51^5+P62*I51^4+Q62*I51^3+R62*I51^2+S62*I51+T62))/1000+URAM!U501*_Bram_Vccint_Mult -> 0.4856183627 | K51: Iccint_c1 | L51: =OFFSET(QUIESCENT_DATA,FACTOROW,FACTORCOL+1) -> 5.04006e-06 | O51: MMF Bram | P51: =IF(PROCESS<>"Maximum",1,OFFSET(STATIC_DATA,OFFSET(FACTOROW,5,0),OFFSET(MMF_Factor,0,-2)+21+3+8+8+7+3)*OFFSET(POWER_SCALE,10,OFFSET(POWER_SCALE,1,1))) -> 1 | Q51: =IF(PROCESS<>"Typical",1,OFFSET(STATIC_DATA,OFFSET(FACTOROW,5,0),OFFSET(MMF_Factor,0,-2)+15)*OFFSET(POWER_SCALE,10,OFFSET(POWER_SCALE,1,1))) -> 1 | U51: Air | V51: =1/(6*$V50*0.000001) -> 92.272203 | X51: 750 | Y51: Imported-FullPwrOpt | AA51: PLL | AB51: =PLL_POWER -> 0 | AD51: 0 | AM51: =IF(DSP!H4>1,"DSPs, ","") -> 
E52: Max | F52: =IF($Z$3="en_ext_temp",500,125) -> 125 | G52: =PL_POWERED*((OFFSET(VccScale,2,0)*($O$56*I52^5+$P$56*I52^4+$Q$56*I52^3+$R$56*I52^2+$S$56*I52+$T$56)+(OFFSET(VccScale,2,1)*Iccbramq*1000*($O$63*I52^5+$P$63*I52^4+$Q$63*I52^3+$R$63*I52^2+$S$63*I52+$T$63)))/1000+URAM!$BI$501)*VCCBRAM -> 0.005684212994 | H52: 0.328270863 | I52: =MIN($F$52,IF(ISBLANK(USER_TJ),TJA*(SUM(J$12:J$28,AW34)-IF(NUM_HBMS>0,HBM_STACK_POWER,0)+$G51+$H51*VCCAUX+$J51*VCCINT+$H59*VCCAUX_IO+$J59*VCCINT_IO+$I59*VCCINT_IO+OFFSET(psiccq1,0,4)+gthiccq1+gtyiccq1+gtmiccq1+OFFSET(vcuiccq1,0,4)+OFFSET(sdfeciccq1,4,0)+rficcq1+AW20*VCCO33+AW21*VCCO25+AW22*VCCO18+AW23*VCCO15+AW24*VCCO135+AW25*VCCO12+AW26*VCCO10)+AMBIENT_TEMP,USER_TJ)) -> 37.5893073 | J52: =PL_POWERED*(VccScale*($O$54*$I52^5+$P$54*$I52^4+$Q$54*$I52^3+$R$54*$I52^2+$S$54*$I52+$T$54)+OFFSET(VccScale,0,1)*BRAM!I4*_Bram_Vccint_Mult*(O62*I52^5+P62*I52^4+Q62*I52^3+R62*I52^2+S62*I52+T62))/1000+URAM!U501*_Bram_Vccint_Mult -> 0.485619476 | K52: Iccint_c2 | L52: =OFFSET(QUIESCENT_DATA,FACTOROW,FACTORCOL+2) -> 0.00119872 | O52: VID Factor | P52: =IF(AND(VID_Allowed=1,PROCESS="Maximum",Voltage_Scaling="Yes"),0.7,1) -> 1 | U52: ThetaSA | V52: =IF((HEATSINK="Custom")*(CUSTOMTSA>0),CUSTOMTSA,IF(HEATSINK="None",0,OFFSET(Thermal_Data!$A$1,OFFSET(PACKAGES,-1,6)+IF($V48<=1,0,1)+$V49,8))) -> 0.95 | X52: =IF(OR($C22="None",$C22="Custom"),"X47:X50","X48:X49") -> X48:X49 | Y52: Powered Off | AA52: MMCM | AB52: =MMCM_POWER -> 0 | AD52: 0
G53: =PL_POWERED*((OFFSET(VccScale,2,0)*($O$56*I53^5+$P$56*I53^4+$Q$56*I53^3+$R$56*I53^2+$S$56*I53+$T$56)+(OFFSET(VccScale,2,1)*Iccbramq*_Bram_Vccbram_Mult*1000*($O$63*I53^5+$P$63*I53^4+$Q$63*I53^3+$R$63*I53^2+$S$63*I53+$T$63)))/1000+URAM!$BI$501)*VCCBRAM -> 0.005684213146 | H53: 0.3282708626 | I53: =MIN($F$52,IF(ISBLANK(USER_TJ),TJA*(SUM(J$12:J$28,AW34)-IF(NUM_HBMS>0,HBM_STACK_POWER,0)+$G52+$H52*VCCAUX+$J52*VCCINT+$H60*VCCAUX_IO+$J60*VCCINT_IO+$I60*VCCINT_IO+OFFSET(psiccq1,0,5)+gthiccq1+gtyiccq1+OFFSET(vcuiccq1,0,5)+OFFSET(sdfeciccq1,5,0)+rficcq1+AW20*VCCO33+AW21*VCCO25+AW22*VCCO18+AW23*VCCO15+AW24*VCCO135+AW25*VCCO12+AW26*VCCO10)+AMBIENT_TEMP,USER_TJ)) -> 37.58930799 | J53: =PL_POWERED*(VccScale*($O$54*$I53^5+$P$54*$I53^4+$Q$54*$I53^3+$R$54*$I53^2+$S$54*$I53+$T$54)+OFFSET(VccScale,0,1)*(BRAM!I4*_Bram_Vccint_Mult*(O62*I53^5+P62*I53^4+Q62*I53^3+R62*I53^2+S62*I53+T62)))/1000+URAM!X501*_Bram_Vccint_Mult -> 0.485619489 | K53: Iccintq_d | L53: =(O54*9765625+P54*390625+Q54*15625+R54*625+S54*25+T54)/1000*OFFSET(POWER_SCALE,9,1) -> 0.2917116387 | O53: Bali Factor | P53: 1 | U53: ThetaCS | V53: 0.1 | Y53: =IF(NUM_PS>0,"Y46:Y52","Y46:Y52") -> Y46:Y52 | AA53: Hard IP | AB53: =PCIE_POWER+IF(OR(NUM_CMACS>0,NUM_ILMACS>0),CMAC_POWER+ILMAC_POWER,0) -> 0 | AD53: 0.02653416038
H54: auxioq | I54: iccxiphy | J54: iccioq | K54: Iccintq_des | L54: =ICCINTQ_D+(O62*9765625+P62*390625+Q62*15625+R62*625+S62*25+T62)*BRAM!I4/1000 -> 0.2947319793 | N54: Vccint | O54: =OFFSET(QUIESCENT_DATA,FACTOROW,FACTORCOL) -> 8.62582e-08 | P54: =OFFSET(QUIESCENT_DATA,FACTOROW,FACTORCOL+1) -> 5.04006e-06 | Q54: =OFFSET(QUIESCENT_DATA,FACTOROW,FACTORCOL+2) -> 0.00119872 | R54: =OFFSET(QUIESCENT_DATA,FACTOROW,FACTORCOL+3) -> 0.102066 | S54: =OFFSET(QUIESCENT_DATA,FACTOROW,FACTORCOL+4) -> 4.32135 | T54: =OFFSET(QUIESCENT_DATA,FACTOROW,FACTORCOL+5) -> 98.3455 | U54: ThetaJB | V54: =IF((BOARD="Custom")*(CUSTOMTJB>0),CUSTOMTJB,THETAJB) -> 1.768608326 | AA54: =IF(NUM_URAMS>0,"URAM","") -> URAM | AB54: =IF(NUM_URAMS>0,URAM_POWER,0) -> 0 | AD54: 0
H55: =PL_POWERED*$L$85*($O$58*$I47^5+$P$58*$I47^4+$Q$58*$I47^3+$R$58*$I47^2+$S$58*$I47+$T$58)/1000 -> 0.07288072911 | I55: =PL_POWERED*OFFSET(VccioScale,4,0)*($O$59*$I47^5+$P$59*$I47^4+$Q$59*$I47^3+$R$59*$I47^2+$S$59*$I47+$T$59)/1000 -> 0.00696439559 | J55: =PL_POWERED*VccioScale*($O$57*$I47^5+$P$57*$I47^4+$Q$57*$I47^3+$R$57*$I47^2+$S$57*$I47+$T$57)/1000 -> 0.09524216521 | K55: Iccaux_c1 | L55: =OFFSET(QUIESCENT_DATA,FACTOROW,FACTORCOL+6) -> 0 | M55: =12+IF(AND(PROCESS="Maximum",NOT(OR(GRADE="Industrial",LEFT(SPEEDGRADE,3)="-2L"))),6,0)+IF(AND(PROCESS="Maximum",OR(LEFT(GRADE,1)="Q",LEFT(GRADE,1)="M")),6,0) -> 12 | N55: Vccaux | O55: =OFFSET(QUIESCENT_DATA,FACTOROW,FACTORCOL+$M$55) -> -2.53098e-08 | P55: =OFFSET(QUIESCENT_DATA,FACTOROW,FACTORCOL+$M$55+1) -> 7.73379e-06 | Q55: =OFFSET(QUIESCENT_DATA,FACTOROW,FACTORCOL+$M$55+2) -> -0.000307084 | R55: =OFFSET(QUIESCENT_DATA,FACTOROW,FACTORCOL+$M$55+3) -> -0.000162769 | S55: =OFFSET(QUIESCENT_DATA,FACTOROW,FACTORCOL+$M$55+4) -> -0.762747 | T55: =OFFSET(QUIESCENT_DATA,FACTOROW,FACTORCOL+$M$55+5) -> 361.194 | U55: ThetaJA | V55: =IF(BOARD="JEDEC (2S2P)",V44,OFFSET(Thermal_Data!$A$1,OFFSET(PACKAGES,-1,7)+(4*$V48)+$V47,4+$V46)) -> 2 | AA55: IO | AB55: =IO_POWER -> 0.07748228516 | AD55: 0
H56: 0.07288192034 | I56: 0.007004073257 | J56: 0.09529611387 | K56: Iccaux_c2 | L56: =OFFSET(QUIESCENT_DATA,FACTOROW,FACTORCOL+7) -> 0 | M56: =18+IF(PROCESS="Maximum",12,0)+IF(AND(PROCESS="Maximum",NOT(OR(GRADE="Industrial",LEFT(SPEEDGRADE,3)="-2L"))),6,0)+IF(AND(PROCESS="Maximum",OR(LEFT(GRADE,1)="Q",LEFT(GRADE,1)="M")),6,0) -> 18 | N56: Vccbram | O56: =OFFSET(QUIESCENT_DATA,FACTOROW,FACTORCOL+$M$56) -> 1.56306e-09 | P56: =OFFSET(QUIESCENT_DATA,FACTOROW,FACTORCOL+$M$56+1) -> 4.85261e-08 | Q56: =OFFSET(QUIESCENT_DATA,FACTOROW,FACTORCOL+$M$56+2) -> 1.62977e-05 | R56: =OFFSET(QUIESCENT_DATA,FACTOROW,FACTORCOL+$M$56+3) -> 0.00135447 | S56: =OFFSET(QUIESCENT_DATA,FACTOROW,FACTORCOL+$M$56+4) -> 0.0541152 | T56: =OFFSET(QUIESCENT_DATA,FACTOROW,FACTORCOL+$M$56+5) -> 1.43606 | U56: ThetaJX | V56: =$V55*(THETAJC+$V51)/(THETAJC+$V51-$V55) -> 2.044261398 | AA56: =IF(NUM_GTS>0,"GTX",IF(NUM_GTHS>0,"GTH",IF(NUM_GTPS>0,"GTP",""))) -> GTH | AB56: =IF(NUM_GTS>0,GTX_POWER,IF(NUM_GTHS>0,GTH_POWER,IF(NUM_GTPS>0,GTP_POWER,0))) -> 6.77979233 | AD56: 0.02653416038
H57: 0.07288193413 | I57: 0.007004532692 | J57: 0.09529673774 | K57: Iccauxq_d | L57: =(O55*9765625+P55*390625+Q55*15625+R55*625+S55*25+T55)/1000*OFFSET(POWER_SCALE,10,1) -> 0.3399992526 | M57: =42+IF(AND(PROCESS="Maximum",NOT(OR(GRADE="Industrial",LEFT(SPEEDGRADE,3)="-2L"))),6,0)+IF(AND(PROCESS="Maximum",OR(LEFT(GRADE,1)="Q",LEFT(GRADE,1)="M")),6,0)+IF(PROCESS="Maximum",24,0) -> 42 | N57: Vccint_io | O57: =OFFSET(QUIESCENT_DATA,FACTOROW,FACTORCOL+$M57) -> 7.93967246e-09 | P57: =OFFSET(QUIESCENT_DATA,FACTOROW,FACTORCOL+$M57+1) -> -9.86386418e-07 | Q57: =OFFSET(QUIESCENT_DATA,FACTOROW,FACTORCOL+$M57+2) -> 2.75936767e-05 | R57: =OFFSET(QUIESCENT_DATA,FACTOROW,FACTORCOL+$M57+3) -> 0.00385156666 | S57: =OFFSET(QUIESCENT_DATA,FACTOROW,FACTORCOL+$M57+4) -> 0.0762273949 | T57: =OFFSET(QUIESCENT_DATA,FACTOROW,FACTORCOL+$M57+5) -> 86.9215017 | U57: eThetaJA | V57: =IF((BOARD="Custom"),$V60,IF($V49=3,$V55,$V56*(THETAJC+$V52+$V53)/($V56+THETAJC+$V52+$V53))) -> 0.7359762758 | AA57: =IF(NUM_GTYS>0,"GTY","") -> GTY | AB57: =IF(NUM_GTYS>0,GTY_POWER,0) -> 5.721715061 | AD57: 0
H58: 0.07288193436 | I58: 0.007004540532 | J58: 0.09529674839 | K58: Iccoq | L58: =I63 -> 2.653416038e-05 | M58: =36+IF(PROCESS="Maximum",24,0) -> 36 | N58: Vccaux_io | O58: =OFFSET(QUIESCENT_DATA,FACTOROW,FACTORCOL+$M58) -> -1.50305e-11 | P58: =OFFSET(QUIESCENT_DATA,FACTOROW,FACTORCOL+$M58+1) -> -4.46043e-09 | Q58: =OFFSET(QUIESCENT_DATA,FACTOROW,FACTORCOL+$M58+2) -> 1.18191e-06 | R58: =OFFSET(QUIESCENT_DATA,FACTOROW,FACTORCOL+$M58+3) -> 3.45167e-05 | S58: =OFFSET(QUIESCENT_DATA,FACTOROW,FACTORCOL+$M58+4) -> 0.00128248 | T58: =OFFSET(QUIESCENT_DATA,FACTOROW,FACTORCOL+$M58+5) -> 72.7322 | U58: TJA-Top | V58: =$V52+THETAJC -> 1.05 | AA58: =IF(NUM_PS>0,"PS","") ->  | AB58: =IF(NUM_PS>0,PS_POWER) -> FALSE | AD58: 0.0433221232
H59: 0.07288193437 | I59: 0.007004540624 | J59: 0.09529674851 | K59: Iccbram_c1 | M59: =48+IF(AND(PROCESS="Maximum",NOT(OR(GRADE="Industrial",LEFT(SPEEDGRADE,3)="-2L"))),6,0)+IF(AND(PROCESS="Maximum",OR(LEFT(GRADE,1)="Q",LEFT(GRADE,1)="M")),6,0)+IF(PROCESS="Maximum",36,0) -> 48 | N59: Vccint_xiphy | O59: =OFFSET(QUIESCENT_DATA,FACTOROW,FACTORCOL+$M59) -> 1.09666e-09 | P59: =OFFSET(QUIESCENT_DATA,FACTOROW,FACTORCOL+$M59+1) -> 5.41901e-08 | Q59: =OFFSET(QUIESCENT_DATA,FACTOROW,FACTORCOL+$M59+2) -> 1.58546e-05 | R59: =OFFSET(QUIESCENT_DATA,FACTOROW,FACTORCOL+$M59+3) -> 0.00141588 | S59: =OFFSET(QUIESCENT_DATA,FACTOROW,FACTORCOL+$M59+4) -> 0.0634957 | T59: =OFFSET(QUIESCENT_DATA,FACTOROW,FACTORCOL+$M59+5) -> 1.58778 | U59: TJ | V59: =(TOTAL_POWER*$V58*$V54+$V54*AMBIENT_TEMP+$V58*BOARD_TEMP)/($V58+$V54) -> 36.26385058 | AD59: 33.02458664
H60: 0.07288193482 | I60: 0.007004555827 | J60: 0.09529676916 | K60: Iccbram_c2 | L60: =OFFSET(QUIESCENT_DATA,FACTOROW,FACTORCOL+12) -> -2.53098e-08 | U60: eThetaJA | V60: =($V64 - AMBIENT_TEMP) /$V61 -> 0.6588495199 | AD60: 52.03332756
H61: 0.07288193483 | I61: 0.007004556004 | J61: 0.0952967694 | K61: Iccbramq | L61: =BRAM!I4/1000*OFFSET(POWER_SCALE,9,1) -> 0.25 | M61: =BRAM!I4/1000*OFFSET(POWER_SCALE,9,1) -> 0.25 | N61: =BRAM!I4*(O62*TemperatureEstimate2^5+P62*TemperatureEstimate2^4+Q62*TemperatureEstimate2^3+R62*TemperatureEstimate2^2+S62*TemperatureEstimate2+T62) -> 4.603715228 | O61: =MATCH("BRAM Static Current (mA)",Static_Data!$A$1:$A$806,FALSE) -> 621 | P61: =IF(PROCESS="Maximum",13,1) -> 1 | Q61: =MATCH("BRAM Binning Factors",Static_Data!$A$1:$A$806,FALSE)+1 -> 629 | R61: =MATCH("BRAM Voltage Scaling",Static_Data!$A$1:$A$806,FALSE)+1 -> 625 | U61: Power | V61: =SUM(J12:J28)-IF(NUM_HBMS>0,HBM_STACK_POWER,0)+((P55*V65^4+Q55*V65^3+R55*V65^2+S55*V65+T55)/1000*VCCAUX+(P54*V65^4+Q54*V65^3+R54*V65^2+S54*V65+T54)/1000*VccScale*VCCINT) -> 16.74986188 | AD61: 0
I62: icco18 | J62: icco33 | K62: Process | L62: =IF(PROCESS="Typical",1,OFFSET(QUIESCENT_DATA,FACTOROW,FACTORCOL)) -> 1 | N62: Bram_vcc | O62: =OFFSET(STATIC_DATA,$O61,$P61) -> -1.39936e-12 | P62: =OFFSET(STATIC_DATA,$O61,$P61+1) -> 2.24226e-10 | Q62: =OFFSET(STATIC_DATA,$O61,$P61+2) -> 2.78936e-08 | R62: =OFFSET(STATIC_DATA,$O61,$P61+3) -> 3.23266e-06 | S62: =OFFSET(STATIC_DATA,$O61,$P61+4) -> 0.000203716 | T62: =OFFSET(STATIC_DATA,$O61,$P61+5) -> 0.00445829 | U62: Power2 | AD62: 2.91313508
I63: =PL_POWERED*($O$64*$I$51^5+$P$64*$I$51^4+$Q$64*$I$51^3+$R$64*$I$51^2+$S$64*$I$51+$T$64)/1000*OFFSET(ES_DATA,1,9)+OFFSET(ES_DATA,2,9)/1000 -> 2.653416038e-05 | J63: =PL_POWERED*($O$65*$I$51^5+$P$65*$I$51^4+$Q$65*$I$51^3+$R$65*$I$51^2+$S$65*$I$51+$T$65)/1000*OFFSET(ES_DATA,1,7)+OFFSET(ES_DATA,2,7)/1000 -> 0.006878011778 | K63: I-Grade | L63: =OFFSET(QUIESCENT_DATA,FACTOROW,FACTORCOL+3) -> 0.102066 | N63: Bram_vbram | O63: =OFFSET(STATIC_DATA,$O61,$P61+6) -> 2.12365e-12 | P63: =OFFSET(STATIC_DATA,$O61,$P61+7) -> -2.38846e-11 | Q63: =OFFSET(STATIC_DATA,$O61,$P61+8) -> 1.24413e-08 | R63: =OFFSET(STATIC_DATA,$O61,$P61+9) -> 8.09825e-07 | S63: =OFFSET(STATIC_DATA,$O61,$P61+10) -> 1.40961e-05 | T63: =OFFSET(STATIC_DATA,$O61,$P61+11) -> 0.000610647 | U63: Temp | V63: =MIN(125,$V58*$V61+AMBIENT_TEMP) -> 42.58735497 | AD63: 61.23473332
K64: Q-Grade | L64: =OFFSET(QUIESCENT_DATA,FACTOROW,FACTORCOL+4) -> 4.32135 | M64: =54+IF(PROCESS="Maximum",24+24,0) -> 54 | N64: Vcco18 | O64: =OFFSET(QUIESCENT_DATA,FACTOROW,FACTORCOL+$M64) -> 1.01909e-11 | P64: =OFFSET(QUIESCENT_DATA,FACTOROW,FACTORCOL+$M64+1) -> -6.54103e-10 | Q64: =OFFSET(QUIESCENT_DATA,FACTOROW,FACTORCOL+$M64+2) -> 3.87868e-08 | R64: =OFFSET(QUIESCENT_DATA,FACTOROW,FACTORCOL+$M64+3) -> 3.80486e-06 | S64: =OFFSET(QUIESCENT_DATA,FACTOROW,FACTORCOL+$M64+4) -> 0.000183402 | T64: =OFFSET(QUIESCENT_DATA,FACTOROW,FACTORCOL+$M64+5) -> 0.0127452 | U64: Temp | V64: =($V61 * $V58 * $V54 + $V54 * AMBIENT_TEMP + $V58 * BOARD_TEMP) / ($V58 + $V54) -> 36.03563846 | AD64: 24.55242583
K65: I-Grade | L65: =OFFSET(QUIESCENT_DATA,FACTOROW,FACTORCOL+8) -> 0 | M65: =60+IF(PROCESS="Maximum",24+24,0) -> 60 | N65: Vcco33 | O65: =OFFSET(QUIESCENT_DATA,FACTOROW,FACTORCOL+$M65) -> 2.13475e-11 | P65: =OFFSET(QUIESCENT_DATA,FACTOROW,FACTORCOL+$M65+1) -> -4.53436e-09 | Q65: =OFFSET(QUIESCENT_DATA,FACTOROW,FACTORCOL+$M65+2) -> 2.01413e-07 | R65: =OFFSET(QUIESCENT_DATA,FACTOROW,FACTORCOL+$M65+3) -> 1.26627e-05 | S65: =OFFSET(QUIESCENT_DATA,FACTOROW,FACTORCOL+$M65+4) -> 0.000253347 | T65: =OFFSET(QUIESCENT_DATA,FACTOROW,FACTORCOL+$M65+5) -> 6.84735 | U65: Temp | V65: =MIN(125,IF(ISBLANK(USER_TJ),$V58*(SUM(J12:J28)-IF(NUM_HBMS>0,HBM_STACK_POWER,0)+(Iccauxq_d*VccAuxScale*VCCAUX+ICCQ_DES*VccScale*VCCINT))+AMBIENT_TEMP,USER_TJ)) -> 42.35757514 | AD65: 0
K66: Q-Grade | L66: =OFFSET(QUIESCENT_DATA,FACTOROW,FACTORCOL+9) -> 0
K67: I-Grade | L67: =OFFSET(QUIESCENT_DATA,FACTOROW,FACTORCOL+13) -> 7.73379e-06 | P67: PowerUp | Q67: Int | R67: Int_io | S67: Aux | T67: I/O | U67: Aux_io | V67: Bram | W67: Avcc | X67: Avtt | Y67: GTVccaux | Z67: Avcc | AA67: Avtt | AB67: GTVccaux | AC67: vcchbm | AD67: vccauxhbm | AE67: vcciohbmdram | AF67: vccintgt
K68: Q-Grade | L68: =OFFSET(QUIESCENT_DATA,FACTOROW,FACTORCOL+14) -> -0.000307084 | P68: Adder | Q68: =IF(ISERROR(P70),0,OFFSET(Powerup_Data!$A$1,P70,1)/1000) -> 3.433 | R68: =IF(ISERROR(P70),0,OFFSET(Powerup_Data!$A$1,P70,2)/1000) -> 0.6679167 | S68: =IF(ISERROR(P70),0,OFFSET(Powerup_Data!$A$1,P70,4)/1000) -> 0.3815385 | T68: =IF(ISERROR(P70),0,OFFSET(Powerup_Data!$A$1,P70,6)/1000) -> 0.096 | U68: =IF(ISERROR(P70),0,OFFSET(Powerup_Data!$A$1,P70,5)/1000) -> 0.8584615 | V68: =IF(ISERROR(P70),0,OFFSET(Powerup_Data!$A$1,P70,3)/1000) -> 0.4770833 | W68: =IF(ISERROR(P70),0,OFFSET(Powerup_Data!$A$1,P70,12)/1000) -> 0.007083333 | X68: =IF(ISERROR(P70),0,OFFSET(Powerup_Data!$A$1,P70,13)/1000) -> 0.003571429 | Y68: =IF(ISERROR(P70),0,OFFSET(Powerup_Data!$A$1,P70,11)/1000) -> 0.001785714 | Z68: =IF(ISERROR(P70),0,OFFSET(Powerup_Data!$A$1,P70,15)/1000) -> 0.00625 | AA68: =IF(ISERROR(P70),0,OFFSET(Powerup_Data!$A$1,P70,16)/1000) -> 0.0025 | AB68: =IF(ISERROR(P70),0,OFFSET(Powerup_Data!$A$1,P70,14)/1000) -> 0.00125 | AC68: =IF(ISERROR(P70),0,OFFSET(Powerup_Data!$A$1,P70,24)/1000) -> 0 | AD68: =IF(ISERROR(P70),0,OFFSET(Powerup_Data!$A$1,P70,25)/1000) -> 0 | AE68: =IF(ISERROR(P70),0,OFFSET(Powerup_Data!$A$1,P70,26)/1000) -> 0 | AF68: =IF(ISERROR(P70),0,OFFSET(Powerup_Data!$A$1,P70,27)/1000) -> 0
K69: Vcc_c1 | L69: =OFFSET(VOLTAGE_DATA,1,1) -> 0.4454 | M69: =OFFSET(STATIC_DATA,$R61,1) -> 0.425155 | P69: Min | Q69: =IF(AND(LEFT(PROCESS,3)="Max",Q68>0),ICCINTQ_D*VccScale*AX15+Q68,0) -> 0 | R69: =IF(AND(LEFT(PROCESS,3)="Max",R68>0),(L83*L82+L87*L86)*AX16+R68,0) -> 0 | S69: =IF(AND(LEFT(PROCESS,3)="Max",S68>0),Iccauxq_d*VccAuxScale*AX18 + S68,0) -> 0 | T69: =IF(AND(LEFT(PROCESS,3)="Max",T68>0),ICCOQ_D+T68,0) -> 0 | U69: =IF(AND(LEFT(PROCESS,3)="Max",U68>0),(L84*L85)*AX19+U68,0) -> 0 | V69: =IF(AND(LEFT(PROCESS,3)="Max",V68>0),(O56*9765625+P56*390625+Q56*15625+R56*625+S56*25+T56)/1000*OFFSET(VccScale,2,0)*AX17+V68,0) -> 0 | W69: =IF(NUM_GTFS>0,W71,IF(AND(LEFT(PROCESS,3)="Max",W68>0),OFFSET(GTHAVCCQ,0,-1)+IF(Q28>0,W68*MIN(NUM_GTHS,OFFSET(GTH_PLANES,4,1)*4),0),0)) -> 0 | X69: =IF(NUM_GTFS>0,X71,IF(AND(LEFT(PROCESS,3)="Max",X68>0),OFFSET(GTHVTTXQ,0,-1)+IF(Q29>0,X68*MIN(NUM_GTHS,OFFSET(GTH_PLANES,4,1)*4),0),0)) -> 0 | Y69: =IF(NUM_GTFS>0,Y71,IF(AND(LEFT(PROCESS,3)="Max",Y68>0),OFFSET(GTHAUXQ,0,-1)+IF(Q27>0,Y68*MIN(NUM_GTHS,OFFSET(GTH_PLANES,4,1)*4),0),0)) -> 0 | Z69: =IF(AND(LEFT(PROCESS,3)="Max",Z68>0),OFFSET(GTYAVCCQ,0,-1)+IF(Q32>0,Z68*MIN(NUM_GTYS,OFFSET(GTY_PLANES,4,1)*4),0),0) -> 0 | AA69: =IF(AND(LEFT(PROCESS,3)="Max",AA68>0),OFFSET(GTYVTTXQ,0,-1)+IF(Q33>0,AA68*MIN(NUM_GTYS,OFFSET(GTY_PLANES,4,1)*4),0),0) -> 0 | AB69: =IF(AND(LEFT(PROCESS,3)="Max",AB68>0),OFFSET(GTYAUXQ,0,-1)+IF(Q31>0,AB68*MIN(NUM_GTYS,OFFSET(GTY_PLANES,4,1)*4),0),0) -> 0 | AC69: =IF(AND(LEFT(PROCESS,3)="Max",AC68>0),HBM!AR5+AC68,0) -> 0 | AD69: =IF(AND(LEFT(PROCESS,3)="Max",AD68>0),HBM!AR6+AD68,0) -> 0 | AE69: =IF(AND(LEFT(PROCESS,3)="Max",AE68>0),(HBM!AR3+HBM!AR4)+AE68,0) -> 0 | AF69: =IF(AND(LEFT(PROCESS,3)="Max",AX30>0),(GTM!$M$124)*AX30+AF68,0) -> 0
K70: Vcc_c2 | L70: =OFFSET(VOLTAGE_DATA,2,1) -> 0.945 | M70: =OFFSET(STATIC_DATA,$R61,2) -> 1.00536 | P70: =MATCH(MID(PART,1,LEN(PART)),OFFSET(Powerup_Data!$A$1,1,0,P71,1),FALSE) -> 105 | T70: =IF(AND(LEFT(PROCESS,3)="Max",T68>0),ICCO33Q_D+T68,0) -> 0 | W70: =IF(ISERROR(P70),0,OFFSET(Powerup_Data!$A$1,P70,31)/1000) -> 0 | X70: =IF(ISERROR(P70),0,OFFSET(Powerup_Data!$A$1,P70,32)/1000) -> 0 | Y70: =IF(ISERROR(P70),0,OFFSET(Powerup_Data!$A$1,P70,33)/1000) -> 0
K71: VccScale | L71: =Vcc_c1*EXP(Vcc_c2*VCCINT)*Bali_Factor*VID_Factor*MMF_Factor*OFFSET(MMF_Factor,0,1)*SCD_FACTOR*OFFSET(ES_DATA,1,1) -> 0.9944827521 | M71: =OFFSET(STATIC_DATA,$R61,1)*EXP(OFFSET(STATIC_DATA,$R61,2)*VCCINT)*Bali_Factor*VID_Factor*OFFSET(STATIC_DATA,$Q61,IF(LEFT(PROCESS,3)="Typ",1,5)+OFFSET(MMF_Factor,1,-2))*SCD_FACTOR*OFFSET(ES_DATA,1,1) -> 0.6695007208 | P71: =MATCH("End Device",OFFSET(Powerup_Data!A1,0,0,300,1),FALSE) -> 196 | W71: =IF(AND(LEFT(PROCESS,3)="Max",W70>0),OFFSET(GTFAVCCQ,0,-1)+IF(Q28>0,W70*MIN(NUM_GTFS,OFFSET(GTF_PLANES,4,1)*4),0),0) -> 0 | X71: =IF(AND(LEFT(PROCESS,3)="Max",X70>0),OFFSET(GTFAVTTQ,0,-1)+IF(Q29>0,X70*MIN(NUM_GTFS,OFFSET(GTF_PLANES,4,1)*4),0),0) -> 0 | Y71: =IF(AND(LEFT(PROCESS,3)="Max",Y70>0),OFFSET(GTFAUXQ,0,-1)+IF(Q27>0,Y70*MIN(NUM_GTFS,OFFSET(GTF_PLANES,4,1)*4),0),0) -> 0
K72: VccAuxScale | L72: =OFFSET(VOLTAGE_DATA,1,2)*EXP(OFFSET(VOLTAGE_DATA,2,2)*VCCAUX)*Bali_Factor*OFFSET(MMF_Factor,1,0)*OFFSET(MMF_Factor,1,1)*SCD_FACTOR*OFFSET(ES_DATA,1,5) -> 0.996197925 | P72: =MATCH("GTH Transceiver",OFFSET(Powerup_Data!$A$1,P71,0,6,1),FALSE)+P71+1 -> 
K73: VccBramScale | L73: =(OFFSET(VOLTAGE_DATA,1,3)*EXP(OFFSET(VOLTAGE_DATA,2,3)*VCCBRAM))*VID_Factor*OFFSET(MMF_Factor,2,0)*OFFSET(MMF_Factor,2,1)*OFFSET(ES_DATA,1,4) -> 0.9990978065 | M73: =(OFFSET(STATIC_DATA,$R61,3)*EXP(OFFSET(STATIC_DATA,$R61,4)*VCCBRAM))*VID_Factor*OFFSET(STATIC_DATA,$Q61+1,IF(LEFT(PROCESS,3)="Typ",1,6)+OFFSET(MMF_Factor,1,-2))*OFFSET(ES_DATA,1,4) -> 0.3000604482 | P73: =MATCH("GTY Transceiver",OFFSET(Powerup_Data!$A$1,P71,0,6,1),FALSE)+P71+1 -> 
K74: AVccScale | L74: =Vcc_c1*EXP(Vcc_c2*AVCC) -> 1.042599877
K75: Max bram | L75: =(O56*TJ_MAX^5+P56*TJ_MAX^4+Q56*TJ_MAX^3+R56*TJ_MAX^2+S56*TJ_MAX+T56)/1000*VCCBRAM -> 0.0485972115
K76: Max PS | L76: =IF(NUM_PS>0,PS_STATIC,0) -> 0
K77: Max Aux | L77: =(($O$55*TJ_MAX^5+$P$55*TJ_MAX^4+$Q$55*TJ_MAX^3+$R$55*TJ_MAX^2+$S$55*TJ_MAX+$T$55)+($P$58*TJ_MAX^4+$Q$58*TJ_MAX^3+$R$58*TJ_MAX^2+$S$58*TJ_MAX+$T$58))/1000*VCCAUX -> 1.026774166
K78: Max Int | L78: =(($O$54*TJ_MAX^5+$P$54*TJ_MAX^4+$Q$54*TJ_MAX^3+$R$54*TJ_MAX^2+$S$54*TJ_MAX+$T$54)*VccScale*VCCINT+($O$57*TJ_MAX^5+$P$57*TJ_MAX^4+$Q$57*TJ_MAX^3+$R$57*TJ_MAX^2+$S$57*TJ_MAX+$T$57)*VccioScale*VCCINT_IO)/1000 -> 3.599845772
K79: Max Ambient | L79: =IF(ISBLANK(USER_TJ),TJ_MAX-(TJA*(SUM(L75:L78)+SUM(J12:J28)-IF(NUM_HBMS>0,HBM_STACK_POWER,0)+GTX_LEAKAGE+GTH_LEAKAGE+GTP_LEAKAGE+GTY_LEAKAGE)),AMBIENT_TEMP) -> 84.89078445
K80: Dia | L80: =IF(OR(MID(PART,3,2) = "ZU",Data!B11=1),1,0) -> 1
K81: Oly | L81: =IF(MID(PART,4,1) = "U",1,0) -> 1
K82: VccioScale | L82: =OFFSET(VOLTAGE_DATA,1,6)*EXP(OFFSET(VOLTAGE_DATA,2,6)*VCCINT_IO)*VID_Factor*OFFSET(MMF_Factor,0,2)*OFFSET(MMF_Factor,0,3)*SCD_FACTOR*OFFSET(ES_DATA,1,2) -> 0.9997452316
K83: vccio_d | L83: =(O57*9765625+P57*390625+Q57*15625+R57*625+S57*25+T57)/1000*OFFSET(POWER_SCALE,9,1) -> 0.0913577956
K84: vccauxio_d | L84: =(O58*9765625+P58*390625+Q58*15625+R58*625+S58*25+T58)/1000*OFFSET(POWER_SCALE,10,1) -> 0.07280241314
K85: vccauxioScale | L85: =OFFSET(VOLTAGE_DATA,1,5)*EXP(OFFSET(VOLTAGE_DATA,2,5)*VCCAUX_IO)*OFFSET(MMF_Factor,1,3)*OFFSET(MMF_Factor,1,2)*SCD_FACTOR*OFFSET(ES_DATA,1,6) -> 1.00000022
K86: vccxiphy_scale | L86: =OFFSET(VOLTAGE_DATA,1,7)*EXP(OFFSET(VOLTAGE_DATA,2,7)*VCCINT_IO)*VID_Factor*OFFSET(MMF_Factor,0,2)*OFFSET(MMF_Factor,0,3)*SCD_FACTOR*OFFSET(ES_DATA,1,3) -> 0.9995553148
K87: vccxiphy_d | L87: =(O59*9765625+P59*390625+Q59*15625+R59*625+S59*25+T59)/1000*OFFSET(POWER_SCALE,9,1) -> 0.004339703203
O91: 0 | P91: 1 | Q91: 2 | R91: 3 | S91: 4 | T91: 5
I92: =$L92*(O92*TemperatureEstimate^5+P92*TemperatureEstimate^4+Q92*TemperatureEstimate^3+R92*TemperatureEstimate^2+S92*TemperatureEstimate+T92)/1000 -> 0.0001278602105 | J92: =$L92*(O92*TemperatureEstimate2^5+P92*TemperatureEstimate2^4+Q92*TemperatureEstimate2^3+R92*TemperatureEstimate2^2+S92*TemperatureEstimate2+T92)/1000 -> 0.0001272153481 | K92: UramVccscale | L92: =V92*EXP(W92*VCCINT)*Bali_Factor*VID_Factor*OFFSET(STATIC_DATA,$M96,IF(LEFT(PROCESS,3)="Typ",1,6)+OFFSET(MMF_Factor,1,-2))*SCD_FACTOR -> 0.9999056935 | M92: =MATCH("URAM Static Current (mA)",Static_Data!$A$1:$A$806,FALSE) -> 649 | N92: uram_vcc | O92: =OFFSET(STATIC_DATA,$M$92,$P$61+O91) -> 6.26084e-12 | P92: 1.42514e-09 | Q92: 1.88371e-07 | R92: 2.18626e-05 | S92: 0.00135822 | T92: 0.032607 | U92: =MATCH("URAM Voltage Scaling",Static_Data!$A$1:$A$806,FALSE) -> 652 | V92: =OFFSET(STATIC_DATA,$U$92+1,1) -> 0.531757 | W92: =OFFSET(STATIC_DATA,$U$92+1,2) -> 0.742911
I93: =$L93*(((O93*TemperatureEstimate2^5+P93*TemperatureEstimate2^4+Q93*TemperatureEstimate2^3+R93*TemperatureEstimate2^2+S93*TemperatureEstimate2+T93)))/1000 -> 2.107443612e-05 | J93: =$L93*(((O93*TemperatureEstimate^5+P93*TemperatureEstimate^4+Q93*TemperatureEstimate^3+R93*TemperatureEstimate^2+S93*TemperatureEstimate+T93)))/1000 -> 2.121239906e-05 | K93: UramVbramScale | L93: =V93*EXP(W93*VCCBRAM)*VID_Factor*OFFSET(STATIC_DATA,$M96+1,IF(LEFT(PROCESS,3)="Typ",1,6)+OFFSET(MMF_Factor,1,-2)) -> 0.9982058788 | N93: uram_bram | O93: =OFFSET(STATIC_DATA,$M$92,$P$61+O91+6) -> 1.36241e-11 | P93: -1.39216e-10 | Q93: 7.33655e-08 | R93: 4.94081e-06 | S93: 0.000104894 | T93: 0.00568541 | V93: =OFFSET(STATIC_DATA,$U$92+1,3) -> 0.469584 | W93: =OFFSET(STATIC_DATA,$U$92+1,4) -> 0.887191
I94: =$L92*(((O94*TemperatureEstimate^5+P94*TemperatureEstimate^4+Q94*TemperatureEstimate^3+R94*TemperatureEstimate^2+S94*TemperatureEstimate+T94)))/1000 -> 1.707885544e-05 | J94: =$L92*(((O94*TemperatureEstimate2^5+P94*TemperatureEstimate2^4+Q94*TemperatureEstimate2^3+R94*TemperatureEstimate2^2+S94*TemperatureEstimate2+T94)))/1000 -> 1.698000166e-05 | M94: =MATCH("URAM Sleep Mode (mA)",Static_Data!$A$1:$A$806,FALSE) -> 663 | N94: uram_vcc_sl | O94: =OFFSET(STATIC_DATA,$M$94,$P$61+O91) -> 2.53298e-12 | P94: 1.53451e-10 | Q94: 3.81465e-08 | R94: 3.4686e-06 | S94: 0.000158434 | T94: 0.00370158
I95: =$L93*(((O95*TemperatureEstimate2^5+P95*TemperatureEstimate2^4+Q95*TemperatureEstimate2^3+R95*TemperatureEstimate2^2+S95*TemperatureEstimate2+T95)))/1000 -> 2.554702249e-05 | J95: =$L93*(((O95*TemperatureEstimate^5+P95*TemperatureEstimate^4+Q95*TemperatureEstimate^3+R95*TemperatureEstimate^2+S95*TemperatureEstimate+T95)))/1000 -> 2.569887362e-05 | N95: uram_bram_sl | O95: =OFFSET(STATIC_DATA,$M$94,$P$61+O91+6) -> 4.45494e-12 | P95: 2.32259e-10 | Q95: 5.94232e-08 | R95: 5.33435e-06 | S95: 0.000236239 | T95: 0.0053737
M96: =MATCH("URAM Binning Factors",Static_Data!$A$1:$A$806,FALSE)+1 -> 657
K98: Ram Vccint Multiplier | M98: =_MAXWELL_BRAM_VCCINT_MULT*_RAISE_RAM_VCCINT_MULT -> 1
K99: Ram Vccbram Multiplier | M99: =_MAXWELL_BRAM_VCCBRAM_MULT*_RAISE_RAM_VCCRAM_MULT -> 1

Sheet Snapshot
K1: Power Comparison Snapshots
B3: Settings
B7: Part
B8: Ambient Temperature
B9: Process
B10: Implementation
B12: Summary
B13: Total On-Chip Power
B14: Junction Temperature
B15: Effective ΘJA
B17: PL Power
B18: Clocking
B19: Logic
B20: I/O
B21: BRAM
B22: URAM
B23: DSP
B24: Transceiver
B25: Hard IP
B26: Other
B27: Device Static
B29: PS Power
B30: Battery Domain
B31: Full Power Domain
B32: Low Power Domain
B33: Others
B35: PL Supply Summary
B36: VCCINT
B37: VCCINT_IO
B38: VCCBRAM
B39: VCCAUX
B40: VCCAUX_IO
B41: VCCO 3.3V
B42: VCCO 2.5V
B43: VCCO 1.8V
B44: VCCO 1.5V
B45: VCCO 1.35V
B46: VCCO 1.2V
B47: VCCO 1.0V
B48: MGTVCCAUX
B49: MGTAVCC
B50: MGTAVTT
B51: MGTYVCCAUX
B52: MGTYAVCC
B53: MGTYAVTT
B54: VCCINT_VCU
B55: VCCADC
B57: PS Supply Summary
B58: VCCPSBATT
B59: VCC_PSINTLP
B60: VCCO_PSIO0_500
B61: VCCO_PSIO1_501
B62: VCCO_PSIO2_502
B63: VCCO_PSIO3_503
B64: VCC_PSINTFP
B65: VCCO_PSDDR_504
B66: VPS_MGTRAVCC
B67: VPS_MGTRAVTT
B68: VCC_PSINTFP_DDR
B69: VCC_PSPLL
B70: VCC_PSDDR_PLL
B71: VCC_PSADC
B72: VCC_PSAUX

Sheet Graphs
B41: ="On-Chip Power over Vccint - (" & PROCESS & ", " & INT(JUNCTION_TEMP)& "C)" -> On-Chip Power over Vccint - (Typical, 37C)
B42: ="On-Chip Power - (" & PROCESS & ", " & VCCINT & "V)" -> On-Chip Power - (Typical, 0.85V)
B43: ="On-Chip Power by Function - (" & PROCESS & ", " & VCCINT & "V, " & INT(JUNCTION_TEMP) & "C)" -> On-Chip Power by Function - (Typical, 0.85V, 37C)

Sheet IP_Manager
B1: IP Manager | AA1: IP Catalog
AA2: Block Memory
B3: Device | F3: On-Chip Summary | AA3: Distributed Memory
B4: Part | C4: XCKU15PFFVA1760-1LI | F4: Junction Temp | H4: =JUNCTION_TEMP -> 37.58242824 | AA4: Memory Interface
B5: Process | C5: =PROCESS -> Typical | F5: Static Power | H5: =SUM(Summary!J29:J30) -> 1.424029458 | AA5: =IF(NUM_GTHS>1, "Transceiver Interface",IF(NUM_GTMS>0,"GTM Transceiver Interface","")) -> Transceiver Interface
B6: Effective ΘJA | C6: =TJA -> 0.7359762758 | F6: Total Power | H6: =TOTAL_POWER -> 17.09624162 | AA6: =IF(NUM_GTYS>1,"GTY Transceiver Interface","") -> GTY Transceiver Interface
B7: Implementation | C7: =OPTIMIZATION -> None
B13: IP Modules | E13: Power (W) | F13: Clocking* | G13: Logic | H13: I/O* | I13: BRAM | J13: DSP | K13: Transceiver* | L13: Source | AA13: Clock | AB13: PLL | AC13: MMCM | AD13: Logic | AE13: I/O | AF13: Phaser | AG13: BRAM | AH13: DSP | AI13: PCIE | AJ13: GTP/X/H | AK13: GTZ
B43: =ROW(IPROWS)-14 -> 29

Sheet Clock
B1: Clock Tree Power | P1: =IF(FALSE,1,OFFSET(POWER_SCALE,2,OFFSET(POWER_SCALE,1,1))*PL_POWERED/0.95)*0.95*_DYN_POWER_SCALE -> 1 | Q1: =CLOCK_ROWS*CLOCK_COLS*34 -> 1496 | R1: 32 | S1: 30 | T1: 20 | X1: Base | Y1: Total Sites | Z1: Clock Regions | AA1: Leafs per CR | AB1: MAX LEAFS | AC1: Hdistr Per CR | AD1: MAX HDISTR
X2: =IFERROR(MATCH(OFFSET(PARTS,OFFSET(PARTS,-1,0),34),PARTLIST,FALSE),OFFSET(PARTS,-1,0)) -> 56 | Y2: =SUM(MAX(NUM_FFS,OFFSET(PARTS,$X$2,8))/16,MAX(NUM_BRAMS,OFFSET(PARTS,$X$2,9)),MAX(NUM_DSPS,OFFSET(PARTS,$X$2,10))) -> 68292 | Z2: =CLOCK_ROWS*CLOCK_COLS -> 44 | AA2: 34 | AB2: =Z2*AA2 -> 1496 | AC2: 3 | AD2: =AC2*Z2 -> 132
B3: Power | J3: Clocking Resources User Guide
B4: VCCINT | C4: =TEXT(VCCINT,"0.000")&"V" -> 0.850V | D4: =SUM(J10:J200)*PL_POWERED -> 0.001188828142
B5: =TEXT(CLOCK_POWER/TOTAL_POWER,"0%")&" of total on-chip power "&TEXT(TOTAL_POWER,"0.000")&"W" -> 0% of total on-chip power 17.096W | J5: XPE User Guide
J7: Introduction to XPE (video)
B9: Name | E9: Frequency (MHz) | F9: Fanout | G9: Fanout/Site | H9: Clock Buffer Enable | I9: Slice Clock Enable | J9: Power (W) | U9: Fanout/Site | V9: Total Slice Clock Enable | W9: Number of Bels in Logic sheet | X9: #sites | Y9: siteUtil | Z9: leafUtil | AA9: #leafs | AB9: hdistUtil | AC9: #Hdist | AD9: #siteClkPins | AE9: #clkGrps | AI9: hdistCur | AJ9: leafCur | AK9: localCur | AL9: ctrlGrpCur | AM9: clkPinBufCur | AP9: TotalCur
B10: clk_sys | E10: 156.25 | F10: 100 | G10: 6.5 | H10: 1 | I10: 0.5 | J10: =IF($F10>0, AP10*(VCCINT/1000)*VCCINT_N,0)*OFFSET(POWER_OPT,OFFSET(OPTIMIZATION,0,3),1)*$P$1 -> 0.0005432209304 | U10: =G10 -> 6.5 | X10: =IFERROR(MIN($Y$2,F10/U10),0) -> 15.38461538 | Y10: =IFERROR(X10/$Y$2,1) -> 0.000225276978 | Z10: =IFERROR((1-OFFSET(CLOCK_DATA,0,19)^(OFFSET(CLOCK_DATA,1,19)*Clock!Y10)),1) -> 0.0008704085062 | AA10: =Z10*$AB$2 -> 1.302131125 | AB10: =IFERROR((1-OFFSET(CLOCK_DATA,0,20)^(OFFSET(CLOCK_DATA,1,20)*Z10)),1) -> 0.0008980458857 | AC10: =AB10*$AD$2 -> 0.1185420569 | AD10: =IFERROR(X10*(U10*OFFSET(CLOCK_DATA,0,21)+OFFSET(CLOCK_DATA,1,21)),1) -> 25.10076923 | AE10: =IFERROR(AD10*(U10*OFFSET(CLOCK_DATA,0,22)+OFFSET(CLOCK_DATA,1,22)),1) -> 39.09946823 | AI10: =E10*AC10*OFFSET(CLOCK_DATA,4,18) -> 0.04754647814 | AJ10: =E10*ROUNDUP(AA10,0)*(H10*OFFSET(CLOCK_DATA,4,19)+(1-H10)*OFFSET(CLOCK_DATA,3,19)) -> 0.19375 | AK10: =E10*X10*OFFSET(CLOCK_DATA,4,20) -> 0.0951234375 | AL10: =E10*I10*AE10*OFFSET(CLOCK_DATA,6,19) -> 0.2174205352 | AM10: =E10*AD10*OFFSET(CLOCK_DATA,6,18) -> 0.08524299671 | AP10: =SUM(AI10:AM10) -> 0.6390834475
B11: clk_timing | E11: 185.7 | F11: 100 | G11: 6.5 | H11: 1 | I11: 0.5 | J11: 0.0006456072114 | U11: =G11 -> 6.5 | X11: =IFERROR(MIN($Y$2,F11/U11),0) -> 15.38461538 | Y11: =IFERROR(X11/$Y$2,1) -> 0.000225276978 | Z11: =IFERROR((1-OFFSET(CLOCK_DATA,0,19)^(OFFSET(CLOCK_DATA,1,19)*Clock!Y11)),1) -> 0.0008704085062 | AA11: =Z11*$AB$2 -> 1.302131125 | AB11: 0.0008980458857 | AC11: =AB11*$AD$2 -> 0.1185420569 | AD11: 25.10076923 | AE11: 39.09946823 | AI11: 0.05650803834 | AJ11: 0.230268 | AK11: 0.113052303 | AL11: 0.2583999576 | AM11: 0.1013095967 | AP11: =SUM(AI11:AM11) -> 0.7595378957
G12: 6.5 | H12: 1 | I12: 0.5 | J12: 0 | U12: 6.5 | X12: 0 | Y12: 0 | Z12: =IFERROR((1-OFFSET(CLOCK_DATA,0,19)^(OFFSET(CLOCK_DATA,1,19)*Clock!Y12)),1) -> 0 | AA12: 0 | AB12: 0 | AC12: 0 | AD12: 0 | AE12: 0 | AI12: 0 | AJ12: 0 | AK12: 0 | AL12: 0 | AM12: 0 | AP12: 0
G13: 6.5 | H13: 1 | I13: 0.5 | J13: 0 | U13: 6.5 | X13: 0 | Y13: 0 | Z13: =IFERROR((1-OFFSET(CLOCK_DATA,0,19)^(OFFSET(CLOCK_DATA,1,19)*Clock!Y13)),1) -> 0 | AA13: 0 | AB13: 0 | AC13: 0 | AD13: 0 | AE13: 0 | AI13: 0 | AJ13: 0 | AK13: 0 | AL13: 0 | AM13: 0 | AP13: 0
G14: 6.5 | H14: 1 | I14: 0.5 | J14: 0 | U14: 6.5 | X14: 0 | Y14: 0 | Z14: =IFERROR((1-OFFSET(CLOCK_DATA,0,19)^(OFFSET(CLOCK_DATA,1,19)*Clock!Y14)),1) -> 0 | AA14: 0 | AB14: 0 | AC14: 0 | AD14: 0 | AE14: 0 | AI14: 0 | AJ14: 0 | AK14: 0 | AL14: 0 | AM14: 0 | AP14: 0
G15: 6.5 | H15: 1 | I15: 0.5 | J15: 0 | U15: 6.5 | X15: 0 | Y15: 0 | Z15: =IFERROR((1-OFFSET(CLOCK_DATA,0,19)^(OFFSET(CLOCK_DATA,1,19)*Clock!Y15)),1) -> 0 | AA15: 0 | AB15: 0 | AC15: 0 | AD15: 0 | AE15: 0 | AI15: 0 | AJ15: 0 | AK15: 0 | AL15: 0 | AM15: 0 | AP15: 0
G16: 6.5 | H16: 1 | I16: 0.5 | J16: 0 | U16: 6.5 | X16: 0 | Y16: 0 | Z16: =IFERROR((1-OFFSET(CLOCK_DATA,0,19)^(OFFSET(CLOCK_DATA,1,19)*Clock!Y16)),1) -> 0 | AA16: 0 | AB16: 0 | AC16: 0 | AD16: 0 | AE16: 0 | AI16: 0 | AJ16: 0 | AK16: 0 | AL16: 0 | AM16: 0 | AP16: 0
G17: 6.5 | H17: 1 | I17: 0.5 | J17: 0 | U17: 6.5 | X17: 0 | Y17: 0 | Z17: =IFERROR((1-OFFSET(CLOCK_DATA,0,19)^(OFFSET(CLOCK_DATA,1,19)*Clock!Y17)),1) -> 0 | AA17: 0 | AB17: 0 | AC17: 0 | AD17: 0 | AE17: 0 | AI17: 0 | AJ17: 0 | AK17: 0 | AL17: 0 | AM17: 0 | AP17: 0
G18: 6.5 | H18: 1 | I18: 0.5 | J18: 0 | U18: 6.5 | X18: 0 | Y18: 0 | Z18: =IFERROR((1-OFFSET(CLOCK_DATA,0,19)^(OFFSET(CLOCK_DATA,1,19)*Clock!Y18)),1) -> 0 | AA18: 0 | AB18: 0 | AC18: 0 | AD18: 0 | AE18: 0 | AI18: 0 | AJ18: 0 | AK18: 0 | AL18: 0 | AM18: 0 | AP18: 0
G19: 6.5 | H19: 1 | I19: 0.5 | J19: 0 | U19: 6.5 | X19: 0 | Y19: 0 | Z19: =IFERROR((1-OFFSET(CLOCK_DATA,0,19)^(OFFSET(CLOCK_DATA,1,19)*Clock!Y19)),1) -> 0 | AA19: 0 | AB19: 0 | AC19: 0 | AD19: 0 | AE19: 0 | AI19: 0 | AJ19: 0 | AK19: 0 | AL19: 0 | AM19: 0 | AP19: 0
G20: 6.5 | H20: 1 | I20: 0.5 | J20: 0 | U20: 6.5 | X20: 0 | Y20: 0 | Z20: =IFERROR((1-OFFSET(CLOCK_DATA,0,19)^(OFFSET(CLOCK_DATA,1,19)*Clock!Y20)),1) -> 0 | AA20: 0 | AB20: 0 | AC20: 0 | AD20: 0 | AE20: 0 | AI20: 0 | AJ20: 0 | AK20: 0 | AL20: 0 | AM20: 0 | AP20: 0
G21: 6.5 | H21: 1 | I21: 0.5 | J21: 0 | U21: 6.5 | X21: 0 | Y21: 0 | Z21: =IFERROR((1-OFFSET(CLOCK_DATA,0,19)^(OFFSET(CLOCK_DATA,1,19)*Clock!Y21)),1) -> 0 | AA21: 0 | AB21: 0 | AC21: 0 | AD21: 0 | AE21: 0 | AI21: 0 | AJ21: 0 | AK21: 0 | AL21: 0 | AM21: 0 | AP21: 0
G22: 6.5 | H22: 1 | I22: 0.5 | J22: 0 | U22: 6.5 | X22: 0 | Y22: 0 | Z22: =IFERROR((1-OFFSET(CLOCK_DATA,0,19)^(OFFSET(CLOCK_DATA,1,19)*Clock!Y22)),1) -> 0 | AA22: 0 | AB22: 0 | AC22: 0 | AD22: 0 | AE22: 0 | AI22: 0 | AJ22: 0 | AK22: 0 | AL22: 0 | AM22: 0 | AP22: 0
G23: 6.5 | H23: 1 | I23: 0.5 | J23: 0 | U23: 6.5 | X23: 0 | Y23: 0 | Z23: =IFERROR((1-OFFSET(CLOCK_DATA,0,19)^(OFFSET(CLOCK_DATA,1,19)*Clock!Y23)),1) -> 0 | AA23: 0 | AB23: 0 | AC23: 0 | AD23: 0 | AE23: 0 | AI23: 0 | AJ23: 0 | AK23: 0 | AL23: 0 | AM23: 0 | AP23: 0
G24: 6.5 | H24: 1 | I24: 0.5 | J24: 0 | U24: 6.5 | X24: 0 | Y24: 0 | Z24: =IFERROR((1-OFFSET(CLOCK_DATA,0,19)^(OFFSET(CLOCK_DATA,1,19)*Clock!Y24)),1) -> 0 | AA24: 0 | AB24: 0 | AC24: 0 | AD24: 0 | AE24: 0 | AI24: 0 | AJ24: 0 | AK24: 0 | AL24: 0 | AM24: 0 | AP24: 0
G25: 6.5 | H25: 1 | I25: 0.5 | J25: 0 | U25: 6.5 | X25: 0 | Y25: 0 | Z25: =IFERROR((1-OFFSET(CLOCK_DATA,0,19)^(OFFSET(CLOCK_DATA,1,19)*Clock!Y25)),1) -> 0 | AA25: 0 | AB25: 0 | AC25: 0 | AD25: 0 | AE25: 0 | AI25: 0 | AJ25: 0 | AK25: 0 | AL25: 0 | AM25: 0 | AP25: 0
G26: 6.5 | H26: 1 | I26: 0.5 | J26: 0 | U26: 6.5 | X26: 0 | Y26: 0 | Z26: =IFERROR((1-OFFSET(CLOCK_DATA,0,19)^(OFFSET(CLOCK_DATA,1,19)*Clock!Y26)),1) -> 0 | AA26: 0 | AB26: 0 | AC26: 0 | AD26: 0 | AE26: 0 | AI26: 0 | AJ26: 0 | AK26: 0 | AL26: 0 | AM26: 0 | AP26: 0
G27: 6.5 | H27: 1 | I27: 0.5 | J27: 0 | U27: 6.5 | X27: 0 | Y27: 0 | Z27: =IFERROR((1-OFFSET(CLOCK_DATA,0,19)^(OFFSET(CLOCK_DATA,1,19)*Clock!Y27)),1) -> 0 | AA27: 0 | AB27: 0 | AC27: 0 | AD27: 0 | AE27: 0 | AI27: 0 | AJ27: 0 | AK27: 0 | AL27: 0 | AM27: 0 | AP27: 0
G28: 6.5 | H28: 1 | I28: 0.5 | J28: 0 | U28: 6.5 | X28: 0 | Y28: 0 | Z28: =IFERROR((1-OFFSET(CLOCK_DATA,0,19)^(OFFSET(CLOCK_DATA,1,19)*Clock!Y28)),1) -> 0 | AA28: 0 | AB28: 0 | AC28: 0 | AD28: 0 | AE28: 0 | AI28: 0 | AJ28: 0 | AK28: 0 | AL28: 0 | AM28: 0 | AP28: 0
G29: 6.5 | H29: 1 | I29: 0.5 | J29: 0 | U29: 6.5 | X29: 0 | Y29: 0 | Z29: =IFERROR((1-OFFSET(CLOCK_DATA,0,19)^(OFFSET(CLOCK_DATA,1,19)*Clock!Y29)),1) -> 0 | AA29: 0 | AB29: 0 | AC29: 0 | AD29: 0 | AE29: 0 | AI29: 0 | AJ29: 0 | AK29: 0 | AL29: 0 | AM29: 0 | AP29: 0
G30: 6.5 | H30: 1 | I30: 0.5 | J30: 0 | U30: 6.5 | X30: 0 | Y30: 0 | Z30: =IFERROR((1-OFFSET(CLOCK_DATA,0,19)^(OFFSET(CLOCK_DATA,1,19)*Clock!Y30)),1) -> 0 | AA30: 0 | AB30: 0 | AC30: 0 | AD30: 0 | AE30: 0 | AI30: 0 | AJ30: 0 | AK30: 0 | AL30: 0 | AM30: 0 | AP30: 0
G31: 6.5 | H31: 1 | I31: 0.5 | J31: 0 | U31: 6.5 | X31: 0 | Y31: 0 | Z31: =IFERROR((1-OFFSET(CLOCK_DATA,0,19)^(OFFSET(CLOCK_DATA,1,19)*Clock!Y31)),1) -> 0 | AA31: 0 | AB31: 0 | AC31: 0 | AD31: 0 | AE31: 0 | AI31: 0 | AJ31: 0 | AK31: 0 | AL31: 0 | AM31: 0 | AP31: 0
G32: 6.5 | H32: 1 | I32: 0.5 | J32: 0 | U32: 6.5 | X32: 0 | Y32: 0 | Z32: =IFERROR((1-OFFSET(CLOCK_DATA,0,19)^(OFFSET(CLOCK_DATA,1,19)*Clock!Y32)),1) -> 0 | AA32: 0 | AB32: 0 | AC32: 0 | AD32: 0 | AE32: 0 | AI32: 0 | AJ32: 0 | AK32: 0 | AL32: 0 | AM32: 0 | AP32: 0
G33: 6.5 | H33: 1 | I33: 0.5 | J33: 0 | U33: 6.5 | X33: 0 | Y33: 0 | Z33: =IFERROR((1-OFFSET(CLOCK_DATA,0,19)^(OFFSET(CLOCK_DATA,1,19)*Clock!Y33)),1) -> 0 | AA33: 0 | AB33: 0 | AC33: 0 | AD33: 0 | AE33: 0 | AI33: 0 | AJ33: 0 | AK33: 0 | AL33: 0 | AM33: 0 | AP33: 0
G34: 6.5 | H34: 1 | I34: 0.5 | J34: 0 | U34: 6.5 | X34: 0 | Y34: 0 | Z34: =IFERROR((1-OFFSET(CLOCK_DATA,0,19)^(OFFSET(CLOCK_DATA,1,19)*Clock!Y34)),1) -> 0 | AA34: 0 | AB34: 0 | AC34: 0 | AD34: 0 | AE34: 0 | AI34: 0 | AJ34: 0 | AK34: 0 | AL34: 0 | AM34: 0 | AP34: 0
G35: 6.5 | H35: 1 | I35: 0.5 | J35: 0 | U35: 6.5 | X35: 0 | Y35: 0 | Z35: =IFERROR((1-OFFSET(CLOCK_DATA,0,19)^(OFFSET(CLOCK_DATA,1,19)*Clock!Y35)),1) -> 0 | AA35: 0 | AB35: 0 | AC35: 0 | AD35: 0 | AE35: 0 | AI35: 0 | AJ35: 0 | AK35: 0 | AL35: 0 | AM35: 0 | AP35: 0
G36: 6.5 | H36: 1 | I36: 0.5 | J36: 0 | U36: 6.5 | X36: 0 | Y36: 0 | Z36: =IFERROR((1-OFFSET(CLOCK_DATA,0,19)^(OFFSET(CLOCK_DATA,1,19)*Clock!Y36)),1) -> 0 | AA36: 0 | AB36: 0 | AC36: 0 | AD36: 0 | AE36: 0 | AI36: 0 | AJ36: 0 | AK36: 0 | AL36: 0 | AM36: 0 | AP36: 0
G37: 6.5 | H37: 1 | I37: 0.5 | J37: 0 | U37: 6.5 | X37: 0 | Y37: 0 | Z37: =IFERROR((1-OFFSET(CLOCK_DATA,0,19)^(OFFSET(CLOCK_DATA,1,19)*Clock!Y37)),1) -> 0 | AA37: 0 | AB37: 0 | AC37: 0 | AD37: 0 | AE37: 0 | AI37: 0 | AJ37: 0 | AK37: 0 | AL37: 0 | AM37: 0 | AP37: 0
G38: 6.5 | H38: 1 | I38: 0.5 | J38: 0 | U38: 6.5 | X38: 0 | Y38: 0 | Z38: =IFERROR((1-OFFSET(CLOCK_DATA,0,19)^(OFFSET(CLOCK_DATA,1,19)*Clock!Y38)),1) -> 0 | AA38: 0 | AB38: 0 | AC38: 0 | AD38: 0 | AE38: 0 | AI38: 0 | AJ38: 0 | AK38: 0 | AL38: 0 | AM38: 0 | AP38: 0
G39: 6.5 | H39: 1 | I39: 0.5 | J39: 0 | U39: 6.5 | X39: 0 | Y39: 0 | Z39: =IFERROR((1-OFFSET(CLOCK_DATA,0,19)^(OFFSET(CLOCK_DATA,1,19)*Clock!Y39)),1) -> 0 | AA39: 0 | AB39: 0 | AC39: 0 | AD39: 0 | AE39: 0 | AI39: 0 | AJ39: 0 | AK39: 0 | AL39: 0 | AM39: 0 | AP39: 0
G40: 6.5 | H40: 1 | I40: 0.5 | J40: 0 | U40: 6.5 | X40: 0 | Y40: 0 | Z40: =IFERROR((1-OFFSET(CLOCK_DATA,0,19)^(OFFSET(CLOCK_DATA,1,19)*Clock!Y40)),1) -> 0 | AA40: 0 | AB40: 0 | AC40: 0 | AD40: 0 | AE40: 0 | AI40: 0 | AJ40: 0 | AK40: 0 | AL40: 0 | AM40: 0 | AP40: 0
G41: 6.5 | H41: 1 | I41: 0.5 | J41: 0 | U41: 6.5 | X41: 0 | Y41: 0 | Z41: =IFERROR((1-OFFSET(CLOCK_DATA,0,19)^(OFFSET(CLOCK_DATA,1,19)*Clock!Y41)),1) -> 0 | AA41: 0 | AB41: 0 | AC41: 0 | AD41: 0 | AE41: 0 | AI41: 0 | AJ41: 0 | AK41: 0 | AL41: 0 | AM41: 0 | AP41: 0
G42: 6.5 | H42: 1 | I42: 0.5 | J42: =IF($F42>0, AP42*(VCCINT/1000)*VCCINT_N,0)*OFFSET(POWER_OPT,OFFSET(OPTIMIZATION,0,3),1)*$P$1 -> 0 | U42: 6.5 | X42: 0 | Y42: 0 | Z42: =IFERROR((1-OFFSET(CLOCK_DATA,0,19)^(OFFSET(CLOCK_DATA,1,19)*Clock!Y42)),1) -> 0 | AA42: 0 | AB42: =IFERROR((1-OFFSET(CLOCK_DATA,0,20)^(OFFSET(CLOCK_DATA,1,20)*Z42)),1) -> 0 | AC42: 0 | AD42: =IFERROR(X42*(U42*OFFSET(CLOCK_DATA,0,21)+OFFSET(CLOCK_DATA,1,21)),1) -> 0 | AE42: =IFERROR(AD42*(U42*OFFSET(CLOCK_DATA,0,22)+OFFSET(CLOCK_DATA,1,22)),1) -> 0 | AI42: =E42*AC42*OFFSET(CLOCK_DATA,4,18) -> 0 | AJ42: =E42*ROUNDUP(AA42,0)*(H42*OFFSET(CLOCK_DATA,4,19)+(1-H42)*OFFSET(CLOCK_DATA,3,19)) -> 0 | AK42: =E42*X42*OFFSET(CLOCK_DATA,4,20) -> 0 | AL42: =E42*I42*AE42*OFFSET(CLOCK_DATA,6,19) -> 0 | AM42: =E42*AD42*OFFSET(CLOCK_DATA,6,18) -> 0 | AP42: 0
G43: 6.5 | H43: 1 | I43: 0.5 | J43: 0 | U43: 6.5 | X43: 0 | Y43: 0 | Z43: =IFERROR((1-OFFSET(CLOCK_DATA,0,19)^(OFFSET(CLOCK_DATA,1,19)*Clock!Y43)),1) -> 0 | AA43: 0 | AB43: 0 | AC43: 0 | AD43: 0 | AE43: 0 | AI43: 0 | AJ43: 0 | AK43: 0 | AL43: 0 | AM43: 0 | AP43: 0
G44: 6.5 | H44: 1 | I44: 0.5 | J44: 0 | U44: 6.5 | X44: 0 | Y44: 0 | Z44: =IFERROR((1-OFFSET(CLOCK_DATA,0,19)^(OFFSET(CLOCK_DATA,1,19)*Clock!Y44)),1) -> 0 | AA44: 0 | AB44: 0 | AC44: 0 | AD44: 0 | AE44: 0 | AI44: 0 | AJ44: 0 | AK44: 0 | AL44: 0 | AM44: 0 | AP44: 0
G45: 6.5 | H45: 1 | I45: 0.5 | J45: 0 | U45: 6.5 | X45: 0 | Y45: 0 | Z45: =IFERROR((1-OFFSET(CLOCK_DATA,0,19)^(OFFSET(CLOCK_DATA,1,19)*Clock!Y45)),1) -> 0 | AA45: 0 | AB45: 0 | AC45: 0 | AD45: 0 | AE45: 0 | AI45: 0 | AJ45: 0 | AK45: 0 | AL45: 0 | AM45: 0 | AP45: 0
G46: 6.5 | H46: 1 | I46: 0.5 | J46: 0 | U46: 6.5 | X46: 0 | Y46: 0 | Z46: =IFERROR((1-OFFSET(CLOCK_DATA,0,19)^(OFFSET(CLOCK_DATA,1,19)*Clock!Y46)),1) -> 0 | AA46: 0 | AB46: 0 | AC46: 0 | AD46: 0 | AE46: 0 | AI46: 0 | AJ46: 0 | AK46: 0 | AL46: 0 | AM46: 0 | AP46: 0
G47: 6.5 | H47: 1 | I47: 0.5 | J47: 0 | U47: 6.5 | X47: 0 | Y47: 0 | Z47: =IFERROR((1-OFFSET(CLOCK_DATA,0,19)^(OFFSET(CLOCK_DATA,1,19)*Clock!Y47)),1) -> 0 | AA47: 0 | AB47: 0 | AC47: 0 | AD47: 0 | AE47: 0 | AI47: 0 | AJ47: 0 | AK47: 0 | AL47: 0 | AM47: 0 | AP47: 0
G48: 6.5 | H48: 1 | I48: 0.5 | J48: 0 | U48: 6.5 | X48: 0 | Y48: 0 | Z48: =IFERROR((1-OFFSET(CLOCK_DATA,0,19)^(OFFSET(CLOCK_DATA,1,19)*Clock!Y48)),1) -> 0 | AA48: 0 | AB48: 0 | AC48: 0 | AD48: 0 | AE48: 0 | AI48: 0 | AJ48: 0 | AK48: 0 | AL48: 0 | AM48: 0 | AP48: 0
G49: 6.5 | H49: 1 | I49: 0.5 | J49: 0 | U49: 6.5 | X49: 0 | Y49: 0 | Z49: =IFERROR((1-OFFSET(CLOCK_DATA,0,19)^(OFFSET(CLOCK_DATA,1,19)*Clock!Y49)),1) -> 0 | AA49: 0 | AB49: 0 | AC49: 0 | AD49: 0 | AE49: 0 | AI49: 0 | AJ49: 0 | AK49: 0 | AL49: 0 | AM49: 0 | AP49: 0
G50: 6.5 | H50: 1 | I50: 0.5 | J50: 0 | U50: 6.5 | X50: 0 | Y50: 0 | Z50: =IFERROR((1-OFFSET(CLOCK_DATA,0,19)^(OFFSET(CLOCK_DATA,1,19)*Clock!Y50)),1) -> 0 | AA50: 0 | AB50: 0 | AC50: 0 | AD50: 0 | AE50: 0 | AI50: 0 | AJ50: 0 | AK50: 0 | AL50: 0 | AM50: 0 | AP50: 0
G51: 6.5 | H51: 1 | I51: 0.5 | J51: 0 | U51: 6.5 | X51: 0 | Y51: 0 | Z51: =IFERROR((1-OFFSET(CLOCK_DATA,0,19)^(OFFSET(CLOCK_DATA,1,19)*Clock!Y51)),1) -> 0 | AA51: 0 | AB51: 0 | AC51: 0 | AD51: 0 | AE51: 0 | AI51: 0 | AJ51: 0 | AK51: 0 | AL51: 0 | AM51: 0 | AP51: 0
G52: 6.5 | H52: 1 | I52: 0.5 | J52: 0 | U52: 6.5 | X52: 0 | Y52: 0 | Z52: =IFERROR((1-OFFSET(CLOCK_DATA,0,19)^(OFFSET(CLOCK_DATA,1,19)*Clock!Y52)),1) -> 0 | AA52: 0 | AB52: 0 | AC52: 0 | AD52: 0 | AE52: 0 | AI52: 0 | AJ52: 0 | AK52: 0 | AL52: 0 | AM52: 0 | AP52: 0
G53: 6.5 | H53: 1 | I53: 0.5 | J53: 0 | U53: 6.5 | X53: 0 | Y53: 0 | Z53: =IFERROR((1-OFFSET(CLOCK_DATA,0,19)^(OFFSET(CLOCK_DATA,1,19)*Clock!Y53)),1) -> 0 | AA53: 0 | AB53: 0 | AC53: 0 | AD53: 0 | AE53: 0 | AI53: 0 | AJ53: 0 | AK53: 0 | AL53: 0 | AM53: 0 | AP53: 0
G54: 6.5 | H54: 1 | I54: 0.5 | J54: 0 | U54: 6.5 | X54: 0 | Y54: 0 | Z54: =IFERROR((1-OFFSET(CLOCK_DATA,0,19)^(OFFSET(CLOCK_DATA,1,19)*Clock!Y54)),1) -> 0 | AA54: 0 | AB54: 0 | AC54: 0 | AD54: 0 | AE54: 0 | AI54: 0 | AJ54: 0 | AK54: 0 | AL54: 0 | AM54: 0 | AP54: 0
G55: 6.5 | H55: 1 | I55: 0.5 | J55: 0 | U55: 6.5 | X55: 0 | Y55: 0 | Z55: =IFERROR((1-OFFSET(CLOCK_DATA,0,19)^(OFFSET(CLOCK_DATA,1,19)*Clock!Y55)),1) -> 0 | AA55: 0 | AB55: 0 | AC55: 0 | AD55: 0 | AE55: 0 | AI55: 0 | AJ55: 0 | AK55: 0 | AL55: 0 | AM55: 0 | AP55: 0
G56: 6.5 | H56: 1 | I56: 0.5 | J56: 0 | U56: 6.5 | X56: 0 | Y56: 0 | Z56: =IFERROR((1-OFFSET(CLOCK_DATA,0,19)^(OFFSET(CLOCK_DATA,1,19)*Clock!Y56)),1) -> 0 | AA56: 0 | AB56: 0 | AC56: 0 | AD56: 0 | AE56: 0 | AI56: 0 | AJ56: 0 | AK56: 0 | AL56: 0 | AM56: 0 | AP56: 0
G57: 6.5 | H57: 1 | I57: 0.5 | J57: 0 | U57: 6.5 | X57: 0 | Y57: 0 | Z57: =IFERROR((1-OFFSET(CLOCK_DATA,0,19)^(OFFSET(CLOCK_DATA,1,19)*Clock!Y57)),1) -> 0 | AA57: 0 | AB57: 0 | AC57: 0 | AD57: 0 | AE57: 0 | AI57: 0 | AJ57: 0 | AK57: 0 | AL57: 0 | AM57: 0 | AP57: 0
G58: 6.5 | H58: 1 | I58: 0.5 | J58: 0 | U58: 6.5 | X58: 0 | Y58: 0 | Z58: =IFERROR((1-OFFSET(CLOCK_DATA,0,19)^(OFFSET(CLOCK_DATA,1,19)*Clock!Y58)),1) -> 0 | AA58: 0 | AB58: 0 | AC58: 0 | AD58: 0 | AE58: 0 | AI58: 0 | AJ58: 0 | AK58: 0 | AL58: 0 | AM58: 0 | AP58: 0
G59: 6.5 | H59: 1 | I59: 0.5 | J59: 0 | U59: 6.5 | X59: 0 | Y59: 0 | Z59: =IFERROR((1-OFFSET(CLOCK_DATA,0,19)^(OFFSET(CLOCK_DATA,1,19)*Clock!Y59)),1) -> 0 | AA59: 0 | AB59: 0 | AC59: 0 | AD59: 0 | AE59: 0 | AI59: 0 | AJ59: 0 | AK59: 0 | AL59: 0 | AM59: 0 | AP59: 0
G60: 6.5 | H60: 1 | I60: 0.5 | J60: 0 | U60: 6.5 | X60: 0 | Y60: 0 | Z60: =IFERROR((1-OFFSET(CLOCK_DATA,0,19)^(OFFSET(CLOCK_DATA,1,19)*Clock!Y60)),1) -> 0 | AA60: 0 | AB60: 0 | AC60: 0 | AD60: 0 | AE60: 0 | AI60: 0 | AJ60: 0 | AK60: 0 | AL60: 0 | AM60: 0 | AP60: 0
G61: 6.5 | H61: 1 | I61: 0.5 | J61: 0 | U61: 6.5 | X61: 0 | Y61: 0 | Z61: =IFERROR((1-OFFSET(CLOCK_DATA,0,19)^(OFFSET(CLOCK_DATA,1,19)*Clock!Y61)),1) -> 0 | AA61: 0 | AB61: 0 | AC61: 0 | AD61: 0 | AE61: 0 | AI61: 0 | AJ61: 0 | AK61: 0 | AL61: 0 | AM61: 0 | AP61: 0
G62: 6.5 | H62: 1 | I62: 0.5 | J62: 0 | U62: 6.5 | X62: 0 | Y62: 0 | Z62: =IFERROR((1-OFFSET(CLOCK_DATA,0,19)^(OFFSET(CLOCK_DATA,1,19)*Clock!Y62)),1) -> 0 | AA62: 0 | AB62: 0 | AC62: 0 | AD62: 0 | AE62: 0 | AI62: 0 | AJ62: 0 | AK62: 0 | AL62: 0 | AM62: 0 | AP62: 0
G63: 6.5 | H63: 1 | I63: 0.5 | J63: 0 | U63: 6.5 | X63: 0 | Y63: 0 | Z63: =IFERROR((1-OFFSET(CLOCK_DATA,0,19)^(OFFSET(CLOCK_DATA,1,19)*Clock!Y63)),1) -> 0 | AA63: 0 | AB63: 0 | AC63: 0 | AD63: 0 | AE63: 0 | AI63: 0 | AJ63: 0 | AK63: 0 | AL63: 0 | AM63: 0 | AP63: 0
G64: 6.5 | H64: 1 | I64: 0.5 | J64: 0 | U64: 6.5 | X64: 0 | Y64: 0 | Z64: =IFERROR((1-OFFSET(CLOCK_DATA,0,19)^(OFFSET(CLOCK_DATA,1,19)*Clock!Y64)),1) -> 0 | AA64: 0 | AB64: 0 | AC64: 0 | AD64: 0 | AE64: 0 | AI64: 0 | AJ64: 0 | AK64: 0 | AL64: 0 | AM64: 0 | AP64: 0
G65: 6.5 | H65: 1 | I65: 0.5 | J65: 0 | U65: 6.5 | X65: 0 | Y65: 0 | Z65: =IFERROR((1-OFFSET(CLOCK_DATA,0,19)^(OFFSET(CLOCK_DATA,1,19)*Clock!Y65)),1) -> 0 | AA65: 0 | AB65: 0 | AC65: 0 | AD65: 0 | AE65: 0 | AI65: 0 | AJ65: 0 | AK65: 0 | AL65: 0 | AM65: 0 | AP65: 0
G66: 6.5 | H66: 1 | I66: 0.5 | J66: 0 | U66: 6.5 | X66: 0 | Y66: 0 | Z66: =IFERROR((1-OFFSET(CLOCK_DATA,0,19)^(OFFSET(CLOCK_DATA,1,19)*Clock!Y66)),1) -> 0 | AA66: 0 | AB66: 0 | AC66: 0 | AD66: 0 | AE66: 0 | AI66: 0 | AJ66: 0 | AK66: 0 | AL66: 0 | AM66: 0 | AP66: 0
G67: 6.5 | H67: 1 | I67: 0.5 | J67: 0 | U67: 6.5 | X67: 0 | Y67: 0 | Z67: =IFERROR((1-OFFSET(CLOCK_DATA,0,19)^(OFFSET(CLOCK_DATA,1,19)*Clock!Y67)),1) -> 0 | AA67: 0 | AB67: 0 | AC67: 0 | AD67: 0 | AE67: 0 | AI67: 0 | AJ67: 0 | AK67: 0 | AL67: 0 | AM67: 0 | AP67: 0
G68: 6.5 | H68: 1 | I68: 0.5 | J68: 0 | U68: 6.5 | X68: 0 | Y68: 0 | Z68: =IFERROR((1-OFFSET(CLOCK_DATA,0,19)^(OFFSET(CLOCK_DATA,1,19)*Clock!Y68)),1) -> 0 | AA68: 0 | AB68: 0 | AC68: 0 | AD68: 0 | AE68: 0 | AI68: 0 | AJ68: 0 | AK68: 0 | AL68: 0 | AM68: 0 | AP68: 0
G69: 6.5 | H69: 1 | I69: 0.5 | J69: 0 | U69: 6.5 | X69: 0 | Y69: 0 | Z69: =IFERROR((1-OFFSET(CLOCK_DATA,0,19)^(OFFSET(CLOCK_DATA,1,19)*Clock!Y69)),1) -> 0 | AA69: 0 | AB69: 0 | AC69: 0 | AD69: 0 | AE69: 0 | AI69: 0 | AJ69: 0 | AK69: 0 | AL69: 0 | AM69: 0 | AP69: 0
G70: 6.5 | H70: 1 | I70: 0.5 | J70: 0 | U70: 6.5 | X70: 0 | Y70: 0 | Z70: =IFERROR((1-OFFSET(CLOCK_DATA,0,19)^(OFFSET(CLOCK_DATA,1,19)*Clock!Y70)),1) -> 0 | AA70: 0 | AB70: 0 | AC70: 0 | AD70: 0 | AE70: 0 | AI70: 0 | AJ70: 0 | AK70: 0 | AL70: 0 | AM70: 0 | AP70: 0
G71: 6.5 | H71: 1 | I71: 0.5 | J71: 0 | U71: 6.5 | X71: 0 | Y71: 0 | Z71: =IFERROR((1-OFFSET(CLOCK_DATA,0,19)^(OFFSET(CLOCK_DATA,1,19)*Clock!Y71)),1) -> 0 | AA71: 0 | AB71: 0 | AC71: 0 | AD71: 0 | AE71: 0 | AI71: 0 | AJ71: 0 | AK71: 0 | AL71: 0 | AM71: 0 | AP71: 0
G72: 6.5 | H72: 1 | I72: 0.5 | J72: 0 | U72: 6.5 | X72: 0 | Y72: 0 | Z72: =IFERROR((1-OFFSET(CLOCK_DATA,0,19)^(OFFSET(CLOCK_DATA,1,19)*Clock!Y72)),1) -> 0 | AA72: 0 | AB72: 0 | AC72: 0 | AD72: 0 | AE72: 0 | AI72: 0 | AJ72: 0 | AK72: 0 | AL72: 0 | AM72: 0 | AP72: 0
G73: 6.5 | H73: 1 | I73: 0.5 | J73: 0 | U73: 6.5 | X73: 0 | Y73: 0 | Z73: =IFERROR((1-OFFSET(CLOCK_DATA,0,19)^(OFFSET(CLOCK_DATA,1,19)*Clock!Y73)),1) -> 0 | AA73: 0 | AB73: 0 | AC73: 0 | AD73: 0 | AE73: 0 | AI73: 0 | AJ73: 0 | AK73: 0 | AL73: 0 | AM73: 0 | AP73: 0
G74: 6.5 | H74: 1 | I74: 0.5 | J74: =IF($F74>0, AP74*(VCCINT/1000)*VCCINT_N,0)*OFFSET(POWER_OPT,OFFSET(OPTIMIZATION,0,3),1)*$P$1 -> 0 | U74: 6.5 | X74: 0 | Y74: 0 | Z74: =IFERROR((1-OFFSET(CLOCK_DATA,0,19)^(OFFSET(CLOCK_DATA,1,19)*Clock!Y74)),1) -> 0 | AA74: 0 | AB74: =IFERROR((1-OFFSET(CLOCK_DATA,0,20)^(OFFSET(CLOCK_DATA,1,20)*Z74)),1) -> 0 | AC74: 0 | AD74: =IFERROR(X74*(U74*OFFSET(CLOCK_DATA,0,21)+OFFSET(CLOCK_DATA,1,21)),1) -> 0 | AE74: =IFERROR(AD74*(U74*OFFSET(CLOCK_DATA,0,22)+OFFSET(CLOCK_DATA,1,22)),1) -> 0 | AI74: =E74*AC74*OFFSET(CLOCK_DATA,4,18) -> 0 | AJ74: =E74*ROUNDUP(AA74,0)*(H74*OFFSET(CLOCK_DATA,4,19)+(1-H74)*OFFSET(CLOCK_DATA,3,19)) -> 0 | AK74: =E74*X74*OFFSET(CLOCK_DATA,4,20) -> 0 | AL74: =E74*I74*AE74*OFFSET(CLOCK_DATA,6,19) -> 0 | AM74: =E74*AD74*OFFSET(CLOCK_DATA,6,18) -> 0 | AP74: 0
G75: 6.5 | H75: 1 | I75: 0.5 | J75: 0 | U75: =G75 -> 6.5 | X75: =IFERROR(MIN($Y$2,F75/U75),0) -> 0 | Y75: =IFERROR(X75/$Y$2,1) -> 0 | Z75: =IFERROR((1-OFFSET(CLOCK_DATA,0,19)^(OFFSET(CLOCK_DATA,1,19)*Clock!Y75)),1) -> 0 | AA75: =Z75*$AB$2 -> 0 | AB75: 0 | AC75: =AB75*$AD$2 -> 0 | AD75: 0 | AE75: 0 | AI75: 0 | AJ75: 0 | AK75: 0 | AL75: 0 | AM75: 0 | AP75: =SUM(AI75:AM75) -> 0
G76: 6.5 | H76: 1 | I76: 0.5 | J76: 0 | U76: 6.5 | X76: 0 | Y76: 0 | Z76: =IFERROR((1-OFFSET(CLOCK_DATA,0,19)^(OFFSET(CLOCK_DATA,1,19)*Clock!Y76)),1) -> 0 | AA76: 0 | AB76: 0 | AC76: 0 | AD76: 0 | AE76: 0 | AI76: 0 | AJ76: 0 | AK76: 0 | AL76: 0 | AM76: 0 | AP76: 0
G77: 6.5 | H77: 1 | I77: 0.5 | J77: 0 | U77: 6.5 | X77: 0 | Y77: 0 | Z77: =IFERROR((1-OFFSET(CLOCK_DATA,0,19)^(OFFSET(CLOCK_DATA,1,19)*Clock!Y77)),1) -> 0 | AA77: 0 | AB77: 0 | AC77: 0 | AD77: 0 | AE77: 0 | AI77: 0 | AJ77: 0 | AK77: 0 | AL77: 0 | AM77: 0 | AP77: 0
G78: 6.5 | H78: 1 | I78: 0.5 | J78: 0 | U78: 6.5 | X78: 0 | Y78: 0 | Z78: =IFERROR((1-OFFSET(CLOCK_DATA,0,19)^(OFFSET(CLOCK_DATA,1,19)*Clock!Y78)),1) -> 0 | AA78: 0 | AB78: 0 | AC78: 0 | AD78: 0 | AE78: 0 | AI78: 0 | AJ78: 0 | AK78: 0 | AL78: 0 | AM78: 0 | AP78: 0
G79: 6.5 | H79: 1 | I79: 0.5 | J79: 0 | U79: 6.5 | X79: 0 | Y79: 0 | Z79: =IFERROR((1-OFFSET(CLOCK_DATA,0,19)^(OFFSET(CLOCK_DATA,1,19)*Clock!Y79)),1) -> 0 | AA79: 0 | AB79: 0 | AC79: 0 | AD79: 0 | AE79: 0 | AI79: 0 | AJ79: 0 | AK79: 0 | AL79: 0 | AM79: 0 | AP79: 0
G80: 6.5 | H80: 1 | I80: 0.5 | J80: 0 | U80: 6.5 | X80: 0 | Y80: 0 | Z80: =IFERROR((1-OFFSET(CLOCK_DATA,0,19)^(OFFSET(CLOCK_DATA,1,19)*Clock!Y80)),1) -> 0 | AA80: 0 | AB80: 0 | AC80: 0 | AD80: 0 | AE80: 0 | AI80: 0 | AJ80: 0 | AK80: 0 | AL80: 0 | AM80: 0 | AP80: 0
G81: 6.5 | H81: 1 | I81: 0.5 | J81: 0 | U81: 6.5 | X81: 0 | Y81: 0 | Z81: =IFERROR((1-OFFSET(CLOCK_DATA,0,19)^(OFFSET(CLOCK_DATA,1,19)*Clock!Y81)),1) -> 0 | AA81: 0 | AB81: 0 | AC81: 0 | AD81: 0 | AE81: 0 | AI81: 0 | AJ81: 0 | AK81: 0 | AL81: 0 | AM81: 0 | AP81: 0
G82: 6.5 | H82: 1 | I82: 0.5 | J82: 0 | U82: 6.5 | X82: 0 | Y82: 0 | Z82: =IFERROR((1-OFFSET(CLOCK_DATA,0,19)^(OFFSET(CLOCK_DATA,1,19)*Clock!Y82)),1) -> 0 | AA82: 0 | AB82: 0 | AC82: 0 | AD82: 0 | AE82: 0 | AI82: 0 | AJ82: 0 | AK82: 0 | AL82: 0 | AM82: 0 | AP82: 0
G83: 6.5 | H83: 1 | I83: 0.5 | J83: 0 | U83: 6.5 | X83: 0 | Y83: 0 | Z83: =IFERROR((1-OFFSET(CLOCK_DATA,0,19)^(OFFSET(CLOCK_DATA,1,19)*Clock!Y83)),1) -> 0 | AA83: 0 | AB83: 0 | AC83: 0 | AD83: 0 | AE83: 0 | AI83: 0 | AJ83: 0 | AK83: 0 | AL83: 0 | AM83: 0 | AP83: 0
G84: 6.5 | H84: 1 | I84: 0.5 | J84: 0 | U84: 6.5 | X84: 0 | Y84: 0 | Z84: =IFERROR((1-OFFSET(CLOCK_DATA,0,19)^(OFFSET(CLOCK_DATA,1,19)*Clock!Y84)),1) -> 0 | AA84: 0 | AB84: 0 | AC84: 0 | AD84: 0 | AE84: 0 | AI84: 0 | AJ84: 0 | AK84: 0 | AL84: 0 | AM84: 0 | AP84: 0
G85: 6.5 | H85: 1 | I85: 0.5 | J85: 0 | U85: 6.5 | X85: 0 | Y85: 0 | Z85: =IFERROR((1-OFFSET(CLOCK_DATA,0,19)^(OFFSET(CLOCK_DATA,1,19)*Clock!Y85)),1) -> 0 | AA85: 0 | AB85: 0 | AC85: 0 | AD85: 0 | AE85: 0 | AI85: 0 | AJ85: 0 | AK85: 0 | AL85: 0 | AM85: 0 | AP85: 0
G86: 6.5 | H86: 1 | I86: 0.5 | J86: 0 | U86: 6.5 | X86: 0 | Y86: 0 | Z86: =IFERROR((1-OFFSET(CLOCK_DATA,0,19)^(OFFSET(CLOCK_DATA,1,19)*Clock!Y86)),1) -> 0 | AA86: 0 | AB86: 0 | AC86: 0 | AD86: 0 | AE86: 0 | AI86: 0 | AJ86: 0 | AK86: 0 | AL86: 0 | AM86: 0 | AP86: 0
G87: 6.5 | H87: 1 | I87: 0.5 | J87: 0 | U87: 6.5 | X87: 0 | Y87: 0 | Z87: =IFERROR((1-OFFSET(CLOCK_DATA,0,19)^(OFFSET(CLOCK_DATA,1,19)*Clock!Y87)),1) -> 0 | AA87: 0 | AB87: 0 | AC87: 0 | AD87: 0 | AE87: 0 | AI87: 0 | AJ87: 0 | AK87: 0 | AL87: 0 | AM87: 0 | AP87: 0
G88: 6.5 | H88: 1 | I88: 0.5 | J88: 0 | U88: 6.5 | X88: 0 | Y88: 0 | Z88: =IFERROR((1-OFFSET(CLOCK_DATA,0,19)^(OFFSET(CLOCK_DATA,1,19)*Clock!Y88)),1) -> 0 | AA88: 0 | AB88: 0 | AC88: 0 | AD88: 0 | AE88: 0 | AI88: 0 | AJ88: 0 | AK88: 0 | AL88: 0 | AM88: 0 | AP88: 0
G89: 6.5 | H89: 1 | I89: 0.5 | J89: 0 | U89: 6.5 | X89: 0 | Y89: 0 | Z89: =IFERROR((1-OFFSET(CLOCK_DATA,0,19)^(OFFSET(CLOCK_DATA,1,19)*Clock!Y89)),1) -> 0 | AA89: 0 | AB89: 0 | AC89: 0 | AD89: 0 | AE89: 0 | AI89: 0 | AJ89: 0 | AK89: 0 | AL89: 0 | AM89: 0 | AP89: 0
G90: 6.5 | H90: 1 | I90: 0.5 | J90: 0 | U90: 6.5 | X90: 0 | Y90: 0 | Z90: =IFERROR((1-OFFSET(CLOCK_DATA,0,19)^(OFFSET(CLOCK_DATA,1,19)*Clock!Y90)),1) -> 0 | AA90: 0 | AB90: 0 | AC90: 0 | AD90: 0 | AE90: 0 | AI90: 0 | AJ90: 0 | AK90: 0 | AL90: 0 | AM90: 0 | AP90: 0
G91: 6.5 | H91: 1 | I91: 0.5 | J91: 0 | U91: 6.5 | X91: 0 | Y91: 0 | Z91: =IFERROR((1-OFFSET(CLOCK_DATA,0,19)^(OFFSET(CLOCK_DATA,1,19)*Clock!Y91)),1) -> 0 | AA91: 0 | AB91: 0 | AC91: 0 | AD91: 0 | AE91: 0 | AI91: 0 | AJ91: 0 | AK91: 0 | AL91: 0 | AM91: 0 | AP91: 0
G92: 6.5 | H92: 1 | I92: 0.5 | J92: 0 | U92: 6.5 | X92: 0 | Y92: 0 | Z92: =IFERROR((1-OFFSET(CLOCK_DATA,0,19)^(OFFSET(CLOCK_DATA,1,19)*Clock!Y92)),1) -> 0 | AA92: 0 | AB92: 0 | AC92: 0 | AD92: 0 | AE92: 0 | AI92: 0 | AJ92: 0 | AK92: 0 | AL92: 0 | AM92: 0 | AP92: 0
G93: 6.5 | H93: 1 | I93: 0.5 | J93: 0 | U93: 6.5 | X93: 0 | Y93: 0 | Z93: =IFERROR((1-OFFSET(CLOCK_DATA,0,19)^(OFFSET(CLOCK_DATA,1,19)*Clock!Y93)),1) -> 0 | AA93: 0 | AB93: 0 | AC93: 0 | AD93: 0 | AE93: 0 | AI93: 0 | AJ93: 0 | AK93: 0 | AL93: 0 | AM93: 0 | AP93: 0
G94: 6.5 | H94: 1 | I94: 0.5 | J94: 0 | U94: 6.5 | X94: 0 | Y94: 0 | Z94: =IFERROR((1-OFFSET(CLOCK_DATA,0,19)^(OFFSET(CLOCK_DATA,1,19)*Clock!Y94)),1) -> 0 | AA94: 0 | AB94: 0 | AC94: 0 | AD94: 0 | AE94: 0 | AI94: 0 | AJ94: 0 | AK94: 0 | AL94: 0 | AM94: 0 | AP94: 0
G95: 6.5 | H95: 1 | I95: 0.5 | J95: 0 | U95: 6.5 | X95: 0 | Y95: 0 | Z95: =IFERROR((1-OFFSET(CLOCK_DATA,0,19)^(OFFSET(CLOCK_DATA,1,19)*Clock!Y95)),1) -> 0 | AA95: 0 | AB95: 0 | AC95: 0 | AD95: 0 | AE95: 0 | AI95: 0 | AJ95: 0 | AK95: 0 | AL95: 0 | AM95: 0 | AP95: 0
G96: 6.5 | H96: 1 | I96: 0.5 | J96: 0 | U96: 6.5 | X96: 0 | Y96: 0 | Z96: =IFERROR((1-OFFSET(CLOCK_DATA,0,19)^(OFFSET(CLOCK_DATA,1,19)*Clock!Y96)),1) -> 0 | AA96: 0 | AB96: 0 | AC96: 0 | AD96: 0 | AE96: 0 | AI96: 0 | AJ96: 0 | AK96: 0 | AL96: 0 | AM96: 0 | AP96: 0
G97: 6.5 | H97: 1 | I97: 0.5 | J97: 0 | U97: 6.5 | X97: 0 | Y97: 0 | Z97: =IFERROR((1-OFFSET(CLOCK_DATA,0,19)^(OFFSET(CLOCK_DATA,1,19)*Clock!Y97)),1) -> 0 | AA97: 0 | AB97: 0 | AC97: 0 | AD97: 0 | AE97: 0 | AI97: 0 | AJ97: 0 | AK97: 0 | AL97: 0 | AM97: 0 | AP97: 0
G98: 6.5 | H98: 1 | I98: 0.5 | J98: 0 | U98: 6.5 | X98: 0 | Y98: 0 | Z98: =IFERROR((1-OFFSET(CLOCK_DATA,0,19)^(OFFSET(CLOCK_DATA,1,19)*Clock!Y98)),1) -> 0 | AA98: 0 | AB98: 0 | AC98: 0 | AD98: 0 | AE98: 0 | AI98: 0 | AJ98: 0 | AK98: 0 | AL98: 0 | AM98: 0 | AP98: 0
G99: 6.5 | H99: 1 | I99: 0.5 | J99: 0 | U99: 6.5 | X99: 0 | Y99: 0 | Z99: =IFERROR((1-OFFSET(CLOCK_DATA,0,19)^(OFFSET(CLOCK_DATA,1,19)*Clock!Y99)),1) -> 0 | AA99: 0 | AB99: 0 | AC99: 0 | AD99: 0 | AE99: 0 | AI99: 0 | AJ99: 0 | AK99: 0 | AL99: 0 | AM99: 0 | AP99: 0
G100: 6.5 | H100: 1 | I100: 0.5 | J100: 0 | U100: 6.5 | X100: 0 | Y100: 0 | Z100: =IFERROR((1-OFFSET(CLOCK_DATA,0,19)^(OFFSET(CLOCK_DATA,1,19)*Clock!Y100)),1) -> 0 | AA100: 0 | AB100: 0 | AC100: 0 | AD100: 0 | AE100: 0 | AI100: 0 | AJ100: 0 | AK100: 0 | AL100: 0 | AM100: 0 | AP100: 0
G101: 6.5 | H101: 1 | I101: 0.5 | J101: 0 | U101: 6.5 | X101: 0 | Y101: 0 | Z101: =IFERROR((1-OFFSET(CLOCK_DATA,0,19)^(OFFSET(CLOCK_DATA,1,19)*Clock!Y101)),1) -> 0 | AA101: 0 | AB101: 0 | AC101: 0 | AD101: 0 | AE101: 0 | AI101: 0 | AJ101: 0 | AK101: 0 | AL101: 0 | AM101: 0 | AP101: 0
G102: 6.5 | H102: 1 | I102: 0.5 | J102: 0 | U102: 6.5 | X102: 0 | Y102: 0 | Z102: =IFERROR((1-OFFSET(CLOCK_DATA,0,19)^(OFFSET(CLOCK_DATA,1,19)*Clock!Y102)),1) -> 0 | AA102: 0 | AB102: 0 | AC102: 0 | AD102: 0 | AE102: 0 | AI102: 0 | AJ102: 0 | AK102: 0 | AL102: 0 | AM102: 0 | AP102: 0
G103: 6.5 | H103: 1 | I103: 0.5 | J103: 0 | U103: 6.5 | X103: 0 | Y103: 0 | Z103: =IFERROR((1-OFFSET(CLOCK_DATA,0,19)^(OFFSET(CLOCK_DATA,1,19)*Clock!Y103)),1) -> 0 | AA103: 0 | AB103: 0 | AC103: 0 | AD103: 0 | AE103: 0 | AI103: 0 | AJ103: 0 | AK103: 0 | AL103: 0 | AM103: 0 | AP103: 0
G104: 6.5 | H104: 1 | I104: 0.5 | J104: 0 | U104: 6.5 | X104: 0 | Y104: 0 | Z104: =IFERROR((1-OFFSET(CLOCK_DATA,0,19)^(OFFSET(CLOCK_DATA,1,19)*Clock!Y104)),1) -> 0 | AA104: 0 | AB104: 0 | AC104: 0 | AD104: 0 | AE104: 0 | AI104: 0 | AJ104: 0 | AK104: 0 | AL104: 0 | AM104: 0 | AP104: 0
G105: 6.5 | H105: 1 | I105: 0.5 | J105: 0 | U105: 6.5 | X105: 0 | Y105: 0 | Z105: =IFERROR((1-OFFSET(CLOCK_DATA,0,19)^(OFFSET(CLOCK_DATA,1,19)*Clock!Y105)),1) -> 0 | AA105: 0 | AB105: 0 | AC105: 0 | AD105: 0 | AE105: 0 | AI105: 0 | AJ105: 0 | AK105: 0 | AL105: 0 | AM105: 0 | AP105: 0
G106: 6.5 | H106: 1 | I106: 0.5 | J106: =IF($F106>0, AP106*(VCCINT/1000)*VCCINT_N,0)*OFFSET(POWER_OPT,OFFSET(OPTIMIZATION,0,3),1)*$P$1 -> 0 | U106: 6.5 | X106: 0 | Y106: 0 | Z106: =IFERROR((1-OFFSET(CLOCK_DATA,0,19)^(OFFSET(CLOCK_DATA,1,19)*Clock!Y106)),1) -> 0 | AA106: 0 | AB106: =IFERROR((1-OFFSET(CLOCK_DATA,0,20)^(OFFSET(CLOCK_DATA,1,20)*Z106)),1) -> 0 | AC106: 0 | AD106: =IFERROR(X106*(U106*OFFSET(CLOCK_DATA,0,21)+OFFSET(CLOCK_DATA,1,21)),1) -> 0 | AE106: =IFERROR(AD106*(U106*OFFSET(CLOCK_DATA,0,22)+OFFSET(CLOCK_DATA,1,22)),1) -> 0 | AI106: =E106*AC106*OFFSET(CLOCK_DATA,4,18) -> 0 | AJ106: =E106*ROUNDUP(AA106,0)*(H106*OFFSET(CLOCK_DATA,4,19)+(1-H106)*OFFSET(CLOCK_DATA,3,19)) -> 0 | AK106: =E106*X106*OFFSET(CLOCK_DATA,4,20) -> 0 | AL106: =E106*I106*AE106*OFFSET(CLOCK_DATA,6,19) -> 0 | AM106: =E106*AD106*OFFSET(CLOCK_DATA,6,18) -> 0 | AP106: 0
G107: 6.5 | H107: 1 | I107: 0.5 | J107: 0 | U107: 6.5 | X107: 0 | Y107: 0 | Z107: =IFERROR((1-OFFSET(CLOCK_DATA,0,19)^(OFFSET(CLOCK_DATA,1,19)*Clock!Y107)),1) -> 0 | AA107: 0 | AB107: 0 | AC107: 0 | AD107: 0 | AE107: 0 | AI107: 0 | AJ107: 0 | AK107: 0 | AL107: 0 | AM107: 0 | AP107: 0
G108: 6.5 | H108: 1 | I108: 0.5 | J108: 0 | U108: 6.5 | X108: 0 | Y108: 0 | Z108: =IFERROR((1-OFFSET(CLOCK_DATA,0,19)^(OFFSET(CLOCK_DATA,1,19)*Clock!Y108)),1) -> 0 | AA108: 0 | AB108: 0 | AC108: 0 | AD108: 0 | AE108: 0 | AI108: 0 | AJ108: 0 | AK108: 0 | AL108: 0 | AM108: 0 | AP108: 0
G109: 6.5 | H109: 1 | I109: 0.5 | J109: 0 | U109: 6.5 | X109: 0 | Y109: 0 | Z109: =IFERROR((1-OFFSET(CLOCK_DATA,0,19)^(OFFSET(CLOCK_DATA,1,19)*Clock!Y109)),1) -> 0 | AA109: 0 | AB109: 0 | AC109: 0 | AD109: 0 | AE109: 0 | AI109: 0 | AJ109: 0 | AK109: 0 | AL109: 0 | AM109: 0 | AP109: 0
G110: 6.5 | H110: 1 | I110: 0.5 | J110: 0 | U110: 6.5 | X110: 0 | Y110: 0 | Z110: =IFERROR((1-OFFSET(CLOCK_DATA,0,19)^(OFFSET(CLOCK_DATA,1,19)*Clock!Y110)),1) -> 0 | AA110: 0 | AB110: 0 | AC110: 0 | AD110: 0 | AE110: 0 | AI110: 0 | AJ110: 0 | AK110: 0 | AL110: 0 | AM110: 0 | AP110: 0
G111: 6.5 | H111: 1 | I111: 0.5 | J111: 0 | U111: 6.5 | X111: 0 | Y111: 0 | Z111: =IFERROR((1-OFFSET(CLOCK_DATA,0,19)^(OFFSET(CLOCK_DATA,1,19)*Clock!Y111)),1) -> 0 | AA111: 0 | AB111: 0 | AC111: 0 | AD111: 0 | AE111: 0 | AI111: 0 | AJ111: 0 | AK111: 0 | AL111: 0 | AM111: 0 | AP111: 0
G112: 6.5 | H112: 1 | I112: 0.5 | J112: 0 | U112: 6.5 | X112: 0 | Y112: 0 | Z112: =IFERROR((1-OFFSET(CLOCK_DATA,0,19)^(OFFSET(CLOCK_DATA,1,19)*Clock!Y112)),1) -> 0 | AA112: 0 | AB112: 0 | AC112: 0 | AD112: 0 | AE112: 0 | AI112: 0 | AJ112: 0 | AK112: 0 | AL112: 0 | AM112: 0 | AP112: 0
G113: 6.5 | H113: 1 | I113: 0.5 | J113: 0 | U113: 6.5 | X113: 0 | Y113: 0 | Z113: =IFERROR((1-OFFSET(CLOCK_DATA,0,19)^(OFFSET(CLOCK_DATA,1,19)*Clock!Y113)),1) -> 0 | AA113: 0 | AB113: 0 | AC113: 0 | AD113: 0 | AE113: 0 | AI113: 0 | AJ113: 0 | AK113: 0 | AL113: 0 | AM113: 0 | AP113: 0
G114: 6.5 | H114: 1 | I114: 0.5 | J114: 0 | U114: 6.5 | X114: 0 | Y114: 0 | Z114: =IFERROR((1-OFFSET(CLOCK_DATA,0,19)^(OFFSET(CLOCK_DATA,1,19)*Clock!Y114)),1) -> 0 | AA114: 0 | AB114: 0 | AC114: 0 | AD114: 0 | AE114: 0 | AI114: 0 | AJ114: 0 | AK114: 0 | AL114: 0 | AM114: 0 | AP114: 0
G115: 6.5 | H115: 1 | I115: 0.5 | J115: 0 | U115: 6.5 | X115: 0 | Y115: 0 | Z115: =IFERROR((1-OFFSET(CLOCK_DATA,0,19)^(OFFSET(CLOCK_DATA,1,19)*Clock!Y115)),1) -> 0 | AA115: 0 | AB115: 0 | AC115: 0 | AD115: 0 | AE115: 0 | AI115: 0 | AJ115: 0 | AK115: 0 | AL115: 0 | AM115: 0 | AP115: 0
G116: 6.5 | H116: 1 | I116: 0.5 | J116: 0 | U116: 6.5 | X116: 0 | Y116: 0 | Z116: =IFERROR((1-OFFSET(CLOCK_DATA,0,19)^(OFFSET(CLOCK_DATA,1,19)*Clock!Y116)),1) -> 0 | AA116: 0 | AB116: 0 | AC116: 0 | AD116: 0 | AE116: 0 | AI116: 0 | AJ116: 0 | AK116: 0 | AL116: 0 | AM116: 0 | AP116: 0
G117: 6.5 | H117: 1 | I117: 0.5 | J117: 0 | U117: 6.5 | X117: 0 | Y117: 0 | Z117: =IFERROR((1-OFFSET(CLOCK_DATA,0,19)^(OFFSET(CLOCK_DATA,1,19)*Clock!Y117)),1) -> 0 | AA117: 0 | AB117: 0 | AC117: 0 | AD117: 0 | AE117: 0 | AI117: 0 | AJ117: 0 | AK117: 0 | AL117: 0 | AM117: 0 | AP117: 0
G118: 6.5 | H118: 1 | I118: 0.5 | J118: 0 | U118: 6.5 | X118: 0 | Y118: 0 | Z118: =IFERROR((1-OFFSET(CLOCK_DATA,0,19)^(OFFSET(CLOCK_DATA,1,19)*Clock!Y118)),1) -> 0 | AA118: 0 | AB118: 0 | AC118: 0 | AD118: 0 | AE118: 0 | AI118: 0 | AJ118: 0 | AK118: 0 | AL118: 0 | AM118: 0 | AP118: 0
G119: 6.5 | H119: 1 | I119: 0.5 | J119: 0 | U119: 6.5 | X119: 0 | Y119: 0 | Z119: =IFERROR((1-OFFSET(CLOCK_DATA,0,19)^(OFFSET(CLOCK_DATA,1,19)*Clock!Y119)),1) -> 0 | AA119: 0 | AB119: 0 | AC119: 0 | AD119: 0 | AE119: 0 | AI119: 0 | AJ119: 0 | AK119: 0 | AL119: 0 | AM119: 0 | AP119: 0
G120: 6.5 | H120: 1 | I120: 0.5 | J120: 0 | U120: 6.5 | X120: 0 | Y120: 0 | Z120: =IFERROR((1-OFFSET(CLOCK_DATA,0,19)^(OFFSET(CLOCK_DATA,1,19)*Clock!Y120)),1) -> 0 | AA120: 0 | AB120: 0 | AC120: 0 | AD120: 0 | AE120: 0 | AI120: 0 | AJ120: 0 | AK120: 0 | AL120: 0 | AM120: 0 | AP120: 0
G121: 6.5 | H121: 1 | I121: 0.5 | J121: 0 | U121: 6.5 | X121: 0 | Y121: 0 | Z121: =IFERROR((1-OFFSET(CLOCK_DATA,0,19)^(OFFSET(CLOCK_DATA,1,19)*Clock!Y121)),1) -> 0 | AA121: 0 | AB121: 0 | AC121: 0 | AD121: 0 | AE121: 0 | AI121: 0 | AJ121: 0 | AK121: 0 | AL121: 0 | AM121: 0 | AP121: 0
G122: 6.5 | H122: 1 | I122: 0.5 | J122: 0 | U122: 6.5 | X122: 0 | Y122: 0 | Z122: =IFERROR((1-OFFSET(CLOCK_DATA,0,19)^(OFFSET(CLOCK_DATA,1,19)*Clock!Y122)),1) -> 0 | AA122: 0 | AB122: 0 | AC122: 0 | AD122: 0 | AE122: 0 | AI122: 0 | AJ122: 0 | AK122: 0 | AL122: 0 | AM122: 0 | AP122: 0
G123: 6.5 | H123: 1 | I123: 0.5 | J123: 0 | U123: 6.5 | X123: 0 | Y123: 0 | Z123: =IFERROR((1-OFFSET(CLOCK_DATA,0,19)^(OFFSET(CLOCK_DATA,1,19)*Clock!Y123)),1) -> 0 | AA123: 0 | AB123: 0 | AC123: 0 | AD123: 0 | AE123: 0 | AI123: 0 | AJ123: 0 | AK123: 0 | AL123: 0 | AM123: 0 | AP123: 0
G124: 6.5 | H124: 1 | I124: 0.5 | J124: 0 | U124: 6.5 | X124: 0 | Y124: 0 | Z124: =IFERROR((1-OFFSET(CLOCK_DATA,0,19)^(OFFSET(CLOCK_DATA,1,19)*Clock!Y124)),1) -> 0 | AA124: 0 | AB124: 0 | AC124: 0 | AD124: 0 | AE124: 0 | AI124: 0 | AJ124: 0 | AK124: 0 | AL124: 0 | AM124: 0 | AP124: 0
G125: 6.5 | H125: 1 | I125: 0.5 | J125: 0 | U125: 6.5 | X125: 0 | Y125: 0 | Z125: =IFERROR((1-OFFSET(CLOCK_DATA,0,19)^(OFFSET(CLOCK_DATA,1,19)*Clock!Y125)),1) -> 0 | AA125: 0 | AB125: 0 | AC125: 0 | AD125: 0 | AE125: 0 | AI125: 0 | AJ125: 0 | AK125: 0 | AL125: 0 | AM125: 0 | AP125: 0
G126: 6.5 | H126: 1 | I126: 0.5 | J126: 0 | U126: 6.5 | X126: 0 | Y126: 0 | Z126: =IFERROR((1-OFFSET(CLOCK_DATA,0,19)^(OFFSET(CLOCK_DATA,1,19)*Clock!Y126)),1) -> 0 | AA126: 0 | AB126: 0 | AC126: 0 | AD126: 0 | AE126: 0 | AI126: 0 | AJ126: 0 | AK126: 0 | AL126: 0 | AM126: 0 | AP126: 0
G127: 6.5 | H127: 1 | I127: 0.5 | J127: 0 | U127: 6.5 | X127: 0 | Y127: 0 | Z127: =IFERROR((1-OFFSET(CLOCK_DATA,0,19)^(OFFSET(CLOCK_DATA,1,19)*Clock!Y127)),1) -> 0 | AA127: 0 | AB127: 0 | AC127: 0 | AD127: 0 | AE127: 0 | AI127: 0 | AJ127: 0 | AK127: 0 | AL127: 0 | AM127: 0 | AP127: 0
G128: 6.5 | H128: 1 | I128: 0.5 | J128: 0 | U128: 6.5 | X128: 0 | Y128: 0 | Z128: =IFERROR((1-OFFSET(CLOCK_DATA,0,19)^(OFFSET(CLOCK_DATA,1,19)*Clock!Y128)),1) -> 0 | AA128: 0 | AB128: 0 | AC128: 0 | AD128: 0 | AE128: 0 | AI128: 0 | AJ128: 0 | AK128: 0 | AL128: 0 | AM128: 0 | AP128: 0
G129: 6.5 | H129: 1 | I129: 0.5 | J129: 0 | U129: 6.5 | X129: 0 | Y129: 0 | Z129: =IFERROR((1-OFFSET(CLOCK_DATA,0,19)^(OFFSET(CLOCK_DATA,1,19)*Clock!Y129)),1) -> 0 | AA129: 0 | AB129: 0 | AC129: 0 | AD129: 0 | AE129: 0 | AI129: 0 | AJ129: 0 | AK129: 0 | AL129: 0 | AM129: 0 | AP129: 0
G130: 6.5 | H130: 1 | I130: 0.5 | J130: 0 | U130: 6.5 | X130: 0 | Y130: 0 | Z130: =IFERROR((1-OFFSET(CLOCK_DATA,0,19)^(OFFSET(CLOCK_DATA,1,19)*Clock!Y130)),1) -> 0 | AA130: 0 | AB130: 0 | AC130: 0 | AD130: 0 | AE130: 0 | AI130: 0 | AJ130: 0 | AK130: 0 | AL130: 0 | AM130: 0 | AP130: 0
G131: 6.5 | H131: 1 | I131: 0.5 | J131: 0 | U131: 6.5 | X131: 0 | Y131: 0 | Z131: =IFERROR((1-OFFSET(CLOCK_DATA,0,19)^(OFFSET(CLOCK_DATA,1,19)*Clock!Y131)),1) -> 0 | AA131: 0 | AB131: 0 | AC131: 0 | AD131: 0 | AE131: 0 | AI131: 0 | AJ131: 0 | AK131: 0 | AL131: 0 | AM131: 0 | AP131: 0
G132: 6.5 | H132: 1 | I132: 0.5 | J132: 0 | U132: 6.5 | X132: 0 | Y132: 0 | Z132: =IFERROR((1-OFFSET(CLOCK_DATA,0,19)^(OFFSET(CLOCK_DATA,1,19)*Clock!Y132)),1) -> 0 | AA132: 0 | AB132: 0 | AC132: 0 | AD132: 0 | AE132: 0 | AI132: 0 | AJ132: 0 | AK132: 0 | AL132: 0 | AM132: 0 | AP132: 0
G133: 6.5 | H133: 1 | I133: 0.5 | J133: 0 | U133: 6.5 | X133: 0 | Y133: 0 | Z133: =IFERROR((1-OFFSET(CLOCK_DATA,0,19)^(OFFSET(CLOCK_DATA,1,19)*Clock!Y133)),1) -> 0 | AA133: 0 | AB133: 0 | AC133: 0 | AD133: 0 | AE133: 0 | AI133: 0 | AJ133: 0 | AK133: 0 | AL133: 0 | AM133: 0 | AP133: 0
G134: 6.5 | H134: 1 | I134: 0.5 | J134: 0 | U134: 6.5 | X134: 0 | Y134: 0 | Z134: =IFERROR((1-OFFSET(CLOCK_DATA,0,19)^(OFFSET(CLOCK_DATA,1,19)*Clock!Y134)),1) -> 0 | AA134: 0 | AB134: 0 | AC134: 0 | AD134: 0 | AE134: 0 | AI134: 0 | AJ134: 0 | AK134: 0 | AL134: 0 | AM134: 0 | AP134: 0
G135: 6.5 | H135: 1 | I135: 0.5 | J135: 0 | U135: 6.5 | X135: 0 | Y135: 0 | Z135: =IFERROR((1-OFFSET(CLOCK_DATA,0,19)^(OFFSET(CLOCK_DATA,1,19)*Clock!Y135)),1) -> 0 | AA135: 0 | AB135: 0 | AC135: 0 | AD135: 0 | AE135: 0 | AI135: 0 | AJ135: 0 | AK135: 0 | AL135: 0 | AM135: 0 | AP135: 0
G136: 6.5 | H136: 1 | I136: 0.5 | J136: 0 | U136: 6.5 | X136: 0 | Y136: 0 | Z136: =IFERROR((1-OFFSET(CLOCK_DATA,0,19)^(OFFSET(CLOCK_DATA,1,19)*Clock!Y136)),1) -> 0 | AA136: 0 | AB136: 0 | AC136: 0 | AD136: 0 | AE136: 0 | AI136: 0 | AJ136: 0 | AK136: 0 | AL136: 0 | AM136: 0 | AP136: 0
G137: 6.5 | H137: 1 | I137: 0.5 | J137: 0 | U137: 6.5 | X137: 0 | Y137: 0 | Z137: =IFERROR((1-OFFSET(CLOCK_DATA,0,19)^(OFFSET(CLOCK_DATA,1,19)*Clock!Y137)),1) -> 0 | AA137: 0 | AB137: 0 | AC137: 0 | AD137: 0 | AE137: 0 | AI137: 0 | AJ137: 0 | AK137: 0 | AL137: 0 | AM137: 0 | AP137: 0
G138: 6.5 | H138: 1 | I138: 0.5 | J138: =IF($F138>0, AP138*(VCCINT/1000)*VCCINT_N,0)*OFFSET(POWER_OPT,OFFSET(OPTIMIZATION,0,3),1)*$P$1 -> 0 | U138: 6.5 | X138: 0 | Y138: 0 | Z138: =IFERROR((1-OFFSET(CLOCK_DATA,0,19)^(OFFSET(CLOCK_DATA,1,19)*Clock!Y138)),1) -> 0 | AA138: 0 | AB138: =IFERROR((1-OFFSET(CLOCK_DATA,0,20)^(OFFSET(CLOCK_DATA,1,20)*Z138)),1) -> 0 | AC138: 0 | AD138: =IFERROR(X138*(U138*OFFSET(CLOCK_DATA,0,21)+OFFSET(CLOCK_DATA,1,21)),1) -> 0 | AE138: =IFERROR(AD138*(U138*OFFSET(CLOCK_DATA,0,22)+OFFSET(CLOCK_DATA,1,22)),1) -> 0 | AI138: =E138*AC138*OFFSET(CLOCK_DATA,4,18) -> 0 | AJ138: =E138*ROUNDUP(AA138,0)*(H138*OFFSET(CLOCK_DATA,4,19)+(1-H138)*OFFSET(CLOCK_DATA,3,19)) -> 0 | AK138: =E138*X138*OFFSET(CLOCK_DATA,4,20) -> 0 | AL138: =E138*I138*AE138*OFFSET(CLOCK_DATA,6,19) -> 0 | AM138: =E138*AD138*OFFSET(CLOCK_DATA,6,18) -> 0 | AP138: 0
G139: 6.5 | H139: 1 | I139: 0.5 | J139: 0 | U139: =G139 -> 6.5 | X139: =IFERROR(MIN($Y$2,F139/U139),0) -> 0 | Y139: =IFERROR(X139/$Y$2,1) -> 0 | Z139: =IFERROR((1-OFFSET(CLOCK_DATA,0,19)^(OFFSET(CLOCK_DATA,1,19)*Clock!Y139)),1) -> 0 | AA139: =Z139*$AB$2 -> 0 | AB139: 0 | AC139: =AB139*$AD$2 -> 0 | AD139: 0 | AE139: 0 | AI139: 0 | AJ139: 0 | AK139: 0 | AL139: 0 | AM139: 0 | AP139: =SUM(AI139:AM139) -> 0
G140: 6.5 | H140: 1 | I140: 0.5 | J140: 0 | U140: 6.5 | X140: 0 | Y140: 0 | Z140: =IFERROR((1-OFFSET(CLOCK_DATA,0,19)^(OFFSET(CLOCK_DATA,1,19)*Clock!Y140)),1) -> 0 | AA140: 0 | AB140: 0 | AC140: 0 | AD140: 0 | AE140: 0 | AI140: 0 | AJ140: 0 | AK140: 0 | AL140: 0 | AM140: 0 | AP140: 0
G141: 6.5 | H141: 1 | I141: 0.5 | J141: 0 | U141: 6.5 | X141: 0 | Y141: 0 | Z141: =IFERROR((1-OFFSET(CLOCK_DATA,0,19)^(OFFSET(CLOCK_DATA,1,19)*Clock!Y141)),1) -> 0 | AA141: 0 | AB141: 0 | AC141: 0 | AD141: 0 | AE141: 0 | AI141: 0 | AJ141: 0 | AK141: 0 | AL141: 0 | AM141: 0 | AP141: 0
G142: 6.5 | H142: 1 | I142: 0.5 | J142: 0 | U142: 6.5 | X142: 0 | Y142: 0 | Z142: =IFERROR((1-OFFSET(CLOCK_DATA,0,19)^(OFFSET(CLOCK_DATA,1,19)*Clock!Y142)),1) -> 0 | AA142: 0 | AB142: 0 | AC142: 0 | AD142: 0 | AE142: 0 | AI142: 0 | AJ142: 0 | AK142: 0 | AL142: 0 | AM142: 0 | AP142: 0
G143: 6.5 | H143: 1 | I143: 0.5 | J143: 0 | U143: 6.5 | X143: 0 | Y143: 0 | Z143: =IFERROR((1-OFFSET(CLOCK_DATA,0,19)^(OFFSET(CLOCK_DATA,1,19)*Clock!Y143)),1) -> 0 | AA143: 0 | AB143: 0 | AC143: 0 | AD143: 0 | AE143: 0 | AI143: 0 | AJ143: 0 | AK143: 0 | AL143: 0 | AM143: 0 | AP143: 0
G144: 6.5 | H144: 1 | I144: 0.5 | J144: 0 | U144: 6.5 | X144: 0 | Y144: 0 | Z144: =IFERROR((1-OFFSET(CLOCK_DATA,0,19)^(OFFSET(CLOCK_DATA,1,19)*Clock!Y144)),1) -> 0 | AA144: 0 | AB144: 0 | AC144: 0 | AD144: 0 | AE144: 0 | AI144: 0 | AJ144: 0 | AK144: 0 | AL144: 0 | AM144: 0 | AP144: 0
G145: 6.5 | H145: 1 | I145: 0.5 | J145: 0 | U145: 6.5 | X145: 0 | Y145: 0 | Z145: =IFERROR((1-OFFSET(CLOCK_DATA,0,19)^(OFFSET(CLOCK_DATA,1,19)*Clock!Y145)),1) -> 0 | AA145: 0 | AB145: 0 | AC145: 0 | AD145: 0 | AE145: 0 | AI145: 0 | AJ145: 0 | AK145: 0 | AL145: 0 | AM145: 0 | AP145: 0
G146: 6.5 | H146: 1 | I146: 0.5 | J146: 0 | U146: 6.5 | X146: 0 | Y146: 0 | Z146: =IFERROR((1-OFFSET(CLOCK_DATA,0,19)^(OFFSET(CLOCK_DATA,1,19)*Clock!Y146)),1) -> 0 | AA146: 0 | AB146: 0 | AC146: 0 | AD146: 0 | AE146: 0 | AI146: 0 | AJ146: 0 | AK146: 0 | AL146: 0 | AM146: 0 | AP146: 0
G147: 6.5 | H147: 1 | I147: 0.5 | J147: 0 | U147: 6.5 | X147: 0 | Y147: 0 | Z147: =IFERROR((1-OFFSET(CLOCK_DATA,0,19)^(OFFSET(CLOCK_DATA,1,19)*Clock!Y147)),1) -> 0 | AA147: 0 | AB147: 0 | AC147: 0 | AD147: 0 | AE147: 0 | AI147: 0 | AJ147: 0 | AK147: 0 | AL147: 0 | AM147: 0 | AP147: 0
G148: 6.5 | H148: 1 | I148: 0.5 | J148: 0 | U148: 6.5 | X148: 0 | Y148: 0 | Z148: =IFERROR((1-OFFSET(CLOCK_DATA,0,19)^(OFFSET(CLOCK_DATA,1,19)*Clock!Y148)),1) -> 0 | AA148: 0 | AB148: 0 | AC148: 0 | AD148: 0 | AE148: 0 | AI148: 0 | AJ148: 0 | AK148: 0 | AL148: 0 | AM148: 0 | AP148: 0
G149: 6.5 | H149: 1 | I149: 0.5 | J149: 0 | U149: 6.5 | X149: 0 | Y149: 0 | Z149: =IFERROR((1-OFFSET(CLOCK_DATA,0,19)^(OFFSET(CLOCK_DATA,1,19)*Clock!Y149)),1) -> 0 | AA149: 0 | AB149: 0 | AC149: 0 | AD149: 0 | AE149: 0 | AI149: 0 | AJ149: 0 | AK149: 0 | AL149: 0 | AM149: 0 | AP149: 0
G150: 6.5 | H150: 1 | I150: 0.5 | J150: 0 | U150: 6.5 | X150: 0 | Y150: 0 | Z150: =IFERROR((1-OFFSET(CLOCK_DATA,0,19)^(OFFSET(CLOCK_DATA,1,19)*Clock!Y150)),1) -> 0 | AA150: 0 | AB150: 0 | AC150: 0 | AD150: 0 | AE150: 0 | AI150: 0 | AJ150: 0 | AK150: 0 | AL150: 0 | AM150: 0 | AP150: 0
G151: 6.5 | H151: 1 | I151: 0.5 | J151: 0 | U151: 6.5 | X151: 0 | Y151: 0 | Z151: =IFERROR((1-OFFSET(CLOCK_DATA,0,19)^(OFFSET(CLOCK_DATA,1,19)*Clock!Y151)),1) -> 0 | AA151: 0 | AB151: 0 | AC151: 0 | AD151: 0 | AE151: 0 | AI151: 0 | AJ151: 0 | AK151: 0 | AL151: 0 | AM151: 0 | AP151: 0
G152: 6.5 | H152: 1 | I152: 0.5 | J152: 0 | U152: 6.5 | X152: 0 | Y152: 0 | Z152: =IFERROR((1-OFFSET(CLOCK_DATA,0,19)^(OFFSET(CLOCK_DATA,1,19)*Clock!Y152)),1) -> 0 | AA152: 0 | AB152: 0 | AC152: 0 | AD152: 0 | AE152: 0 | AI152: 0 | AJ152: 0 | AK152: 0 | AL152: 0 | AM152: 0 | AP152: 0
G153: 6.5 | H153: 1 | I153: 0.5 | J153: 0 | U153: 6.5 | X153: 0 | Y153: 0 | Z153: =IFERROR((1-OFFSET(CLOCK_DATA,0,19)^(OFFSET(CLOCK_DATA,1,19)*Clock!Y153)),1) -> 0 | AA153: 0 | AB153: 0 | AC153: 0 | AD153: 0 | AE153: 0 | AI153: 0 | AJ153: 0 | AK153: 0 | AL153: 0 | AM153: 0 | AP153: 0
G154: 6.5 | H154: 1 | I154: 0.5 | J154: 0 | U154: 6.5 | X154: 0 | Y154: 0 | Z154: =IFERROR((1-OFFSET(CLOCK_DATA,0,19)^(OFFSET(CLOCK_DATA,1,19)*Clock!Y154)),1) -> 0 | AA154: 0 | AB154: 0 | AC154: 0 | AD154: 0 | AE154: 0 | AI154: 0 | AJ154: 0 | AK154: 0 | AL154: 0 | AM154: 0 | AP154: 0
G155: 6.5 | H155: 1 | I155: 0.5 | J155: 0 | U155: 6.5 | X155: 0 | Y155: 0 | Z155: =IFERROR((1-OFFSET(CLOCK_DATA,0,19)^(OFFSET(CLOCK_DATA,1,19)*Clock!Y155)),1) -> 0 | AA155: 0 | AB155: 0 | AC155: 0 | AD155: 0 | AE155: 0 | AI155: 0 | AJ155: 0 | AK155: 0 | AL155: 0 | AM155: 0 | AP155: 0
G156: 6.5 | H156: 1 | I156: 0.5 | J156: 0 | U156: 6.5 | X156: 0 | Y156: 0 | Z156: =IFERROR((1-OFFSET(CLOCK_DATA,0,19)^(OFFSET(CLOCK_DATA,1,19)*Clock!Y156)),1) -> 0 | AA156: 0 | AB156: 0 | AC156: 0 | AD156: 0 | AE156: 0 | AI156: 0 | AJ156: 0 | AK156: 0 | AL156: 0 | AM156: 0 | AP156: 0
G157: 6.5 | H157: 1 | I157: 0.5 | J157: 0 | U157: 6.5 | X157: 0 | Y157: 0 | Z157: =IFERROR((1-OFFSET(CLOCK_DATA,0,19)^(OFFSET(CLOCK_DATA,1,19)*Clock!Y157)),1) -> 0 | AA157: 0 | AB157: 0 | AC157: 0 | AD157: 0 | AE157: 0 | AI157: 0 | AJ157: 0 | AK157: 0 | AL157: 0 | AM157: 0 | AP157: 0
G158: 6.5 | H158: 1 | I158: 0.5 | J158: 0 | U158: 6.5 | X158: 0 | Y158: 0 | Z158: =IFERROR((1-OFFSET(CLOCK_DATA,0,19)^(OFFSET(CLOCK_DATA,1,19)*Clock!Y158)),1) -> 0 | AA158: 0 | AB158: 0 | AC158: 0 | AD158: 0 | AE158: 0 | AI158: 0 | AJ158: 0 | AK158: 0 | AL158: 0 | AM158: 0 | AP158: 0
G159: 6.5 | H159: 1 | I159: 0.5 | J159: 0 | U159: 6.5 | X159: 0 | Y159: 0 | Z159: =IFERROR((1-OFFSET(CLOCK_DATA,0,19)^(OFFSET(CLOCK_DATA,1,19)*Clock!Y159)),1) -> 0 | AA159: 0 | AB159: 0 | AC159: 0 | AD159: 0 | AE159: 0 | AI159: 0 | AJ159: 0 | AK159: 0 | AL159: 0 | AM159: 0 | AP159: 0
G160: 6.5 | H160: 1 | I160: 0.5 | J160: 0 | U160: 6.5 | X160: 0 | Y160: 0 | Z160: =IFERROR((1-OFFSET(CLOCK_DATA,0,19)^(OFFSET(CLOCK_DATA,1,19)*Clock!Y160)),1) -> 0 | AA160: 0 | AB160: 0 | AC160: 0 | AD160: 0 | AE160: 0 | AI160: 0 | AJ160: 0 | AK160: 0 | AL160: 0 | AM160: 0 | AP160: 0
G161: 6.5 | H161: 1 | I161: 0.5 | J161: 0 | U161: 6.5 | X161: 0 | Y161: 0 | Z161: =IFERROR((1-OFFSET(CLOCK_DATA,0,19)^(OFFSET(CLOCK_DATA,1,19)*Clock!Y161)),1) -> 0 | AA161: 0 | AB161: 0 | AC161: 0 | AD161: 0 | AE161: 0 | AI161: 0 | AJ161: 0 | AK161: 0 | AL161: 0 | AM161: 0 | AP161: 0
G162: 6.5 | H162: 1 | I162: 0.5 | J162: 0 | U162: 6.5 | X162: 0 | Y162: 0 | Z162: =IFERROR((1-OFFSET(CLOCK_DATA,0,19)^(OFFSET(CLOCK_DATA,1,19)*Clock!Y162)),1) -> 0 | AA162: 0 | AB162: 0 | AC162: 0 | AD162: 0 | AE162: 0 | AI162: 0 | AJ162: 0 | AK162: 0 | AL162: 0 | AM162: 0 | AP162: 0
G163: 6.5 | H163: 1 | I163: 0.5 | J163: 0 | U163: 6.5 | X163: 0 | Y163: 0 | Z163: =IFERROR((1-OFFSET(CLOCK_DATA,0,19)^(OFFSET(CLOCK_DATA,1,19)*Clock!Y163)),1) -> 0 | AA163: 0 | AB163: 0 | AC163: 0 | AD163: 0 | AE163: 0 | AI163: 0 | AJ163: 0 | AK163: 0 | AL163: 0 | AM163: 0 | AP163: 0
G164: 6.5 | H164: 1 | I164: 0.5 | J164: 0 | U164: 6.5 | X164: 0 | Y164: 0 | Z164: =IFERROR((1-OFFSET(CLOCK_DATA,0,19)^(OFFSET(CLOCK_DATA,1,19)*Clock!Y164)),1) -> 0 | AA164: 0 | AB164: 0 | AC164: 0 | AD164: 0 | AE164: 0 | AI164: 0 | AJ164: 0 | AK164: 0 | AL164: 0 | AM164: 0 | AP164: 0
G165: 6.5 | H165: 1 | I165: 0.5 | J165: 0 | U165: 6.5 | X165: 0 | Y165: 0 | Z165: =IFERROR((1-OFFSET(CLOCK_DATA,0,19)^(OFFSET(CLOCK_DATA,1,19)*Clock!Y165)),1) -> 0 | AA165: 0 | AB165: 0 | AC165: 0 | AD165: 0 | AE165: 0 | AI165: 0 | AJ165: 0 | AK165: 0 | AL165: 0 | AM165: 0 | AP165: 0
G166: 6.5 | H166: 1 | I166: 0.5 | J166: 0 | U166: 6.5 | X166: 0 | Y166: 0 | Z166: =IFERROR((1-OFFSET(CLOCK_DATA,0,19)^(OFFSET(CLOCK_DATA,1,19)*Clock!Y166)),1) -> 0 | AA166: 0 | AB166: 0 | AC166: 0 | AD166: 0 | AE166: 0 | AI166: 0 | AJ166: 0 | AK166: 0 | AL166: 0 | AM166: 0 | AP166: 0
G167: 6.5 | H167: 1 | I167: 0.5 | J167: 0 | U167: 6.5 | X167: 0 | Y167: 0 | Z167: =IFERROR((1-OFFSET(CLOCK_DATA,0,19)^(OFFSET(CLOCK_DATA,1,19)*Clock!Y167)),1) -> 0 | AA167: 0 | AB167: 0 | AC167: 0 | AD167: 0 | AE167: 0 | AI167: 0 | AJ167: 0 | AK167: 0 | AL167: 0 | AM167: 0 | AP167: 0
G168: 6.5 | H168: 1 | I168: 0.5 | J168: 0 | U168: 6.5 | X168: 0 | Y168: 0 | Z168: =IFERROR((1-OFFSET(CLOCK_DATA,0,19)^(OFFSET(CLOCK_DATA,1,19)*Clock!Y168)),1) -> 0 | AA168: 0 | AB168: 0 | AC168: 0 | AD168: 0 | AE168: 0 | AI168: 0 | AJ168: 0 | AK168: 0 | AL168: 0 | AM168: 0 | AP168: 0
G169: 6.5 | H169: 1 | I169: 0.5 | J169: 0 | U169: 6.5 | X169: 0 | Y169: 0 | Z169: =IFERROR((1-OFFSET(CLOCK_DATA,0,19)^(OFFSET(CLOCK_DATA,1,19)*Clock!Y169)),1) -> 0 | AA169: 0 | AB169: 0 | AC169: 0 | AD169: 0 | AE169: 0 | AI169: 0 | AJ169: 0 | AK169: 0 | AL169: 0 | AM169: 0 | AP169: 0
G170: 6.5 | H170: 1 | I170: 0.5 | J170: =IF($F170>0, AP170*(VCCINT/1000)*VCCINT_N,0)*OFFSET(POWER_OPT,OFFSET(OPTIMIZATION,0,3),1)*$P$1 -> 0 | U170: 6.5 | X170: 0 | Y170: 0 | Z170: =IFERROR((1-OFFSET(CLOCK_DATA,0,19)^(OFFSET(CLOCK_DATA,1,19)*Clock!Y170)),1) -> 0 | AA170: 0 | AB170: =IFERROR((1-OFFSET(CLOCK_DATA,0,20)^(OFFSET(CLOCK_DATA,1,20)*Z170)),1) -> 0 | AC170: 0 | AD170: =IFERROR(X170*(U170*OFFSET(CLOCK_DATA,0,21)+OFFSET(CLOCK_DATA,1,21)),1) -> 0 | AE170: =IFERROR(AD170*(U170*OFFSET(CLOCK_DATA,0,22)+OFFSET(CLOCK_DATA,1,22)),1) -> 0 | AI170: =E170*AC170*OFFSET(CLOCK_DATA,4,18) -> 0 | AJ170: =E170*ROUNDUP(AA170,0)*(H170*OFFSET(CLOCK_DATA,4,19)+(1-H170)*OFFSET(CLOCK_DATA,3,19)) -> 0 | AK170: =E170*X170*OFFSET(CLOCK_DATA,4,20) -> 0 | AL170: =E170*I170*AE170*OFFSET(CLOCK_DATA,6,19) -> 0 | AM170: =E170*AD170*OFFSET(CLOCK_DATA,6,18) -> 0 | AP170: 0
G171: 6.5 | H171: 1 | I171: 0.5 | J171: 0 | U171: 6.5 | X171: 0 | Y171: 0 | Z171: =IFERROR((1-OFFSET(CLOCK_DATA,0,19)^(OFFSET(CLOCK_DATA,1,19)*Clock!Y171)),1) -> 0 | AA171: 0 | AB171: 0 | AC171: 0 | AD171: 0 | AE171: 0 | AI171: 0 | AJ171: 0 | AK171: 0 | AL171: 0 | AM171: 0 | AP171: 0
G172: 6.5 | H172: 1 | I172: 0.5 | J172: 0 | U172: 6.5 | X172: 0 | Y172: 0 | Z172: =IFERROR((1-OFFSET(CLOCK_DATA,0,19)^(OFFSET(CLOCK_DATA,1,19)*Clock!Y172)),1) -> 0 | AA172: 0 | AB172: 0 | AC172: 0 | AD172: 0 | AE172: 0 | AI172: 0 | AJ172: 0 | AK172: 0 | AL172: 0 | AM172: 0 | AP172: 0
G173: 6.5 | H173: 1 | I173: 0.5 | J173: 0 | U173: 6.5 | X173: 0 | Y173: 0 | Z173: =IFERROR((1-OFFSET(CLOCK_DATA,0,19)^(OFFSET(CLOCK_DATA,1,19)*Clock!Y173)),1) -> 0 | AA173: 0 | AB173: 0 | AC173: 0 | AD173: 0 | AE173: 0 | AI173: 0 | AJ173: 0 | AK173: 0 | AL173: 0 | AM173: 0 | AP173: 0
G174: 6.5 | H174: 1 | I174: 0.5 | J174: 0 | U174: 6.5 | X174: 0 | Y174: 0 | Z174: =IFERROR((1-OFFSET(CLOCK_DATA,0,19)^(OFFSET(CLOCK_DATA,1,19)*Clock!Y174)),1) -> 0 | AA174: 0 | AB174: 0 | AC174: 0 | AD174: 0 | AE174: 0 | AI174: 0 | AJ174: 0 | AK174: 0 | AL174: 0 | AM174: 0 | AP174: 0
G175: 6.5 | H175: 1 | I175: 0.5 | J175: 0 | U175: 6.5 | X175: 0 | Y175: 0 | Z175: =IFERROR((1-OFFSET(CLOCK_DATA,0,19)^(OFFSET(CLOCK_DATA,1,19)*Clock!Y175)),1) -> 0 | AA175: 0 | AB175: 0 | AC175: 0 | AD175: 0 | AE175: 0 | AI175: 0 | AJ175: 0 | AK175: 0 | AL175: 0 | AM175: 0 | AP175: 0
G176: 6.5 | H176: 1 | I176: 0.5 | J176: 0 | U176: 6.5 | X176: 0 | Y176: 0 | Z176: =IFERROR((1-OFFSET(CLOCK_DATA,0,19)^(OFFSET(CLOCK_DATA,1,19)*Clock!Y176)),1) -> 0 | AA176: 0 | AB176: 0 | AC176: 0 | AD176: 0 | AE176: 0 | AI176: 0 | AJ176: 0 | AK176: 0 | AL176: 0 | AM176: 0 | AP176: 0
G177: 6.5 | H177: 1 | I177: 0.5 | J177: 0 | U177: 6.5 | X177: 0 | Y177: 0 | Z177: =IFERROR((1-OFFSET(CLOCK_DATA,0,19)^(OFFSET(CLOCK_DATA,1,19)*Clock!Y177)),1) -> 0 | AA177: 0 | AB177: 0 | AC177: 0 | AD177: 0 | AE177: 0 | AI177: 0 | AJ177: 0 | AK177: 0 | AL177: 0 | AM177: 0 | AP177: 0
G178: 6.5 | H178: 1 | I178: 0.5 | J178: 0 | U178: 6.5 | X178: 0 | Y178: 0 | Z178: =IFERROR((1-OFFSET(CLOCK_DATA,0,19)^(OFFSET(CLOCK_DATA,1,19)*Clock!Y178)),1) -> 0 | AA178: 0 | AB178: 0 | AC178: 0 | AD178: 0 | AE178: 0 | AI178: 0 | AJ178: 0 | AK178: 0 | AL178: 0 | AM178: 0 | AP178: 0
G179: 6.5 | H179: 1 | I179: 0.5 | J179: 0 | U179: 6.5 | X179: 0 | Y179: 0 | Z179: =IFERROR((1-OFFSET(CLOCK_DATA,0,19)^(OFFSET(CLOCK_DATA,1,19)*Clock!Y179)),1) -> 0 | AA179: 0 | AB179: 0 | AC179: 0 | AD179: 0 | AE179: 0 | AI179: 0 | AJ179: 0 | AK179: 0 | AL179: 0 | AM179: 0 | AP179: 0
G180: 6.5 | H180: 1 | I180: 0.5 | J180: 0 | U180: 6.5 | X180: 0 | Y180: 0 | Z180: =IFERROR((1-OFFSET(CLOCK_DATA,0,19)^(OFFSET(CLOCK_DATA,1,19)*Clock!Y180)),1) -> 0 | AA180: 0 | AB180: 0 | AC180: 0 | AD180: 0 | AE180: 0 | AI180: 0 | AJ180: 0 | AK180: 0 | AL180: 0 | AM180: 0 | AP180: 0
G181: 6.5 | H181: 1 | I181: 0.5 | J181: 0 | U181: 6.5 | X181: 0 | Y181: 0 | Z181: =IFERROR((1-OFFSET(CLOCK_DATA,0,19)^(OFFSET(CLOCK_DATA,1,19)*Clock!Y181)),1) -> 0 | AA181: 0 | AB181: 0 | AC181: 0 | AD181: 0 | AE181: 0 | AI181: 0 | AJ181: 0 | AK181: 0 | AL181: 0 | AM181: 0 | AP181: 0
G182: 6.5 | H182: 1 | I182: 0.5 | J182: 0 | U182: 6.5 | X182: 0 | Y182: 0 | Z182: =IFERROR((1-OFFSET(CLOCK_DATA,0,19)^(OFFSET(CLOCK_DATA,1,19)*Clock!Y182)),1) -> 0 | AA182: 0 | AB182: 0 | AC182: 0 | AD182: 0 | AE182: 0 | AI182: 0 | AJ182: 0 | AK182: 0 | AL182: 0 | AM182: 0 | AP182: 0
G183: 6.5 | H183: 1 | I183: 0.5 | J183: 0 | U183: 6.5 | X183: 0 | Y183: 0 | Z183: =IFERROR((1-OFFSET(CLOCK_DATA,0,19)^(OFFSET(CLOCK_DATA,1,19)*Clock!Y183)),1) -> 0 | AA183: 0 | AB183: 0 | AC183: 0 | AD183: 0 | AE183: 0 | AI183: 0 | AJ183: 0 | AK183: 0 | AL183: 0 | AM183: 0 | AP183: 0
G184: 6.5 | H184: 1 | I184: 0.5 | J184: 0 | U184: 6.5 | X184: 0 | Y184: 0 | Z184: =IFERROR((1-OFFSET(CLOCK_DATA,0,19)^(OFFSET(CLOCK_DATA,1,19)*Clock!Y184)),1) -> 0 | AA184: 0 | AB184: 0 | AC184: 0 | AD184: 0 | AE184: 0 | AI184: 0 | AJ184: 0 | AK184: 0 | AL184: 0 | AM184: 0 | AP184: 0
G185: 6.5 | H185: 1 | I185: 0.5 | J185: 0 | U185: 6.5 | X185: 0 | Y185: 0 | Z185: =IFERROR((1-OFFSET(CLOCK_DATA,0,19)^(OFFSET(CLOCK_DATA,1,19)*Clock!Y185)),1) -> 0 | AA185: 0 | AB185: 0 | AC185: 0 | AD185: 0 | AE185: 0 | AI185: 0 | AJ185: 0 | AK185: 0 | AL185: 0 | AM185: 0 | AP185: 0
G186: 6.5 | H186: 1 | I186: 0.5 | J186: 0 | U186: 6.5 | X186: 0 | Y186: 0 | Z186: =IFERROR((1-OFFSET(CLOCK_DATA,0,19)^(OFFSET(CLOCK_DATA,1,19)*Clock!Y186)),1) -> 0 | AA186: 0 | AB186: 0 | AC186: 0 | AD186: 0 | AE186: 0 | AI186: 0 | AJ186: 0 | AK186: 0 | AL186: 0 | AM186: 0 | AP186: 0
G187: 6.5 | H187: 1 | I187: 0.5 | J187: 0 | U187: 6.5 | X187: 0 | Y187: 0 | Z187: =IFERROR((1-OFFSET(CLOCK_DATA,0,19)^(OFFSET(CLOCK_DATA,1,19)*Clock!Y187)),1) -> 0 | AA187: 0 | AB187: 0 | AC187: 0 | AD187: 0 | AE187: 0 | AI187: 0 | AJ187: 0 | AK187: 0 | AL187: 0 | AM187: 0 | AP187: 0
G188: 6.5 | H188: 1 | I188: 0.5 | J188: 0 | U188: 6.5 | X188: 0 | Y188: 0 | Z188: =IFERROR((1-OFFSET(CLOCK_DATA,0,19)^(OFFSET(CLOCK_DATA,1,19)*Clock!Y188)),1) -> 0 | AA188: 0 | AB188: 0 | AC188: 0 | AD188: 0 | AE188: 0 | AI188: 0 | AJ188: 0 | AK188: 0 | AL188: 0 | AM188: 0 | AP188: 0
G189: 6.5 | H189: 1 | I189: 0.5 | J189: 0 | U189: 6.5 | X189: 0 | Y189: 0 | Z189: =IFERROR((1-OFFSET(CLOCK_DATA,0,19)^(OFFSET(CLOCK_DATA,1,19)*Clock!Y189)),1) -> 0 | AA189: 0 | AB189: 0 | AC189: 0 | AD189: 0 | AE189: 0 | AI189: 0 | AJ189: 0 | AK189: 0 | AL189: 0 | AM189: 0 | AP189: 0
G190: 6.5 | H190: 1 | I190: 0.5 | J190: 0 | U190: 6.5 | X190: 0 | Y190: 0 | Z190: =IFERROR((1-OFFSET(CLOCK_DATA,0,19)^(OFFSET(CLOCK_DATA,1,19)*Clock!Y190)),1) -> 0 | AA190: 0 | AB190: 0 | AC190: 0 | AD190: 0 | AE190: 0 | AI190: 0 | AJ190: 0 | AK190: 0 | AL190: 0 | AM190: 0 | AP190: 0
G191: 6.5 | H191: 1 | I191: 0.5 | J191: 0 | U191: 6.5 | X191: 0 | Y191: 0 | Z191: =IFERROR((1-OFFSET(CLOCK_DATA,0,19)^(OFFSET(CLOCK_DATA,1,19)*Clock!Y191)),1) -> 0 | AA191: 0 | AB191: 0 | AC191: 0 | AD191: 0 | AE191: 0 | AI191: 0 | AJ191: 0 | AK191: 0 | AL191: 0 | AM191: 0 | AP191: 0
G192: 6.5 | H192: 1 | I192: 0.5 | J192: 0 | U192: 6.5 | X192: 0 | Y192: 0 | Z192: =IFERROR((1-OFFSET(CLOCK_DATA,0,19)^(OFFSET(CLOCK_DATA,1,19)*Clock!Y192)),1) -> 0 | AA192: 0 | AB192: 0 | AC192: 0 | AD192: 0 | AE192: 0 | AI192: 0 | AJ192: 0 | AK192: 0 | AL192: 0 | AM192: 0 | AP192: 0
G193: 6.5 | H193: 1 | I193: 0.5 | J193: 0 | U193: 6.5 | X193: 0 | Y193: 0 | Z193: =IFERROR((1-OFFSET(CLOCK_DATA,0,19)^(OFFSET(CLOCK_DATA,1,19)*Clock!Y193)),1) -> 0 | AA193: 0 | AB193: 0 | AC193: 0 | AD193: 0 | AE193: 0 | AI193: 0 | AJ193: 0 | AK193: 0 | AL193: 0 | AM193: 0 | AP193: 0
G194: 6.5 | H194: 1 | I194: 0.5 | J194: 0 | U194: 6.5 | X194: 0 | Y194: 0 | Z194: =IFERROR((1-OFFSET(CLOCK_DATA,0,19)^(OFFSET(CLOCK_DATA,1,19)*Clock!Y194)),1) -> 0 | AA194: 0 | AB194: 0 | AC194: 0 | AD194: 0 | AE194: 0 | AI194: 0 | AJ194: 0 | AK194: 0 | AL194: 0 | AM194: 0 | AP194: 0
G195: 6.5 | H195: 1 | I195: 0.5 | J195: 0 | U195: 6.5 | X195: 0 | Y195: 0 | Z195: =IFERROR((1-OFFSET(CLOCK_DATA,0,19)^(OFFSET(CLOCK_DATA,1,19)*Clock!Y195)),1) -> 0 | AA195: 0 | AB195: 0 | AC195: 0 | AD195: 0 | AE195: 0 | AI195: 0 | AJ195: 0 | AK195: 0 | AL195: 0 | AM195: 0 | AP195: 0
G196: 6.5 | H196: 1 | I196: 0.5 | J196: 0 | U196: 6.5 | X196: 0 | Y196: 0 | Z196: =IFERROR((1-OFFSET(CLOCK_DATA,0,19)^(OFFSET(CLOCK_DATA,1,19)*Clock!Y196)),1) -> 0 | AA196: 0 | AB196: 0 | AC196: 0 | AD196: 0 | AE196: 0 | AI196: 0 | AJ196: 0 | AK196: 0 | AL196: 0 | AM196: 0 | AP196: 0
G197: 6.5 | H197: 1 | I197: 0.5 | J197: 0 | U197: 6.5 | X197: 0 | Y197: 0 | Z197: =IFERROR((1-OFFSET(CLOCK_DATA,0,19)^(OFFSET(CLOCK_DATA,1,19)*Clock!Y197)),1) -> 0 | AA197: 0 | AB197: 0 | AC197: 0 | AD197: 0 | AE197: 0 | AI197: 0 | AJ197: 0 | AK197: 0 | AL197: 0 | AM197: 0 | AP197: 0
G198: 6.5 | H198: 1 | I198: 0.5 | J198: 0 | U198: 6.5 | X198: 0 | Y198: 0 | Z198: =IFERROR((1-OFFSET(CLOCK_DATA,0,19)^(OFFSET(CLOCK_DATA,1,19)*Clock!Y198)),1) -> 0 | AA198: 0 | AB198: 0 | AC198: 0 | AD198: 0 | AE198: 0 | AI198: 0 | AJ198: 0 | AK198: 0 | AL198: 0 | AM198: 0 | AP198: 0
G199: 6.5 | H199: 1 | I199: 0.5 | J199: 0 | U199: 6.5 | X199: 0 | Y199: 0 | Z199: =IFERROR((1-OFFSET(CLOCK_DATA,0,19)^(OFFSET(CLOCK_DATA,1,19)*Clock!Y199)),1) -> 0 | AA199: 0 | AB199: 0 | AC199: 0 | AD199: 0 | AE199: 0 | AI199: 0 | AJ199: 0 | AK199: 0 | AL199: 0 | AM199: 0 | AP199: 0
G200: 6.5 | H200: 1 | I200: 0.5 | J200: 0 | U200: 6.5 | X200: 0 | Y200: 0 | Z200: =IFERROR((1-OFFSET(CLOCK_DATA,0,19)^(OFFSET(CLOCK_DATA,1,19)*Clock!Y200)),1) -> 0 | AA200: 0 | AB200: 0 | AC200: 0 | AD200: 0 | AE200: 0 | AI200: 0 | AJ200: 0 | AK200: 0 | AL200: 0 | AM200: 0 | AP200: 0
B201: =ROW(CLOCKROWS)-10 -> 191

Sheet Logic
B1: Logic Power | U1: =IF(TRUE,1,OFFSET(POWER_SCALE,3,OFFSET(POWER_SCALE,1,1))*PL_POWERED)*_DYN_POWER_SCALE -> 1
B3: Power | F3: Utilization | K3: CLB User Guide | Q3: Logic | R3: Signals
B4: VCCINT | C4: =TEXT(VCCINT,"0.000")&"V" -> 0.850V | D4: =SUM(M12:M500)*PL_POWERED -> 2.918616072 | F4: Registers | H4: =SUM(I12:I500) -> 286000 | I4: =H4/NUM_FFS -> 0.2735690236 | Q4: =SUM(Z12:Z500) -> 0.166671791 | R4: =SUM(AD12:AD500) -> 0.8766754626
B5: =TEXT(LOGIC_POWER/TOTAL_POWER,"0%")&" of total on-chip power "&TEXT(TOTAL_POWER,"0.000")&"W" -> 17% of total on-chip power 17.096W | F5: LUTs | H5: =SUM(H6:H8) -> 270000 | I5: =H5/NUM_LUTS -> 0.5165289256 | K5: XPE User Guide | Q5: =SUM(Q6:Q8) -> 1.06375182 | R5: =SUM(R6:R8) -> 0.8115169988
F6: Combinatorial | H6: =SUM(F12:F500) -> 246000 | I6: =H6/NUM_LUTS -> 0.4706152433 | Q6: =SUM(W12:W500) -> 0.9140972702 | R6: =SUM(AA12:AA500) -> 0.740006893
F7: Shift Registers | H7: =SUM(G12:G500) -> 0 | I7: =SUM(H7:H8)/NUM_LUTRAM -> 0.1488095238 | K7: Introduction to XPE (video) | Q7: =SUM(X12:X500) -> 0 | R7: =SUM(AB12:AB500) -> 0
F8: Distributed RAMs | H8: =SUM(H12:H500) -> 24000 | Q8: =SUM(Y12:Y500) -> 0.1496545498 | R8: =SUM(AC12:AC500) -> 0.07151010581
Q9: =SUM(Q4:Q5) -> 1.230423611 | R9: =SUM(R4:R5) -> 1.688192461
B10: Name | E10: Clock (MHz) | F10: LUTs as | I10: Registers | J10: Toggle Rate | K10: Routing Complexity | L10: Signal Rate (Mtr/s) | M10: Power (W) | O10: =SUM(O12:O500) -> 0 | P10: =SUM(P12:P500) -> 0 | U10: Routing | W10: LUTs as | Z10: Registers | AA10: LUTs as | AD10: Registers
F11: Logic | G11: Shift Registers | H11: Distributed RAMs | O11: RP_power | P11: RP_spower | Q11: RF | W11: Logic | X11: Shift Registers | Y11: Distributed RAMs | AA11: Logic | AB11: Shift Registers | AC11: Distributed RAMs | AE11: Logic | AF11: Routing
B12: uhr | E12: 185 | F12: 246000 | H12: 24000 | I12: 286000 | J12: 0.125 | K12: 10 | L12: =E12*J12 -> 23.125 | M12: =IF(TRUE,SUM(AE12:AF12),(VCCINT/1000)*VCCINT_N*IF($R12>0,$R12,($L12/2*(($F12+$I12)*0.45*$U12+($F12*(OFFSET(FANOUT,8,2))+$G12*(OFFSET(FANOUT,8,4)+$U12)+$H12*(OFFSET(FANOUT,8,5)+$U12)+$I12*(OFFSET(FANOUT,8,3)))))*OFFSET(POWER_OPT,OFFSET(OPTIMIZATION,0,3),2))*$U$1) -> 2.918616072 | O12: 0 | P12: 0 | Q12: =10^(K12/10)-1 -> 9 | U12: =OFFSET(FANOUT,8,1)+OFFSET(FANOUT,9,1)*($K12-3) -> 0.000873884324 | W12: =(VCCINT/1000)*VCCINT*(IF($T12>0,$T12,($L12/2*(($F12*OFFSET(FANOUT,8,13)))* OFFSET(POWER_OPT,OFFSET(OPTIMIZATION,0,3),2))*$U$1)) -> 0.9140972702 | X12: =(VCCINT/1000)*VCCINT*(IF($T12>0,$T12,($L12/2*($G12*OFFSET(FANOUT,8,15))))* OFFSET(POWER_OPT,OFFSET(OPTIMIZATION,0,3),2))*$U$1 -> 0 | Y12: =(VCCINT/1000)*VCCINT*(IF($T12>0,$T12,($L12/2*($H12*OFFSET(FANOUT,8,16))))* OFFSET(POWER_OPT,OFFSET(OPTIMIZATION,0,3),2))*$U$1 -> 0.1496545498 | Z12: =( VCCINT / 1000 ) * VCCINT * ( IF( $T12 > 0, $T12, ( $L12 / 2 * ( ( $I12 *OFFSET(FANOUT,8,14) ) ) ) *OFFSET( POWER_OPT, OFFSET( OPTIMIZATION, 0, 3), 2)) * $U$1 ) -> 0.166671791 | AA12: =(VCCINT/1000)*VCCINT*(IF($T12 > 0, $T12,($L12/2*(($F12)*(Q12*OFFSET(FANOUT,9,13)+OFFSET(FANOUT,10,13)))))* OFFSET(POWER_OPT,OFFSET(OPTIMIZATION,0,3),2))*$U$1 -> 0.740006893 | AB12: =(VCCINT/1000)*VCCINT*(IF($T12 > 0, $T12,($L12/2*($G12*(Q12*OFFSET(FANOUT,9,15)+OFFSET(FANOUT,10,15)))))* OFFSET(POWER_OPT,OFFSET(OPTIMIZATION,0,3),2))*$U$1 -> 0 | AC12: =(VCCINT/1000)*VCCINT*(IF($T12 > 0, $T12,($L12/2*($H12*(Q12*OFFSET(FANOUT,9,16)+OFFSET(FANOUT,10,16)))))* OFFSET(POWER_OPT,OFFSET(OPTIMIZATION,0,3),2))*$U$1 -> 0.07151010581 | AD12: =( VCCINT / 1000 ) * VCCINT * ( IF( $T12 > 0, $T12, ( $L12 / 2 * ( ( $I12 ) * (Q12*OFFSET(FANOUT,9,14)+OFFSET(FANOUT,10,14)) ) ) * OFFSET( POWER_OPT, OFFSET( OPTIMIZATION, 0, 3), 2)) * $U$1 ) -> 0.8766754626 | AE12: =SUM(W12:Z12) -> 1.230423611 | AF12: =SUM(AA12:AD12) -> 1.688192461
J13: 0.125 | K13: 10 | L13: 0 | M13: 0 | O13: 0 | P13: 0 | Q13: =10^(K13/10)-1 -> 9 | U13: 0.000873884324 | W13: 0 | X13: 0 | Y13: 0 | Z13: 0 | AA13: 0 | AB13: 0 | AC13: 0 | AD13: 0 | AE13: =SUM(W13:Z13) -> 0 | AF13: =SUM(AA13:AD13) -> 0
J14: 0.125 | K14: 10 | L14: 0 | M14: 0 | O14: 0 | P14: 0 | Q14: 9 | U14: 0.000873884324 | W14: 0 | X14: 0 | Y14: 0 | Z14: 0 | AA14: 0 | AB14: 0 | AC14: 0 | AD14: 0 | AE14: 0 | AF14: 0
J15: 0.125 | K15: 10 | L15: 0 | M15: 0 | O15: 0 | P15: 0 | Q15: 9 | U15: 0.000873884324 | W15: 0 | X15: 0 | Y15: 0 | Z15: 0 | AA15: 0 | AB15: 0 | AC15: 0 | AD15: 0 | AE15: 0 | AF15: 0
J16: 0.125 | K16: 10 | L16: 0 | M16: 0 | O16: 0 | P16: 0 | Q16: 9 | U16: 0.000873884324 | W16: 0 | X16: 0 | Y16: 0 | Z16: 0 | AA16: 0 | AB16: 0 | AC16: 0 | AD16: 0 | AE16: 0 | AF16: 0
J17: 0.125 | K17: 10 | L17: 0 | M17: 0 | O17: 0 | P17: 0 | Q17: 9 | U17: 0.000873884324 | W17: 0 | X17: 0 | Y17: 0 | Z17: 0 | AA17: 0 | AB17: 0 | AC17: 0 | AD17: 0 | AE17: 0 | AF17: 0
J18: 0.125 | K18: 10 | L18: 0 | M18: 0 | O18: 0 | P18: 0 | Q18: 9 | U18: 0.000873884324 | W18: 0 | X18: 0 | Y18: 0 | Z18: 0 | AA18: 0 | AB18: 0 | AC18: 0 | AD18: 0 | AE18: 0 | AF18: 0
J19: 0.125 | K19: 10 | L19: 0 | M19: 0 | O19: 0 | P19: 0 | Q19: 9 | U19: 0.000873884324 | W19: 0 | X19: 0 | Y19: 0 | Z19: 0 | AA19: 0 | AB19: 0 | AC19: 0 | AD19: 0 | AE19: 0 | AF19: 0
J20: 0.125 | K20: 10 | L20: 0 | M20: 0 | O20: 0 | P20: 0 | Q20: 9 | U20: 0.000873884324 | W20: 0 | X20: 0 | Y20: 0 | Z20: 0 | AA20: 0 | AB20: 0 | AC20: 0 | AD20: 0 | AE20: 0 | AF20: 0
J21: 0.125 | K21: 10 | L21: 0 | M21: 0 | O21: 0 | P21: 0 | Q21: 9 | U21: 0.000873884324 | W21: 0 | X21: 0 | Y21: 0 | Z21: 0 | AA21: 0 | AB21: 0 | AC21: 0 | AD21: 0 | AE21: 0 | AF21: 0
J22: 0.125 | K22: 10 | L22: 0 | M22: 0 | O22: 0 | P22: 0 | Q22: 9 | U22: 0.000873884324 | W22: 0 | X22: 0 | Y22: 0 | Z22: 0 | AA22: 0 | AB22: 0 | AC22: 0 | AD22: 0 | AE22: 0 | AF22: 0
J23: 0.125 | K23: 10 | L23: 0 | M23: 0 | O23: 0 | P23: 0 | Q23: 9 | U23: 0.000873884324 | W23: 0 | X23: 0 | Y23: 0 | Z23: 0 | AA23: 0 | AB23: 0 | AC23: 0 | AD23: 0 | AE23: 0 | AF23: 0
J24: 0.125 | K24: 10 | L24: 0 | M24: 0 | O24: 0 | P24: 0 | Q24: 9 | U24: 0.000873884324 | W24: 0 | X24: 0 | Y24: 0 | Z24: 0 | AA24: 0 | AB24: 0 | AC24: 0 | AD24: 0 | AE24: 0 | AF24: 0
J25: 0.125 | K25: 10 | L25: 0 | M25: 0 | O25: 0 | P25: 0 | Q25: 9 | U25: 0.000873884324 | W25: 0 | X25: 0 | Y25: 0 | Z25: 0 | AA25: 0 | AB25: 0 | AC25: 0 | AD25: 0 | AE25: 0 | AF25: 0
J26: 0.125 | K26: 10 | L26: 0 | M26: 0 | O26: 0 | P26: 0 | Q26: 9 | U26: 0.000873884324 | W26: 0 | X26: 0 | Y26: 0 | Z26: 0 | AA26: 0 | AB26: 0 | AC26: 0 | AD26: 0 | AE26: 0 | AF26: 0
J27: 0.125 | K27: 10 | L27: 0 | M27: 0 | O27: 0 | P27: 0 | Q27: 9 | U27: 0.000873884324 | W27: 0 | X27: 0 | Y27: 0 | Z27: 0 | AA27: 0 | AB27: 0 | AC27: 0 | AD27: 0 | AE27: 0 | AF27: 0
J28: 0.125 | K28: 10 | L28: 0 | M28: 0 | O28: 0 | P28: 0 | Q28: 9 | U28: 0.000873884324 | W28: 0 | X28: 0 | Y28: 0 | Z28: 0 | AA28: 0 | AB28: 0 | AC28: 0 | AD28: 0 | AE28: 0 | AF28: 0
J29: 0.125 | K29: 10 | L29: 0 | M29: 0 | O29: 0 | P29: 0 | Q29: 9 | U29: 0.000873884324 | W29: 0 | X29: 0 | Y29: 0 | Z29: 0 | AA29: 0 | AB29: 0 | AC29: 0 | AD29: 0 | AE29: 0 | AF29: 0
J30: 0.125 | K30: 10 | L30: 0 | M30: 0 | O30: 0 | P30: 0 | Q30: 9 | U30: 0.000873884324 | W30: 0 | X30: 0 | Y30: 0 | Z30: 0 | AA30: 0 | AB30: 0 | AC30: 0 | AD30: 0 | AE30: 0 | AF30: 0
J31: 0.125 | K31: 10 | L31: 0 | M31: 0 | O31: 0 | P31: 0 | Q31: 9 | U31: 0.000873884324 | W31: 0 | X31: 0 | Y31: 0 | Z31: 0 | AA31: 0 | AB31: 0 | AC31: 0 | AD31: 0 | AE31: 0 | AF31: 0
J32: 0.125 | K32: 10 | L32: 0 | M32: 0 | O32: 0 | P32: 0 | Q32: 9 | U32: 0.000873884324 | W32: 0 | X32: 0 | Y32: 0 | Z32: 0 | AA32: 0 | AB32: 0 | AC32: 0 | AD32: 0 | AE32: 0 | AF32: 0
J33: 0.125 | K33: 10 | L33: 0 | M33: 0 | O33: 0 | P33: 0 | Q33: 9 | U33: 0.000873884324 | W33: 0 | X33: 0 | Y33: 0 | Z33: 0 | AA33: 0 | AB33: 0 | AC33: 0 | AD33: 0 | AE33: 0 | AF33: 0
J34: 0.125 | K34: 10 | L34: 0 | M34: 0 | O34: 0 | P34: 0 | Q34: 9 | U34: 0.000873884324 | W34: 0 | X34: 0 | Y34: 0 | Z34: 0 | AA34: 0 | AB34: 0 | AC34: 0 | AD34: 0 | AE34: 0 | AF34: 0
J35: 0.125 | K35: 10 | L35: 0 | M35: 0 | O35: 0 | P35: 0 | Q35: 9 | U35: 0.000873884324 | W35: 0 | X35: 0 | Y35: 0 | Z35: 0 | AA35: 0 | AB35: 0 | AC35: 0 | AD35: 0 | AE35: 0 | AF35: 0
J36: 0.125 | K36: 10 | L36: 0 | M36: 0 | O36: 0 | P36: 0 | Q36: 9 | U36: 0.000873884324 | W36: 0 | X36: 0 | Y36: 0 | Z36: 0 | AA36: 0 | AB36: 0 | AC36: 0 | AD36: 0 | AE36: 0 | AF36: 0
J37: 0.125 | K37: 10 | L37: 0 | M37: 0 | O37: 0 | P37: 0 | Q37: 9 | U37: 0.000873884324 | W37: 0 | X37: 0 | Y37: 0 | Z37: 0 | AA37: 0 | AB37: 0 | AC37: 0 | AD37: 0 | AE37: 0 | AF37: 0
J38: 0.125 | K38: 10 | L38: 0 | M38: 0 | O38: 0 | P38: 0 | Q38: 9 | U38: 0.000873884324 | W38: 0 | X38: 0 | Y38: 0 | Z38: 0 | AA38: 0 | AB38: 0 | AC38: 0 | AD38: 0 | AE38: 0 | AF38: 0
J39: 0.125 | K39: 10 | L39: 0 | M39: 0 | O39: 0 | P39: 0 | Q39: 9 | U39: 0.000873884324 | W39: 0 | X39: 0 | Y39: 0 | Z39: 0 | AA39: 0 | AB39: 0 | AC39: 0 | AD39: 0 | AE39: 0 | AF39: 0
J40: 0.125 | K40: 10 | L40: 0 | M40: 0 | O40: 0 | P40: 0 | Q40: 9 | U40: 0.000873884324 | W40: 0 | X40: 0 | Y40: 0 | Z40: 0 | AA40: 0 | AB40: 0 | AC40: 0 | AD40: 0 | AE40: 0 | AF40: 0
J41: 0.125 | K41: 10 | L41: 0 | M41: 0 | O41: 0 | P41: 0 | Q41: 9 | U41: 0.000873884324 | W41: 0 | X41: 0 | Y41: 0 | Z41: 0 | AA41: 0 | AB41: 0 | AC41: 0 | AD41: 0 | AE41: 0 | AF41: 0
J42: 0.125 | K42: 10 | L42: 0 | M42: 0 | O42: 0 | P42: 0 | Q42: 9 | U42: 0.000873884324 | W42: 0 | X42: 0 | Y42: 0 | Z42: 0 | AA42: 0 | AB42: 0 | AC42: 0 | AD42: 0 | AE42: 0 | AF42: 0
J43: 0.125 | K43: 10 | L43: 0 | M43: 0 | O43: 0 | P43: 0 | Q43: 9 | U43: 0.000873884324 | W43: 0 | X43: 0 | Y43: 0 | Z43: 0 | AA43: 0 | AB43: 0 | AC43: 0 | AD43: 0 | AE43: 0 | AF43: 0
J44: 0.125 | K44: 10 | L44: 0 | M44: 0 | O44: 0 | P44: 0 | Q44: 9 | U44: 0.000873884324 | W44: 0 | X44: 0 | Y44: 0 | Z44: 0 | AA44: 0 | AB44: 0 | AC44: 0 | AD44: 0 | AE44: 0 | AF44: 0
J45: 0.125 | K45: 10 | L45: 0 | M45: 0 | O45: 0 | P45: 0 | Q45: 9 | U45: 0.000873884324 | W45: 0 | X45: 0 | Y45: 0 | Z45: 0 | AA45: 0 | AB45: 0 | AC45: 0 | AD45: 0 | AE45: 0 | AF45: 0
J46: 0.125 | K46: 10 | L46: 0 | M46: 0 | O46: 0 | P46: 0 | Q46: 9 | U46: 0.000873884324 | W46: 0 | X46: 0 | Y46: 0 | Z46: 0 | AA46: 0 | AB46: 0 | AC46: 0 | AD46: 0 | AE46: 0 | AF46: 0
J47: 0.125 | K47: 10 | L47: 0 | M47: 0 | O47: 0 | P47: 0 | Q47: 9 | U47: 0.000873884324 | W47: 0 | X47: 0 | Y47: 0 | Z47: 0 | AA47: 0 | AB47: 0 | AC47: 0 | AD47: 0 | AE47: 0 | AF47: 0
J48: 0.125 | K48: 10 | L48: 0 | M48: 0 | O48: 0 | P48: 0 | Q48: 9 | U48: 0.000873884324 | W48: 0 | X48: 0 | Y48: 0 | Z48: 0 | AA48: 0 | AB48: 0 | AC48: 0 | AD48: 0 | AE48: 0 | AF48: 0
J49: 0.125 | K49: 10 | L49: 0 | M49: 0 | O49: 0 | P49: 0 | Q49: 9 | U49: 0.000873884324 | W49: 0 | X49: 0 | Y49: 0 | Z49: 0 | AA49: 0 | AB49: 0 | AC49: 0 | AD49: 0 | AE49: 0 | AF49: 0
J50: 0.125 | K50: 10 | L50: 0 | M50: 0 | O50: 0 | P50: 0 | Q50: 9 | U50: 0.000873884324 | W50: 0 | X50: 0 | Y50: 0 | Z50: 0 | AA50: 0 | AB50: 0 | AC50: 0 | AD50: 0 | AE50: 0 | AF50: 0
J51: 0.125 | K51: 10 | L51: 0 | M51: 0 | O51: 0 | P51: 0 | Q51: 9 | U51: 0.000873884324 | W51: 0 | X51: 0 | Y51: 0 | Z51: 0 | AA51: 0 | AB51: 0 | AC51: 0 | AD51: 0 | AE51: 0 | AF51: 0
J52: 0.125 | K52: 10 | L52: 0 | M52: 0 | O52: 0 | P52: 0 | Q52: 9 | U52: 0.000873884324 | W52: 0 | X52: 0 | Y52: 0 | Z52: 0 | AA52: 0 | AB52: 0 | AC52: 0 | AD52: 0 | AE52: 0 | AF52: 0
J53: 0.125 | K53: 10 | L53: 0 | M53: 0 | O53: 0 | P53: 0 | Q53: 9 | U53: 0.000873884324 | W53: 0 | X53: 0 | Y53: 0 | Z53: 0 | AA53: 0 | AB53: 0 | AC53: 0 | AD53: 0 | AE53: 0 | AF53: 0
J54: 0.125 | K54: 10 | L54: 0 | M54: 0 | O54: 0 | P54: 0 | Q54: 9 | U54: 0.000873884324 | W54: 0 | X54: 0 | Y54: 0 | Z54: 0 | AA54: 0 | AB54: 0 | AC54: 0 | AD54: 0 | AE54: 0 | AF54: 0
J55: 0.125 | K55: 10 | L55: 0 | M55: 0 | O55: 0 | P55: 0 | Q55: 9 | U55: 0.000873884324 | W55: 0 | X55: 0 | Y55: 0 | Z55: 0 | AA55: 0 | AB55: 0 | AC55: 0 | AD55: 0 | AE55: 0 | AF55: 0
J56: 0.125 | K56: 10 | L56: 0 | M56: 0 | O56: 0 | P56: 0 | Q56: 9 | U56: 0.000873884324 | W56: 0 | X56: 0 | Y56: 0 | Z56: 0 | AA56: 0 | AB56: 0 | AC56: 0 | AD56: 0 | AE56: 0 | AF56: 0
J57: 0.125 | K57: 10 | L57: 0 | M57: 0 | O57: 0 | P57: 0 | Q57: 9 | U57: 0.000873884324 | W57: 0 | X57: 0 | Y57: 0 | Z57: 0 | AA57: 0 | AB57: 0 | AC57: 0 | AD57: 0 | AE57: 0 | AF57: 0
J58: 0.125 | K58: 10 | L58: 0 | M58: 0 | O58: 0 | P58: 0 | Q58: 9 | U58: 0.000873884324 | W58: 0 | X58: 0 | Y58: 0 | Z58: 0 | AA58: 0 | AB58: 0 | AC58: 0 | AD58: 0 | AE58: 0 | AF58: 0
J59: 0.125 | K59: 10 | L59: 0 | M59: 0 | O59: 0 | P59: 0 | Q59: 9 | U59: 0.000873884324 | W59: 0 | X59: 0 | Y59: 0 | Z59: 0 | AA59: 0 | AB59: 0 | AC59: 0 | AD59: 0 | AE59: 0 | AF59: 0
J60: 0.125 | K60: 10 | L60: 0 | M60: 0 | O60: 0 | P60: 0 | Q60: 9 | U60: 0.000873884324 | W60: 0 | X60: 0 | Y60: 0 | Z60: 0 | AA60: 0 | AB60: 0 | AC60: 0 | AD60: 0 | AE60: 0 | AF60: 0
J61: 0.125 | K61: 10 | L61: 0 | M61: 0 | O61: 0 | P61: 0 | Q61: 9 | U61: 0.000873884324 | W61: 0 | X61: 0 | Y61: 0 | Z61: 0 | AA61: 0 | AB61: 0 | AC61: 0 | AD61: 0 | AE61: 0 | AF61: 0
J62: 0.125 | K62: 10 | L62: 0 | M62: 0 | O62: 0 | P62: 0 | Q62: 9 | U62: 0.000873884324 | W62: 0 | X62: 0 | Y62: 0 | Z62: 0 | AA62: 0 | AB62: 0 | AC62: 0 | AD62: 0 | AE62: 0 | AF62: 0
J63: 0.125 | K63: 10 | L63: 0 | M63: 0 | O63: 0 | P63: 0 | Q63: 9 | U63: 0.000873884324 | W63: 0 | X63: 0 | Y63: 0 | Z63: 0 | AA63: 0 | AB63: 0 | AC63: 0 | AD63: 0 | AE63: 0 | AF63: 0
J64: 0.125 | K64: 10 | L64: 0 | M64: 0 | O64: 0 | P64: 0 | Q64: 9 | U64: 0.000873884324 | W64: 0 | X64: 0 | Y64: 0 | Z64: 0 | AA64: 0 | AB64: 0 | AC64: 0 | AD64: 0 | AE64: 0 | AF64: 0
J65: 0.125 | K65: 10 | L65: 0 | M65: 0 | O65: 0 | P65: 0 | Q65: 9 | U65: 0.000873884324 | W65: 0 | X65: 0 | Y65: 0 | Z65: 0 | AA65: 0 | AB65: 0 | AC65: 0 | AD65: 0 | AE65: 0 | AF65: 0
J66: 0.125 | K66: 10 | L66: 0 | M66: 0 | O66: 0 | P66: 0 | Q66: 9 | U66: 0.000873884324 | W66: 0 | X66: 0 | Y66: 0 | Z66: 0 | AA66: 0 | AB66: 0 | AC66: 0 | AD66: 0 | AE66: 0 | AF66: 0
J67: 0.125 | K67: 10 | L67: 0 | M67: 0 | O67: 0 | P67: 0 | Q67: 9 | U67: 0.000873884324 | W67: 0 | X67: 0 | Y67: 0 | Z67: 0 | AA67: 0 | AB67: 0 | AC67: 0 | AD67: 0 | AE67: 0 | AF67: 0
J68: 0.125 | K68: 10 | L68: 0 | M68: 0 | O68: 0 | P68: 0 | Q68: 9 | U68: 0.000873884324 | W68: 0 | X68: 0 | Y68: 0 | Z68: 0 | AA68: 0 | AB68: 0 | AC68: 0 | AD68: 0 | AE68: 0 | AF68: 0
J69: 0.125 | K69: 10 | L69: 0 | M69: 0 | O69: 0 | P69: 0 | Q69: 9 | U69: 0.000873884324 | W69: 0 | X69: 0 | Y69: 0 | Z69: 0 | AA69: 0 | AB69: 0 | AC69: 0 | AD69: 0 | AE69: 0 | AF69: 0
J70: 0.125 | K70: 10 | L70: 0 | M70: 0 | O70: 0 | P70: 0 | Q70: 9 | U70: 0.000873884324 | W70: 0 | X70: 0 | Y70: 0 | Z70: 0 | AA70: 0 | AB70: 0 | AC70: 0 | AD70: 0 | AE70: 0 | AF70: 0
J71: 0.125 | K71: 10 | L71: 0 | M71: 0 | O71: 0 | P71: 0 | Q71: 9 | U71: 0.000873884324 | W71: 0 | X71: 0 | Y71: 0 | Z71: 0 | AA71: 0 | AB71: 0 | AC71: 0 | AD71: 0 | AE71: 0 | AF71: 0
J72: 0.125 | K72: 10 | L72: 0 | M72: 0 | O72: 0 | P72: 0 | Q72: 9 | U72: 0.000873884324 | W72: 0 | X72: 0 | Y72: 0 | Z72: 0 | AA72: 0 | AB72: 0 | AC72: 0 | AD72: 0 | AE72: 0 | AF72: 0
J73: 0.125 | K73: 10 | L73: 0 | M73: 0 | O73: 0 | P73: 0 | Q73: 9 | U73: 0.000873884324 | W73: 0 | X73: 0 | Y73: 0 | Z73: 0 | AA73: 0 | AB73: 0 | AC73: 0 | AD73: 0 | AE73: 0 | AF73: 0
J74: 0.125 | K74: 10 | L74: 0 | M74: 0 | O74: 0 | P74: 0 | Q74: 9 | U74: 0.000873884324 | W74: 0 | X74: 0 | Y74: 0 | Z74: 0 | AA74: 0 | AB74: 0 | AC74: 0 | AD74: 0 | AE74: 0 | AF74: 0
J75: 0.125 | K75: 10 | L75: 0 | M75: 0 | O75: 0 | P75: 0 | Q75: 9 | U75: 0.000873884324 | W75: 0 | X75: 0 | Y75: 0 | Z75: 0 | AA75: 0 | AB75: 0 | AC75: 0 | AD75: 0 | AE75: 0 | AF75: 0
J76: 0.125 | K76: 10 | L76: =E76*J76 -> 0 | M76: =IF(TRUE,SUM(AE76:AF76),(VCCINT/1000)*VCCINT_N*IF($R76>0,$R76,($L76/2*(($F76+$I76)*0.45*$U76+($F76*(OFFSET(FANOUT,8,2))+$G76*(OFFSET(FANOUT,8,4)+$U76)+$H76*(OFFSET(FANOUT,8,5)+$U76)+$I76*(OFFSET(FANOUT,8,3)))))*OFFSET(POWER_OPT,OFFSET(OPTIMIZATION,0,3),2))*$U$1) -> 0 | O76: 0 | P76: 0 | Q76: 9 | U76: 0.000873884324 | W76: =(VCCINT/1000)*VCCINT*(IF($T76>0,$T76,($L76/2*(($F76*OFFSET(FANOUT,8,13)))* OFFSET(POWER_OPT,OFFSET(OPTIMIZATION,0,3),2))*$U$1)) -> 0 | X76: =(VCCINT/1000)*VCCINT*(IF($T76>0,$T76,($L76/2*($G76*OFFSET(FANOUT,8,15))))* OFFSET(POWER_OPT,OFFSET(OPTIMIZATION,0,3),2))*$U$1 -> 0 | Y76: =(VCCINT/1000)*VCCINT*(IF($T76>0,$T76,($L76/2*($H76*OFFSET(FANOUT,8,16))))* OFFSET(POWER_OPT,OFFSET(OPTIMIZATION,0,3),2))*$U$1 -> 0 | Z76: =( VCCINT / 1000 ) * VCCINT * ( IF( $T76 > 0, $T76, ( $L76 / 2 * ( ( $I76 *OFFSET(FANOUT,8,14) ) ) ) *OFFSET( POWER_OPT, OFFSET( OPTIMIZATION, 0, 3), 2)) * $U$1 ) -> 0 | AA76: =(VCCINT/1000)*VCCINT*(IF($T76 > 0, $T76,($L76/2*(($F76)*(Q76*OFFSET(FANOUT,9,13)+OFFSET(FANOUT,10,13)))))* OFFSET(POWER_OPT,OFFSET(OPTIMIZATION,0,3),2))*$U$1 -> 0 | AB76: =(VCCINT/1000)*VCCINT*(IF($T76 > 0, $T76,($L76/2*($G76*(Q76*OFFSET(FANOUT,9,15)+OFFSET(FANOUT,10,15)))))* OFFSET(POWER_OPT,OFFSET(OPTIMIZATION,0,3),2))*$U$1 -> 0 | AC76: =(VCCINT/1000)*VCCINT*(IF($T76 > 0, $T76,($L76/2*($H76*(Q76*OFFSET(FANOUT,9,16)+OFFSET(FANOUT,10,16)))))* OFFSET(POWER_OPT,OFFSET(OPTIMIZATION,0,3),2))*$U$1 -> 0 | AD76: =( VCCINT / 1000 ) * VCCINT * ( IF( $T76 > 0, $T76, ( $L76 / 2 * ( ( $I76 ) * (Q76*OFFSET(FANOUT,9,14)+OFFSET(FANOUT,10,14)) ) ) * OFFSET( POWER_OPT, OFFSET( OPTIMIZATION, 0, 3), 2)) * $U$1 ) -> 0 | AE76: 0 | AF76: 0
J77: 0.125 | K77: 10 | L77: 0 | M77: 0 | O77: 0 | P77: 0 | Q77: =10^(K77/10)-1 -> 9 | U77: 0.000873884324 | W77: 0 | X77: 0 | Y77: 0 | Z77: 0 | AA77: 0 | AB77: 0 | AC77: 0 | AD77: 0 | AE77: =SUM(W77:Z77) -> 0 | AF77: =SUM(AA77:AD77) -> 0
J78: 0.125 | K78: 10 | L78: 0 | M78: 0 | O78: 0 | P78: 0 | Q78: 9 | U78: 0.000873884324 | W78: 0 | X78: 0 | Y78: 0 | Z78: 0 | AA78: 0 | AB78: 0 | AC78: 0 | AD78: 0 | AE78: 0 | AF78: 0
J79: 0.125 | K79: 10 | L79: 0 | M79: 0 | O79: 0 | P79: 0 | Q79: 9 | U79: 0.000873884324 | W79: 0 | X79: 0 | Y79: 0 | Z79: 0 | AA79: 0 | AB79: 0 | AC79: 0 | AD79: 0 | AE79: 0 | AF79: 0
J80: 0.125 | K80: 10 | L80: 0 | M80: 0 | O80: 0 | P80: 0 | Q80: 9 | U80: 0.000873884324 | W80: 0 | X80: 0 | Y80: 0 | Z80: 0 | AA80: 0 | AB80: 0 | AC80: 0 | AD80: 0 | AE80: 0 | AF80: 0
J81: 0.125 | K81: 10 | L81: 0 | M81: 0 | O81: 0 | P81: 0 | Q81: 9 | U81: 0.000873884324 | W81: 0 | X81: 0 | Y81: 0 | Z81: 0 | AA81: 0 | AB81: 0 | AC81: 0 | AD81: 0 | AE81: 0 | AF81: 0
J82: 0.125 | K82: 10 | L82: 0 | M82: 0 | O82: 0 | P82: 0 | Q82: 9 | U82: 0.000873884324 | W82: 0 | X82: 0 | Y82: 0 | Z82: 0 | AA82: 0 | AB82: 0 | AC82: 0 | AD82: 0 | AE82: 0 | AF82: 0
J83: 0.125 | K83: 10 | L83: 0 | M83: 0 | O83: 0 | P83: 0 | Q83: 9 | U83: 0.000873884324 | W83: 0 | X83: 0 | Y83: 0 | Z83: 0 | AA83: 0 | AB83: 0 | AC83: 0 | AD83: 0 | AE83: 0 | AF83: 0
J84: 0.125 | K84: 10 | L84: 0 | M84: 0 | O84: 0 | P84: 0 | Q84: 9 | U84: 0.000873884324 | W84: 0 | X84: 0 | Y84: 0 | Z84: 0 | AA84: 0 | AB84: 0 | AC84: 0 | AD84: 0 | AE84: 0 | AF84: 0
J85: 0.125 | K85: 10 | L85: 0 | M85: 0 | O85: 0 | P85: 0 | Q85: 9 | U85: 0.000873884324 | W85: 0 | X85: 0 | Y85: 0 | Z85: 0 | AA85: 0 | AB85: 0 | AC85: 0 | AD85: 0 | AE85: 0 | AF85: 0
J86: 0.125 | K86: 10 | L86: 0 | M86: 0 | O86: 0 | P86: 0 | Q86: 9 | U86: 0.000873884324 | W86: 0 | X86: 0 | Y86: 0 | Z86: 0 | AA86: 0 | AB86: 0 | AC86: 0 | AD86: 0 | AE86: 0 | AF86: 0
J87: 0.125 | K87: 10 | L87: 0 | M87: 0 | O87: 0 | P87: 0 | Q87: 9 | U87: 0.000873884324 | W87: 0 | X87: 0 | Y87: 0 | Z87: 0 | AA87: 0 | AB87: 0 | AC87: 0 | AD87: 0 | AE87: 0 | AF87: 0
J88: 0.125 | K88: 10 | L88: 0 | M88: 0 | O88: 0 | P88: 0 | Q88: 9 | U88: 0.000873884324 | W88: 0 | X88: 0 | Y88: 0 | Z88: 0 | AA88: 0 | AB88: 0 | AC88: 0 | AD88: 0 | AE88: 0 | AF88: 0
J89: 0.125 | K89: 10 | L89: 0 | M89: 0 | O89: 0 | P89: 0 | Q89: 9 | U89: 0.000873884324 | W89: 0 | X89: 0 | Y89: 0 | Z89: 0 | AA89: 0 | AB89: 0 | AC89: 0 | AD89: 0 | AE89: 0 | AF89: 0
J90: 0.125 | K90: 10 | L90: 0 | M90: 0 | O90: 0 | P90: 0 | Q90: 9 | U90: 0.000873884324 | W90: 0 | X90: 0 | Y90: 0 | Z90: 0 | AA90: 0 | AB90: 0 | AC90: 0 | AD90: 0 | AE90: 0 | AF90: 0
J91: 0.125 | K91: 10 | L91: 0 | M91: 0 | O91: 0 | P91: 0 | Q91: 9 | U91: 0.000873884324 | W91: 0 | X91: 0 | Y91: 0 | Z91: 0 | AA91: 0 | AB91: 0 | AC91: 0 | AD91: 0 | AE91: 0 | AF91: 0
J92: 0.125 | K92: 10 | L92: 0 | M92: 0 | O92: 0 | P92: 0 | Q92: 9 | U92: 0.000873884324 | W92: 0 | X92: 0 | Y92: 0 | Z92: 0 | AA92: 0 | AB92: 0 | AC92: 0 | AD92: 0 | AE92: 0 | AF92: 0
J93: 0.125 | K93: 10 | L93: 0 | M93: 0 | O93: 0 | P93: 0 | Q93: 9 | U93: 0.000873884324 | W93: 0 | X93: 0 | Y93: 0 | Z93: 0 | AA93: 0 | AB93: 0 | AC93: 0 | AD93: 0 | AE93: 0 | AF93: 0
J94: 0.125 | K94: 10 | L94: 0 | M94: 0 | O94: 0 | P94: 0 | Q94: 9 | U94: 0.000873884324 | W94: 0 | X94: 0 | Y94: 0 | Z94: 0 | AA94: 0 | AB94: 0 | AC94: 0 | AD94: 0 | AE94: 0 | AF94: 0
J95: 0.125 | K95: 10 | L95: 0 | M95: 0 | O95: 0 | P95: 0 | Q95: 9 | U95: 0.000873884324 | W95: 0 | X95: 0 | Y95: 0 | Z95: 0 | AA95: 0 | AB95: 0 | AC95: 0 | AD95: 0 | AE95: 0 | AF95: 0
J96: 0.125 | K96: 10 | L96: 0 | M96: 0 | O96: 0 | P96: 0 | Q96: 9 | U96: 0.000873884324 | W96: 0 | X96: 0 | Y96: 0 | Z96: 0 | AA96: 0 | AB96: 0 | AC96: 0 | AD96: 0 | AE96: 0 | AF96: 0
J97: 0.125 | K97: 10 | L97: 0 | M97: 0 | O97: 0 | P97: 0 | Q97: 9 | U97: 0.000873884324 | W97: 0 | X97: 0 | Y97: 0 | Z97: 0 | AA97: 0 | AB97: 0 | AC97: 0 | AD97: 0 | AE97: 0 | AF97: 0
J98: 0.125 | K98: 10 | L98: 0 | M98: 0 | O98: 0 | P98: 0 | Q98: 9 | U98: 0.000873884324 | W98: 0 | X98: 0 | Y98: 0 | Z98: 0 | AA98: 0 | AB98: 0 | AC98: 0 | AD98: 0 | AE98: 0 | AF98: 0
J99: 0.125 | K99: 10 | L99: 0 | M99: 0 | O99: 0 | P99: 0 | Q99: 9 | U99: 0.000873884324 | W99: 0 | X99: 0 | Y99: 0 | Z99: 0 | AA99: 0 | AB99: 0 | AC99: 0 | AD99: 0 | AE99: 0 | AF99: 0
J100: 0.125 | K100: 10 | L100: 0 | M100: 0 | O100: 0 | P100: 0 | Q100: 9 | U100: 0.000873884324 | W100: 0 | X100: 0 | Y100: 0 | Z100: 0 | AA100: 0 | AB100: 0 | AC100: 0 | AD100: 0 | AE100: 0 | AF100: 0
J101: 0.125 | K101: 10 | L101: 0 | M101: 0 | O101: 0 | P101: 0 | Q101: 9 | U101: 0.000873884324 | W101: 0 | X101: 0 | Y101: 0 | Z101: 0 | AA101: 0 | AB101: 0 | AC101: 0 | AD101: 0 | AE101: 0 | AF101: 0
J102: 0.125 | K102: 10 | L102: 0 | M102: 0 | O102: 0 | P102: 0 | Q102: 9 | U102: 0.000873884324 | W102: 0 | X102: 0 | Y102: 0 | Z102: 0 | AA102: 0 | AB102: 0 | AC102: 0 | AD102: 0 | AE102: 0 | AF102: 0
J103: 0.125 | K103: 10 | L103: 0 | M103: 0 | O103: 0 | P103: 0 | Q103: 9 | U103: 0.000873884324 | W103: 0 | X103: 0 | Y103: 0 | Z103: 0 | AA103: 0 | AB103: 0 | AC103: 0 | AD103: 0 | AE103: 0 | AF103: 0
J104: 0.125 | K104: 10 | L104: 0 | M104: 0 | O104: 0 | P104: 0 | Q104: 9 | U104: 0.000873884324 | W104: 0 | X104: 0 | Y104: 0 | Z104: 0 | AA104: 0 | AB104: 0 | AC104: 0 | AD104: 0 | AE104: 0 | AF104: 0
J105: 0.125 | K105: 10 | L105: 0 | M105: 0 | O105: 0 | P105: 0 | Q105: 9 | U105: 0.000873884324 | W105: 0 | X105: 0 | Y105: 0 | Z105: 0 | AA105: 0 | AB105: 0 | AC105: 0 | AD105: 0 | AE105: 0 | AF105: 0
J106: 0.125 | K106: 10 | L106: 0 | M106: 0 | O106: 0 | P106: 0 | Q106: 9 | U106: 0.000873884324 | W106: 0 | X106: 0 | Y106: 0 | Z106: 0 | AA106: 0 | AB106: 0 | AC106: 0 | AD106: 0 | AE106: 0 | AF106: 0
J107: 0.125 | K107: 10 | L107: 0 | M107: 0 | O107: 0 | P107: 0 | Q107: 9 | U107: 0.000873884324 | W107: 0 | X107: 0 | Y107: 0 | Z107: 0 | AA107: 0 | AB107: 0 | AC107: 0 | AD107: 0 | AE107: 0 | AF107: 0
J108: 0.125 | K108: 10 | L108: 0 | M108: 0 | O108: 0 | P108: 0 | Q108: 9 | U108: 0.000873884324 | W108: 0 | X108: 0 | Y108: 0 | Z108: 0 | AA108: 0 | AB108: 0 | AC108: 0 | AD108: 0 | AE108: 0 | AF108: 0
J109: 0.125 | K109: 10 | L109: 0 | M109: 0 | O109: 0 | P109: 0 | Q109: 9 | U109: 0.000873884324 | W109: 0 | X109: 0 | Y109: 0 | Z109: 0 | AA109: 0 | AB109: 0 | AC109: 0 | AD109: 0 | AE109: 0 | AF109: 0
J110: 0.125 | K110: 10 | L110: 0 | M110: 0 | O110: 0 | P110: 0 | Q110: 9 | U110: 0.000873884324 | W110: 0 | X110: 0 | Y110: 0 | Z110: 0 | AA110: 0 | AB110: 0 | AC110: 0 | AD110: 0 | AE110: 0 | AF110: 0
J111: 0.125 | K111: 10 | L111: 0 | M111: 0 | O111: 0 | P111: 0 | Q111: 9 | U111: 0.000873884324 | W111: 0 | X111: 0 | Y111: 0 | Z111: 0 | AA111: 0 | AB111: 0 | AC111: 0 | AD111: 0 | AE111: 0 | AF111: 0
J112: 0.125 | K112: 10 | L112: 0 | M112: 0 | O112: 0 | P112: 0 | Q112: 9 | U112: 0.000873884324 | W112: 0 | X112: 0 | Y112: 0 | Z112: 0 | AA112: 0 | AB112: 0 | AC112: 0 | AD112: 0 | AE112: 0 | AF112: 0
J113: 0.125 | K113: 10 | L113: 0 | M113: 0 | O113: 0 | P113: 0 | Q113: 9 | U113: 0.000873884324 | W113: 0 | X113: 0 | Y113: 0 | Z113: 0 | AA113: 0 | AB113: 0 | AC113: 0 | AD113: 0 | AE113: 0 | AF113: 0
J114: 0.125 | K114: 10 | L114: 0 | M114: 0 | O114: 0 | P114: 0 | Q114: 9 | U114: 0.000873884324 | W114: 0 | X114: 0 | Y114: 0 | Z114: 0 | AA114: 0 | AB114: 0 | AC114: 0 | AD114: 0 | AE114: 0 | AF114: 0
J115: 0.125 | K115: 10 | L115: 0 | M115: 0 | O115: 0 | P115: 0 | Q115: 9 | U115: 0.000873884324 | W115: 0 | X115: 0 | Y115: 0 | Z115: 0 | AA115: 0 | AB115: 0 | AC115: 0 | AD115: 0 | AE115: 0 | AF115: 0
J116: 0.125 | K116: 10 | L116: 0 | M116: 0 | O116: 0 | P116: 0 | Q116: 9 | U116: 0.000873884324 | W116: 0 | X116: 0 | Y116: 0 | Z116: 0 | AA116: 0 | AB116: 0 | AC116: 0 | AD116: 0 | AE116: 0 | AF116: 0
J117: 0.125 | K117: 10 | L117: 0 | M117: 0 | O117: 0 | P117: 0 | Q117: 9 | U117: 0.000873884324 | W117: 0 | X117: 0 | Y117: 0 | Z117: 0 | AA117: 0 | AB117: 0 | AC117: 0 | AD117: 0 | AE117: 0 | AF117: 0
J118: 0.125 | K118: 10 | L118: 0 | M118: 0 | O118: 0 | P118: 0 | Q118: 9 | U118: 0.000873884324 | W118: 0 | X118: 0 | Y118: 0 | Z118: 0 | AA118: 0 | AB118: 0 | AC118: 0 | AD118: 0 | AE118: 0 | AF118: 0
J119: 0.125 | K119: 10 | L119: 0 | M119: 0 | O119: 0 | P119: 0 | Q119: 9 | U119: 0.000873884324 | W119: 0 | X119: 0 | Y119: 0 | Z119: 0 | AA119: 0 | AB119: 0 | AC119: 0 | AD119: 0 | AE119: 0 | AF119: 0
J120: 0.125 | K120: 10 | L120: 0 | M120: 0 | O120: 0 | P120: 0 | Q120: 9 | U120: 0.000873884324 | W120: 0 | X120: 0 | Y120: 0 | Z120: 0 | AA120: 0 | AB120: 0 | AC120: 0 | AD120: 0 | AE120: 0 | AF120: 0
J121: 0.125 | K121: 10 | L121: 0 | M121: 0 | O121: 0 | P121: 0 | Q121: 9 | U121: 0.000873884324 | W121: 0 | X121: 0 | Y121: 0 | Z121: 0 | AA121: 0 | AB121: 0 | AC121: 0 | AD121: 0 | AE121: 0 | AF121: 0
J122: 0.125 | K122: 10 | L122: 0 | M122: 0 | O122: 0 | P122: 0 | Q122: 9 | U122: 0.000873884324 | W122: 0 | X122: 0 | Y122: 0 | Z122: 0 | AA122: 0 | AB122: 0 | AC122: 0 | AD122: 0 | AE122: 0 | AF122: 0
J123: 0.125 | K123: 10 | L123: 0 | M123: 0 | O123: 0 | P123: 0 | Q123: 9 | U123: 0.000873884324 | W123: 0 | X123: 0 | Y123: 0 | Z123: 0 | AA123: 0 | AB123: 0 | AC123: 0 | AD123: 0 | AE123: 0 | AF123: 0
J124: 0.125 | K124: 10 | L124: 0 | M124: 0 | O124: 0 | P124: 0 | Q124: 9 | U124: 0.000873884324 | W124: 0 | X124: 0 | Y124: 0 | Z124: 0 | AA124: 0 | AB124: 0 | AC124: 0 | AD124: 0 | AE124: 0 | AF124: 0
J125: 0.125 | K125: 10 | L125: 0 | M125: 0 | O125: 0 | P125: 0 | Q125: 9 | U125: 0.000873884324 | W125: 0 | X125: 0 | Y125: 0 | Z125: 0 | AA125: 0 | AB125: 0 | AC125: 0 | AD125: 0 | AE125: 0 | AF125: 0
J126: 0.125 | K126: 10 | L126: 0 | M126: 0 | O126: 0 | P126: 0 | Q126: 9 | U126: 0.000873884324 | W126: 0 | X126: 0 | Y126: 0 | Z126: 0 | AA126: 0 | AB126: 0 | AC126: 0 | AD126: 0 | AE126: 0 | AF126: 0
J127: 0.125 | K127: 10 | L127: 0 | M127: 0 | O127: 0 | P127: 0 | Q127: 9 | U127: 0.000873884324 | W127: 0 | X127: 0 | Y127: 0 | Z127: 0 | AA127: 0 | AB127: 0 | AC127: 0 | AD127: 0 | AE127: 0 | AF127: 0
J128: 0.125 | K128: 10 | L128: 0 | M128: 0 | O128: 0 | P128: 0 | Q128: 9 | U128: 0.000873884324 | W128: 0 | X128: 0 | Y128: 0 | Z128: 0 | AA128: 0 | AB128: 0 | AC128: 0 | AD128: 0 | AE128: 0 | AF128: 0
J129: 0.125 | K129: 10 | L129: 0 | M129: 0 | O129: 0 | P129: 0 | Q129: 9 | U129: 0.000873884324 | W129: 0 | X129: 0 | Y129: 0 | Z129: 0 | AA129: 0 | AB129: 0 | AC129: 0 | AD129: 0 | AE129: 0 | AF129: 0
J130: 0.125 | K130: 10 | L130: 0 | M130: 0 | O130: 0 | P130: 0 | Q130: 9 | U130: 0.000873884324 | W130: 0 | X130: 0 | Y130: 0 | Z130: 0 | AA130: 0 | AB130: 0 | AC130: 0 | AD130: 0 | AE130: 0 | AF130: 0
J131: 0.125 | K131: 10 | L131: 0 | M131: 0 | O131: 0 | P131: 0 | Q131: 9 | U131: 0.000873884324 | W131: 0 | X131: 0 | Y131: 0 | Z131: 0 | AA131: 0 | AB131: 0 | AC131: 0 | AD131: 0 | AE131: 0 | AF131: 0
J132: 0.125 | K132: 10 | L132: 0 | M132: 0 | O132: 0 | P132: 0 | Q132: 9 | U132: 0.000873884324 | W132: 0 | X132: 0 | Y132: 0 | Z132: 0 | AA132: 0 | AB132: 0 | AC132: 0 | AD132: 0 | AE132: 0 | AF132: 0
J133: 0.125 | K133: 10 | L133: 0 | M133: 0 | O133: 0 | P133: 0 | Q133: 9 | U133: 0.000873884324 | W133: 0 | X133: 0 | Y133: 0 | Z133: 0 | AA133: 0 | AB133: 0 | AC133: 0 | AD133: 0 | AE133: 0 | AF133: 0
J134: 0.125 | K134: 10 | L134: 0 | M134: 0 | O134: 0 | P134: 0 | Q134: 9 | U134: 0.000873884324 | W134: 0 | X134: 0 | Y134: 0 | Z134: 0 | AA134: 0 | AB134: 0 | AC134: 0 | AD134: 0 | AE134: 0 | AF134: 0
J135: 0.125 | K135: 10 | L135: 0 | M135: 0 | O135: 0 | P135: 0 | Q135: 9 | U135: 0.000873884324 | W135: 0 | X135: 0 | Y135: 0 | Z135: 0 | AA135: 0 | AB135: 0 | AC135: 0 | AD135: 0 | AE135: 0 | AF135: 0
J136: 0.125 | K136: 10 | L136: 0 | M136: 0 | O136: 0 | P136: 0 | Q136: 9 | U136: 0.000873884324 | W136: 0 | X136: 0 | Y136: 0 | Z136: 0 | AA136: 0 | AB136: 0 | AC136: 0 | AD136: 0 | AE136: 0 | AF136: 0
J137: 0.125 | K137: 10 | L137: 0 | M137: 0 | O137: 0 | P137: 0 | Q137: 9 | U137: 0.000873884324 | W137: 0 | X137: 0 | Y137: 0 | Z137: 0 | AA137: 0 | AB137: 0 | AC137: 0 | AD137: 0 | AE137: 0 | AF137: 0
J138: 0.125 | K138: 10 | L138: 0 | M138: 0 | O138: 0 | P138: 0 | Q138: 9 | U138: 0.000873884324 | W138: 0 | X138: 0 | Y138: 0 | Z138: 0 | AA138: 0 | AB138: 0 | AC138: 0 | AD138: 0 | AE138: 0 | AF138: 0
J139: 0.125 | K139: 10 | L139: 0 | M139: 0 | O139: 0 | P139: 0 | Q139: 9 | U139: 0.000873884324 | W139: 0 | X139: 0 | Y139: 0 | Z139: 0 | AA139: 0 | AB139: 0 | AC139: 0 | AD139: 0 | AE139: 0 | AF139: 0
J140: 0.125 | K140: 10 | L140: =E140*J140 -> 0 | M140: =IF(TRUE,SUM(AE140:AF140),(VCCINT/1000)*VCCINT_N*IF($R140>0,$R140,($L140/2*(($F140+$I140)*0.45*$U140+($F140*(OFFSET(FANOUT,8,2))+$G140*(OFFSET(FANOUT,8,4)+$U140)+$H140*(OFFSET(FANOUT,8,5)+$U140)+$I140*(OFFSET(FANOUT,8,3)))))*OFFSET(POWER_OPT,OFFSET(OPTIMIZATION,0,3),2))*$U$1) -> 0 | O140: 0 | P140: 0 | Q140: 9 | U140: 0.000873884324 | W140: =(VCCINT/1000)*VCCINT*(IF($T140>0,$T140,($L140/2*(($F140*OFFSET(FANOUT,8,13)))* OFFSET(POWER_OPT,OFFSET(OPTIMIZATION,0,3),2))*$U$1)) -> 0 | X140: =(VCCINT/1000)*VCCINT*(IF($T140>0,$T140,($L140/2*($G140*OFFSET(FANOUT,8,15))))* OFFSET(POWER_OPT,OFFSET(OPTIMIZATION,0,3),2))*$U$1 -> 0 | Y140: =(VCCINT/1000)*VCCINT*(IF($T140>0,$T140,($L140/2*($H140*OFFSET(FANOUT,8,16))))* OFFSET(POWER_OPT,OFFSET(OPTIMIZATION,0,3),2))*$U$1 -> 0 | Z140: =( VCCINT / 1000 ) * VCCINT * ( IF( $T140 > 0, $T140, ( $L140 / 2 * ( ( $I140 *OFFSET(FANOUT,8,14) ) ) ) *OFFSET( POWER_OPT, OFFSET( OPTIMIZATION, 0, 3), 2)) * $U$1 ) -> 0 | AA140: =(VCCINT/1000)*VCCINT*(IF($T140 > 0, $T140,($L140/2*(($F140)*(Q140*OFFSET(FANOUT,9,13)+OFFSET(FANOUT,10,13)))))* OFFSET(POWER_OPT,OFFSET(OPTIMIZATION,0,3),2))*$U$1 -> 0 | AB140: =(VCCINT/1000)*VCCINT*(IF($T140 > 0, $T140,($L140/2*($G140*(Q140*OFFSET(FANOUT,9,15)+OFFSET(FANOUT,10,15)))))* OFFSET(POWER_OPT,OFFSET(OPTIMIZATION,0,3),2))*$U$1 -> 0 | AC140: =(VCCINT/1000)*VCCINT*(IF($T140 > 0, $T140,($L140/2*($H140*(Q140*OFFSET(FANOUT,9,16)+OFFSET(FANOUT,10,16)))))* OFFSET(POWER_OPT,OFFSET(OPTIMIZATION,0,3),2))*$U$1 -> 0 | AD140: =( VCCINT / 1000 ) * VCCINT * ( IF( $T140 > 0, $T140, ( $L140 / 2 * ( ( $I140 ) * (Q140*OFFSET(FANOUT,9,14)+OFFSET(FANOUT,10,14)) ) ) * OFFSET( POWER_OPT, OFFSET( OPTIMIZATION, 0, 3), 2)) * $U$1 ) -> 0 | AE140: 0 | AF140: 0
J141: 0.125 | K141: 10 | L141: 0 | M141: 0 | O141: 0 | P141: 0 | Q141: =10^(K141/10)-1 -> 9 | U141: 0.000873884324 | W141: 0 | X141: 0 | Y141: 0 | Z141: 0 | AA141: 0 | AB141: 0 | AC141: 0 | AD141: 0 | AE141: =SUM(W141:Z141) -> 0 | AF141: =SUM(AA141:AD141) -> 0
J142: 0.125 | K142: 10 | L142: 0 | M142: 0 | O142: 0 | P142: 0 | Q142: 9 | U142: 0.000873884324 | W142: 0 | X142: 0 | Y142: 0 | Z142: 0 | AA142: 0 | AB142: 0 | AC142: 0 | AD142: 0 | AE142: 0 | AF142: 0
J143: 0.125 | K143: 10 | L143: 0 | M143: 0 | O143: 0 | P143: 0 | Q143: 9 | U143: 0.000873884324 | W143: 0 | X143: 0 | Y143: 0 | Z143: 0 | AA143: 0 | AB143: 0 | AC143: 0 | AD143: 0 | AE143: 0 | AF143: 0
J144: 0.125 | K144: 10 | L144: 0 | M144: 0 | O144: 0 | P144: 0 | Q144: 9 | U144: 0.000873884324 | W144: 0 | X144: 0 | Y144: 0 | Z144: 0 | AA144: 0 | AB144: 0 | AC144: 0 | AD144: 0 | AE144: 0 | AF144: 0
J145: 0.125 | K145: 10 | L145: 0 | M145: 0 | O145: 0 | P145: 0 | Q145: 9 | U145: 0.000873884324 | W145: 0 | X145: 0 | Y145: 0 | Z145: 0 | AA145: 0 | AB145: 0 | AC145: 0 | AD145: 0 | AE145: 0 | AF145: 0
J146: 0.125 | K146: 10 | L146: 0 | M146: 0 | O146: 0 | P146: 0 | Q146: 9 | U146: 0.000873884324 | W146: 0 | X146: 0 | Y146: 0 | Z146: 0 | AA146: 0 | AB146: 0 | AC146: 0 | AD146: 0 | AE146: 0 | AF146: 0
J147: 0.125 | K147: 10 | L147: 0 | M147: 0 | O147: 0 | P147: 0 | Q147: 9 | U147: 0.000873884324 | W147: 0 | X147: 0 | Y147: 0 | Z147: 0 | AA147: 0 | AB147: 0 | AC147: 0 | AD147: 0 | AE147: 0 | AF147: 0
J148: 0.125 | K148: 10 | L148: 0 | M148: 0 | O148: 0 | P148: 0 | Q148: 9 | U148: 0.000873884324 | W148: 0 | X148: 0 | Y148: 0 | Z148: 0 | AA148: 0 | AB148: 0 | AC148: 0 | AD148: 0 | AE148: 0 | AF148: 0
J149: 0.125 | K149: 10 | L149: 0 | M149: 0 | O149: 0 | P149: 0 | Q149: 9 | U149: 0.000873884324 | W149: 0 | X149: 0 | Y149: 0 | Z149: 0 | AA149: 0 | AB149: 0 | AC149: 0 | AD149: 0 | AE149: 0 | AF149: 0
J150: 0.125 | K150: 10 | L150: 0 | M150: 0 | O150: 0 | P150: 0 | Q150: 9 | U150: 0.000873884324 | W150: 0 | X150: 0 | Y150: 0 | Z150: 0 | AA150: 0 | AB150: 0 | AC150: 0 | AD150: 0 | AE150: 0 | AF150: 0
J151: 0.125 | K151: 10 | L151: 0 | M151: 0 | O151: 0 | P151: 0 | Q151: 9 | U151: 0.000873884324 | W151: 0 | X151: 0 | Y151: 0 | Z151: 0 | AA151: 0 | AB151: 0 | AC151: 0 | AD151: 0 | AE151: 0 | AF151: 0
J152: 0.125 | K152: 10 | L152: 0 | M152: 0 | O152: 0 | P152: 0 | Q152: 9 | U152: 0.000873884324 | W152: 0 | X152: 0 | Y152: 0 | Z152: 0 | AA152: 0 | AB152: 0 | AC152: 0 | AD152: 0 | AE152: 0 | AF152: 0
J153: 0.125 | K153: 10 | L153: 0 | M153: 0 | O153: 0 | P153: 0 | Q153: 9 | U153: 0.000873884324 | W153: 0 | X153: 0 | Y153: 0 | Z153: 0 | AA153: 0 | AB153: 0 | AC153: 0 | AD153: 0 | AE153: 0 | AF153: 0
J154: 0.125 | K154: 10 | L154: 0 | M154: 0 | O154: 0 | P154: 0 | Q154: 9 | U154: 0.000873884324 | W154: 0 | X154: 0 | Y154: 0 | Z154: 0 | AA154: 0 | AB154: 0 | AC154: 0 | AD154: 0 | AE154: 0 | AF154: 0
J155: 0.125 | K155: 10 | L155: 0 | M155: 0 | O155: 0 | P155: 0 | Q155: 9 | U155: 0.000873884324 | W155: 0 | X155: 0 | Y155: 0 | Z155: 0 | AA155: 0 | AB155: 0 | AC155: 0 | AD155: 0 | AE155: 0 | AF155: 0
J156: 0.125 | K156: 10 | L156: 0 | M156: 0 | O156: 0 | P156: 0 | Q156: 9 | U156: 0.000873884324 | W156: 0 | X156: 0 | Y156: 0 | Z156: 0 | AA156: 0 | AB156: 0 | AC156: 0 | AD156: 0 | AE156: 0 | AF156: 0
J157: 0.125 | K157: 10 | L157: 0 | M157: 0 | O157: 0 | P157: 0 | Q157: 9 | U157: 0.000873884324 | W157: 0 | X157: 0 | Y157: 0 | Z157: 0 | AA157: 0 | AB157: 0 | AC157: 0 | AD157: 0 | AE157: 0 | AF157: 0
J158: 0.125 | K158: 10 | L158: 0 | M158: 0 | O158: 0 | P158: 0 | Q158: 9 | U158: 0.000873884324 | W158: 0 | X158: 0 | Y158: 0 | Z158: 0 | AA158: 0 | AB158: 0 | AC158: 0 | AD158: 0 | AE158: 0 | AF158: 0
J159: 0.125 | K159: 10 | L159: 0 | M159: 0 | O159: 0 | P159: 0 | Q159: 9 | U159: 0.000873884324 | W159: 0 | X159: 0 | Y159: 0 | Z159: 0 | AA159: 0 | AB159: 0 | AC159: 0 | AD159: 0 | AE159: 0 | AF159: 0
J160: 0.125 | K160: 10 | L160: 0 | M160: 0 | O160: 0 | P160: 0 | Q160: 9 | U160: 0.000873884324 | W160: 0 | X160: 0 | Y160: 0 | Z160: 0 | AA160: 0 | AB160: 0 | AC160: 0 | AD160: 0 | AE160: 0 | AF160: 0
J161: 0.125 | K161: 10 | L161: 0 | M161: 0 | O161: 0 | P161: 0 | Q161: 9 | U161: 0.000873884324 | W161: 0 | X161: 0 | Y161: 0 | Z161: 0 | AA161: 0 | AB161: 0 | AC161: 0 | AD161: 0 | AE161: 0 | AF161: 0
J162: 0.125 | K162: 10 | L162: 0 | M162: 0 | O162: 0 | P162: 0 | Q162: 9 | U162: 0.000873884324 | W162: 0 | X162: 0 | Y162: 0 | Z162: 0 | AA162: 0 | AB162: 0 | AC162: 0 | AD162: 0 | AE162: 0 | AF162: 0
J163: 0.125 | K163: 10 | L163: 0 | M163: 0 | O163: 0 | P163: 0 | Q163: 9 | U163: 0.000873884324 | W163: 0 | X163: 0 | Y163: 0 | Z163: 0 | AA163: 0 | AB163: 0 | AC163: 0 | AD163: 0 | AE163: 0 | AF163: 0
J164: 0.125 | K164: 10 | L164: 0 | M164: 0 | O164: 0 | P164: 0 | Q164: 9 | U164: 0.000873884324 | W164: 0 | X164: 0 | Y164: 0 | Z164: 0 | AA164: 0 | AB164: 0 | AC164: 0 | AD164: 0 | AE164: 0 | AF164: 0
J165: 0.125 | K165: 10 | L165: 0 | M165: 0 | O165: 0 | P165: 0 | Q165: 9 | U165: 0.000873884324 | W165: 0 | X165: 0 | Y165: 0 | Z165: 0 | AA165: 0 | AB165: 0 | AC165: 0 | AD165: 0 | AE165: 0 | AF165: 0
J166: 0.125 | K166: 10 | L166: 0 | M166: 0 | O166: 0 | P166: 0 | Q166: 9 | U166: 0.000873884324 | W166: 0 | X166: 0 | Y166: 0 | Z166: 0 | AA166: 0 | AB166: 0 | AC166: 0 | AD166: 0 | AE166: 0 | AF166: 0
J167: 0.125 | K167: 10 | L167: 0 | M167: 0 | O167: 0 | P167: 0 | Q167: 9 | U167: 0.000873884324 | W167: 0 | X167: 0 | Y167: 0 | Z167: 0 | AA167: 0 | AB167: 0 | AC167: 0 | AD167: 0 | AE167: 0 | AF167: 0
J168: 0.125 | K168: 10 | L168: 0 | M168: 0 | O168: 0 | P168: 0 | Q168: 9 | U168: 0.000873884324 | W168: 0 | X168: 0 | Y168: 0 | Z168: 0 | AA168: 0 | AB168: 0 | AC168: 0 | AD168: 0 | AE168: 0 | AF168: 0
J169: 0.125 | K169: 10 | L169: 0 | M169: 0 | O169: 0 | P169: 0 | Q169: 9 | U169: 0.000873884324 | W169: 0 | X169: 0 | Y169: 0 | Z169: 0 | AA169: 0 | AB169: 0 | AC169: 0 | AD169: 0 | AE169: 0 | AF169: 0
J170: 0.125 | K170: 10 | L170: 0 | M170: 0 | O170: 0 | P170: 0 | Q170: 9 | U170: 0.000873884324 | W170: 0 | X170: 0 | Y170: 0 | Z170: 0 | AA170: 0 | AB170: 0 | AC170: 0 | AD170: 0 | AE170: 0 | AF170: 0
J171: 0.125 | K171: 10 | L171: 0 | M171: 0 | O171: 0 | P171: 0 | Q171: 9 | U171: 0.000873884324 | W171: 0 | X171: 0 | Y171: 0 | Z171: 0 | AA171: 0 | AB171: 0 | AC171: 0 | AD171: 0 | AE171: 0 | AF171: 0
J172: 0.125 | K172: 10 | L172: 0 | M172: 0 | O172: 0 | P172: 0 | Q172: 9 | U172: 0.000873884324 | W172: 0 | X172: 0 | Y172: 0 | Z172: 0 | AA172: 0 | AB172: 0 | AC172: 0 | AD172: 0 | AE172: 0 | AF172: 0
J173: 0.125 | K173: 10 | L173: 0 | M173: 0 | O173: 0 | P173: 0 | Q173: 9 | U173: 0.000873884324 | W173: 0 | X173: 0 | Y173: 0 | Z173: 0 | AA173: 0 | AB173: 0 | AC173: 0 | AD173: 0 | AE173: 0 | AF173: 0
J174: 0.125 | K174: 10 | L174: 0 | M174: 0 | O174: 0 | P174: 0 | Q174: 9 | U174: 0.000873884324 | W174: 0 | X174: 0 | Y174: 0 | Z174: 0 | AA174: 0 | AB174: 0 | AC174: 0 | AD174: 0 | AE174: 0 | AF174: 0
J175: 0.125 | K175: 10 | L175: 0 | M175: 0 | O175: 0 | P175: 0 | Q175: 9 | U175: 0.000873884324 | W175: 0 | X175: 0 | Y175: 0 | Z175: 0 | AA175: 0 | AB175: 0 | AC175: 0 | AD175: 0 | AE175: 0 | AF175: 0
J176: 0.125 | K176: 10 | L176: 0 | M176: 0 | O176: 0 | P176: 0 | Q176: 9 | U176: 0.000873884324 | W176: 0 | X176: 0 | Y176: 0 | Z176: 0 | AA176: 0 | AB176: 0 | AC176: 0 | AD176: 0 | AE176: 0 | AF176: 0
J177: 0.125 | K177: 10 | L177: 0 | M177: 0 | O177: 0 | P177: 0 | Q177: 9 | U177: 0.000873884324 | W177: 0 | X177: 0 | Y177: 0 | Z177: 0 | AA177: 0 | AB177: 0 | AC177: 0 | AD177: 0 | AE177: 0 | AF177: 0
J178: 0.125 | K178: 10 | L178: 0 | M178: 0 | O178: 0 | P178: 0 | Q178: 9 | U178: 0.000873884324 | W178: 0 | X178: 0 | Y178: 0 | Z178: 0 | AA178: 0 | AB178: 0 | AC178: 0 | AD178: 0 | AE178: 0 | AF178: 0
J179: 0.125 | K179: 10 | L179: 0 | M179: 0 | O179: 0 | P179: 0 | Q179: 9 | U179: 0.000873884324 | W179: 0 | X179: 0 | Y179: 0 | Z179: 0 | AA179: 0 | AB179: 0 | AC179: 0 | AD179: 0 | AE179: 0 | AF179: 0
J180: 0.125 | K180: 10 | L180: 0 | M180: 0 | O180: 0 | P180: 0 | Q180: 9 | U180: 0.000873884324 | W180: 0 | X180: 0 | Y180: 0 | Z180: 0 | AA180: 0 | AB180: 0 | AC180: 0 | AD180: 0 | AE180: 0 | AF180: 0
J181: 0.125 | K181: 10 | L181: 0 | M181: 0 | O181: 0 | P181: 0 | Q181: 9 | U181: 0.000873884324 | W181: 0 | X181: 0 | Y181: 0 | Z181: 0 | AA181: 0 | AB181: 0 | AC181: 0 | AD181: 0 | AE181: 0 | AF181: 0
J182: 0.125 | K182: 10 | L182: 0 | M182: 0 | O182: 0 | P182: 0 | Q182: 9 | U182: 0.000873884324 | W182: 0 | X182: 0 | Y182: 0 | Z182: 0 | AA182: 0 | AB182: 0 | AC182: 0 | AD182: 0 | AE182: 0 | AF182: 0
J183: 0.125 | K183: 10 | L183: 0 | M183: 0 | O183: 0 | P183: 0 | Q183: 9 | U183: 0.000873884324 | W183: 0 | X183: 0 | Y183: 0 | Z183: 0 | AA183: 0 | AB183: 0 | AC183: 0 | AD183: 0 | AE183: 0 | AF183: 0
J184: 0.125 | K184: 10 | L184: 0 | M184: 0 | O184: 0 | P184: 0 | Q184: 9 | U184: 0.000873884324 | W184: 0 | X184: 0 | Y184: 0 | Z184: 0 | AA184: 0 | AB184: 0 | AC184: 0 | AD184: 0 | AE184: 0 | AF184: 0
J185: 0.125 | K185: 10 | L185: 0 | M185: 0 | O185: 0 | P185: 0 | Q185: 9 | U185: 0.000873884324 | W185: 0 | X185: 0 | Y185: 0 | Z185: 0 | AA185: 0 | AB185: 0 | AC185: 0 | AD185: 0 | AE185: 0 | AF185: 0
J186: 0.125 | K186: 10 | L186: 0 | M186: 0 | O186: 0 | P186: 0 | Q186: 9 | U186: 0.000873884324 | W186: 0 | X186: 0 | Y186: 0 | Z186: 0 | AA186: 0 | AB186: 0 | AC186: 0 | AD186: 0 | AE186: 0 | AF186: 0
J187: 0.125 | K187: 10 | L187: 0 | M187: 0 | O187: 0 | P187: 0 | Q187: 9 | U187: 0.000873884324 | W187: 0 | X187: 0 | Y187: 0 | Z187: 0 | AA187: 0 | AB187: 0 | AC187: 0 | AD187: 0 | AE187: 0 | AF187: 0
J188: 0.125 | K188: 10 | L188: 0 | M188: 0 | O188: 0 | P188: 0 | Q188: 9 | U188: 0.000873884324 | W188: 0 | X188: 0 | Y188: 0 | Z188: 0 | AA188: 0 | AB188: 0 | AC188: 0 | AD188: 0 | AE188: 0 | AF188: 0
J189: 0.125 | K189: 10 | L189: 0 | M189: 0 | O189: 0 | P189: 0 | Q189: 9 | U189: 0.000873884324 | W189: 0 | X189: 0 | Y189: 0 | Z189: 0 | AA189: 0 | AB189: 0 | AC189: 0 | AD189: 0 | AE189: 0 | AF189: 0
J190: 0.125 | K190: 10 | L190: 0 | M190: 0 | O190: 0 | P190: 0 | Q190: 9 | U190: 0.000873884324 | W190: 0 | X190: 0 | Y190: 0 | Z190: 0 | AA190: 0 | AB190: 0 | AC190: 0 | AD190: 0 | AE190: 0 | AF190: 0
J191: 0.125 | K191: 10 | L191: 0 | M191: 0 | O191: 0 | P191: 0 | Q191: 9 | U191: 0.000873884324 | W191: 0 | X191: 0 | Y191: 0 | Z191: 0 | AA191: 0 | AB191: 0 | AC191: 0 | AD191: 0 | AE191: 0 | AF191: 0
J192: 0.125 | K192: 10 | L192: 0 | M192: 0 | O192: 0 | P192: 0 | Q192: 9 | U192: 0.000873884324 | W192: 0 | X192: 0 | Y192: 0 | Z192: 0 | AA192: 0 | AB192: 0 | AC192: 0 | AD192: 0 | AE192: 0 | AF192: 0
J193: 0.125 | K193: 10 | L193: 0 | M193: 0 | O193: 0 | P193: 0 | Q193: 9 | U193: 0.000873884324 | W193: 0 | X193: 0 | Y193: 0 | Z193: 0 | AA193: 0 | AB193: 0 | AC193: 0 | AD193: 0 | AE193: 0 | AF193: 0
J194: 0.125 | K194: 10 | L194: 0 | M194: 0 | O194: 0 | P194: 0 | Q194: 9 | U194: 0.000873884324 | W194: 0 | X194: 0 | Y194: 0 | Z194: 0 | AA194: 0 | AB194: 0 | AC194: 0 | AD194: 0 | AE194: 0 | AF194: 0
J195: 0.125 | K195: 10 | L195: 0 | M195: 0 | O195: 0 | P195: 0 | Q195: 9 | U195: 0.000873884324 | W195: 0 | X195: 0 | Y195: 0 | Z195: 0 | AA195: 0 | AB195: 0 | AC195: 0 | AD195: 0 | AE195: 0 | AF195: 0
J196: 0.125 | K196: 10 | L196: 0 | M196: 0 | O196: 0 | P196: 0 | Q196: 9 | U196: 0.000873884324 | W196: 0 | X196: 0 | Y196: 0 | Z196: 0 | AA196: 0 | AB196: 0 | AC196: 0 | AD196: 0 | AE196: 0 | AF196: 0
J197: 0.125 | K197: 10 | L197: 0 | M197: 0 | O197: 0 | P197: 0 | Q197: 9 | U197: 0.000873884324 | W197: 0 | X197: 0 | Y197: 0 | Z197: 0 | AA197: 0 | AB197: 0 | AC197: 0 | AD197: 0 | AE197: 0 | AF197: 0
J198: 0.125 | K198: 10 | L198: 0 | M198: 0 | O198: 0 | P198: 0 | Q198: 9 | U198: 0.000873884324 | W198: 0 | X198: 0 | Y198: 0 | Z198: 0 | AA198: 0 | AB198: 0 | AC198: 0 | AD198: 0 | AE198: 0 | AF198: 0
J199: 0.125 | K199: 10 | L199: 0 | M199: 0 | O199: 0 | P199: 0 | Q199: 9 | U199: 0.000873884324 | W199: 0 | X199: 0 | Y199: 0 | Z199: 0 | AA199: 0 | AB199: 0 | AC199: 0 | AD199: 0 | AE199: 0 | AF199: 0
J200: 0.125 | K200: 10 | L200: =E200*J200 -> 0 | M200: 0 | O200: 0 | P200: 0 | Q200: 9 | U200: 0.000873884324 | W200: 0 | X200: 0 | Y200: 0 | Z200: 0 | AA200: 0 | AB200: 0 | AC200: 0 | AD200: 0 | AE200: 0 | AF200: 0
J201: 0.125 | K201: 10 | L201: 0 | M201: 0 | O201: 0 | P201: 0 | Q201: 9 | U201: 0.000873884324 | W201: 0 | X201: 0 | Y201: 0 | Z201: 0 | AA201: 0 | AB201: 0 | AC201: 0 | AD201: 0 | AE201: 0 | AF201: 0
... 300 more rows

Sheet IO
B1: I/O Power | AI1: =IF(AND(NUM_33IOS>0,NUM_PINS<>NUM_33IOS),"AJ1:AJ2",IF(NUM_33IOS=0,"AJ2","AJ1")) -> AJ1:AJ2 | AJ1: HD | AK1: =IF(AND(NUM_33IOS>0,NUM_PINS<>NUM_33IOS),"AJ1:AJ2",IF(NUM_33IOS=0,"AJ2","AJ1")) -> AJ1:AJ2 | AL1: =IF(PROCESS_FACTOR>1,2,1) -> 1 | AP1: =IF(Summary!$Y$1="noint",0,1) -> 1 | AT1: =OFFSET(POWER_SCALE,8,OFFSET(POWER_SCALE,1,1))*PL_POWERED -> 1 | AU1: On-Chip Current | BA1: Off-Chip Current | BT1: 16 | BU1: 2:1 | BV1: DIFF_TERM | BW1: None | BX1: ="BX2:BX9" -> BX2:BX9 | CJ1: Pkg Load pF | CK1: LS Pkg Load pF
AJ2: HP | BT2: 18 | BU2: 4:1 | BW2: 100 | BX2: No | BY2: DCI 40Ω | BZ2: RTT_40 | CA2: RDRV_NONE | CC2: Yes | CJ2: 0.5 | CK2: 2.5
B3: Active Current | I3: Summary | O3: Select I/O User Guide | AJ3: HP_PD | BT3: 32 | BV3: RTT_40 | BW3: 40 | BX3: Yes | BZ3: RTT_48 | CA3: RDRV_40 | CC3: No
B4: Source | E4: On-Chip | F4: Off-Chip | G4: Active | I4: Power (on-chip) | L4: =SUM(D5*E5,D6*E6,D7*E7,D8*E8,D9*E9,D10*E10,D11*E11,D12*E12,D13*E13,D14*E14) -> 0.07748228516 | BT4: 36 | BV4: RTT_48 | BW4: 48 | BX4: SERDES | BZ4: RTT_60 | CA4: RDRV_48
B5: VCCINT_IO | D5: =VCCINT_IO -> 0.85 | E5: =IOINT_POWER/VCCINT_IO*PL_POWERED -> 0.00371196875 | G5: =E5 -> 0.00371196875 | J5: Logic | L5: =$AI18*_DYN_POWER_SCALE -> 0 | O5: XPE User Guide | S5: Introduction to XPE (video) | BT5: 64 | BV5: RTT_60 | BW5: 60 | BX5: DELAY | CA5: RDRV_60
B6: VCCAUX_IO | D6: =VCCAUX_IO -> 1.8 | E6: =SUM(AA19:AA500)/VCCAUX_IO*OFFSET(POWER_SCALE,8,1)*PL_POWERED -> 0.0300843125 | G6: =E6 -> 0.0300843125 | J6: Buffer | L6: =L4-L5-L7 -> 0.07627083969 | BA6: pairs | BB6: =SUM(IF(RIGHT(F19:F500,14)="DS 2.5V (pair)",J19:K500)) -> 0 | BC6: =SUM(IF(F19:F500="LVDS 1.8V (pair)",J19:K500)) -> 0 | BT6: 72 | BW6: 50 | BX6: IFF
B7: VCCO33 | D7: =VCCO33 -> 3.3 | E7: =SUM(BC19:BC500)*PL_POWERED -> 0 | F7: =SUM(BJ19:BJ500) -> 0 | G7: =SUM(E7:F7) -> 0 | J7: Other | L7: =$AH18*_DYN_POWER_SCALE -> 0.001211445468 | O7: Banks With Internal Vref | R7: 0 | BA7: out | BB7: =SUM(IF(RIGHT(F19:F500,14)="DS 2.5V (pair)",J19:K500)) -> 0 | BC7: =SUM(IF(F19:F500="LVDS 1.8V (pair)",J19:K500)) -> 0 | BT7: 80 | BV7: DCI 40Ω | BW7: None | BX7: OFF
B8: VCCO25 | D8: =VCCO25 -> 2.5 | E8: =SUM(BB9,BD19:BD500)*PL_POWERED -> 0 | F8: =SUM(BK19:BK500) -> 0 | G8: 0 | I8: =TEXT(IO_POWER/TOTAL_POWER,"0%")&" of total on-chip power "&TEXT(TOTAL_POWER,"0.000")&"W" -> 0% of total on-chip power 17.096W | O8: IO Delay Controllers | R8: 0 | S8: =SUM(IF("Off"=$M19:$M500,0,1)) -> 0 | BA8: banks | BB8: =IF(BB6>0,INT(($BB6*2+48)/48),0) -> 0 | BC8: =IF(BC6>0,INT((BC6*2+48)/48),0) -> 0 | BV8: DCI 48Ω | BW8: RTT_120 | BX8: IDDR
B9: VCCO18 | D9: =VCCO18 -> 1.8 | E9: =SUM(BC9,BC13,BE19:BE500)*PL_POWERED -> 0 | F9: =SUM(BL19:BL500) -> 0 | G9: 0 | I9: Power (off-chip) | L9: =SUM(AG19:AG500) -> 0 | O9: Bitslice Controls | Q9: =SUM(CC19:CC500) -> 0 | BA9: pwr | BB9: =OFFSET(IODELAY_DATA,27,1)*BB8/1000 -> 0 | BC9: =OFFSET(IODELAY_DATA,26,1)*BC8/1000 -> 0 | BV9: DCI 60Ω | BW9: RTT_240 | BX9: ODDR
B10: VCCO15 | D10: =VCCO15 -> 1.5 | E10: =SUM(BD13,BF19:BF500)*PL_POWERED -> 0 | F10: =SUM(BM19:BM500) -> 0 | G10: 0 | I10: I/O Count | L10: =SUM(I501:K501) -> 300 | O10: Tx Tristates | Q10: =SUM(CD19:CD500) -> 0
B11: VCCO135 | D11: =VCCO135 -> 1.35 | E11: =SUM(BE13,BG19:BG500)*PL_POWERED -> 0 | F11: =SUM(BN19:BN500) -> 0 | G11: 0 | I11: I/O Utilization | L11: =IF(AND(L10/NUM_PINS>=0.995, L10/NUM_PINS<0.9999),0.99,L10/NUM_PINS) -> 0.5859375 | BB11: pins | BC11: =SUM(IF(AP19:AP500=VCCO18,IF(AZ19:AZ500>0,AS19:AS500))) -> 0 | BD11: =SUM(IF(AP19:AP500=VCCO15,IF(AZ19:AZ500>0,AS19:AS500))) -> 0 | BE11: =SUM(IF(AP19:AP500=VCCO135,IF(AZ19:AZ500>0,AS19:AS500))) -> 0 | BF11: =SUM(IF(AP19:AP500=VCCO12,IF(AZ19:AZ500>0,AS19:AS500))) -> 0 | BG11: =SUM(IF(AP19:AP500=VCCO10,IF(AZ19:AZ500>0,AS19:AS500))) -> 0
B12: VCCO12 | D12: =VCCO12 -> 1.2 | E12: =SUM(BF13,BH19:BH500)*PL_POWERED -> 0.01580325312 | F12: =SUM(BO19:BO500) -> 0 | G12: 0.01580325312 | J12: High Performance | L12: =IF(M12<=0,0,N12/M12) -> 0.7211538462 | M12: =NUM_PINS-NUM_33IOS -> 416 | N12: =SUM(IF(E19:E500<>"HD",IF("(pair)"=RIGHT($F19:$F500,6),I19:K500*2,I19:K500),0)) -> 300 | BB12: banks | BC12: =IF(BC11>0,INT((BC11+48)/48),0) -> 0 | BD12: =IF(BD11>0,INT((BD11+48)/48),0) -> 0 | BE12: =IF(BE11>0,INT((BE11+48)/48),0) -> 0 | BF12: =IF(BF11>0,INT((BF11+48)/48),0) -> 0 | BG12: =IF(BG11>0,INT((BG11+48)/48),0) -> 0 | BV12: RTT_48
B13: VCCO10 | D13: =VCCO10 -> 1 | E13: =SUM(BG13,BI19:BI500)*PL_POWERED -> 0 | F13: =SUM(BP19:BP500) -> 0 | G13: 0 | J13: High Density | L13: =IF(M13<=0,0,N13/M13) -> 0 | M13: =NUM_33IOS -> 96 | N13: =SUM(IF(E19:E500="HD",IF("(pair)"=RIGHT($F19:$F500,6),I19:K500*2,I19:K500),0)) -> 0 | BB13: pwr | BC13: =BC12*0.021 -> 0 | BD13: =BD12*0.015 -> 0 | BE13: =BE12*0.015 -> 0 | BF13: =BF12*0.015 -> 0 | BG13: =BG12*0.015 -> 0
B14: VCCINT | D14: =VCCINT -> 0.85 | E14: =$AC501/VCCINT*PL_POWERED -> 0.001425229962 | G14: =E14 -> 0.001425229962
AZ15: =SUM(IF(L19:L500<>"No",IF(BA19:BA500>0,AS19:AS500),0)) -> 0
B16: Name | E16: Bank | F16: I/O Settings | R16: Activity | X16: Output Load (pF) | Y16: Signal Rate (Mtr/s) | Z16: On Chip Power (W) | AD16: External | AG16: Off Chip | BA16: =VCCINT_IO/1000*VCCINT_N*AY14*$R19*(OFFSET(IODELAY_DATA,6,1)+OFFSET(IODELAY_DATA,5,1)) -> 0 | BC16: =IF($AZ14<=0,0,OFFSET(IODELAY_DATA,IF($E19="HD",27,26),1)*INT(($BB16*2+48)/48)/1000) -> 0
E17: I/O Type | F17: I/O Standard | I17: Input Pins | J17: Output Pins | K17: Bidir Pins | L17: BITSLICE | N17: IBUF | O17: Input Term | P17: Output Impedance | Q17: Pre-Emphasis | R17: Clock (MHz) | S17: Toggle Rate | T17: Data Rate | U17: Output Enable | V17: Term Disable | W17: IBUF Disable | Z17: VCCINT_IO | AA17: VCCAUX_IO | AB17: VCCINT | AC17: VCCO | AD17: External Termination | AG17: VCCO | AZ17: DCI | BA17: IOI | CL17: IBUF | CS17: OBUF | DB17: IBUF Vcco | DH17: OBUF Vcco | DO17: MIPI LP IBUF | DU17: MIPI LP OBUF
P18: Output Term | Z18: =TEXT(VCCINT_IO,"0.000")&"V" -> 0.850V | AA18: =TEXT(VCCAUX_IO,"0.000")&"V" -> 1.800V | AB18: =TEXT(VCCINT,"0.000")&"V" -> 0.850V | AC18: all rails | AG18: all rails | AH18: =(SUM(AH19:AH500))*OFFSET(POWER_SCALE,7,1)*PL_POWERED -> 0.001211445468 | AI18: =(SUM(AI19:AI500))*OFFSET(POWER_SCALE,7,1)*PL_POWERED -> 0 | AJ18: Index | AK18: Fclk | AL18: Type | AP18: Vcco | AQ18: Vtt | AS18: Pins | AT18: MIPI RX HS Disable | AZ18: bank | BA18: Iccint | BC18: Vcco33 | BD18: Vcco25 | BE18: Vcco18 | BF18: Vcco15 | BG18: Vcco135 | BH18: Vcco12 | BI18: Vcco10 | BJ18: Vcco33 | BK18: Vcco25 | BL18: Vcco18 | BM18: Vcco15 | BN18: Vcco135 | BO18: Vcco12 | BP18: Vcco10 | BV18: Routing | BW18: Offchip Term | BX18: R_equiv | CA18: InTerm | CB18: Requiv | CC18: Bitslice ctrls | CD18: Tx Tris | CE18: O Term | CG18: outterm | CH18: Pre-emphasis | CI18: dbi | CJ18: ibuf index | CK18: obuf index | CL18: Iccint DC | CM18: Iccint AC | CN18: Iccaux DC | CO18: Iccaux AC | CP18: Icco DC | CQ18: Icco AC | CR18: InTerm | CS18: Iccint DC | CT18: Iccint AC | CU18: Iccaux DC | CV18: Iccaux AC | CW18: Icco DC | CX18: Icco AC | CY18: OutTerm | CZ18: ActivityF | DA18: PW | DB18: Zo | DC18: Vin(hi) | DD18: Vin(low) | DE18: Supply Current | DF18: P-onchip | DG18: P-offchip | DH18: V(hi) | DI18: V(low) | DJ18: Supply current | DK18: P-onchip | DL18: P-offchip | DM18: obuf index2 | DN18: ibuf index2 | DO18: Iccint DC | DP18: Iccint AC | DQ18: Iccaux DC | DR18: Iccaux AC | DS18: Icco DC | DT18: Icco AC | DU18: Iccint DC | DV18: Iccint AC | DW18: Iccaux DC | DX18: Iccaux AC | DY18: Icco DC | DZ18: Icco AC
B19: GP IO | E19: HP | F19: LVCMOS 1.2V 8mA | I19: 100 | J19: 100 | L19: No | M19: Off | N19: Low Power | R19: 187 | S19: 0.125 | T19: SDR | U19: 1 | V19: 0 | W19: =$V19 -> 0 | X19: 0 | Y19: =R19*IF(RIGHT(T19,1)="R",S19*IF(T19="DDR",2,1),2) -> 23.375 | Z19: =IF(ISERROR($AJ19),0,AI19+VCCINT_IO/1000*(VCCINT_IO/0.85)*IF(E19="HP",(CL19+CM19)+(CS19+CT19),0))*_DYN_POWER_SCALE -> 0.003094568438 | AA19: =IF(ISERROR($AJ19),0,MAX(0,((CN19+CO19)+(CU19+CV19))*VCCAUX_IO/1000))*_DYN_POWER_SCALE -> 0.0397967625 | AB19: =($AH19+IF(ISERROR($AJ19),0,IF(E19="HD",(CL19+CM19)+(CS19+CT19),0)*VCCINT*VCCINT_N/1000))*_DYN_POWER_SCALE -> 0.001211445468 | AC19: =(IF(ISERROR($AJ19),0,MAX(0,(CQ19+CP19)+(CW19+CX19)))*$AP19/1000)*_DYN_POWER_SCALE -> 0.01896390375 | AD19: None | AG19: =(IF(ISERROR($AJ19),0,(IF(AD19="None",0,$DL19)+IF(LEFT($F19,4)="Diff",2,1)*$DG19)))*_DYN_POWER_SCALE -> 0 | AH19: =IF(ISERROR($AJ19),0,VCCINT/1000*VCCINT_N*(IF($L19="No",0,$R19*$AS19*OFFSET(IODELAY_DATA,9,3))+$AP$1*BV19)) -> 0.001211445468 | AI19: =IF(ISERROR($AJ19),0,VCCINT_IO/1000*(VCCINT_IO/0.85)*(BA19)) -> 0 | AJ19: =MATCH($F19,IF($E19="HD",SIOSTD_LIST,VIOSTD_LIST),FALSE)+IF($E19="HD",0,ROW(VIOSTD_LIST)-ROW(SIOSTD_LIST)) -> 84 | AK19: =R19*IF(RIGHT(T19,1)="R",S19*IF(T19="DDR",1,0.5),1) -> 11.6875 | AL19: =IF(AND($K19>0,$E19="HD",OFFSET(IO_STANDARDS,$AJ19,19)>0),3,OFFSET(IO_STANDARDS,$AJ19,2)) -> 1 | AP19: =IF(ISERROR($AJ19),0,OFFSET(IO_STANDARDS,$AJ19,1)) -> 1.2 | AQ19: =IF(NOT(ISNUMBER(OFFSET(IOB_DATA,$CJ19,IF(E19="HP",12,11)))),0,IF(OR(LEFT($F19,14)="HSTL Class III",LEFT($F19,13)="HSTL Class IV",LEFT($F19,3)="GTL",LEFT($F19,3)="POD",LEFT($F19,8)="Diff POD"),$AP19,$AP19/2)) -> 0 | AS19: =IF(RIGHT($F19,6) ="(pair)",2,1)*SUM(I19:K19) -> 200 | AT19: =IF(LEFT($F19,4)="MIPI",MIN($W19,0.3),$W19) -> 0 | AU19: =IF(ISERROR(OFFSET(IO_STANDARDS,$AJ19,42+IF(E19="HP",1,0))),1,0) -> 0 | AZ19: =IF(OR(LEFT($F19,3)="POD",LEFT($F19,8)="Diff POD"),0,IF(IF(LEFT($F19,5)="LVDCI",$J19+$K19,SUM($I19:$K19))>0,((OFFSET(IO_STANDARDS,$AJ19,6)*IF(AND($I19+$K19>0,OFFSET(IO_STANDARDS,$AJ19,6)<1),100,1)*INT((SUM($I19:$K19)+50)/50))/1000),0)) -> 0 | BA19: =IF($L19="No",0,$R19*(IF($L19="SERDES",OFFSET(IOI_DATA,1,1),IF($L19="DELAY",OFFSET(IOI_DATA,7,1),IF($L19="IFF",OFFSET(IOI_DATA,3,1),IF($L19="OFF",OFFSET(IOI_DATA,6,1),IF($L19="IDDR",OFFSET(IOI_DATA,2,1),IF($L19="ODDR",OFFSET(IOI_DATA,5,1),OFFSET(IOI_DATA,12,1)))))))*$AS19+IF($L19="Yes",$CC19*OFFSET(IOI_DATA,13,1)+$CD19*OFFSET(IOI_DATA,11,1),0))) -> 0 | BB19: =IF($L19="No",0,$R19*(IF($L19="SERDES",OFFSET(IOI_DATA,1,1),IF($L19="DELAY",OFFSET(IOI_DATA,7,1),OFFSET(IOI_DATA,12,1)))*$AS19+IF($L19="Yes",$CC19*OFFSET(IOI_DATA,13,1)+$CD19*OFFSET(IOI_DATA,11,1),0))) -> 0 | BC19: =IF(ISERROR($AJ19),0,IF($AP19=VCCO33,$AC19/$AP19+$AZ19,0)) -> 0 | BD19: =IF(ISERROR($AJ19),0,IF($AP19=VCCO25,$AC19/$AP19+$AZ19,0)) -> 0 | BE19: =IF(ISERROR($AJ19),0,IF($AP19=VCCO18,$AC19/$AP19,0)) -> 0 | BF19: =IF(ISERROR($AJ19),0,IF($AP19=VCCO15,$AC19/$AP19,0)) -> 0 | BG19: =IF(ISERROR($AJ19),0,IF($AP19=VCCO135,$AC19/$AP19,0)) -> 0 | BH19: =IF(ISERROR($AJ19),0,IF($AP19=VCCO12,$AC19/$AP19,0)) -> 0.01580325312 | BI19: =IF(ISERROR($AJ19),0,IF($AP19=VCCO10,$AC19/$AP19,0)) -> 0 | BJ19: =IF(ISERROR($AJ19),0,IF($AP19=VCCO33,$AG19/$AP19,0)) -> 0 | BK19: =IF(ISERROR($AJ19),0,IF($AP19=VCCO25,$AG19/$AP19,0)) -> 0 | BL19: =IF(ISERROR($AJ19),0,IF($AP19=VCCO18,$AG19/$AP19,0)) -> 0 | BM19: =IF(ISERROR($AJ19),0,IF($AP19=VCCO15,$AG19/$AP19,0)) -> 0 | BN19: =IF(ISERROR($AJ19),0,IF($AP19=VCCO135,$AG19/$AP19,0)) -> 0 | BO19: =IF(ISERROR($AJ19),0,IF($AP19=VCCO12,$AG19/$AP19,0)) -> 0 | BP19: =IF(ISERROR($AJ19),0,IF($AP19=VCCO10,$AG19/$AP19,0)) -> 0 | BV19: =$AK19*2*OFFSET(FANOUT,3,6)*$AS19 -> 1.425229962 | BW19: =IF(OR($AL19=2),"BW2",IF(OR(MID(F19,IF(LEFT($F19,4)="Diff",6,1),4)="HSTL",MID(F19,IF(LEFT($F19,4)="Diff",6,1),4)="SSTL",MID(F19,IF(LEFT($F19,4)="Diff",6,1),3)="POD"),IF(E19="HD","BW6","BW3:BW5"),"BW1")) -> BW1 | BX19: =IF(OR(ISTEXT($AD19),$AD19="None"),0,$AD19) -> 0 | CA19: =IF(($I19+$K19)<1,"BV2",IF(OFFSET(IO_STANDARDS,$AJ19,18)>0,"BV1:BV2",IF(AND(E19="HP",ISNUMBER(OFFSET(IOB_DATA,$CJ19,11))),IF(ISERROR(FIND("DCI",F19,1)),"BV2:BV5","BV3:BV5"),IF(AND(E19="HD",OFFSET(IOB_DATA,$CJ19,11)=50),"BV11:BV12","BV2")))) -> BV2 | CB19: =IF(OR(LEFT($F19,3)="LVC",LEFT($F19,3)="LVT"),0,IF(OR(LEN($O19)<1,RIGHT($O19,4)="NONE",RIGHT($O19,4)="None"),IF(LEFT($F19,13)="MIPI DPHY DCI",100,IF(OFFSET(IO_STANDARDS,$AJ19,11)>0,40,0)),IF(LEN($O19)<5,IF(E19="HD",50,40),IF(LEFT($O19,3)="DCI",MID($O19,5,2),IF(LEN($O19)>6,IF(RIGHT($O19,3)="240",240,IF(AND($AL19=2,LEFT($O19,4)="DIFF"),100,120)),IF(AND(E19="HD",RIGHT($O19,2)="48"),50,RIGHT($O19,2))))))) -> 0 | CC19: =IF($L19="No",0,$AS19/6) -> 0 | CD19: =IF($L19="No",0,IF($K19>0,$AS19/4,$AS19/6)) -> 0 | CF19: =IF(OR(LEN($P19)<1,RIGHT($P19,4)="NONE"),IF(RIGHT(INDIRECT(LEFT($CG19,3)),2)="40",40,0),IF(LEFT($P19,3)="DCI",MID($P19,5,2),RIGHT($P19,2))) -> 0 | CG19: =IF(AND(E19<>"HD",OR(AND(LEFT($F19,3)<>"LVC",LEFT($F19,4)<>"MIPI"),ISNUMBER(OFFSET(IOB_DATA,$CK19,IF(E19="HP",14,12)))),$AL19<>2,($J19+$K19)>0),"CA3:CA5","CA1") -> CA1 | CH19: =IF(AND(OFFSET(IO_STANDARDS,$AJ19,45)>0,($J19+$K19)>0),"CC2:CC3","CC1") -> CC1 | CI19: =IF(AND(LEFT($F19,3)="POD",$K19>0,$T19="DDR",NOT(ISERROR(SEARCH("ddr4_dq<",$B19,1)))),1,0) -> 0 | CJ19: =OFFSET(IO_STANDARDS,$AJ19,IF(E19="HP",IF(LEFT(N19,3)="Hig",41,40),40))-1 -> 172 | CK19: =OFFSET(IO_STANDARDS,$AJ19,IF(E19="HP",43+IF(AND(OFFSET(IO_STANDARDS,$AJ19,45)>0,Q19="Yes"),1,0),42))-1 -> 243 | CL19: =IF(ISERROR($CJ19),0,OFFSET(IOB_DATA,$CJ19,5)*((1-$AT19)*I19+(1-U19)*K19))+DO19 -> 0.1426 | CM19: =IF(ISERROR($CJ19),0,OFFSET(IOB_DATA,$CJ19,2)*AK19*((1-$AT19)*I19+(1-U19)*K19))*IF(CI19>0,0.93,1)+DP19 -> 0.79825625 | CN19: =IF(ISERROR($CJ19),0,OFFSET(IOB_DATA,$CJ19,6)*((1-$AT19)*I19+(1-U19)*K19))+DQ19 -> 0 | CO19: =IF(ISERROR($CJ19),0,OFFSET(IOB_DATA,$CJ19,3)*AK19*((1-$AT19)*I19+(1-U19)*K19))*IF(CI19>0,0.93,1)+DR19 -> 0 | CP19: =IF(ISERROR($CJ19),0,IF(AND(OR(LEFT($F19,3)="LVC",LEFT($F19,3)="LVT",AND(LEFT($F19,4)="MIPI",AL19<>2),AND(E19="HD",AL19=2)),OFFSET(IOB_DATA,$CJ19,7)<>"NA"),OFFSET(IOB_DATA,$CJ19,7)*((1-$AT19)*I19+(1-U19)*K19),DF19*1000/AP19*(IF(LEFT($F19,4)="Diff",2,1))*(IF(LEFT($F19,4)="MIPI",1-$AT19,1)*$I19+$K19*(1-$U19))))+DS19 -> 0 | CQ19: =IF(ISERROR($CJ19),0,IF(OFFSET(IOB_DATA,$CJ19,4)<>"NA",OFFSET(IOB_DATA,$CJ19,4)*AK19*((1-$AT19)*I19+(1-U19)*K19),0))+DT19 -> 0.062528125 | CR19: =IF($CB19>0,IF(LEFT($F19,4)="Diff",2,1)*($I19+$K19*(1-$U19))*IF(AND($AL19=2,$O19="DIFF_TERM"),OFFSET(IOB_DATA,$CJ19,7),IF($E19<>"HD",IF($CB19>0,1,0)*IF(AL19<>2,IF(OR(LEFT($F19,3)="POD",LEFT($F19,8)="Diff POD"),0.5*1000*$AP19/($CB19+40)*IF($CI19>0,0.36/0.5,1),$AQ19*500/$CB19),OFFSET(IOB_DATA,$CJ19,7)),IF(LEFT($O19,3)="RTT",$AQ19*500/$CB19,0))*(1-$V19))/1000,0) -> 0 | CS19: =IF(ISERROR($CK19),0,OFFSET(IOB_DATA,$CK19,6+IF(E19="HP",1,0))*($U19*(J19+K19)*IF(LEFT($F19,4)="Diff",2,1)))+DU19 -> 0 | CT19: =IF(ISERROR($CK19),0,OFFSET(IOB_DATA,$CK19,3+IF(E19="HP",1,0))*AK19*($U19*(J19+K19)*IF(LEFT($F19,4)="Diff",2,1))*IF($CI19>0,0.93,1))+DV19 -> 2.6998125 | CU19: =IF(ISERROR($CK19),0,OFFSET(IOB_DATA,$CK19,7+IF(E19="HP",1,0))*($U19*(J19+K19))*IF(LEFT($F19,4)="Diff",2,1))+DW19 -> 15.95 | CV19: =IF(ISERROR($CK19),0,IF(CF19>0,OFFSET(IOB_DATA,$CK19,4+IF(E19="HP",1,0))*40/CF19,OFFSET(IOB_DATA,$CK19,4+IF(E19="HP",1,0)))*AK19*($U19*(J19+K19))*IF(LEFT($F19,4)="Diff",2,1)*IF($CI19>0,0.93,1)*$AT$1)+DX19 -> 6.1593125 | CW19: =IF(ISERROR($CK19),0,IF(AND(FALSE,OFFSET(IOB_DATA,$CK19,8+IF(E19="HP",1,0))<>"NA"),OFFSET(IOB_DATA,$CK19,8+IF(E19="HP",1,0)),DK19*1000/AP19)*$CZ19*(IF(LEFT($F19,4)="Diff",2,1)))+DY19 -> 0 | CX19: =IF(ISERROR($CK19),0,IF(ISNUMBER(OFFSET(IOB_DATA,$CK19,5+IF(E19="HP",1,0))),OFFSET(IOB_DATA,$CK19,5+IF(E19="HP",1,0))*IF(NOT(ISERROR(FIND("LVDS",$F19))),1,(IF(E19="HD",6.5,2.5)+X19+IF(OFFSET(IOB_DATA,$CK19,15+IF(E19="HP",1,0))="HS",$CJ$2,$CK$2))/(IF(E19="HD",6.5,2.5)+OFFSET(IOB_DATA,$CK19,IF(E19="HP",15,13)))),0)*AK19*($U19*(J19+K19*IF($CI19>0,0.93,1))*IF(LEFT($F19,4)="Diff",2,1)))+DZ19 -> 15.740725 | CY19: =IF(AND(NOT(ISNUMBER(OFFSET(IOB_DATA,$CK19,9))),OFFSET(IO_STANDARDS,$AJ19,46)>0),IF($CF19>0,IF(LEFT($F19,4)="Diff",2,1)*1000*($AP19/2)/($CF19+MAX(40,$BX19))/2,0),0) -> 0 | CZ19: =(($J19*IF(AND(E19="HP",$AL19<>2,LEFT($F19,2)<>"LV",RIGHT(T19,1)="R"),S19+(1-S19)/2,1)+K19*IF(AND(E19="HP",$AL19<>2,LEFT($F19,2)<>"LV",RIGHT(T19,1)="R"),S19,1))*$U19)*IF(AND($Q19="Yes",LEFT($F19,4)="LVDS"),1.25,1) -> 100 | DA19: =IF(LEFT($F19,3)="POD",0.64,0.5) -> 0.5 | DB19: =IF(CB19>0,IF(AND(ISNUMBER($AD19),$AD19<>"None"),$AD19,CB19),IF(OR($AL19=2),100,IF(OR(MID(F19,IF(LEFT($F19,4)="Diff",6,1),4)="HSTL",MID(F19,IF(LEFT($F19,4)="Diff",6,1),4)="SSTL",MID(F19,IF(LEFT($F19,4)="Diff",6,1),3)="POD"),IF(AND(ISNUMBER($AD19),$AD19<>"None"),$AD19,IF(E19="HD",50,40)),0))) -> 0 | DC19: =IF(CB19>0,IF(OR(LEFT($F19,3)="POD",LEFT($F19,8)="Diff POD"), AP19,AP19-AP19/2*(DB19/(CB19+ DB19))),0) -> 0 | DD19: =IF(CB19>0,IF(OR(LEFT($F19,3)="POD",LEFT($F19,8)="Diff POD"), AP19*(DB19/(CB19+DB19)),AP19/2*(DB19/(CB19+DB19))),0) -> 0 | DE19: =IF(OR(LEFT($F19,3)="HSU",LEFT($F19,8)="Diff HSU"),0,IF((I19+K19)>0,IF(LEFT($F19,13)="MIPI DPHY DCI", IF(ISNUMBER(OFFSET(IOB_DATA,$CJ19,7)),OFFSET(IOB_DATA,$CJ19,7)/1000,0),IF($AL19=2,IF($O19="DIFF_TERM",IF(ISNUMBER(OFFSET(IOB_DATA,$CJ19,7)),OFFSET(IOB_DATA,$CJ19,7),0),0),IF(CB19>0,IF(OR(LEFT($F19,3)="POD",LEFT($F19,8)="Diff POD"), (AP19-DD19)*( 1-DA19)/CB19*IF($CI19>1,0.36/0.5,1),(AP19-DC19)*DA19/(2*CB19) + (AP19- DD19)*(1-DA19)/(2*CB19))*(1-$V19),0))),0)) -> 0 | DF19: =IF(ISERROR($CJ19),0,IF(OR(LEFT($F19,3)="HSU",LEFT($F19,8)="Diff HSU"),0,IF((I19+K19)>0,IF($AL19=2,IF(OR(LEFT($F19,13)="MIPI DPHY DCI",$O19="DIFF_TERM"),OFFSET(IO_STANDARDS,$AJ19,18)/1000,0),IF(CB19>0,IF(OR(LEFT($F19,3)="POD",LEFT($F19,8)="Diff POD"),((AP19-DD19)^2 / CB19)*(1-DA19)*IF($CI19>0,0.36/0.5,1),((AP19-DC19)^2 / (2* CB19) + (DC19)^2 / (2 * CB19))*DA19 + ((AP19-DD19)^2 / (2* CB19) + (DD19)^2 / (2* CB19))*(1-DA19))*(1-$V19),0)),0))) -> 0 | DG19: =IF(ISERROR($CJ19),0,IF(CB19>0,DE19*AP19 -DF19,0)*(IF(LEFT($F19,4)="MIPI",1-$AT19,1)*$I19+$K19*(1-$U19))) -> 0 | DH19: =IF(OR(AND(OFFSET(IO_STANDARDS,$AJ19,13)>0,$AL19<>2),OR(LEFT($F19,3)="POD",LEFT($F19,8)="Diff POD")),IF(E19="HP",IF(OR(LEFT($F19,3)="POD",LEFT($F19,8)="Diff POD"),AP19,AP19-AP19/2*(CF19/(CF19+BX19))),AP19/2 + (IF(ISNUMBER(OFFSET(IOB_DATA,$CK19,8+IF(E19="HP",1,0))),OFFSET(IOB_DATA,$CK19,8+IF(E19="HP",1,0))*2 /1000)*DB19)),0) -> 0 | DI19: =IF(AND(OFFSET(IO_STANDARDS,$AJ19,13)>0,$AL19<>2),IF(E19="HP", IF(OR(LEFT($F19,3)="POD",LEFT($F19,8)="Diff POD"),AP19*(CF19/(CF19+BX19)),AP19/2*(CF19/(CF19+BX19))), AP19/2-((IF(ISNUMBER(OFFSET(IOB_DATA,$CK19,8+IF(E19="HP",1,0))),OFFSET(IOB_DATA,$CK19,8+IF(E19="HP",1,0))*2 /1000))*DB19)),0) -> 0 | DJ19: =IF(OR(LEFT($F19,3)="HSU",LEFT($F19,8)="Diff HSU",AND(IF(ISNUMBER(OFFSET(IOB_DATA,$CK19,8+IF(E19="HP",1,0))),OFFSET(IOB_DATA,$CK19,8+IF(E19="HP",1,0))=0))),0,IF((J19+K19)>0,IF(OFFSET(IO_STANDARDS,$AJ19,13)>0,IF(AL19=2, (OFFSET(IOB_DATA,$CK19,8+IF(E19="HP",1,0))/1000)*IF(AND($Q19="Yes",LEFT($F19,4)="LVDS"),1.25,1), IF(E19="HP", (AP19-DH19)*DA19/CF19, IF(ISNUMBER(OFFSET(IOB_DATA,$CK19,8+IF(E19="HP",1,0))),DA19*OFFSET(IOB_DATA,$CK19,8+IF(E19="HP",1,0))*2 /1000,0))),0),0)) -> 0 | DK19: =IF(ISERROR($CK19),0,IF(OR(LEFT($F19,3)="HSU",LEFT($F19,8)="Diff HSU",AND(IF(ISNUMBER(OFFSET(IOB_DATA,$CK19,8+IF(E19="HP",1,0))),OFFSET(IOB_DATA,$CK19,8+IF(E19="HP",1,0))=0))),0,IF((J19+K19)>0,IF(OFFSET(IO_STANDARDS,$AJ19,13)>0,IF(AL19=2, ((OFFSET(IOB_DATA,$CK19,8+IF(E19="HP",1,0))*AP19/1000) -IF(LEFT($F19,4)="MIPI",0.2*0.2/(100*100),((OFFSET(IOB_DATA,$CK19,8+IF(E19="HP",1,0))/1000/2)^2))*100)*IF(AND($Q19="Yes",LEFT($F19,4)="LVDS"),1.25,1)*(IF(LEFT($F19,4)="Diff",2,1)),IF(E19="HP",IF(OR(LEFT($F19,3)="POD",LEFT($F19,8)="Diff POD"),(DI19^2/CF19*(1-DA19)),((AP19-DH19)* DJ19 + DI19^2/CF19*(1-DA19))), (AP19-DH19)* DJ19 + DI19*(IF(ISNUMBER(OFFSET(IOB_DATA,$CK19,8+IF(E19="HP",1,0))),OFFSET(IOB_DATA,$CK19,8+IF(E19="HP",1,0))*2 /1000,0))*(1-DA19))),0),0))) -> 0 | DL19: =IF(ISERROR($CK19),0,IF((J19+K19)>0,IF(OFFSET(IO_STANDARDS,$AJ19,13)>0,(DJ19*AP19-DK19)*$CZ19*(IF(LEFT($F19,4)="Diff",2,1)),0),0)) -> 0 | DM19: =IF(AND(LEFT($F19,4)="MIPI",ISNUMBER(OFFSET(IO_STANDARDS,$AJ19,49))),OFFSET(IO_STANDARDS,$AJ19,49)-1,NA()) ->  | DN19: =IF(AND(LEFT($F19,4)="MIPI",ISNUMBER(OFFSET(IO_STANDARDS,$AJ19,48))),OFFSET(IO_STANDARDS,$AJ19,48)-1,NA()) ->  | DO19: =IF(ISERROR($DN19),0,OFFSET(IOB_DATA,$DN19,5)*(I19+K19)) -> 0 | DP19: =IF(ISERROR($DN19),0,OFFSET(IOB_DATA,$DN19,2)*OFFSET(IO_STANDARDS,$AJ19,50)*(I19+K19)) -> 0 | DQ19: =IF(ISERROR($DN19),0,(OFFSET(IOB_DATA,$DN19,6)+OFFSET(IO_STANDARDS,$AJ19,51))*(($AT19)*I19+(U19)*K19)) -> 0 | DR19: =IF(ISERROR($DN19),0,OFFSET(IOB_DATA,$DN19,3)*OFFSET(IO_STANDARDS,$AJ19,50)*(I19+K19)) -> 0 | DS19: =IF(ISERROR($DN19),0,OFFSET(IOB_DATA,$DN19,7)*(I19+K19)) -> 0 | DT19: =IF(ISERROR($DN19),0,IF(OFFSET(IOB_DATA,$DN19,4)<>"NA",OFFSET(IOB_DATA,$DN19,4)*OFFSET(IO_STANDARDS,$AJ19,50)*(I19+K19),0)) -> 0 | DU19: =IF(ISERROR($DM19),0,OFFSET(IOB_DATA,$DM19,6+IF(E19="HP",1,0))*((1-$U19)*(J19+K19)*IF(LEFT($F19,4)="Diff",2,1))) -> 0 | DV19: =IF(ISERROR($DM19),0,OFFSET(IOB_DATA,$DM19,3+IF(E19="HP",1,0))*OFFSET(IO_STANDARDS,$AJ19,50)*((1-$U19)*(J19+K19)*IF(LEFT($F19,4)="Diff",2,1))) -> 0 | DW19: =IF(ISERROR($DM19),0,OFFSET(IOB_DATA,$DM19,7+IF(E19="HP",1,0))*((1-$U19)*(J19+K19))*IF(LEFT($F19,4)="Diff",2,1)) -> 0 | DX19: =IF(ISERROR($DM19),0,OFFSET(IOB_DATA,$DM19,4+IF(E19="HP",1,0))*OFFSET(IO_STANDARDS,$AJ19,50)*((1-$U19)*(J19+K19))*IF(LEFT($F19,4)="Diff",2,1)*$AT$1) -> 0 | DY19: =IF(ISERROR($DM19),0,IF(OFFSET(IOB_DATA,$DM19,8+IF(E19="HP",1,0))<>"NA",OFFSET(IOB_DATA,$DM19,8+IF(E19="HP",1,0)),0)*$CZ19*(IF(LEFT($F19,4)="Diff",2,1))) -> 0 | DZ19: =IF(ISERROR($DM19),0,IF(ISNUMBER(OFFSET(IOB_DATA,$DM19,5+IF(E19="HP",1,0))),OFFSET(IOB_DATA,$DM19,5+IF(E19="HP",1,0))*(IF(E19="HD",6.5,2.5)+$CK$2+X19)/(IF(E19="HD",6.5,2.5)+OFFSET(IOB_DATA,$DM19,15)),0)*OFFSET(IO_STANDARDS,$AJ19,50)*((1-$U19)*(J19+K19)*IF(LEFT($F19,4)="Diff",2,1))) -> 0
B20: others | E20: HP | F20: LVCMOS 1.8V 12mA | I20: 50 | J20: 50 | L20: No | M20: Off | N20: Low Power | S20: 0.125 | T20: SDR | U20: 1 | V20: 0 | W20: 0 | X20: 0 | Y20: =R20*IF(RIGHT(T20,1)="R",S20*IF(T20="DDR",2,1),2) -> 0 | Z20: 6.0605e-05 | AA20: 0.014355 | AB20: 0 | AC20: 0 | AD20: None | AG20: 0 | AH20: 0 | AI20: 0 | AJ20: 94 | AK20: =R20*IF(RIGHT(T20,1)="R",S20*IF(T20="DDR",1,0.5),1) -> 0 | AL20: 1 | AP20: 1.8 | AQ20: 0 | AS20: =IF(RIGHT($F20,6) ="(pair)",2,1)*SUM(I20:K20) -> 100 | AT20: =IF(LEFT($F20,4)="MIPI",MIN($W20,0.3),$W20) -> 0 | AU20: 0 | AZ20: 0 | BA20: 0 | BC20: 0 | BD20: 0 | BE20: 0 | BF20: 0 | BG20: 0 | BH20: 0 | BI20: 0 | BJ20: 0 | BK20: 0 | BL20: 0 | BM20: 0 | BN20: 0 | BO20: 0 | BP20: 0 | BV20: 0 | BW20: =IF(OR($AL20=2),"BW2",IF(OR(MID(F20,IF(LEFT($F20,4)="Diff",6,1),4)="HSTL",MID(F20,IF(LEFT($F20,4)="Diff",6,1),4)="SSTL",MID(F20,IF(LEFT($F20,4)="Diff",6,1),3)="POD"),IF(E20="HD","BW6","BW3:BW5"),"BW1")) -> BW1 | BX20: =IF(OR(ISTEXT($AD20),$AD20="None"),0,$AD20) -> 0 | CA20: BV2 | CB20: 0 | CC20: 0 | CD20: =IF($L20="No",0,IF($K20>0,$AS20/4,$AS20/6)) -> 0 | CF20: =IF(OR(LEN($P20)<1,RIGHT($P20,4)="NONE"),IF(RIGHT(INDIRECT(LEFT($CG20,3)),2)="40",40,0),IF(LEFT($P20,3)="DCI",MID($P20,5,2),RIGHT($P20,2))) -> 0 | CG20: CA1 | CH20: CC1 | CI20: =IF(AND(LEFT($F20,3)="POD",$K20>0,$T20="DDR",NOT(ISERROR(SEARCH("ddr4_dq<",$B20,1)))),1,0) -> 0 | CJ20: 170 | CK20: 234 | CL20: 0.0713 | CM20: 0 | CN20: 0 | CO20: 0 | CP20: 0 | CQ20: 0 | CR20: =IF($CB20>0,IF(LEFT($F20,4)="Diff",2,1)*($I20+$K20*(1-$U20))*IF(AND($AL20=2,$O20="DIFF_TERM"),OFFSET(IOB_DATA,$CJ20,7),IF($E20<>"HD",IF($CB20>0,1,0)*IF(AL20<>2,IF(OR(LEFT($F20,3)="POD",LEFT($F20,8)="Diff POD"),0.5*1000*$AP20/($CB20+40)*IF($CI20>0,0.36/0.5,1),$AQ20*500/$CB20),OFFSET(IOB_DATA,$CJ20,7)),IF(LEFT($O20,3)="RTT",$AQ20*500/$CB20,0))*(1-$V20))/1000,0) -> 0 | CS20: 0 | CT20: 0 | CU20: 7.975 | CV20: 0 | CW20: 0 | CX20: 0 | CY20: 0 | CZ20: =(($J20*IF(AND(E20="HP",$AL20<>2,LEFT($F20,2)<>"LV",RIGHT(T20,1)="R"),S20+(1-S20)/2,1)+K20*IF(AND(E20="HP",$AL20<>2,LEFT($F20,2)<>"LV",RIGHT(T20,1)="R"),S20,1))*$U20)*IF(AND($Q20="Yes",LEFT($F20,4)="LVDS"),1.25,1) -> 50 | DA20: =IF(LEFT($F20,3)="POD",0.64,0.5) -> 0.5 | DB20: =IF(CB20>0,IF(AND(ISNUMBER($AD20),$AD20<>"None"),$AD20,CB20),IF(OR($AL20=2),100,IF(OR(MID(F20,IF(LEFT($F20,4)="Diff",6,1),4)="HSTL",MID(F20,IF(LEFT($F20,4)="Diff",6,1),4)="SSTL",MID(F20,IF(LEFT($F20,4)="Diff",6,1),3)="POD"),IF(AND(ISNUMBER($AD20),$AD20<>"None"),$AD20,IF(E20="HD",50,40)),0))) -> 0 | DC20: =IF(CB20>0,IF(OR(LEFT($F20,3)="POD",LEFT($F20,8)="Diff POD"), AP20,AP20-AP20/2*(DB20/(CB20+ DB20))),0) -> 0 | DD20: =IF(CB20>0,IF(OR(LEFT($F20,3)="POD",LEFT($F20,8)="Diff POD"), AP20*(DB20/(CB20+DB20)),AP20/2*(DB20/(CB20+DB20))),0) -> 0 | DE20: 0 | DF20: 0 | DG20: =IF(ISERROR($CJ20),0,IF(CB20>0,DE20*AP20 -DF20,0)*(IF(LEFT($F20,4)="MIPI",1-$AT20,1)*$I20+$K20*(1-$U20))) -> 0 | DH20: 0 | DI20: 0 | DJ20: 0 | DK20: 0 | DL20: 0 | DO20: 0 | DP20: 0 | DQ20: 0 | DR20: 0 | DS20: 0 | DT20: 0 | DU20: 0 | DV20: 0 | DW20: 0 | DX20: 0 | DY20: 0 | DZ20: 0
E21: HP | F21: LVCMOS 1.8V 12mA | L21: No | M21: Off | N21: Low Power | S21: 0.125 | T21: SDR | U21: 1 | V21: 0 | W21: 0 | X21: 0 | Y21: 0 | Z21: 0 | AA21: 0 | AB21: 0 | AC21: 0 | AD21: None | AG21: 0 | AH21: 0 | AI21: 0 | AJ21: 94 | AK21: 0 | AL21: 1 | AP21: 1.8 | AQ21: 0 | AS21: 0 | AT21: 0 | AU21: 0 | AZ21: 0 | BA21: 0 | BC21: 0 | BD21: 0 | BE21: 0 | BF21: 0 | BG21: 0 | BH21: 0 | BI21: 0 | BJ21: 0 | BK21: 0 | BL21: 0 | BM21: 0 | BN21: 0 | BO21: 0 | BP21: 0 | BV21: 0 | BW21: BW1 | BX21: 0 | CA21: BV2 | CB21: 0 | CC21: 0 | CD21: 0 | CF21: 0 | CG21: CA1 | CH21: CC1 | CI21: 0 | CJ21: 170 | CK21: 234 | CL21: 0 | CM21: 0 | CN21: 0 | CO21: 0 | CP21: 0 | CQ21: 0 | CR21: 0 | CS21: 0 | CT21: 0 | CU21: 0 | CV21: 0 | CW21: 0 | CX21: 0 | CY21: 0 | CZ21: 0 | DA21: 0.5 | DB21: 0 | DC21: 0 | DD21: 0 | DE21: 0 | DF21: 0 | DG21: 0 | DH21: 0 | DI21: 0 | DJ21: 0 | DK21: 0 | DL21: 0 | DO21: 0 | DP21: 0 | DQ21: 0 | DR21: 0 | DS21: 0 | DT21: 0 | DU21: 0 | DV21: 0 | DW21: 0 | DX21: 0 | DY21: 0 | DZ21: 0
E22: HP | F22: LVCMOS 1.8V 12mA | L22: No | M22: Off | N22: Low Power | S22: 0.125 | T22: SDR | U22: 1 | V22: 0 | W22: 0 | X22: 0 | Y22: 0 | Z22: 0 | AA22: 0 | AB22: 0 | AC22: 0 | AD22: None | AG22: 0 | AH22: 0 | AI22: 0 | AJ22: 94 | AK22: 0 | AL22: 1 | AP22: 1.8 | AQ22: 0 | AS22: 0 | AT22: 0 | AU22: 0 | AZ22: 0 | BA22: 0 | BC22: 0 | BD22: 0 | BE22: 0 | BF22: 0 | BG22: 0 | BH22: 0 | BI22: 0 | BJ22: 0 | BK22: 0 | BL22: 0 | BM22: 0 | BN22: 0 | BO22: 0 | BP22: 0 | BV22: 0 | BW22: BW1 | BX22: 0 | CA22: BV2 | CB22: 0 | CC22: 0 | CD22: 0 | CF22: 0 | CG22: CA1 | CH22: CC1 | CI22: 0 | CJ22: 170 | CK22: 234 | CL22: 0 | CM22: 0 | CN22: 0 | CO22: 0 | CP22: 0 | CQ22: 0 | CR22: 0 | CS22: 0 | CT22: 0 | CU22: 0 | CV22: 0 | CW22: 0 | CX22: 0 | CY22: 0 | CZ22: 0 | DA22: 0.5 | DB22: 0 | DC22: 0 | DD22: 0 | DE22: 0 | DF22: 0 | DG22: 0 | DH22: 0 | DI22: 0 | DJ22: 0 | DK22: 0 | DL22: 0 | DO22: 0 | DP22: 0 | DQ22: 0 | DR22: 0 | DS22: 0 | DT22: 0 | DU22: 0 | DV22: 0 | DW22: 0 | DX22: 0 | DY22: 0 | DZ22: 0
E23: HP | F23: LVCMOS 1.8V 12mA | L23: No | M23: Off | N23: Low Power | S23: 0.125 | T23: SDR | U23: 1 | V23: 0 | W23: 0 | X23: 0 | Y23: 0 | Z23: 0 | AA23: 0 | AB23: 0 | AC23: 0 | AD23: None | AG23: 0 | AH23: 0 | AI23: 0 | AJ23: 94 | AK23: 0 | AL23: 1 | AP23: 1.8 | AQ23: 0 | AS23: 0 | AT23: 0 | AU23: 0 | AZ23: 0 | BA23: 0 | BC23: 0 | BD23: 0 | BE23: 0 | BF23: 0 | BG23: 0 | BH23: 0 | BI23: 0 | BJ23: 0 | BK23: 0 | BL23: 0 | BM23: 0 | BN23: 0 | BO23: 0 | BP23: 0 | BV23: 0 | BW23: BW1 | BX23: 0 | CA23: BV2 | CB23: 0 | CC23: 0 | CD23: 0 | CF23: 0 | CG23: CA1 | CH23: CC1 | CI23: 0 | CJ23: 170 | CK23: 234 | CL23: 0 | CM23: 0 | CN23: 0 | CO23: 0 | CP23: 0 | CQ23: 0 | CR23: 0 | CS23: 0 | CT23: 0 | CU23: 0 | CV23: 0 | CW23: 0 | CX23: 0 | CY23: 0 | CZ23: 0 | DA23: 0.5 | DB23: 0 | DC23: 0 | DD23: 0 | DE23: 0 | DF23: 0 | DG23: 0 | DH23: 0 | DI23: 0 | DJ23: 0 | DK23: 0 | DL23: 0 | DO23: 0 | DP23: 0 | DQ23: 0 | DR23: 0 | DS23: 0 | DT23: 0 | DU23: 0 | DV23: 0 | DW23: 0 | DX23: 0 | DY23: 0 | DZ23: 0
E24: HP | F24: LVCMOS 1.8V 12mA | L24: No | M24: Off | N24: Low Power | S24: 0.125 | T24: SDR | U24: 1 | V24: 0 | W24: 0 | X24: 0 | Y24: 0 | Z24: 0 | AA24: 0 | AB24: 0 | AC24: 0 | AD24: None | AG24: 0 | AH24: 0 | AI24: 0 | AJ24: 94 | AK24: 0 | AL24: 1 | AP24: 1.8 | AQ24: 0 | AS24: 0 | AT24: 0 | AU24: 0 | AZ24: 0 | BA24: 0 | BC24: 0 | BD24: 0 | BE24: 0 | BF24: 0 | BG24: 0 | BH24: 0 | BI24: 0 | BJ24: 0 | BK24: 0 | BL24: 0 | BM24: 0 | BN24: 0 | BO24: 0 | BP24: 0 | BV24: 0 | BW24: BW1 | BX24: 0 | CA24: BV2 | CB24: 0 | CC24: 0 | CD24: 0 | CF24: 0 | CG24: CA1 | CH24: CC1 | CI24: 0 | CJ24: 170 | CK24: 234 | CL24: 0 | CM24: 0 | CN24: 0 | CO24: 0 | CP24: 0 | CQ24: 0 | CR24: 0 | CS24: 0 | CT24: 0 | CU24: 0 | CV24: 0 | CW24: 0 | CX24: 0 | CY24: 0 | CZ24: 0 | DA24: 0.5 | DB24: 0 | DC24: 0 | DD24: 0 | DE24: 0 | DF24: 0 | DG24: 0 | DH24: 0 | DI24: 0 | DJ24: 0 | DK24: 0 | DL24: 0 | DO24: 0 | DP24: 0 | DQ24: 0 | DR24: 0 | DS24: 0 | DT24: 0 | DU24: 0 | DV24: 0 | DW24: 0 | DX24: 0 | DY24: 0 | DZ24: 0
E25: HP | F25: LVCMOS 1.8V 12mA | L25: No | M25: Off | N25: Low Power | S25: 0.125 | T25: SDR | U25: 1 | V25: 0 | W25: 0 | X25: 0 | Y25: 0 | Z25: 0 | AA25: 0 | AB25: 0 | AC25: 0 | AD25: None | AG25: 0 | AH25: 0 | AI25: 0 | AJ25: 94 | AK25: 0 | AL25: 1 | AP25: 1.8 | AQ25: 0 | AS25: 0 | AT25: 0 | AU25: 0 | AZ25: 0 | BA25: 0 | BC25: 0 | BD25: 0 | BE25: 0 | BF25: 0 | BG25: 0 | BH25: 0 | BI25: 0 | BJ25: 0 | BK25: 0 | BL25: 0 | BM25: 0 | BN25: 0 | BO25: 0 | BP25: 0 | BV25: 0 | BW25: BW1 | BX25: 0 | CA25: BV2 | CB25: 0 | CC25: 0 | CD25: 0 | CF25: 0 | CG25: CA1 | CH25: CC1 | CI25: 0 | CJ25: 170 | CK25: 234 | CL25: 0 | CM25: 0 | CN25: 0 | CO25: 0 | CP25: 0 | CQ25: 0 | CR25: 0 | CS25: 0 | CT25: 0 | CU25: 0 | CV25: 0 | CW25: 0 | CX25: 0 | CY25: 0 | CZ25: 0 | DA25: 0.5 | DB25: 0 | DC25: 0 | DD25: 0 | DE25: 0 | DF25: 0 | DG25: 0 | DH25: 0 | DI25: 0 | DJ25: 0 | DK25: 0 | DL25: 0 | DO25: 0 | DP25: 0 | DQ25: 0 | DR25: 0 | DS25: 0 | DT25: 0 | DU25: 0 | DV25: 0 | DW25: 0 | DX25: 0 | DY25: 0 | DZ25: 0
E26: HP | F26: LVCMOS 1.8V 12mA | L26: No | M26: Off | N26: Low Power | S26: 0.125 | T26: SDR | U26: 1 | V26: 0 | W26: 0 | X26: 0 | Y26: 0 | Z26: 0 | AA26: 0 | AB26: 0 | AC26: 0 | AD26: None | AG26: 0 | AH26: 0 | AI26: 0 | AJ26: 94 | AK26: 0 | AL26: 1 | AP26: 1.8 | AQ26: 0 | AS26: 0 | AT26: 0 | AU26: 0 | AZ26: 0 | BA26: 0 | BC26: 0 | BD26: 0 | BE26: 0 | BF26: 0 | BG26: 0 | BH26: 0 | BI26: 0 | BJ26: 0 | BK26: 0 | BL26: 0 | BM26: 0 | BN26: 0 | BO26: 0 | BP26: 0 | BV26: 0 | BW26: BW1 | BX26: 0 | CA26: BV2 | CB26: 0 | CC26: 0 | CD26: 0 | CF26: 0 | CG26: CA1 | CH26: CC1 | CI26: 0 | CJ26: 170 | CK26: 234 | CL26: 0 | CM26: 0 | CN26: 0 | CO26: 0 | CP26: 0 | CQ26: 0 | CR26: 0 | CS26: 0 | CT26: 0 | CU26: 0 | CV26: 0 | CW26: 0 | CX26: 0 | CY26: 0 | CZ26: 0 | DA26: 0.5 | DB26: 0 | DC26: 0 | DD26: 0 | DE26: 0 | DF26: 0 | DG26: 0 | DH26: 0 | DI26: 0 | DJ26: 0 | DK26: 0 | DL26: 0 | DO26: 0 | DP26: 0 | DQ26: 0 | DR26: 0 | DS26: 0 | DT26: 0 | DU26: 0 | DV26: 0 | DW26: 0 | DX26: 0 | DY26: 0 | DZ26: 0
E27: HP | F27: LVCMOS 1.8V 12mA | L27: No | M27: Off | N27: Low Power | S27: 0.125 | T27: SDR | U27: 1 | V27: 0 | W27: 0 | X27: 0 | Y27: 0 | Z27: 0 | AA27: 0 | AB27: 0 | AC27: 0 | AD27: None | AG27: 0 | AH27: 0 | AI27: 0 | AJ27: 94 | AK27: 0 | AL27: 1 | AP27: 1.8 | AQ27: 0 | AS27: 0 | AT27: 0 | AU27: 0 | AZ27: 0 | BA27: 0 | BC27: 0 | BD27: 0 | BE27: 0 | BF27: 0 | BG27: 0 | BH27: 0 | BI27: 0 | BJ27: 0 | BK27: 0 | BL27: 0 | BM27: 0 | BN27: 0 | BO27: 0 | BP27: 0 | BV27: 0 | BW27: BW1 | BX27: 0 | CA27: BV2 | CB27: 0 | CC27: 0 | CD27: 0 | CF27: 0 | CG27: CA1 | CH27: CC1 | CI27: 0 | CJ27: 170 | CK27: 234 | CL27: 0 | CM27: 0 | CN27: 0 | CO27: 0 | CP27: 0 | CQ27: 0 | CR27: 0 | CS27: 0 | CT27: 0 | CU27: 0 | CV27: 0 | CW27: 0 | CX27: 0 | CY27: 0 | CZ27: 0 | DA27: 0.5 | DB27: 0 | DC27: 0 | DD27: 0 | DE27: 0 | DF27: 0 | DG27: 0 | DH27: 0 | DI27: 0 | DJ27: 0 | DK27: 0 | DL27: 0 | DO27: 0 | DP27: 0 | DQ27: 0 | DR27: 0 | DS27: 0 | DT27: 0 | DU27: 0 | DV27: 0 | DW27: 0 | DX27: 0 | DY27: 0 | DZ27: 0
E28: HP | F28: LVCMOS 1.8V 12mA | L28: No | M28: Off | N28: Low Power | S28: 0.125 | T28: SDR | U28: 1 | V28: 0 | W28: 0 | X28: 0 | Y28: 0 | Z28: 0 | AA28: 0 | AB28: 0 | AC28: 0 | AD28: None | AG28: 0 | AH28: 0 | AI28: 0 | AJ28: 94 | AK28: 0 | AL28: 1 | AP28: 1.8 | AQ28: 0 | AS28: 0 | AT28: 0 | AU28: 0 | AZ28: 0 | BA28: 0 | BC28: 0 | BD28: 0 | BE28: 0 | BF28: 0 | BG28: 0 | BH28: 0 | BI28: 0 | BJ28: 0 | BK28: 0 | BL28: 0 | BM28: 0 | BN28: 0 | BO28: 0 | BP28: 0 | BV28: 0 | BW28: BW1 | BX28: 0 | CA28: BV2 | CB28: 0 | CC28: 0 | CD28: 0 | CF28: 0 | CG28: CA1 | CH28: CC1 | CI28: 0 | CJ28: 170 | CK28: 234 | CL28: 0 | CM28: 0 | CN28: 0 | CO28: 0 | CP28: 0 | CQ28: 0 | CR28: 0 | CS28: 0 | CT28: 0 | CU28: 0 | CV28: 0 | CW28: 0 | CX28: 0 | CY28: 0 | CZ28: 0 | DA28: 0.5 | DB28: 0 | DC28: 0 | DD28: 0 | DE28: 0 | DF28: 0 | DG28: 0 | DH28: 0 | DI28: 0 | DJ28: 0 | DK28: 0 | DL28: 0 | DO28: 0 | DP28: 0 | DQ28: 0 | DR28: 0 | DS28: 0 | DT28: 0 | DU28: 0 | DV28: 0 | DW28: 0 | DX28: 0 | DY28: 0 | DZ28: 0
E29: HP | F29: LVCMOS 1.8V 12mA | L29: No | M29: Off | N29: Low Power | S29: 0.125 | T29: SDR | U29: 1 | V29: 0 | W29: 0 | X29: 0 | Y29: 0 | Z29: 0 | AA29: 0 | AB29: 0 | AC29: 0 | AD29: None | AG29: 0 | AH29: 0 | AI29: 0 | AJ29: 94 | AK29: 0 | AL29: 1 | AP29: 1.8 | AQ29: 0 | AS29: 0 | AT29: 0 | AU29: 0 | AZ29: 0 | BA29: 0 | BC29: 0 | BD29: 0 | BE29: 0 | BF29: 0 | BG29: 0 | BH29: 0 | BI29: 0 | BJ29: 0 | BK29: 0 | BL29: 0 | BM29: 0 | BN29: 0 | BO29: 0 | BP29: 0 | BV29: 0 | BW29: BW1 | BX29: 0 | CA29: BV2 | CB29: 0 | CC29: 0 | CD29: 0 | CF29: 0 | CG29: CA1 | CH29: CC1 | CI29: 0 | CJ29: 170 | CK29: 234 | CL29: 0 | CM29: 0 | CN29: 0 | CO29: 0 | CP29: 0 | CQ29: 0 | CR29: 0 | CS29: 0 | CT29: 0 | CU29: 0 | CV29: 0 | CW29: 0 | CX29: 0 | CY29: 0 | CZ29: 0 | DA29: 0.5 | DB29: 0 | DC29: 0 | DD29: 0 | DE29: 0 | DF29: 0 | DG29: 0 | DH29: 0 | DI29: 0 | DJ29: 0 | DK29: 0 | DL29: 0 | DO29: 0 | DP29: 0 | DQ29: 0 | DR29: 0 | DS29: 0 | DT29: 0 | DU29: 0 | DV29: 0 | DW29: 0 | DX29: 0 | DY29: 0 | DZ29: 0
E30: HP | F30: LVCMOS 1.8V 12mA | L30: No | M30: Off | N30: Low Power | S30: 0.125 | T30: SDR | U30: 1 | V30: 0 | W30: 0 | X30: 0 | Y30: 0 | Z30: 0 | AA30: 0 | AB30: 0 | AC30: 0 | AD30: None | AG30: 0 | AH30: 0 | AI30: 0 | AJ30: 94 | AK30: 0 | AL30: 1 | AP30: 1.8 | AQ30: 0 | AS30: 0 | AT30: 0 | AU30: 0 | AZ30: 0 | BA30: 0 | BC30: 0 | BD30: 0 | BE30: 0 | BF30: 0 | BG30: 0 | BH30: 0 | BI30: 0 | BJ30: 0 | BK30: 0 | BL30: 0 | BM30: 0 | BN30: 0 | BO30: 0 | BP30: 0 | BV30: 0 | BW30: BW1 | BX30: 0 | CA30: BV2 | CB30: 0 | CC30: 0 | CD30: 0 | CF30: 0 | CG30: CA1 | CH30: CC1 | CI30: 0 | CJ30: 170 | CK30: 234 | CL30: 0 | CM30: 0 | CN30: 0 | CO30: 0 | CP30: 0 | CQ30: 0 | CR30: 0 | CS30: 0 | CT30: 0 | CU30: 0 | CV30: 0 | CW30: 0 | CX30: 0 | CY30: 0 | CZ30: 0 | DA30: 0.5 | DB30: 0 | DC30: 0 | DD30: 0 | DE30: 0 | DF30: 0 | DG30: 0 | DH30: 0 | DI30: 0 | DJ30: 0 | DK30: 0 | DL30: 0 | DO30: 0 | DP30: 0 | DQ30: 0 | DR30: 0 | DS30: 0 | DT30: 0 | DU30: 0 | DV30: 0 | DW30: 0 | DX30: 0 | DY30: 0 | DZ30: 0
E31: HP | F31: LVCMOS 1.8V 12mA | L31: No | M31: Off | N31: Low Power | S31: 0.125 | T31: SDR | U31: 1 | V31: 0 | W31: 0 | X31: 0 | Y31: 0 | Z31: 0 | AA31: 0 | AB31: 0 | AC31: 0 | AD31: None | AG31: 0 | AH31: 0 | AI31: 0 | AJ31: 94 | AK31: 0 | AL31: 1 | AP31: 1.8 | AQ31: 0 | AS31: 0 | AT31: 0 | AU31: 0 | AZ31: 0 | BA31: 0 | BC31: 0 | BD31: 0 | BE31: 0 | BF31: 0 | BG31: 0 | BH31: 0 | BI31: 0 | BJ31: 0 | BK31: 0 | BL31: 0 | BM31: 0 | BN31: 0 | BO31: 0 | BP31: 0 | BV31: 0 | BW31: BW1 | BX31: 0 | CA31: BV2 | CB31: 0 | CC31: 0 | CD31: 0 | CF31: 0 | CG31: CA1 | CH31: CC1 | CI31: 0 | CJ31: 170 | CK31: 234 | CL31: 0 | CM31: 0 | CN31: 0 | CO31: 0 | CP31: 0 | CQ31: 0 | CR31: 0 | CS31: 0 | CT31: 0 | CU31: 0 | CV31: 0 | CW31: 0 | CX31: 0 | CY31: 0 | CZ31: 0 | DA31: 0.5 | DB31: 0 | DC31: 0 | DD31: 0 | DE31: 0 | DF31: 0 | DG31: 0 | DH31: 0 | DI31: 0 | DJ31: 0 | DK31: 0 | DL31: 0 | DO31: 0 | DP31: 0 | DQ31: 0 | DR31: 0 | DS31: 0 | DT31: 0 | DU31: 0 | DV31: 0 | DW31: 0 | DX31: 0 | DY31: 0 | DZ31: 0
E32: HP | F32: LVCMOS 1.8V 12mA | L32: No | M32: Off | N32: Low Power | S32: 0.125 | T32: SDR | U32: 1 | V32: 0 | W32: 0 | X32: 0 | Y32: 0 | Z32: 0 | AA32: 0 | AB32: 0 | AC32: 0 | AD32: None | AG32: 0 | AH32: 0 | AI32: 0 | AJ32: 94 | AK32: 0 | AL32: 1 | AP32: 1.8 | AQ32: 0 | AS32: 0 | AT32: 0 | AU32: 0 | AZ32: 0 | BA32: 0 | BC32: 0 | BD32: 0 | BE32: 0 | BF32: 0 | BG32: 0 | BH32: 0 | BI32: 0 | BJ32: 0 | BK32: 0 | BL32: 0 | BM32: 0 | BN32: 0 | BO32: 0 | BP32: 0 | BV32: 0 | BW32: BW1 | BX32: 0 | CA32: BV2 | CB32: 0 | CC32: 0 | CD32: 0 | CF32: 0 | CG32: CA1 | CH32: CC1 | CI32: 0 | CJ32: 170 | CK32: 234 | CL32: 0 | CM32: 0 | CN32: 0 | CO32: 0 | CP32: 0 | CQ32: 0 | CR32: 0 | CS32: 0 | CT32: 0 | CU32: 0 | CV32: 0 | CW32: 0 | CX32: 0 | CY32: 0 | CZ32: 0 | DA32: 0.5 | DB32: 0 | DC32: 0 | DD32: 0 | DE32: 0 | DF32: 0 | DG32: 0 | DH32: 0 | DI32: 0 | DJ32: 0 | DK32: 0 | DL32: 0 | DO32: 0 | DP32: 0 | DQ32: 0 | DR32: 0 | DS32: 0 | DT32: 0 | DU32: 0 | DV32: 0 | DW32: 0 | DX32: 0 | DY32: 0 | DZ32: 0
E33: HP | F33: LVCMOS 1.8V 12mA | L33: No | M33: Off | N33: Low Power | S33: 0.125 | T33: SDR | U33: 1 | V33: 0 | W33: 0 | X33: 0 | Y33: 0 | Z33: 0 | AA33: 0 | AB33: 0 | AC33: 0 | AD33: None | AG33: 0 | AH33: 0 | AI33: 0 | AJ33: 94 | AK33: 0 | AL33: 1 | AP33: 1.8 | AQ33: 0 | AS33: 0 | AT33: 0 | AU33: 0 | AZ33: 0 | BA33: 0 | BC33: 0 | BD33: 0 | BE33: 0 | BF33: 0 | BG33: 0 | BH33: 0 | BI33: 0 | BJ33: 0 | BK33: 0 | BL33: 0 | BM33: 0 | BN33: 0 | BO33: 0 | BP33: 0 | BV33: 0 | BW33: BW1 | BX33: 0 | CA33: BV2 | CB33: 0 | CC33: 0 | CD33: 0 | CF33: 0 | CG33: CA1 | CH33: CC1 | CI33: 0 | CJ33: 170 | CK33: 234 | CL33: 0 | CM33: 0 | CN33: 0 | CO33: 0 | CP33: 0 | CQ33: 0 | CR33: 0 | CS33: 0 | CT33: 0 | CU33: 0 | CV33: 0 | CW33: 0 | CX33: 0 | CY33: 0 | CZ33: 0 | DA33: 0.5 | DB33: 0 | DC33: 0 | DD33: 0 | DE33: 0 | DF33: 0 | DG33: 0 | DH33: 0 | DI33: 0 | DJ33: 0 | DK33: 0 | DL33: 0 | DO33: 0 | DP33: 0 | DQ33: 0 | DR33: 0 | DS33: 0 | DT33: 0 | DU33: 0 | DV33: 0 | DW33: 0 | DX33: 0 | DY33: 0 | DZ33: 0
E34: HP | F34: LVCMOS 1.8V 12mA | L34: No | M34: Off | N34: Low Power | S34: 0.125 | T34: SDR | U34: 1 | V34: 0 | W34: 0 | X34: 0 | Y34: 0 | Z34: 0 | AA34: 0 | AB34: 0 | AC34: 0 | AD34: None | AG34: 0 | AH34: 0 | AI34: 0 | AJ34: 94 | AK34: 0 | AL34: 1 | AP34: 1.8 | AQ34: 0 | AS34: 0 | AT34: 0 | AU34: 0 | AZ34: 0 | BA34: 0 | BC34: 0 | BD34: 0 | BE34: 0 | BF34: 0 | BG34: 0 | BH34: 0 | BI34: 0 | BJ34: 0 | BK34: 0 | BL34: 0 | BM34: 0 | BN34: 0 | BO34: 0 | BP34: 0 | BV34: 0 | BW34: BW1 | BX34: 0 | CA34: BV2 | CB34: 0 | CC34: 0 | CD34: 0 | CF34: 0 | CG34: CA1 | CH34: CC1 | CI34: 0 | CJ34: 170 | CK34: 234 | CL34: 0 | CM34: 0 | CN34: 0 | CO34: 0 | CP34: 0 | CQ34: 0 | CR34: 0 | CS34: 0 | CT34: 0 | CU34: 0 | CV34: 0 | CW34: 0 | CX34: 0 | CY34: 0 | CZ34: 0 | DA34: 0.5 | DB34: 0 | DC34: 0 | DD34: 0 | DE34: 0 | DF34: 0 | DG34: 0 | DH34: 0 | DI34: 0 | DJ34: 0 | DK34: 0 | DL34: 0 | DO34: 0 | DP34: 0 | DQ34: 0 | DR34: 0 | DS34: 0 | DT34: 0 | DU34: 0 | DV34: 0 | DW34: 0 | DX34: 0 | DY34: 0 | DZ34: 0
E35: HP | F35: LVCMOS 1.8V 12mA | L35: No | M35: Off | N35: Low Power | S35: 0.125 | T35: SDR | U35: 1 | V35: 0 | W35: 0 | X35: 0 | Y35: 0 | Z35: 0 | AA35: 0 | AB35: 0 | AC35: 0 | AD35: None | AG35: 0 | AH35: 0 | AI35: 0 | AJ35: 94 | AK35: 0 | AL35: 1 | AP35: 1.8 | AQ35: 0 | AS35: 0 | AT35: 0 | AU35: 0 | AZ35: 0 | BA35: 0 | BC35: 0 | BD35: 0 | BE35: 0 | BF35: 0 | BG35: 0 | BH35: 0 | BI35: 0 | BJ35: 0 | BK35: 0 | BL35: 0 | BM35: 0 | BN35: 0 | BO35: 0 | BP35: 0 | BV35: 0 | BW35: BW1 | BX35: 0 | CA35: BV2 | CB35: 0 | CC35: 0 | CD35: 0 | CF35: 0 | CG35: CA1 | CH35: CC1 | CI35: 0 | CJ35: 170 | CK35: 234 | CL35: 0 | CM35: 0 | CN35: 0 | CO35: 0 | CP35: 0 | CQ35: 0 | CR35: 0 | CS35: 0 | CT35: 0 | CU35: 0 | CV35: 0 | CW35: 0 | CX35: 0 | CY35: 0 | CZ35: 0 | DA35: 0.5 | DB35: 0 | DC35: 0 | DD35: 0 | DE35: 0 | DF35: 0 | DG35: 0 | DH35: 0 | DI35: 0 | DJ35: 0 | DK35: 0 | DL35: 0 | DO35: 0 | DP35: 0 | DQ35: 0 | DR35: 0 | DS35: 0 | DT35: 0 | DU35: 0 | DV35: 0 | DW35: 0 | DX35: 0 | DY35: 0 | DZ35: 0
E36: HP | F36: LVCMOS 1.8V 12mA | L36: No | M36: Off | N36: Low Power | S36: 0.125 | T36: SDR | U36: 1 | V36: 0 | W36: 0 | X36: 0 | Y36: 0 | Z36: 0 | AA36: 0 | AB36: 0 | AC36: 0 | AD36: None | AG36: 0 | AH36: 0 | AI36: 0 | AJ36: 94 | AK36: 0 | AL36: 1 | AP36: 1.8 | AQ36: 0 | AS36: 0 | AT36: 0 | AU36: 0 | AZ36: 0 | BA36: 0 | BC36: 0 | BD36: 0 | BE36: 0 | BF36: 0 | BG36: 0 | BH36: 0 | BI36: 0 | BJ36: 0 | BK36: 0 | BL36: 0 | BM36: 0 | BN36: 0 | BO36: 0 | BP36: 0 | BV36: 0 | BW36: BW1 | BX36: 0 | CA36: BV2 | CB36: 0 | CC36: 0 | CD36: 0 | CF36: 0 | CG36: CA1 | CH36: CC1 | CI36: 0 | CJ36: 170 | CK36: 234 | CL36: 0 | CM36: 0 | CN36: 0 | CO36: 0 | CP36: 0 | CQ36: 0 | CR36: 0 | CS36: 0 | CT36: 0 | CU36: 0 | CV36: 0 | CW36: 0 | CX36: 0 | CY36: 0 | CZ36: 0 | DA36: 0.5 | DB36: 0 | DC36: 0 | DD36: 0 | DE36: 0 | DF36: 0 | DG36: 0 | DH36: 0 | DI36: 0 | DJ36: 0 | DK36: 0 | DL36: 0 | DO36: 0 | DP36: 0 | DQ36: 0 | DR36: 0 | DS36: 0 | DT36: 0 | DU36: 0 | DV36: 0 | DW36: 0 | DX36: 0 | DY36: 0 | DZ36: 0
E37: HP | F37: LVCMOS 1.8V 12mA | L37: No | M37: Off | N37: Low Power | S37: 0.125 | T37: SDR | U37: 1 | V37: 0 | W37: 0 | X37: 0 | Y37: 0 | Z37: 0 | AA37: 0 | AB37: 0 | AC37: 0 | AD37: None | AG37: 0 | AH37: 0 | AI37: 0 | AJ37: 94 | AK37: 0 | AL37: 1 | AP37: 1.8 | AQ37: 0 | AS37: 0 | AT37: 0 | AU37: 0 | AZ37: 0 | BA37: 0 | BC37: 0 | BD37: 0 | BE37: 0 | BF37: 0 | BG37: 0 | BH37: 0 | BI37: 0 | BJ37: 0 | BK37: 0 | BL37: 0 | BM37: 0 | BN37: 0 | BO37: 0 | BP37: 0 | BV37: 0 | BW37: BW1 | BX37: 0 | CA37: BV2 | CB37: 0 | CC37: 0 | CD37: 0 | CF37: 0 | CG37: CA1 | CH37: CC1 | CI37: 0 | CJ37: 170 | CK37: 234 | CL37: 0 | CM37: 0 | CN37: 0 | CO37: 0 | CP37: 0 | CQ37: 0 | CR37: 0 | CS37: 0 | CT37: 0 | CU37: 0 | CV37: 0 | CW37: 0 | CX37: 0 | CY37: 0 | CZ37: 0 | DA37: 0.5 | DB37: 0 | DC37: 0 | DD37: 0 | DE37: 0 | DF37: 0 | DG37: 0 | DH37: 0 | DI37: 0 | DJ37: 0 | DK37: 0 | DL37: 0 | DO37: 0 | DP37: 0 | DQ37: 0 | DR37: 0 | DS37: 0 | DT37: 0 | DU37: 0 | DV37: 0 | DW37: 0 | DX37: 0 | DY37: 0 | DZ37: 0
E38: HP | F38: LVCMOS 1.8V 12mA | L38: No | M38: Off | N38: Low Power | S38: 0.125 | T38: SDR | U38: 1 | V38: 0 | W38: 0 | X38: 0 | Y38: 0 | Z38: 0 | AA38: 0 | AB38: 0 | AC38: 0 | AD38: None | AG38: 0 | AH38: 0 | AI38: 0 | AJ38: 94 | AK38: 0 | AL38: 1 | AP38: 1.8 | AQ38: 0 | AS38: 0 | AT38: 0 | AU38: 0 | AZ38: 0 | BA38: 0 | BC38: 0 | BD38: 0 | BE38: 0 | BF38: 0 | BG38: 0 | BH38: 0 | BI38: 0 | BJ38: 0 | BK38: 0 | BL38: 0 | BM38: 0 | BN38: 0 | BO38: 0 | BP38: 0 | BV38: 0 | BW38: BW1 | BX38: 0 | CA38: BV2 | CB38: 0 | CC38: 0 | CD38: 0 | CF38: 0 | CG38: CA1 | CH38: CC1 | CI38: 0 | CJ38: 170 | CK38: 234 | CL38: 0 | CM38: 0 | CN38: 0 | CO38: 0 | CP38: 0 | CQ38: 0 | CR38: 0 | CS38: 0 | CT38: 0 | CU38: 0 | CV38: 0 | CW38: 0 | CX38: 0 | CY38: 0 | CZ38: 0 | DA38: 0.5 | DB38: 0 | DC38: 0 | DD38: 0 | DE38: 0 | DF38: 0 | DG38: 0 | DH38: 0 | DI38: 0 | DJ38: 0 | DK38: 0 | DL38: 0 | DO38: 0 | DP38: 0 | DQ38: 0 | DR38: 0 | DS38: 0 | DT38: 0 | DU38: 0 | DV38: 0 | DW38: 0 | DX38: 0 | DY38: 0 | DZ38: 0
E39: HP | F39: LVCMOS 1.8V 12mA | L39: No | M39: Off | N39: Low Power | S39: 0.125 | T39: SDR | U39: 1 | V39: 0 | W39: 0 | X39: 0 | Y39: 0 | Z39: 0 | AA39: 0 | AB39: 0 | AC39: 0 | AD39: None | AG39: 0 | AH39: 0 | AI39: 0 | AJ39: 94 | AK39: 0 | AL39: 1 | AP39: 1.8 | AQ39: 0 | AS39: 0 | AT39: 0 | AU39: 0 | AZ39: 0 | BA39: 0 | BC39: 0 | BD39: 0 | BE39: 0 | BF39: 0 | BG39: 0 | BH39: 0 | BI39: 0 | BJ39: 0 | BK39: 0 | BL39: 0 | BM39: 0 | BN39: 0 | BO39: 0 | BP39: 0 | BV39: 0 | BW39: BW1 | BX39: 0 | CA39: BV2 | CB39: 0 | CC39: 0 | CD39: 0 | CF39: 0 | CG39: CA1 | CH39: CC1 | CI39: 0 | CJ39: 170 | CK39: 234 | CL39: 0 | CM39: 0 | CN39: 0 | CO39: 0 | CP39: 0 | CQ39: 0 | CR39: 0 | CS39: 0 | CT39: 0 | CU39: 0 | CV39: 0 | CW39: 0 | CX39: 0 | CY39: 0 | CZ39: 0 | DA39: 0.5 | DB39: 0 | DC39: 0 | DD39: 0 | DE39: 0 | DF39: 0 | DG39: 0 | DH39: 0 | DI39: 0 | DJ39: 0 | DK39: 0 | DL39: 0 | DO39: 0 | DP39: 0 | DQ39: 0 | DR39: 0 | DS39: 0 | DT39: 0 | DU39: 0 | DV39: 0 | DW39: 0 | DX39: 0 | DY39: 0 | DZ39: 0
E40: HP | F40: LVCMOS 1.8V 12mA | L40: No | M40: Off | N40: Low Power | S40: 0.125 | T40: SDR | U40: 1 | V40: 0 | W40: 0 | X40: 0 | Y40: 0 | Z40: 0 | AA40: 0 | AB40: 0 | AC40: 0 | AD40: None | AG40: 0 | AH40: 0 | AI40: 0 | AJ40: 94 | AK40: 0 | AL40: 1 | AP40: 1.8 | AQ40: 0 | AS40: 0 | AT40: 0 | AU40: 0 | AZ40: 0 | BA40: 0 | BC40: 0 | BD40: 0 | BE40: 0 | BF40: 0 | BG40: 0 | BH40: 0 | BI40: 0 | BJ40: 0 | BK40: 0 | BL40: 0 | BM40: 0 | BN40: 0 | BO40: 0 | BP40: 0 | BV40: 0 | BW40: BW1 | BX40: 0 | CA40: BV2 | CB40: 0 | CC40: 0 | CD40: 0 | CF40: 0 | CG40: CA1 | CH40: CC1 | CI40: 0 | CJ40: 170 | CK40: 234 | CL40: 0 | CM40: 0 | CN40: 0 | CO40: 0 | CP40: 0 | CQ40: 0 | CR40: 0 | CS40: 0 | CT40: 0 | CU40: 0 | CV40: 0 | CW40: 0 | CX40: 0 | CY40: 0 | CZ40: 0 | DA40: 0.5 | DB40: 0 | DC40: 0 | DD40: 0 | DE40: 0 | DF40: 0 | DG40: 0 | DH40: 0 | DI40: 0 | DJ40: 0 | DK40: 0 | DL40: 0 | DO40: 0 | DP40: 0 | DQ40: 0 | DR40: 0 | DS40: 0 | DT40: 0 | DU40: 0 | DV40: 0 | DW40: 0 | DX40: 0 | DY40: 0 | DZ40: 0
E41: HP | F41: LVCMOS 1.8V 12mA | L41: No | M41: Off | N41: Low Power | S41: 0.125 | T41: SDR | U41: 1 | V41: 0 | W41: 0 | X41: 0 | Y41: 0 | Z41: 0 | AA41: 0 | AB41: 0 | AC41: 0 | AD41: None | AG41: 0 | AH41: 0 | AI41: 0 | AJ41: 94 | AK41: 0 | AL41: 1 | AP41: 1.8 | AQ41: 0 | AS41: 0 | AT41: 0 | AU41: 0 | AZ41: 0 | BA41: 0 | BC41: 0 | BD41: 0 | BE41: 0 | BF41: 0 | BG41: 0 | BH41: 0 | BI41: 0 | BJ41: 0 | BK41: 0 | BL41: 0 | BM41: 0 | BN41: 0 | BO41: 0 | BP41: 0 | BV41: 0 | BW41: BW1 | BX41: 0 | CA41: BV2 | CB41: 0 | CC41: 0 | CD41: 0 | CF41: 0 | CG41: CA1 | CH41: CC1 | CI41: 0 | CJ41: 170 | CK41: 234 | CL41: 0 | CM41: 0 | CN41: 0 | CO41: 0 | CP41: 0 | CQ41: 0 | CR41: 0 | CS41: 0 | CT41: 0 | CU41: 0 | CV41: 0 | CW41: 0 | CX41: 0 | CY41: 0 | CZ41: 0 | DA41: 0.5 | DB41: 0 | DC41: 0 | DD41: 0 | DE41: 0 | DF41: 0 | DG41: 0 | DH41: 0 | DI41: 0 | DJ41: 0 | DK41: 0 | DL41: 0 | DO41: 0 | DP41: 0 | DQ41: 0 | DR41: 0 | DS41: 0 | DT41: 0 | DU41: 0 | DV41: 0 | DW41: 0 | DX41: 0 | DY41: 0 | DZ41: 0
E42: HP | F42: LVCMOS 1.8V 12mA | L42: No | M42: Off | N42: Low Power | S42: 0.125 | T42: SDR | U42: 1 | V42: 0 | W42: 0 | X42: 0 | Y42: 0 | Z42: 0 | AA42: 0 | AB42: 0 | AC42: 0 | AD42: None | AG42: 0 | AH42: 0 | AI42: 0 | AJ42: 94 | AK42: 0 | AL42: 1 | AP42: 1.8 | AQ42: 0 | AS42: 0 | AT42: 0 | AU42: 0 | AZ42: 0 | BA42: 0 | BC42: 0 | BD42: 0 | BE42: 0 | BF42: 0 | BG42: 0 | BH42: 0 | BI42: 0 | BJ42: 0 | BK42: 0 | BL42: 0 | BM42: 0 | BN42: 0 | BO42: 0 | BP42: 0 | BV42: 0 | BW42: BW1 | BX42: 0 | CA42: BV2 | CB42: 0 | CC42: 0 | CD42: 0 | CF42: 0 | CG42: CA1 | CH42: CC1 | CI42: 0 | CJ42: 170 | CK42: 234 | CL42: 0 | CM42: 0 | CN42: 0 | CO42: 0 | CP42: 0 | CQ42: 0 | CR42: 0 | CS42: 0 | CT42: 0 | CU42: 0 | CV42: 0 | CW42: 0 | CX42: 0 | CY42: 0 | CZ42: 0 | DA42: 0.5 | DB42: 0 | DC42: 0 | DD42: 0 | DE42: 0 | DF42: 0 | DG42: 0 | DH42: 0 | DI42: 0 | DJ42: 0 | DK42: 0 | DL42: 0 | DO42: 0 | DP42: 0 | DQ42: 0 | DR42: 0 | DS42: 0 | DT42: 0 | DU42: 0 | DV42: 0 | DW42: 0 | DX42: 0 | DY42: 0 | DZ42: 0
E43: HP | F43: LVCMOS 1.8V 12mA | L43: No | M43: Off | N43: Low Power | S43: 0.125 | T43: SDR | U43: 1 | V43: 0 | W43: 0 | X43: 0 | Y43: 0 | Z43: 0 | AA43: 0 | AB43: 0 | AC43: 0 | AD43: None | AG43: 0 | AH43: 0 | AI43: 0 | AJ43: 94 | AK43: 0 | AL43: 1 | AP43: 1.8 | AQ43: 0 | AS43: 0 | AT43: 0 | AU43: 0 | AZ43: 0 | BA43: 0 | BC43: 0 | BD43: 0 | BE43: 0 | BF43: 0 | BG43: 0 | BH43: 0 | BI43: 0 | BJ43: 0 | BK43: 0 | BL43: 0 | BM43: 0 | BN43: 0 | BO43: 0 | BP43: 0 | BV43: 0 | BW43: BW1 | BX43: 0 | CA43: BV2 | CB43: 0 | CC43: 0 | CD43: 0 | CF43: 0 | CG43: CA1 | CH43: CC1 | CI43: 0 | CJ43: 170 | CK43: 234 | CL43: 0 | CM43: 0 | CN43: 0 | CO43: 0 | CP43: 0 | CQ43: 0 | CR43: 0 | CS43: 0 | CT43: 0 | CU43: 0 | CV43: 0 | CW43: 0 | CX43: 0 | CY43: 0 | CZ43: 0 | DA43: 0.5 | DB43: 0 | DC43: 0 | DD43: 0 | DE43: 0 | DF43: 0 | DG43: 0 | DH43: 0 | DI43: 0 | DJ43: 0 | DK43: 0 | DL43: 0 | DO43: 0 | DP43: 0 | DQ43: 0 | DR43: 0 | DS43: 0 | DT43: 0 | DU43: 0 | DV43: 0 | DW43: 0 | DX43: 0 | DY43: 0 | DZ43: 0
E44: HP | F44: LVCMOS 1.8V 12mA | L44: No | M44: Off | N44: Low Power | S44: 0.125 | T44: SDR | U44: 1 | V44: 0 | W44: 0 | X44: 0 | Y44: 0 | Z44: 0 | AA44: 0 | AB44: 0 | AC44: 0 | AD44: None | AG44: 0 | AH44: 0 | AI44: 0 | AJ44: 94 | AK44: 0 | AL44: 1 | AP44: 1.8 | AQ44: 0 | AS44: 0 | AT44: 0 | AU44: 0 | AZ44: 0 | BA44: 0 | BC44: 0 | BD44: 0 | BE44: 0 | BF44: 0 | BG44: 0 | BH44: 0 | BI44: 0 | BJ44: 0 | BK44: 0 | BL44: 0 | BM44: 0 | BN44: 0 | BO44: 0 | BP44: 0 | BV44: 0 | BW44: BW1 | BX44: 0 | CA44: BV2 | CB44: 0 | CC44: 0 | CD44: 0 | CF44: 0 | CG44: CA1 | CH44: CC1 | CI44: 0 | CJ44: 170 | CK44: 234 | CL44: 0 | CM44: 0 | CN44: 0 | CO44: 0 | CP44: 0 | CQ44: 0 | CR44: 0 | CS44: 0 | CT44: 0 | CU44: 0 | CV44: 0 | CW44: 0 | CX44: 0 | CY44: 0 | CZ44: 0 | DA44: 0.5 | DB44: 0 | DC44: 0 | DD44: 0 | DE44: 0 | DF44: 0 | DG44: 0 | DH44: 0 | DI44: 0 | DJ44: 0 | DK44: 0 | DL44: 0 | DO44: 0 | DP44: 0 | DQ44: 0 | DR44: 0 | DS44: 0 | DT44: 0 | DU44: 0 | DV44: 0 | DW44: 0 | DX44: 0 | DY44: 0 | DZ44: 0
E45: HP | F45: LVCMOS 1.8V 12mA | L45: No | M45: Off | N45: Low Power | S45: 0.125 | T45: SDR | U45: 1 | V45: 0 | W45: 0 | X45: 0 | Y45: 0 | Z45: 0 | AA45: 0 | AB45: 0 | AC45: 0 | AD45: None | AG45: 0 | AH45: 0 | AI45: 0 | AJ45: 94 | AK45: 0 | AL45: 1 | AP45: 1.8 | AQ45: 0 | AS45: 0 | AT45: 0 | AU45: 0 | AZ45: 0 | BA45: 0 | BC45: 0 | BD45: 0 | BE45: 0 | BF45: 0 | BG45: 0 | BH45: 0 | BI45: 0 | BJ45: 0 | BK45: 0 | BL45: 0 | BM45: 0 | BN45: 0 | BO45: 0 | BP45: 0 | BV45: 0 | BW45: BW1 | BX45: 0 | CA45: BV2 | CB45: 0 | CC45: 0 | CD45: 0 | CF45: 0 | CG45: CA1 | CH45: CC1 | CI45: 0 | CJ45: 170 | CK45: 234 | CL45: 0 | CM45: 0 | CN45: 0 | CO45: 0 | CP45: 0 | CQ45: 0 | CR45: 0 | CS45: 0 | CT45: 0 | CU45: 0 | CV45: 0 | CW45: 0 | CX45: 0 | CY45: 0 | CZ45: 0 | DA45: 0.5 | DB45: 0 | DC45: 0 | DD45: 0 | DE45: 0 | DF45: 0 | DG45: 0 | DH45: 0 | DI45: 0 | DJ45: 0 | DK45: 0 | DL45: 0 | DO45: 0 | DP45: 0 | DQ45: 0 | DR45: 0 | DS45: 0 | DT45: 0 | DU45: 0 | DV45: 0 | DW45: 0 | DX45: 0 | DY45: 0 | DZ45: 0
E46: HP | F46: LVCMOS 1.8V 12mA | L46: No | M46: Off | N46: Low Power | S46: 0.125 | T46: SDR | U46: 1 | V46: 0 | W46: 0 | X46: 0 | Y46: 0 | Z46: 0 | AA46: 0 | AB46: 0 | AC46: 0 | AD46: None | AG46: 0 | AH46: 0 | AI46: 0 | AJ46: 94 | AK46: 0 | AL46: 1 | AP46: 1.8 | AQ46: 0 | AS46: 0 | AT46: 0 | AU46: 0 | AZ46: 0 | BA46: 0 | BC46: 0 | BD46: 0 | BE46: 0 | BF46: 0 | BG46: 0 | BH46: 0 | BI46: 0 | BJ46: 0 | BK46: 0 | BL46: 0 | BM46: 0 | BN46: 0 | BO46: 0 | BP46: 0 | BV46: 0 | BW46: BW1 | BX46: 0 | CA46: BV2 | CB46: 0 | CC46: 0 | CD46: 0 | CF46: 0 | CG46: CA1 | CH46: CC1 | CI46: 0 | CJ46: 170 | CK46: 234 | CL46: 0 | CM46: 0 | CN46: 0 | CO46: 0 | CP46: 0 | CQ46: 0 | CR46: 0 | CS46: 0 | CT46: 0 | CU46: 0 | CV46: 0 | CW46: 0 | CX46: 0 | CY46: 0 | CZ46: 0 | DA46: 0.5 | DB46: 0 | DC46: 0 | DD46: 0 | DE46: 0 | DF46: 0 | DG46: 0 | DH46: 0 | DI46: 0 | DJ46: 0 | DK46: 0 | DL46: 0 | DO46: 0 | DP46: 0 | DQ46: 0 | DR46: 0 | DS46: 0 | DT46: 0 | DU46: 0 | DV46: 0 | DW46: 0 | DX46: 0 | DY46: 0 | DZ46: 0
E47: HP | F47: LVCMOS 1.8V 12mA | L47: No | M47: Off | N47: Low Power | S47: 0.125 | T47: SDR | U47: 1 | V47: 0 | W47: 0 | X47: 0 | Y47: 0 | Z47: 0 | AA47: 0 | AB47: 0 | AC47: 0 | AD47: None | AG47: 0 | AH47: 0 | AI47: 0 | AJ47: 94 | AK47: 0 | AL47: 1 | AP47: 1.8 | AQ47: 0 | AS47: 0 | AT47: 0 | AU47: 0 | AZ47: 0 | BA47: 0 | BC47: 0 | BD47: 0 | BE47: 0 | BF47: 0 | BG47: 0 | BH47: 0 | BI47: 0 | BJ47: 0 | BK47: 0 | BL47: 0 | BM47: 0 | BN47: 0 | BO47: 0 | BP47: 0 | BV47: 0 | BW47: BW1 | BX47: 0 | CA47: BV2 | CB47: 0 | CC47: 0 | CD47: 0 | CF47: 0 | CG47: CA1 | CH47: CC1 | CI47: 0 | CJ47: 170 | CK47: 234 | CL47: 0 | CM47: 0 | CN47: 0 | CO47: 0 | CP47: 0 | CQ47: 0 | CR47: 0 | CS47: 0 | CT47: 0 | CU47: 0 | CV47: 0 | CW47: 0 | CX47: 0 | CY47: 0 | CZ47: 0 | DA47: 0.5 | DB47: 0 | DC47: 0 | DD47: 0 | DE47: 0 | DF47: 0 | DG47: 0 | DH47: 0 | DI47: 0 | DJ47: 0 | DK47: 0 | DL47: 0 | DO47: 0 | DP47: 0 | DQ47: 0 | DR47: 0 | DS47: 0 | DT47: 0 | DU47: 0 | DV47: 0 | DW47: 0 | DX47: 0 | DY47: 0 | DZ47: 0
E48: HP | F48: LVCMOS 1.8V 12mA | L48: No | M48: Off | N48: Low Power | S48: 0.125 | T48: SDR | U48: 1 | V48: 0 | W48: 0 | X48: 0 | Y48: 0 | Z48: 0 | AA48: 0 | AB48: 0 | AC48: 0 | AD48: None | AG48: 0 | AH48: 0 | AI48: 0 | AJ48: 94 | AK48: 0 | AL48: 1 | AP48: 1.8 | AQ48: 0 | AS48: 0 | AT48: 0 | AU48: 0 | AZ48: 0 | BA48: 0 | BC48: 0 | BD48: 0 | BE48: 0 | BF48: 0 | BG48: 0 | BH48: 0 | BI48: 0 | BJ48: 0 | BK48: 0 | BL48: 0 | BM48: 0 | BN48: 0 | BO48: 0 | BP48: 0 | BV48: 0 | BW48: BW1 | BX48: 0 | CA48: BV2 | CB48: 0 | CC48: 0 | CD48: 0 | CF48: 0 | CG48: CA1 | CH48: CC1 | CI48: 0 | CJ48: 170 | CK48: 234 | CL48: 0 | CM48: 0 | CN48: 0 | CO48: 0 | CP48: 0 | CQ48: 0 | CR48: 0 | CS48: 0 | CT48: 0 | CU48: 0 | CV48: 0 | CW48: 0 | CX48: 0 | CY48: 0 | CZ48: 0 | DA48: 0.5 | DB48: 0 | DC48: 0 | DD48: 0 | DE48: 0 | DF48: 0 | DG48: 0 | DH48: 0 | DI48: 0 | DJ48: 0 | DK48: 0 | DL48: 0 | DO48: 0 | DP48: 0 | DQ48: 0 | DR48: 0 | DS48: 0 | DT48: 0 | DU48: 0 | DV48: 0 | DW48: 0 | DX48: 0 | DY48: 0 | DZ48: 0
E49: HP | F49: LVCMOS 1.8V 12mA | L49: No | M49: Off | N49: Low Power | S49: 0.125 | T49: SDR | U49: 1 | V49: 0 | W49: 0 | X49: 0 | Y49: 0 | Z49: 0 | AA49: 0 | AB49: 0 | AC49: 0 | AD49: None | AG49: 0 | AH49: 0 | AI49: 0 | AJ49: 94 | AK49: 0 | AL49: 1 | AP49: 1.8 | AQ49: 0 | AS49: 0 | AT49: 0 | AU49: 0 | AZ49: 0 | BA49: 0 | BC49: 0 | BD49: 0 | BE49: 0 | BF49: 0 | BG49: 0 | BH49: 0 | BI49: 0 | BJ49: 0 | BK49: 0 | BL49: 0 | BM49: 0 | BN49: 0 | BO49: 0 | BP49: 0 | BV49: 0 | BW49: BW1 | BX49: 0 | CA49: BV2 | CB49: 0 | CC49: 0 | CD49: 0 | CF49: 0 | CG49: CA1 | CH49: CC1 | CI49: 0 | CJ49: 170 | CK49: 234 | CL49: 0 | CM49: 0 | CN49: 0 | CO49: 0 | CP49: 0 | CQ49: 0 | CR49: 0 | CS49: 0 | CT49: 0 | CU49: 0 | CV49: 0 | CW49: 0 | CX49: 0 | CY49: 0 | CZ49: 0 | DA49: 0.5 | DB49: 0 | DC49: 0 | DD49: 0 | DE49: 0 | DF49: 0 | DG49: 0 | DH49: 0 | DI49: 0 | DJ49: 0 | DK49: 0 | DL49: 0 | DO49: 0 | DP49: 0 | DQ49: 0 | DR49: 0 | DS49: 0 | DT49: 0 | DU49: 0 | DV49: 0 | DW49: 0 | DX49: 0 | DY49: 0 | DZ49: 0
E50: HP | F50: LVCMOS 1.8V 12mA | L50: No | M50: Off | N50: Low Power | S50: 0.125 | T50: SDR | U50: 1 | V50: 0 | W50: 0 | X50: 0 | Y50: 0 | Z50: 0 | AA50: 0 | AB50: 0 | AC50: 0 | AD50: None | AG50: 0 | AH50: 0 | AI50: 0 | AJ50: 94 | AK50: 0 | AL50: 1 | AP50: 1.8 | AQ50: 0 | AS50: 0 | AT50: 0 | AU50: 0 | AZ50: 0 | BA50: 0 | BC50: 0 | BD50: 0 | BE50: 0 | BF50: 0 | BG50: 0 | BH50: 0 | BI50: 0 | BJ50: 0 | BK50: 0 | BL50: 0 | BM50: 0 | BN50: 0 | BO50: 0 | BP50: 0 | BV50: 0 | BW50: BW1 | BX50: 0 | CA50: BV2 | CB50: 0 | CC50: 0 | CD50: 0 | CF50: 0 | CG50: CA1 | CH50: CC1 | CI50: 0 | CJ50: 170 | CK50: 234 | CL50: 0 | CM50: 0 | CN50: 0 | CO50: 0 | CP50: 0 | CQ50: 0 | CR50: 0 | CS50: 0 | CT50: 0 | CU50: 0 | CV50: 0 | CW50: 0 | CX50: 0 | CY50: 0 | CZ50: 0 | DA50: 0.5 | DB50: 0 | DC50: 0 | DD50: 0 | DE50: 0 | DF50: 0 | DG50: 0 | DH50: 0 | DI50: 0 | DJ50: 0 | DK50: 0 | DL50: 0 | DO50: 0 | DP50: 0 | DQ50: 0 | DR50: 0 | DS50: 0 | DT50: 0 | DU50: 0 | DV50: 0 | DW50: 0 | DX50: 0 | DY50: 0 | DZ50: 0
E51: HP | F51: LVCMOS 1.8V 12mA | L51: No | M51: Off | N51: Low Power | S51: 0.125 | T51: SDR | U51: 1 | V51: 0 | W51: 0 | X51: 0 | Y51: 0 | Z51: 0 | AA51: 0 | AB51: 0 | AC51: 0 | AD51: None | AG51: 0 | AH51: 0 | AI51: 0 | AJ51: 94 | AK51: 0 | AL51: 1 | AP51: 1.8 | AQ51: 0 | AS51: 0 | AT51: 0 | AU51: 0 | AZ51: 0 | BA51: 0 | BC51: 0 | BD51: 0 | BE51: 0 | BF51: 0 | BG51: 0 | BH51: 0 | BI51: 0 | BJ51: 0 | BK51: 0 | BL51: 0 | BM51: 0 | BN51: 0 | BO51: 0 | BP51: 0 | BV51: 0 | BW51: BW1 | BX51: 0 | CA51: BV2 | CB51: 0 | CC51: 0 | CD51: 0 | CF51: 0 | CG51: CA1 | CH51: CC1 | CI51: 0 | CJ51: 170 | CK51: 234 | CL51: 0 | CM51: 0 | CN51: 0 | CO51: 0 | CP51: 0 | CQ51: 0 | CR51: 0 | CS51: 0 | CT51: 0 | CU51: 0 | CV51: 0 | CW51: 0 | CX51: 0 | CY51: 0 | CZ51: 0 | DA51: 0.5 | DB51: 0 | DC51: 0 | DD51: 0 | DE51: 0 | DF51: 0 | DG51: 0 | DH51: 0 | DI51: 0 | DJ51: 0 | DK51: 0 | DL51: 0 | DO51: 0 | DP51: 0 | DQ51: 0 | DR51: 0 | DS51: 0 | DT51: 0 | DU51: 0 | DV51: 0 | DW51: 0 | DX51: 0 | DY51: 0 | DZ51: 0
E52: HP | F52: LVCMOS 1.8V 12mA | L52: No | M52: Off | N52: Low Power | S52: 0.125 | T52: SDR | U52: 1 | V52: 0 | W52: 0 | X52: 0 | Y52: 0 | Z52: 0 | AA52: 0 | AB52: 0 | AC52: 0 | AD52: None | AG52: 0 | AH52: 0 | AI52: 0 | AJ52: 94 | AK52: 0 | AL52: 1 | AP52: 1.8 | AQ52: 0 | AS52: 0 | AT52: 0 | AU52: 0 | AZ52: 0 | BA52: 0 | BC52: 0 | BD52: 0 | BE52: 0 | BF52: 0 | BG52: 0 | BH52: 0 | BI52: 0 | BJ52: 0 | BK52: 0 | BL52: 0 | BM52: 0 | BN52: 0 | BO52: 0 | BP52: 0 | BV52: 0 | BW52: BW1 | BX52: 0 | CA52: BV2 | CB52: 0 | CC52: 0 | CD52: 0 | CF52: 0 | CG52: CA1 | CH52: CC1 | CI52: 0 | CJ52: 170 | CK52: 234 | CL52: 0 | CM52: 0 | CN52: 0 | CO52: 0 | CP52: 0 | CQ52: 0 | CR52: 0 | CS52: 0 | CT52: 0 | CU52: 0 | CV52: 0 | CW52: 0 | CX52: 0 | CY52: 0 | CZ52: 0 | DA52: 0.5 | DB52: 0 | DC52: 0 | DD52: 0 | DE52: 0 | DF52: 0 | DG52: 0 | DH52: 0 | DI52: 0 | DJ52: 0 | DK52: 0 | DL52: 0 | DO52: 0 | DP52: 0 | DQ52: 0 | DR52: 0 | DS52: 0 | DT52: 0 | DU52: 0 | DV52: 0 | DW52: 0 | DX52: 0 | DY52: 0 | DZ52: 0
E53: HP | F53: LVCMOS 1.8V 12mA | L53: No | M53: Off | N53: Low Power | S53: 0.125 | T53: SDR | U53: 1 | V53: 0 | W53: 0 | X53: 0 | Y53: 0 | Z53: 0 | AA53: 0 | AB53: 0 | AC53: 0 | AD53: None | AG53: 0 | AH53: 0 | AI53: 0 | AJ53: 94 | AK53: 0 | AL53: 1 | AP53: 1.8 | AQ53: 0 | AS53: 0 | AT53: 0 | AU53: 0 | AZ53: 0 | BA53: 0 | BC53: 0 | BD53: 0 | BE53: 0 | BF53: 0 | BG53: 0 | BH53: 0 | BI53: 0 | BJ53: 0 | BK53: 0 | BL53: 0 | BM53: 0 | BN53: 0 | BO53: 0 | BP53: 0 | BV53: 0 | BW53: BW1 | BX53: 0 | CA53: BV2 | CB53: 0 | CC53: 0 | CD53: 0 | CF53: 0 | CG53: CA1 | CH53: CC1 | CI53: 0 | CJ53: 170 | CK53: 234 | CL53: 0 | CM53: 0 | CN53: 0 | CO53: 0 | CP53: 0 | CQ53: 0 | CR53: 0 | CS53: 0 | CT53: 0 | CU53: 0 | CV53: 0 | CW53: 0 | CX53: 0 | CY53: 0 | CZ53: 0 | DA53: 0.5 | DB53: 0 | DC53: 0 | DD53: 0 | DE53: 0 | DF53: 0 | DG53: 0 | DH53: 0 | DI53: 0 | DJ53: 0 | DK53: 0 | DL53: 0 | DO53: 0 | DP53: 0 | DQ53: 0 | DR53: 0 | DS53: 0 | DT53: 0 | DU53: 0 | DV53: 0 | DW53: 0 | DX53: 0 | DY53: 0 | DZ53: 0
E54: HP | F54: LVCMOS 1.8V 12mA | L54: No | M54: Off | N54: Low Power | S54: 0.125 | T54: SDR | U54: 1 | V54: 0 | W54: 0 | X54: 0 | Y54: 0 | Z54: 0 | AA54: 0 | AB54: 0 | AC54: 0 | AD54: None | AG54: 0 | AH54: 0 | AI54: 0 | AJ54: 94 | AK54: 0 | AL54: 1 | AP54: 1.8 | AQ54: 0 | AS54: 0 | AT54: 0 | AU54: 0 | AZ54: 0 | BA54: 0 | BC54: 0 | BD54: 0 | BE54: 0 | BF54: 0 | BG54: 0 | BH54: 0 | BI54: 0 | BJ54: 0 | BK54: 0 | BL54: 0 | BM54: 0 | BN54: 0 | BO54: 0 | BP54: 0 | BV54: 0 | BW54: BW1 | BX54: 0 | CA54: BV2 | CB54: 0 | CC54: 0 | CD54: 0 | CF54: 0 | CG54: CA1 | CH54: CC1 | CI54: 0 | CJ54: 170 | CK54: 234 | CL54: 0 | CM54: 0 | CN54: 0 | CO54: 0 | CP54: 0 | CQ54: 0 | CR54: 0 | CS54: 0 | CT54: 0 | CU54: 0 | CV54: 0 | CW54: 0 | CX54: 0 | CY54: 0 | CZ54: 0 | DA54: 0.5 | DB54: 0 | DC54: 0 | DD54: 0 | DE54: 0 | DF54: 0 | DG54: 0 | DH54: 0 | DI54: 0 | DJ54: 0 | DK54: 0 | DL54: 0 | DO54: 0 | DP54: 0 | DQ54: 0 | DR54: 0 | DS54: 0 | DT54: 0 | DU54: 0 | DV54: 0 | DW54: 0 | DX54: 0 | DY54: 0 | DZ54: 0
E55: HP | F55: LVCMOS 1.8V 12mA | L55: No | M55: Off | N55: Low Power | S55: 0.125 | T55: SDR | U55: 1 | V55: 0 | W55: 0 | X55: 0 | Y55: 0 | Z55: 0 | AA55: 0 | AB55: 0 | AC55: 0 | AD55: None | AG55: 0 | AH55: 0 | AI55: 0 | AJ55: 94 | AK55: 0 | AL55: 1 | AP55: 1.8 | AQ55: 0 | AS55: 0 | AT55: 0 | AU55: 0 | AZ55: 0 | BA55: 0 | BC55: 0 | BD55: 0 | BE55: 0 | BF55: 0 | BG55: 0 | BH55: 0 | BI55: 0 | BJ55: 0 | BK55: 0 | BL55: 0 | BM55: 0 | BN55: 0 | BO55: 0 | BP55: 0 | BV55: 0 | BW55: BW1 | BX55: 0 | CA55: BV2 | CB55: 0 | CC55: 0 | CD55: 0 | CF55: 0 | CG55: CA1 | CH55: CC1 | CI55: 0 | CJ55: 170 | CK55: 234 | CL55: 0 | CM55: 0 | CN55: 0 | CO55: 0 | CP55: 0 | CQ55: 0 | CR55: 0 | CS55: 0 | CT55: 0 | CU55: 0 | CV55: 0 | CW55: 0 | CX55: 0 | CY55: 0 | CZ55: 0 | DA55: 0.5 | DB55: 0 | DC55: 0 | DD55: 0 | DE55: 0 | DF55: 0 | DG55: 0 | DH55: 0 | DI55: 0 | DJ55: 0 | DK55: 0 | DL55: 0 | DO55: 0 | DP55: 0 | DQ55: 0 | DR55: 0 | DS55: 0 | DT55: 0 | DU55: 0 | DV55: 0 | DW55: 0 | DX55: 0 | DY55: 0 | DZ55: 0
E56: HP | F56: LVCMOS 1.8V 12mA | L56: No | M56: Off | N56: Low Power | S56: 0.125 | T56: SDR | U56: 1 | V56: 0 | W56: 0 | X56: 0 | Y56: 0 | Z56: 0 | AA56: 0 | AB56: 0 | AC56: 0 | AD56: None | AG56: 0 | AH56: 0 | AI56: 0 | AJ56: 94 | AK56: 0 | AL56: 1 | AP56: 1.8 | AQ56: 0 | AS56: 0 | AT56: 0 | AU56: 0 | AZ56: 0 | BA56: 0 | BC56: =IF(ISERROR($AJ56),0,IF($AP56=VCCO33,$AC56/$AP56+$AZ56,0)) -> 0 | BD56: =IF(ISERROR($AJ56),0,IF($AP56=VCCO25,$AC56/$AP56+$AZ56,0)) -> 0 | BE56: =IF(ISERROR($AJ56),0,IF($AP56=VCCO18,$AC56/$AP56,0)) -> 0 | BF56: =IF(ISERROR($AJ56),0,IF($AP56=VCCO15,$AC56/$AP56,0)) -> 0 | BG56: =IF(ISERROR($AJ56),0,IF($AP56=VCCO135,$AC56/$AP56,0)) -> 0 | BH56: =IF(ISERROR($AJ56),0,IF($AP56=VCCO12,$AC56/$AP56,0)) -> 0 | BI56: 0 | BJ56: 0 | BK56: 0 | BL56: 0 | BM56: 0 | BN56: 0 | BO56: 0 | BP56: 0 | BV56: 0 | BW56: BW1 | BX56: 0 | CA56: BV2 | CB56: 0 | CC56: 0 | CD56: 0 | CF56: 0 | CG56: CA1 | CH56: CC1 | CI56: 0 | CJ56: 170 | CK56: 234 | CL56: 0 | CM56: 0 | CN56: 0 | CO56: 0 | CP56: 0 | CQ56: 0 | CR56: 0 | CS56: 0 | CT56: 0 | CU56: 0 | CV56: 0 | CW56: 0 | CX56: 0 | CY56: 0 | CZ56: 0 | DA56: 0.5 | DB56: 0 | DC56: 0 | DD56: 0 | DE56: 0 | DF56: 0 | DG56: 0 | DH56: 0 | DI56: 0 | DJ56: 0 | DK56: 0 | DL56: 0 | DO56: 0 | DP56: 0 | DQ56: 0 | DR56: 0 | DS56: 0 | DT56: 0 | DU56: 0 | DV56: 0 | DW56: 0 | DX56: 0 | DY56: 0 | DZ56: 0
E57: HP | F57: LVCMOS 1.8V 12mA | L57: No | M57: Off | N57: Low Power | S57: 0.125 | T57: SDR | U57: 1 | V57: 0 | W57: 0 | X57: 0 | Y57: 0 | Z57: 0 | AA57: 0 | AB57: 0 | AC57: 0 | AD57: None | AG57: 0 | AH57: 0 | AI57: 0 | AJ57: 94 | AK57: 0 | AL57: 1 | AP57: 1.8 | AQ57: 0 | AS57: 0 | AT57: 0 | AU57: 0 | AZ57: 0 | BA57: 0 | BC57: 0 | BD57: 0 | BE57: 0 | BF57: 0 | BG57: 0 | BH57: 0 | BI57: 0 | BJ57: 0 | BK57: 0 | BL57: 0 | BM57: 0 | BN57: 0 | BO57: 0 | BP57: 0 | BV57: 0 | BW57: BW1 | BX57: 0 | CA57: BV2 | CB57: 0 | CC57: 0 | CD57: 0 | CF57: 0 | CG57: CA1 | CH57: CC1 | CI57: 0 | CJ57: 170 | CK57: 234 | CL57: 0 | CM57: 0 | CN57: 0 | CO57: 0 | CP57: 0 | CQ57: 0 | CR57: 0 | CS57: 0 | CT57: 0 | CU57: 0 | CV57: 0 | CW57: 0 | CX57: 0 | CY57: 0 | CZ57: 0 | DA57: 0.5 | DB57: 0 | DC57: 0 | DD57: 0 | DE57: 0 | DF57: 0 | DG57: 0 | DH57: 0 | DI57: 0 | DJ57: 0 | DK57: 0 | DL57: 0 | DO57: 0 | DP57: 0 | DQ57: 0 | DR57: 0 | DS57: 0 | DT57: 0 | DU57: 0 | DV57: 0 | DW57: 0 | DX57: 0 | DY57: 0 | DZ57: 0
E58: HP | F58: LVCMOS 1.8V 12mA | L58: No | M58: Off | N58: Low Power | S58: 0.125 | T58: SDR | U58: 1 | V58: 0 | W58: 0 | X58: 0 | Y58: 0 | Z58: 0 | AA58: 0 | AB58: 0 | AC58: 0 | AD58: None | AG58: 0 | AH58: 0 | AI58: 0 | AJ58: 94 | AK58: 0 | AL58: 1 | AP58: 1.8 | AQ58: 0 | AS58: 0 | AT58: 0 | AU58: 0 | AZ58: 0 | BA58: 0 | BC58: 0 | BD58: 0 | BE58: 0 | BF58: 0 | BG58: 0 | BH58: 0 | BI58: 0 | BJ58: 0 | BK58: 0 | BL58: 0 | BM58: 0 | BN58: 0 | BO58: 0 | BP58: 0 | BV58: 0 | BW58: BW1 | BX58: 0 | CA58: BV2 | CB58: 0 | CC58: 0 | CD58: 0 | CF58: 0 | CG58: CA1 | CH58: CC1 | CI58: 0 | CJ58: 170 | CK58: 234 | CL58: 0 | CM58: 0 | CN58: 0 | CO58: 0 | CP58: 0 | CQ58: 0 | CR58: 0 | CS58: 0 | CT58: 0 | CU58: 0 | CV58: 0 | CW58: 0 | CX58: 0 | CY58: 0 | CZ58: 0 | DA58: 0.5 | DB58: 0 | DC58: 0 | DD58: 0 | DE58: 0 | DF58: 0 | DG58: 0 | DH58: 0 | DI58: 0 | DJ58: 0 | DK58: 0 | DL58: 0 | DO58: 0 | DP58: 0 | DQ58: 0 | DR58: 0 | DS58: 0 | DT58: 0 | DU58: 0 | DV58: 0 | DW58: 0 | DX58: 0 | DY58: 0 | DZ58: 0
E59: HP | F59: LVCMOS 1.8V 12mA | L59: No | M59: Off | N59: Low Power | S59: 0.125 | T59: SDR | U59: 1 | V59: 0 | W59: 0 | X59: 0 | Y59: 0 | Z59: 0 | AA59: 0 | AB59: 0 | AC59: 0 | AD59: None | AG59: 0 | AH59: 0 | AI59: 0 | AJ59: 94 | AK59: 0 | AL59: 1 | AP59: 1.8 | AQ59: 0 | AS59: 0 | AT59: 0 | AU59: 0 | AZ59: 0 | BA59: 0 | BC59: 0 | BD59: 0 | BE59: 0 | BF59: 0 | BG59: 0 | BH59: 0 | BI59: 0 | BJ59: 0 | BK59: 0 | BL59: 0 | BM59: 0 | BN59: 0 | BO59: 0 | BP59: 0 | BV59: 0 | BW59: BW1 | BX59: 0 | CA59: BV2 | CB59: 0 | CC59: 0 | CD59: 0 | CF59: 0 | CG59: CA1 | CH59: CC1 | CI59: 0 | CJ59: 170 | CK59: 234 | CL59: 0 | CM59: 0 | CN59: 0 | CO59: 0 | CP59: 0 | CQ59: 0 | CR59: 0 | CS59: 0 | CT59: 0 | CU59: 0 | CV59: 0 | CW59: 0 | CX59: 0 | CY59: 0 | CZ59: 0 | DA59: 0.5 | DB59: 0 | DC59: 0 | DD59: 0 | DE59: 0 | DF59: 0 | DG59: 0 | DH59: 0 | DI59: 0 | DJ59: 0 | DK59: 0 | DL59: 0 | DO59: 0 | DP59: 0 | DQ59: 0 | DR59: 0 | DS59: 0 | DT59: 0 | DU59: 0 | DV59: 0 | DW59: 0 | DX59: 0 | DY59: 0 | DZ59: 0
E60: HP | F60: LVCMOS 1.8V 12mA | L60: No | M60: Off | N60: Low Power | S60: 0.125 | T60: SDR | U60: 1 | V60: 0 | W60: 0 | X60: 0 | Y60: 0 | Z60: 0 | AA60: 0 | AB60: 0 | AC60: 0 | AD60: None | AG60: 0 | AH60: 0 | AI60: 0 | AJ60: 94 | AK60: 0 | AL60: 1 | AP60: 1.8 | AQ60: 0 | AS60: 0 | AT60: 0 | AU60: 0 | AZ60: 0 | BA60: 0 | BC60: 0 | BD60: 0 | BE60: 0 | BF60: 0 | BG60: 0 | BH60: 0 | BI60: 0 | BJ60: 0 | BK60: 0 | BL60: 0 | BM60: 0 | BN60: 0 | BO60: 0 | BP60: 0 | BV60: 0 | BW60: BW1 | BX60: 0 | CA60: BV2 | CB60: 0 | CC60: 0 | CD60: 0 | CF60: 0 | CG60: CA1 | CH60: CC1 | CI60: 0 | CJ60: 170 | CK60: 234 | CL60: 0 | CM60: 0 | CN60: 0 | CO60: 0 | CP60: 0 | CQ60: 0 | CR60: 0 | CS60: 0 | CT60: 0 | CU60: 0 | CV60: 0 | CW60: 0 | CX60: 0 | CY60: 0 | CZ60: 0 | DA60: 0.5 | DB60: 0 | DC60: 0 | DD60: 0 | DE60: 0 | DF60: 0 | DG60: 0 | DH60: 0 | DI60: 0 | DJ60: 0 | DK60: 0 | DL60: 0 | DO60: 0 | DP60: 0 | DQ60: 0 | DR60: 0 | DS60: 0 | DT60: 0 | DU60: 0 | DV60: 0 | DW60: 0 | DX60: 0 | DY60: 0 | DZ60: 0
E61: HP | F61: LVCMOS 1.8V 12mA | L61: No | M61: Off | N61: Low Power | S61: 0.125 | T61: SDR | U61: 1 | V61: 0 | W61: 0 | X61: 0 | Y61: 0 | Z61: 0 | AA61: 0 | AB61: 0 | AC61: 0 | AD61: None | AG61: 0 | AH61: 0 | AI61: 0 | AJ61: 94 | AK61: 0 | AL61: 1 | AP61: 1.8 | AQ61: 0 | AS61: 0 | AT61: 0 | AU61: 0 | AZ61: 0 | BA61: 0 | BC61: 0 | BD61: 0 | BE61: 0 | BF61: 0 | BG61: 0 | BH61: 0 | BI61: 0 | BJ61: 0 | BK61: 0 | BL61: 0 | BM61: 0 | BN61: 0 | BO61: 0 | BP61: 0 | BV61: 0 | BW61: BW1 | BX61: 0 | CA61: BV2 | CB61: 0 | CC61: 0 | CD61: 0 | CF61: 0 | CG61: CA1 | CH61: CC1 | CI61: 0 | CJ61: 170 | CK61: 234 | CL61: 0 | CM61: 0 | CN61: 0 | CO61: 0 | CP61: 0 | CQ61: 0 | CR61: 0 | CS61: 0 | CT61: 0 | CU61: 0 | CV61: 0 | CW61: 0 | CX61: 0 | CY61: 0 | CZ61: 0 | DA61: 0.5 | DB61: 0 | DC61: 0 | DD61: 0 | DE61: 0 | DF61: 0 | DG61: 0 | DH61: 0 | DI61: 0 | DJ61: 0 | DK61: 0 | DL61: 0 | DO61: 0 | DP61: 0 | DQ61: 0 | DR61: 0 | DS61: 0 | DT61: 0 | DU61: 0 | DV61: 0 | DW61: 0 | DX61: 0 | DY61: 0 | DZ61: 0
E62: HP | F62: LVCMOS 1.8V 12mA | L62: No | M62: Off | N62: Low Power | S62: 0.125 | T62: SDR | U62: 1 | V62: 0 | W62: 0 | X62: 0 | Y62: 0 | Z62: 0 | AA62: 0 | AB62: 0 | AC62: 0 | AD62: None | AG62: 0 | AH62: 0 | AI62: 0 | AJ62: 94 | AK62: 0 | AL62: 1 | AP62: 1.8 | AQ62: 0 | AS62: 0 | AT62: 0 | AU62: 0 | AZ62: 0 | BA62: 0 | BC62: 0 | BD62: 0 | BE62: 0 | BF62: 0 | BG62: 0 | BH62: 0 | BI62: 0 | BJ62: 0 | BK62: 0 | BL62: 0 | BM62: 0 | BN62: 0 | BO62: 0 | BP62: 0 | BV62: 0 | BW62: BW1 | BX62: 0 | CA62: BV2 | CB62: 0 | CC62: 0 | CD62: 0 | CF62: 0 | CG62: CA1 | CH62: CC1 | CI62: 0 | CJ62: 170 | CK62: 234 | CL62: 0 | CM62: 0 | CN62: 0 | CO62: 0 | CP62: 0 | CQ62: 0 | CR62: 0 | CS62: 0 | CT62: 0 | CU62: 0 | CV62: 0 | CW62: 0 | CX62: 0 | CY62: 0 | CZ62: 0 | DA62: 0.5 | DB62: 0 | DC62: 0 | DD62: 0 | DE62: 0 | DF62: 0 | DG62: 0 | DH62: 0 | DI62: 0 | DJ62: 0 | DK62: 0 | DL62: 0 | DO62: 0 | DP62: 0 | DQ62: 0 | DR62: 0 | DS62: 0 | DT62: 0 | DU62: 0 | DV62: 0 | DW62: 0 | DX62: 0 | DY62: 0 | DZ62: 0
E63: HP | F63: LVCMOS 1.8V 12mA | L63: No | M63: Off | N63: Low Power | S63: 0.125 | T63: SDR | U63: 1 | V63: 0 | W63: 0 | X63: 0 | Y63: 0 | Z63: 0 | AA63: 0 | AB63: 0 | AC63: 0 | AD63: None | AG63: 0 | AH63: 0 | AI63: 0 | AJ63: 94 | AK63: 0 | AL63: 1 | AP63: 1.8 | AQ63: 0 | AS63: 0 | AT63: 0 | AU63: 0 | AZ63: 0 | BA63: 0 | BC63: 0 | BD63: 0 | BE63: 0 | BF63: 0 | BG63: 0 | BH63: 0 | BI63: 0 | BJ63: 0 | BK63: 0 | BL63: 0 | BM63: 0 | BN63: 0 | BO63: 0 | BP63: 0 | BV63: 0 | BW63: BW1 | BX63: 0 | CA63: BV2 | CB63: 0 | CC63: 0 | CD63: 0 | CF63: 0 | CG63: CA1 | CH63: CC1 | CI63: 0 | CJ63: 170 | CK63: 234 | CL63: 0 | CM63: 0 | CN63: 0 | CO63: 0 | CP63: 0 | CQ63: 0 | CR63: 0 | CS63: 0 | CT63: 0 | CU63: 0 | CV63: 0 | CW63: 0 | CX63: 0 | CY63: 0 | CZ63: 0 | DA63: 0.5 | DB63: 0 | DC63: 0 | DD63: 0 | DE63: 0 | DF63: 0 | DG63: 0 | DH63: 0 | DI63: 0 | DJ63: 0 | DK63: 0 | DL63: 0 | DO63: 0 | DP63: 0 | DQ63: 0 | DR63: 0 | DS63: 0 | DT63: 0 | DU63: 0 | DV63: 0 | DW63: 0 | DX63: 0 | DY63: 0 | DZ63: 0
E64: HP | F64: LVCMOS 1.8V 12mA | L64: No | M64: Off | N64: Low Power | S64: 0.125 | T64: SDR | U64: 1 | V64: 0 | W64: 0 | X64: 0 | Y64: 0 | Z64: 0 | AA64: 0 | AB64: 0 | AC64: 0 | AD64: None | AG64: 0 | AH64: 0 | AI64: 0 | AJ64: 94 | AK64: 0 | AL64: 1 | AP64: 1.8 | AQ64: 0 | AS64: 0 | AT64: 0 | AU64: 0 | AZ64: 0 | BA64: 0 | BC64: 0 | BD64: 0 | BE64: 0 | BF64: 0 | BG64: 0 | BH64: 0 | BI64: 0 | BJ64: 0 | BK64: 0 | BL64: 0 | BM64: 0 | BN64: 0 | BO64: 0 | BP64: 0 | BV64: 0 | BW64: BW1 | BX64: 0 | CA64: BV2 | CB64: 0 | CC64: 0 | CD64: 0 | CF64: 0 | CG64: CA1 | CH64: CC1 | CI64: 0 | CJ64: 170 | CK64: 234 | CL64: 0 | CM64: 0 | CN64: 0 | CO64: 0 | CP64: 0 | CQ64: 0 | CR64: 0 | CS64: 0 | CT64: 0 | CU64: 0 | CV64: 0 | CW64: 0 | CX64: 0 | CY64: 0 | CZ64: 0 | DA64: 0.5 | DB64: 0 | DC64: 0 | DD64: 0 | DE64: 0 | DF64: 0 | DG64: 0 | DH64: 0 | DI64: 0 | DJ64: 0 | DK64: 0 | DL64: 0 | DO64: 0 | DP64: 0 | DQ64: 0 | DR64: 0 | DS64: 0 | DT64: 0 | DU64: 0 | DV64: 0 | DW64: 0 | DX64: 0 | DY64: 0 | DZ64: 0
E65: HP | F65: LVCMOS 1.8V 12mA | L65: No | M65: Off | N65: Low Power | S65: 0.125 | T65: SDR | U65: 1 | V65: 0 | W65: 0 | X65: 0 | Y65: 0 | Z65: 0 | AA65: 0 | AB65: 0 | AC65: 0 | AD65: None | AG65: 0 | AH65: 0 | AI65: 0 | AJ65: 94 | AK65: 0 | AL65: 1 | AP65: 1.8 | AQ65: 0 | AS65: 0 | AT65: 0 | AU65: 0 | AZ65: 0 | BA65: 0 | BC65: 0 | BD65: 0 | BE65: 0 | BF65: 0 | BG65: 0 | BH65: 0 | BI65: 0 | BJ65: 0 | BK65: 0 | BL65: 0 | BM65: 0 | BN65: 0 | BO65: 0 | BP65: 0 | BV65: 0 | BW65: BW1 | BX65: 0 | CA65: BV2 | CB65: 0 | CC65: 0 | CD65: 0 | CF65: 0 | CG65: CA1 | CH65: CC1 | CI65: 0 | CJ65: 170 | CK65: 234 | CL65: 0 | CM65: 0 | CN65: 0 | CO65: 0 | CP65: 0 | CQ65: 0 | CR65: 0 | CS65: 0 | CT65: 0 | CU65: 0 | CV65: 0 | CW65: 0 | CX65: 0 | CY65: 0 | CZ65: 0 | DA65: 0.5 | DB65: 0 | DC65: 0 | DD65: 0 | DE65: 0 | DF65: 0 | DG65: 0 | DH65: 0 | DI65: 0 | DJ65: 0 | DK65: 0 | DL65: 0 | DO65: 0 | DP65: 0 | DQ65: 0 | DR65: 0 | DS65: 0 | DT65: 0 | DU65: 0 | DV65: 0 | DW65: 0 | DX65: 0 | DY65: 0 | DZ65: 0
E66: HP | F66: LVCMOS 1.8V 12mA | L66: No | M66: Off | N66: Low Power | S66: 0.125 | T66: SDR | U66: 1 | V66: 0 | W66: 0 | X66: 0 | Y66: 0 | Z66: 0 | AA66: 0 | AB66: 0 | AC66: 0 | AD66: None | AG66: 0 | AH66: 0 | AI66: 0 | AJ66: 94 | AK66: 0 | AL66: 1 | AP66: 1.8 | AQ66: 0 | AS66: 0 | AT66: 0 | AU66: 0 | AZ66: 0 | BA66: 0 | BC66: 0 | BD66: 0 | BE66: 0 | BF66: 0 | BG66: 0 | BH66: 0 | BI66: 0 | BJ66: 0 | BK66: 0 | BL66: 0 | BM66: 0 | BN66: 0 | BO66: 0 | BP66: 0 | BV66: 0 | BW66: BW1 | BX66: 0 | CA66: BV2 | CB66: 0 | CC66: 0 | CD66: 0 | CF66: 0 | CG66: CA1 | CH66: CC1 | CI66: 0 | CJ66: 170 | CK66: 234 | CL66: 0 | CM66: 0 | CN66: 0 | CO66: 0 | CP66: 0 | CQ66: 0 | CR66: 0 | CS66: 0 | CT66: 0 | CU66: 0 | CV66: 0 | CW66: 0 | CX66: 0 | CY66: 0 | CZ66: 0 | DA66: 0.5 | DB66: 0 | DC66: 0 | DD66: 0 | DE66: 0 | DF66: 0 | DG66: 0 | DH66: 0 | DI66: 0 | DJ66: 0 | DK66: 0 | DL66: 0 | DO66: 0 | DP66: 0 | DQ66: 0 | DR66: 0 | DS66: 0 | DT66: 0 | DU66: 0 | DV66: 0 | DW66: 0 | DX66: 0 | DY66: 0 | DZ66: 0
E67: HP | F67: LVCMOS 1.8V 12mA | L67: No | M67: Off | N67: Low Power | S67: 0.125 | T67: SDR | U67: 1 | V67: 0 | W67: 0 | X67: 0 | Y67: 0 | Z67: 0 | AA67: 0 | AB67: 0 | AC67: 0 | AD67: None | AG67: 0 | AH67: 0 | AI67: 0 | AJ67: 94 | AK67: 0 | AL67: 1 | AP67: 1.8 | AQ67: 0 | AS67: 0 | AT67: 0 | AU67: 0 | AZ67: 0 | BA67: 0 | BC67: 0 | BD67: 0 | BE67: 0 | BF67: 0 | BG67: 0 | BH67: 0 | BI67: 0 | BJ67: 0 | BK67: 0 | BL67: 0 | BM67: 0 | BN67: 0 | BO67: 0 | BP67: 0 | BV67: 0 | BW67: BW1 | BX67: 0 | CA67: BV2 | CB67: 0 | CC67: 0 | CD67: 0 | CF67: 0 | CG67: CA1 | CH67: CC1 | CI67: 0 | CJ67: 170 | CK67: 234 | CL67: 0 | CM67: 0 | CN67: 0 | CO67: 0 | CP67: 0 | CQ67: 0 | CR67: 0 | CS67: 0 | CT67: 0 | CU67: 0 | CV67: 0 | CW67: 0 | CX67: 0 | CY67: 0 | CZ67: 0 | DA67: 0.5 | DB67: 0 | DC67: 0 | DD67: 0 | DE67: 0 | DF67: 0 | DG67: 0 | DH67: 0 | DI67: 0 | DJ67: 0 | DK67: 0 | DL67: 0 | DO67: 0 | DP67: 0 | DQ67: 0 | DR67: 0 | DS67: 0 | DT67: 0 | DU67: 0 | DV67: 0 | DW67: 0 | DX67: 0 | DY67: 0 | DZ67: 0
E68: HP | F68: LVCMOS 1.8V 12mA | L68: No | M68: Off | N68: Low Power | S68: 0.125 | T68: SDR | U68: 1 | V68: 0 | W68: 0 | X68: 0 | Y68: 0 | Z68: 0 | AA68: 0 | AB68: 0 | AC68: 0 | AD68: None | AG68: 0 | AH68: 0 | AI68: 0 | AJ68: 94 | AK68: 0 | AL68: 1 | AP68: 1.8 | AQ68: 0 | AS68: 0 | AT68: 0 | AU68: 0 | AZ68: 0 | BA68: 0 | BC68: 0 | BD68: 0 | BE68: 0 | BF68: 0 | BG68: 0 | BH68: 0 | BI68: 0 | BJ68: 0 | BK68: 0 | BL68: 0 | BM68: 0 | BN68: 0 | BO68: 0 | BP68: 0 | BV68: 0 | BW68: BW1 | BX68: 0 | CA68: BV2 | CB68: 0 | CC68: 0 | CD68: 0 | CF68: 0 | CG68: CA1 | CH68: CC1 | CI68: 0 | CJ68: 170 | CK68: 234 | CL68: 0 | CM68: 0 | CN68: 0 | CO68: 0 | CP68: 0 | CQ68: 0 | CR68: 0 | CS68: 0 | CT68: 0 | CU68: 0 | CV68: 0 | CW68: 0 | CX68: 0 | CY68: 0 | CZ68: 0 | DA68: 0.5 | DB68: 0 | DC68: 0 | DD68: 0 | DE68: 0 | DF68: 0 | DG68: 0 | DH68: 0 | DI68: 0 | DJ68: 0 | DK68: 0 | DL68: 0 | DO68: 0 | DP68: 0 | DQ68: 0 | DR68: 0 | DS68: 0 | DT68: 0 | DU68: 0 | DV68: 0 | DW68: 0 | DX68: 0 | DY68: 0 | DZ68: 0
E69: HP | F69: LVCMOS 1.8V 12mA | L69: No | M69: Off | N69: Low Power | S69: 0.125 | T69: SDR | U69: 1 | V69: 0 | W69: 0 | X69: 0 | Y69: 0 | Z69: 0 | AA69: 0 | AB69: 0 | AC69: 0 | AD69: None | AG69: 0 | AH69: 0 | AI69: 0 | AJ69: 94 | AK69: 0 | AL69: 1 | AP69: 1.8 | AQ69: 0 | AS69: 0 | AT69: 0 | AU69: 0 | AZ69: 0 | BA69: 0 | BC69: 0 | BD69: 0 | BE69: 0 | BF69: 0 | BG69: 0 | BH69: 0 | BI69: 0 | BJ69: 0 | BK69: 0 | BL69: 0 | BM69: 0 | BN69: 0 | BO69: 0 | BP69: 0 | BV69: 0 | BW69: BW1 | BX69: 0 | CA69: BV2 | CB69: 0 | CC69: 0 | CD69: 0 | CF69: 0 | CG69: CA1 | CH69: CC1 | CI69: 0 | CJ69: 170 | CK69: 234 | CL69: 0 | CM69: 0 | CN69: 0 | CO69: 0 | CP69: 0 | CQ69: 0 | CR69: 0 | CS69: 0 | CT69: 0 | CU69: 0 | CV69: 0 | CW69: 0 | CX69: 0 | CY69: 0 | CZ69: 0 | DA69: 0.5 | DB69: 0 | DC69: 0 | DD69: 0 | DE69: 0 | DF69: 0 | DG69: 0 | DH69: 0 | DI69: 0 | DJ69: 0 | DK69: 0 | DL69: 0 | DO69: 0 | DP69: 0 | DQ69: 0 | DR69: 0 | DS69: 0 | DT69: 0 | DU69: 0 | DV69: 0 | DW69: 0 | DX69: 0 | DY69: 0 | DZ69: 0
E70: HP | F70: LVCMOS 1.8V 12mA | L70: No | M70: Off | N70: Low Power | S70: 0.125 | T70: SDR | U70: 1 | V70: 0 | W70: 0 | X70: 0 | Y70: 0 | Z70: 0 | AA70: 0 | AB70: 0 | AC70: 0 | AD70: None | AG70: 0 | AH70: 0 | AI70: 0 | AJ70: 94 | AK70: 0 | AL70: 1 | AP70: 1.8 | AQ70: 0 | AS70: 0 | AT70: 0 | AU70: 0 | AZ70: 0 | BA70: 0 | BC70: 0 | BD70: 0 | BE70: 0 | BF70: 0 | BG70: 0 | BH70: 0 | BI70: 0 | BJ70: 0 | BK70: 0 | BL70: 0 | BM70: 0 | BN70: 0 | BO70: 0 | BP70: 0 | BV70: 0 | BW70: BW1 | BX70: 0 | CA70: BV2 | CB70: 0 | CC70: 0 | CD70: 0 | CF70: 0 | CG70: CA1 | CH70: CC1 | CI70: 0 | CJ70: 170 | CK70: 234 | CL70: 0 | CM70: 0 | CN70: 0 | CO70: 0 | CP70: 0 | CQ70: 0 | CR70: 0 | CS70: 0 | CT70: 0 | CU70: 0 | CV70: 0 | CW70: 0 | CX70: 0 | CY70: 0 | CZ70: 0 | DA70: 0.5 | DB70: 0 | DC70: 0 | DD70: 0 | DE70: 0 | DF70: 0 | DG70: 0 | DH70: 0 | DI70: 0 | DJ70: 0 | DK70: 0 | DL70: 0 | DO70: 0 | DP70: 0 | DQ70: 0 | DR70: 0 | DS70: 0 | DT70: 0 | DU70: 0 | DV70: 0 | DW70: 0 | DX70: 0 | DY70: 0 | DZ70: 0
E71: HP | F71: LVCMOS 1.8V 12mA | L71: No | M71: Off | N71: Low Power | S71: 0.125 | T71: SDR | U71: 1 | V71: 0 | W71: 0 | X71: 0 | Y71: 0 | Z71: 0 | AA71: 0 | AB71: 0 | AC71: 0 | AD71: None | AG71: 0 | AH71: 0 | AI71: 0 | AJ71: 94 | AK71: 0 | AL71: 1 | AP71: 1.8 | AQ71: 0 | AS71: 0 | AT71: 0 | AU71: 0 | AZ71: 0 | BA71: 0 | BC71: 0 | BD71: 0 | BE71: 0 | BF71: 0 | BG71: 0 | BH71: 0 | BI71: 0 | BJ71: 0 | BK71: 0 | BL71: 0 | BM71: 0 | BN71: 0 | BO71: 0 | BP71: 0 | BV71: 0 | BW71: BW1 | BX71: 0 | CA71: BV2 | CB71: 0 | CC71: 0 | CD71: 0 | CF71: 0 | CG71: CA1 | CH71: CC1 | CI71: 0 | CJ71: 170 | CK71: 234 | CL71: 0 | CM71: 0 | CN71: 0 | CO71: 0 | CP71: 0 | CQ71: 0 | CR71: 0 | CS71: 0 | CT71: 0 | CU71: 0 | CV71: 0 | CW71: 0 | CX71: 0 | CY71: 0 | CZ71: 0 | DA71: 0.5 | DB71: 0 | DC71: 0 | DD71: 0 | DE71: 0 | DF71: 0 | DG71: 0 | DH71: 0 | DI71: 0 | DJ71: 0 | DK71: 0 | DL71: 0 | DO71: 0 | DP71: 0 | DQ71: 0 | DR71: 0 | DS71: 0 | DT71: 0 | DU71: 0 | DV71: 0 | DW71: 0 | DX71: 0 | DY71: 0 | DZ71: 0
E72: HP | F72: LVCMOS 1.8V 12mA | L72: No | M72: Off | N72: Low Power | S72: 0.125 | T72: SDR | U72: 1 | V72: 0 | W72: 0 | X72: 0 | Y72: 0 | Z72: 0 | AA72: 0 | AB72: 0 | AC72: 0 | AD72: None | AG72: 0 | AH72: 0 | AI72: 0 | AJ72: 94 | AK72: 0 | AL72: 1 | AP72: 1.8 | AQ72: 0 | AS72: 0 | AT72: 0 | AU72: 0 | AZ72: 0 | BA72: 0 | BC72: 0 | BD72: 0 | BE72: 0 | BF72: 0 | BG72: 0 | BH72: 0 | BI72: 0 | BJ72: 0 | BK72: 0 | BL72: 0 | BM72: 0 | BN72: 0 | BO72: 0 | BP72: 0 | BV72: 0 | BW72: BW1 | BX72: 0 | CA72: BV2 | CB72: 0 | CC72: 0 | CD72: 0 | CF72: 0 | CG72: CA1 | CH72: CC1 | CI72: 0 | CJ72: 170 | CK72: 234 | CL72: 0 | CM72: 0 | CN72: 0 | CO72: 0 | CP72: 0 | CQ72: 0 | CR72: 0 | CS72: 0 | CT72: 0 | CU72: 0 | CV72: 0 | CW72: 0 | CX72: 0 | CY72: 0 | CZ72: 0 | DA72: 0.5 | DB72: 0 | DC72: 0 | DD72: 0 | DE72: 0 | DF72: 0 | DG72: 0 | DH72: 0 | DI72: 0 | DJ72: 0 | DK72: 0 | DL72: 0 | DO72: 0 | DP72: 0 | DQ72: 0 | DR72: 0 | DS72: 0 | DT72: 0 | DU72: 0 | DV72: 0 | DW72: 0 | DX72: 0 | DY72: 0 | DZ72: 0
E73: HP | F73: LVCMOS 1.8V 12mA | L73: No | M73: Off | N73: Low Power | S73: 0.125 | T73: SDR | U73: 1 | V73: 0 | W73: 0 | X73: 0 | Y73: 0 | Z73: 0 | AA73: 0 | AB73: 0 | AC73: 0 | AD73: None | AG73: 0 | AH73: 0 | AI73: 0 | AJ73: 94 | AK73: 0 | AL73: 1 | AP73: 1.8 | AQ73: 0 | AS73: 0 | AT73: 0 | AU73: 0 | AZ73: 0 | BA73: 0 | BC73: 0 | BD73: 0 | BE73: 0 | BF73: 0 | BG73: 0 | BH73: 0 | BI73: 0 | BJ73: 0 | BK73: 0 | BL73: 0 | BM73: 0 | BN73: 0 | BO73: 0 | BP73: 0 | BV73: 0 | BW73: BW1 | BX73: 0 | CA73: BV2 | CB73: 0 | CC73: 0 | CD73: 0 | CF73: 0 | CG73: CA1 | CH73: CC1 | CI73: 0 | CJ73: 170 | CK73: 234 | CL73: 0 | CM73: 0 | CN73: 0 | CO73: 0 | CP73: 0 | CQ73: 0 | CR73: 0 | CS73: 0 | CT73: 0 | CU73: 0 | CV73: 0 | CW73: 0 | CX73: 0 | CY73: 0 | CZ73: 0 | DA73: 0.5 | DB73: 0 | DC73: 0 | DD73: 0 | DE73: 0 | DF73: 0 | DG73: 0 | DH73: 0 | DI73: 0 | DJ73: 0 | DK73: 0 | DL73: 0 | DO73: 0 | DP73: 0 | DQ73: 0 | DR73: 0 | DS73: 0 | DT73: 0 | DU73: 0 | DV73: 0 | DW73: 0 | DX73: 0 | DY73: 0 | DZ73: 0
E74: HP | F74: LVCMOS 1.8V 12mA | L74: No | M74: Off | N74: Low Power | S74: 0.125 | T74: SDR | U74: 1 | V74: 0 | W74: 0 | X74: 0 | Y74: 0 | Z74: 0 | AA74: 0 | AB74: 0 | AC74: 0 | AD74: None | AG74: 0 | AH74: 0 | AI74: 0 | AJ74: 94 | AK74: 0 | AL74: 1 | AP74: 1.8 | AQ74: 0 | AS74: 0 | AT74: 0 | AU74: 0 | AZ74: 0 | BA74: 0 | BC74: 0 | BD74: 0 | BE74: 0 | BF74: 0 | BG74: 0 | BH74: 0 | BI74: 0 | BJ74: 0 | BK74: 0 | BL74: 0 | BM74: 0 | BN74: 0 | BO74: 0 | BP74: 0 | BV74: 0 | BW74: BW1 | BX74: 0 | CA74: BV2 | CB74: 0 | CC74: 0 | CD74: 0 | CF74: 0 | CG74: CA1 | CH74: CC1 | CI74: 0 | CJ74: 170 | CK74: 234 | CL74: 0 | CM74: 0 | CN74: 0 | CO74: 0 | CP74: 0 | CQ74: 0 | CR74: 0 | CS74: 0 | CT74: 0 | CU74: 0 | CV74: 0 | CW74: 0 | CX74: 0 | CY74: 0 | CZ74: 0 | DA74: 0.5 | DB74: 0 | DC74: 0 | DD74: 0 | DE74: 0 | DF74: 0 | DG74: 0 | DH74: 0 | DI74: 0 | DJ74: 0 | DK74: 0 | DL74: 0 | DO74: 0 | DP74: 0 | DQ74: 0 | DR74: 0 | DS74: 0 | DT74: 0 | DU74: 0 | DV74: 0 | DW74: 0 | DX74: 0 | DY74: 0 | DZ74: 0
E75: HP | F75: LVCMOS 1.8V 12mA | L75: No | M75: Off | N75: Low Power | S75: 0.125 | T75: SDR | U75: 1 | V75: 0 | W75: 0 | X75: 0 | Y75: 0 | Z75: 0 | AA75: 0 | AB75: 0 | AC75: 0 | AD75: None | AG75: 0 | AH75: 0 | AI75: 0 | AJ75: 94 | AK75: 0 | AL75: 1 | AP75: 1.8 | AQ75: 0 | AS75: 0 | AT75: 0 | AU75: 0 | AZ75: 0 | BA75: 0 | BC75: 0 | BD75: 0 | BE75: 0 | BF75: 0 | BG75: 0 | BH75: 0 | BI75: 0 | BJ75: 0 | BK75: 0 | BL75: 0 | BM75: 0 | BN75: 0 | BO75: 0 | BP75: 0 | BV75: 0 | BW75: BW1 | BX75: 0 | CA75: BV2 | CB75: 0 | CC75: 0 | CD75: 0 | CF75: 0 | CG75: CA1 | CH75: CC1 | CI75: 0 | CJ75: 170 | CK75: 234 | CL75: 0 | CM75: 0 | CN75: 0 | CO75: 0 | CP75: 0 | CQ75: 0 | CR75: 0 | CS75: 0 | CT75: 0 | CU75: 0 | CV75: 0 | CW75: 0 | CX75: 0 | CY75: 0 | CZ75: 0 | DA75: 0.5 | DB75: 0 | DC75: 0 | DD75: 0 | DE75: 0 | DF75: 0 | DG75: 0 | DH75: 0 | DI75: 0 | DJ75: 0 | DK75: 0 | DL75: 0 | DO75: 0 | DP75: 0 | DQ75: 0 | DR75: 0 | DS75: 0 | DT75: 0 | DU75: 0 | DV75: 0 | DW75: 0 | DX75: 0 | DY75: 0 | DZ75: 0
E76: HP | F76: LVCMOS 1.8V 12mA | L76: No | M76: Off | N76: Low Power | S76: 0.125 | T76: SDR | U76: 1 | V76: 0 | W76: 0 | X76: 0 | Y76: 0 | Z76: 0 | AA76: 0 | AB76: 0 | AC76: 0 | AD76: None | AG76: 0 | AH76: 0 | AI76: 0 | AJ76: 94 | AK76: 0 | AL76: 1 | AP76: 1.8 | AQ76: 0 | AS76: 0 | AT76: 0 | AU76: 0 | AZ76: 0 | BA76: 0 | BC76: 0 | BD76: 0 | BE76: 0 | BF76: 0 | BG76: 0 | BH76: 0 | BI76: 0 | BJ76: 0 | BK76: 0 | BL76: 0 | BM76: 0 | BN76: 0 | BO76: 0 | BP76: 0 | BV76: 0 | BW76: BW1 | BX76: 0 | CA76: BV2 | CB76: 0 | CC76: 0 | CD76: 0 | CF76: 0 | CG76: CA1 | CH76: CC1 | CI76: 0 | CJ76: 170 | CK76: 234 | CL76: 0 | CM76: 0 | CN76: 0 | CO76: 0 | CP76: 0 | CQ76: 0 | CR76: 0 | CS76: 0 | CT76: 0 | CU76: 0 | CV76: 0 | CW76: 0 | CX76: 0 | CY76: 0 | CZ76: 0 | DA76: 0.5 | DB76: 0 | DC76: 0 | DD76: 0 | DE76: 0 | DF76: 0 | DG76: 0 | DH76: 0 | DI76: 0 | DJ76: 0 | DK76: 0 | DL76: 0 | DO76: 0 | DP76: 0 | DQ76: 0 | DR76: 0 | DS76: 0 | DT76: 0 | DU76: 0 | DV76: 0 | DW76: 0 | DX76: 0 | DY76: 0 | DZ76: 0
E77: HP | F77: LVCMOS 1.8V 12mA | L77: No | M77: Off | N77: Low Power | S77: 0.125 | T77: SDR | U77: 1 | V77: 0 | W77: 0 | X77: 0 | Y77: 0 | Z77: 0 | AA77: 0 | AB77: 0 | AC77: 0 | AD77: None | AG77: 0 | AH77: 0 | AI77: 0 | AJ77: 94 | AK77: 0 | AL77: 1 | AP77: 1.8 | AQ77: 0 | AS77: 0 | AT77: 0 | AU77: 0 | AZ77: 0 | BA77: 0 | BC77: 0 | BD77: 0 | BE77: 0 | BF77: 0 | BG77: 0 | BH77: 0 | BI77: 0 | BJ77: 0 | BK77: 0 | BL77: 0 | BM77: 0 | BN77: 0 | BO77: 0 | BP77: 0 | BV77: 0 | BW77: BW1 | BX77: 0 | CA77: BV2 | CB77: 0 | CC77: 0 | CD77: 0 | CF77: 0 | CG77: CA1 | CH77: CC1 | CI77: 0 | CJ77: 170 | CK77: 234 | CL77: 0 | CM77: 0 | CN77: 0 | CO77: 0 | CP77: 0 | CQ77: 0 | CR77: 0 | CS77: 0 | CT77: 0 | CU77: 0 | CV77: 0 | CW77: 0 | CX77: 0 | CY77: 0 | CZ77: 0 | DA77: 0.5 | DB77: 0 | DC77: 0 | DD77: 0 | DE77: 0 | DF77: 0 | DG77: 0 | DH77: 0 | DI77: 0 | DJ77: 0 | DK77: 0 | DL77: 0 | DO77: 0 | DP77: 0 | DQ77: 0 | DR77: 0 | DS77: 0 | DT77: 0 | DU77: 0 | DV77: 0 | DW77: 0 | DX77: 0 | DY77: 0 | DZ77: 0
E78: HP | F78: LVCMOS 1.8V 12mA | L78: No | M78: Off | N78: Low Power | S78: 0.125 | T78: SDR | U78: 1 | V78: 0 | W78: 0 | X78: 0 | Y78: 0 | Z78: 0 | AA78: 0 | AB78: 0 | AC78: 0 | AD78: None | AG78: 0 | AH78: 0 | AI78: 0 | AJ78: 94 | AK78: 0 | AL78: 1 | AP78: 1.8 | AQ78: 0 | AS78: 0 | AT78: 0 | AU78: 0 | AZ78: 0 | BA78: 0 | BC78: 0 | BD78: 0 | BE78: 0 | BF78: 0 | BG78: 0 | BH78: 0 | BI78: 0 | BJ78: 0 | BK78: 0 | BL78: 0 | BM78: 0 | BN78: 0 | BO78: 0 | BP78: 0 | BV78: 0 | BW78: BW1 | BX78: 0 | CA78: BV2 | CB78: 0 | CC78: 0 | CD78: 0 | CF78: 0 | CG78: CA1 | CH78: CC1 | CI78: 0 | CJ78: 170 | CK78: 234 | CL78: 0 | CM78: 0 | CN78: 0 | CO78: 0 | CP78: 0 | CQ78: 0 | CR78: 0 | CS78: 0 | CT78: 0 | CU78: 0 | CV78: 0 | CW78: 0 | CX78: 0 | CY78: 0 | CZ78: 0 | DA78: 0.5 | DB78: 0 | DC78: 0 | DD78: 0 | DE78: 0 | DF78: 0 | DG78: 0 | DH78: 0 | DI78: 0 | DJ78: 0 | DK78: 0 | DL78: 0 | DO78: 0 | DP78: 0 | DQ78: 0 | DR78: 0 | DS78: 0 | DT78: 0 | DU78: 0 | DV78: 0 | DW78: 0 | DX78: 0 | DY78: 0 | DZ78: 0
E79: HP | F79: LVCMOS 1.8V 12mA | L79: No | M79: Off | N79: Low Power | S79: 0.125 | T79: SDR | U79: 1 | V79: 0 | W79: 0 | X79: 0 | Y79: 0 | Z79: 0 | AA79: 0 | AB79: 0 | AC79: 0 | AD79: None | AG79: 0 | AH79: 0 | AI79: 0 | AJ79: 94 | AK79: 0 | AL79: 1 | AP79: 1.8 | AQ79: 0 | AS79: 0 | AT79: 0 | AU79: 0 | AZ79: 0 | BA79: 0 | BC79: 0 | BD79: 0 | BE79: 0 | BF79: 0 | BG79: 0 | BH79: 0 | BI79: 0 | BJ79: 0 | BK79: 0 | BL79: 0 | BM79: 0 | BN79: 0 | BO79: 0 | BP79: 0 | BV79: 0 | BW79: BW1 | BX79: 0 | CA79: BV2 | CB79: 0 | CC79: 0 | CD79: 0 | CF79: 0 | CG79: CA1 | CH79: CC1 | CI79: 0 | CJ79: 170 | CK79: 234 | CL79: 0 | CM79: 0 | CN79: 0 | CO79: 0 | CP79: 0 | CQ79: 0 | CR79: 0 | CS79: 0 | CT79: 0 | CU79: 0 | CV79: 0 | CW79: 0 | CX79: 0 | CY79: 0 | CZ79: 0 | DA79: 0.5 | DB79: 0 | DC79: 0 | DD79: 0 | DE79: 0 | DF79: 0 | DG79: 0 | DH79: 0 | DI79: 0 | DJ79: 0 | DK79: 0 | DL79: 0 | DO79: 0 | DP79: 0 | DQ79: 0 | DR79: 0 | DS79: 0 | DT79: 0 | DU79: 0 | DV79: 0 | DW79: 0 | DX79: 0 | DY79: 0 | DZ79: 0
E80: HP | F80: LVCMOS 1.8V 12mA | L80: No | M80: Off | N80: Low Power | S80: 0.125 | T80: SDR | U80: 1 | V80: 0 | W80: 0 | X80: 0 | Y80: 0 | Z80: 0 | AA80: 0 | AB80: 0 | AC80: 0 | AD80: None | AG80: 0 | AH80: 0 | AI80: 0 | AJ80: 94 | AK80: 0 | AL80: 1 | AP80: 1.8 | AQ80: 0 | AS80: 0 | AT80: 0 | AU80: 0 | AZ80: 0 | BA80: 0 | BC80: 0 | BD80: 0 | BE80: 0 | BF80: 0 | BG80: 0 | BH80: 0 | BI80: 0 | BJ80: 0 | BK80: 0 | BL80: 0 | BM80: 0 | BN80: 0 | BO80: 0 | BP80: 0 | BV80: 0 | BW80: BW1 | BX80: 0 | CA80: BV2 | CB80: 0 | CC80: 0 | CD80: 0 | CF80: 0 | CG80: CA1 | CH80: CC1 | CI80: 0 | CJ80: 170 | CK80: 234 | CL80: 0 | CM80: 0 | CN80: 0 | CO80: 0 | CP80: 0 | CQ80: 0 | CR80: 0 | CS80: 0 | CT80: 0 | CU80: 0 | CV80: 0 | CW80: 0 | CX80: 0 | CY80: 0 | CZ80: 0 | DA80: 0.5 | DB80: 0 | DC80: 0 | DD80: 0 | DE80: 0 | DF80: 0 | DG80: 0 | DH80: 0 | DI80: 0 | DJ80: 0 | DK80: 0 | DL80: 0 | DO80: 0 | DP80: 0 | DQ80: 0 | DR80: 0 | DS80: 0 | DT80: 0 | DU80: 0 | DV80: 0 | DW80: 0 | DX80: 0 | DY80: 0 | DZ80: 0
E81: HP | F81: LVCMOS 1.8V 12mA | L81: No | M81: Off | N81: Low Power | S81: 0.125 | T81: SDR | U81: 1 | V81: 0 | W81: 0 | X81: 0 | Y81: 0 | Z81: 0 | AA81: 0 | AB81: 0 | AC81: 0 | AD81: None | AG81: 0 | AH81: 0 | AI81: 0 | AJ81: 94 | AK81: 0 | AL81: 1 | AP81: 1.8 | AQ81: 0 | AS81: 0 | AT81: 0 | AU81: 0 | AZ81: 0 | BA81: 0 | BC81: 0 | BD81: 0 | BE81: 0 | BF81: 0 | BG81: 0 | BH81: 0 | BI81: 0 | BJ81: 0 | BK81: 0 | BL81: 0 | BM81: 0 | BN81: 0 | BO81: 0 | BP81: 0 | BV81: 0 | BW81: BW1 | BX81: 0 | CA81: BV2 | CB81: 0 | CC81: 0 | CD81: 0 | CF81: 0 | CG81: CA1 | CH81: CC1 | CI81: 0 | CJ81: 170 | CK81: 234 | CL81: 0 | CM81: 0 | CN81: 0 | CO81: 0 | CP81: 0 | CQ81: 0 | CR81: 0 | CS81: 0 | CT81: 0 | CU81: 0 | CV81: 0 | CW81: 0 | CX81: 0 | CY81: 0 | CZ81: 0 | DA81: 0.5 | DB81: 0 | DC81: 0 | DD81: 0 | DE81: 0 | DF81: 0 | DG81: 0 | DH81: 0 | DI81: 0 | DJ81: 0 | DK81: 0 | DL81: 0 | DO81: 0 | DP81: 0 | DQ81: 0 | DR81: 0 | DS81: 0 | DT81: 0 | DU81: 0 | DV81: 0 | DW81: 0 | DX81: 0 | DY81: 0 | DZ81: 0
E82: HP | F82: LVCMOS 1.8V 12mA | L82: No | M82: Off | N82: Low Power | S82: 0.125 | T82: SDR | U82: 1 | V82: 0 | W82: 0 | X82: 0 | Y82: 0 | Z82: 0 | AA82: 0 | AB82: 0 | AC82: 0 | AD82: None | AG82: 0 | AH82: 0 | AI82: 0 | AJ82: 94 | AK82: 0 | AL82: 1 | AP82: 1.8 | AQ82: 0 | AS82: 0 | AT82: 0 | AU82: 0 | AZ82: 0 | BA82: 0 | BC82: 0 | BD82: 0 | BE82: 0 | BF82: 0 | BG82: 0 | BH82: 0 | BI82: 0 | BJ82: 0 | BK82: 0 | BL82: 0 | BM82: 0 | BN82: 0 | BO82: 0 | BP82: 0 | BV82: 0 | BW82: BW1 | BX82: 0 | CA82: BV2 | CB82: 0 | CC82: 0 | CD82: 0 | CF82: 0 | CG82: CA1 | CH82: CC1 | CI82: 0 | CJ82: 170 | CK82: 234 | CL82: 0 | CM82: 0 | CN82: 0 | CO82: 0 | CP82: 0 | CQ82: 0 | CR82: 0 | CS82: 0 | CT82: 0 | CU82: 0 | CV82: 0 | CW82: 0 | CX82: 0 | CY82: 0 | CZ82: 0 | DA82: 0.5 | DB82: 0 | DC82: 0 | DD82: 0 | DE82: 0 | DF82: 0 | DG82: 0 | DH82: 0 | DI82: 0 | DJ82: 0 | DK82: 0 | DL82: 0 | DO82: 0 | DP82: 0 | DQ82: 0 | DR82: 0 | DS82: 0 | DT82: 0 | DU82: 0 | DV82: 0 | DW82: 0 | DX82: 0 | DY82: 0 | DZ82: 0
E83: HP | F83: LVCMOS 1.8V 12mA | L83: No | M83: Off | N83: Low Power | S83: 0.125 | T83: SDR | U83: 1 | V83: 0 | W83: =$V83 -> 0 | X83: 0 | Y83: 0 | Z83: =IF(ISERROR($AJ83),0,AI83+VCCINT_IO/1000*(VCCINT_IO/0.85)*IF(E83="HP",(CL83+CM83)+(CS83+CT83),0))*_DYN_POWER_SCALE -> 0 | AA83: =IF(ISERROR($AJ83),0,MAX(0,((CN83+CO83)+(CU83+CV83))*VCCAUX_IO/1000))*_DYN_POWER_SCALE -> 0 | AB83: =($AH83+IF(ISERROR($AJ83),0,IF(E83="HD",(CL83+CM83)+(CS83+CT83),0)*VCCINT*VCCINT_N/1000))*_DYN_POWER_SCALE -> 0 | AC83: =(IF(ISERROR($AJ83),0,MAX(0,(CQ83+CP83)+(CW83+CX83)))*$AP83/1000)*_DYN_POWER_SCALE -> 0 | AD83: None | AG83: =(IF(ISERROR($AJ83),0,(IF(AD83="None",0,$DL83)+IF(LEFT($F83,4)="Diff",2,1)*$DG83)))*_DYN_POWER_SCALE -> 0 | AH83: =IF(ISERROR($AJ83),0,VCCINT/1000*VCCINT_N*(IF($L83="No",0,$R83*$AS83*OFFSET(IODELAY_DATA,9,3))+$AP$1*BV83)) -> 0 | AI83: =IF(ISERROR($AJ83),0,VCCINT_IO/1000*(VCCINT_IO/0.85)*(BA83)) -> 0 | AJ83: =MATCH($F83,IF($E83="HD",SIOSTD_LIST,VIOSTD_LIST),FALSE)+IF($E83="HD",0,ROW(VIOSTD_LIST)-ROW(SIOSTD_LIST)) -> 94 | AK83: 0 | AL83: =IF(AND($K83>0,$E83="HD",OFFSET(IO_STANDARDS,$AJ83,19)>0),3,OFFSET(IO_STANDARDS,$AJ83,2)) -> 1 | AP83: =IF(ISERROR($AJ83),0,OFFSET(IO_STANDARDS,$AJ83,1)) -> 1.8 | AQ83: =IF(NOT(ISNUMBER(OFFSET(IOB_DATA,$CJ83,IF(E83="HP",12,11)))),0,IF(OR(LEFT($F83,14)="HSTL Class III",LEFT($F83,13)="HSTL Class IV",LEFT($F83,3)="GTL",LEFT($F83,3)="POD",LEFT($F83,8)="Diff POD"),$AP83,$AP83/2)) -> 0 | AS83: 0 | AT83: 0 | AU83: =IF(ISERROR(OFFSET(IO_STANDARDS,$AJ83,42+IF(E83="HP",1,0))),1,0) -> 0 | AZ83: =IF(OR(LEFT($F83,3)="POD",LEFT($F83,8)="Diff POD"),0,IF(IF(LEFT($F83,5)="LVDCI",$J83+$K83,SUM($I83:$K83))>0,((OFFSET(IO_STANDARDS,$AJ83,6)*IF(AND($I83+$K83>0,OFFSET(IO_STANDARDS,$AJ83,6)<1),100,1)*INT((SUM($I83:$K83)+50)/50))/1000),0)) -> 0 | BA83: =IF($L83="No",0,$R83*(IF($L83="SERDES",OFFSET(IOI_DATA,1,1),IF($L83="DELAY",OFFSET(IOI_DATA,7,1),IF($L83="IFF",OFFSET(IOI_DATA,3,1),IF($L83="OFF",OFFSET(IOI_DATA,6,1),IF($L83="IDDR",OFFSET(IOI_DATA,2,1),IF($L83="ODDR",OFFSET(IOI_DATA,5,1),OFFSET(IOI_DATA,12,1)))))))*$AS83+IF($L83="Yes",$CC83*OFFSET(IOI_DATA,13,1)+$CD83*OFFSET(IOI_DATA,11,1),0))) -> 0 | BC83: 0 | BD83: 0 | BE83: 0 | BF83: 0 | BG83: 0 | BH83: 0 | BI83: =IF(ISERROR($AJ83),0,IF($AP83=VCCO10,$AC83/$AP83,0)) -> 0 | BJ83: =IF(ISERROR($AJ83),0,IF($AP83=VCCO33,$AG83/$AP83,0)) -> 0 | BK83: =IF(ISERROR($AJ83),0,IF($AP83=VCCO25,$AG83/$AP83,0)) -> 0 | BL83: =IF(ISERROR($AJ83),0,IF($AP83=VCCO18,$AG83/$AP83,0)) -> 0 | BM83: =IF(ISERROR($AJ83),0,IF($AP83=VCCO15,$AG83/$AP83,0)) -> 0 | BN83: =IF(ISERROR($AJ83),0,IF($AP83=VCCO135,$AG83/$AP83,0)) -> 0 | BO83: =IF(ISERROR($AJ83),0,IF($AP83=VCCO12,$AG83/$AP83,0)) -> 0 | BP83: =IF(ISERROR($AJ83),0,IF($AP83=VCCO10,$AG83/$AP83,0)) -> 0 | BV83: =$AK83*2*OFFSET(FANOUT,3,6)*$AS83 -> 0 | BW83: BW1 | BX83: 0 | CA83: =IF(($I83+$K83)<1,"BV2",IF(OFFSET(IO_STANDARDS,$AJ83,18)>0,"BV1:BV2",IF(AND(E83="HP",ISNUMBER(OFFSET(IOB_DATA,$CJ83,11))),IF(ISERROR(FIND("DCI",F83,1)),"BV2:BV5","BV3:BV5"),IF(AND(E83="HD",OFFSET(IOB_DATA,$CJ83,11)=50),"BV11:BV12","BV2")))) -> BV2 | CB83: =IF(OR(LEFT($F83,3)="LVC",LEFT($F83,3)="LVT"),0,IF(OR(LEN($O83)<1,RIGHT($O83,4)="NONE",RIGHT($O83,4)="None"),IF(LEFT($F83,13)="MIPI DPHY DCI",100,IF(OFFSET(IO_STANDARDS,$AJ83,11)>0,40,0)),IF(LEN($O83)<5,IF(E83="HD",50,40),IF(LEFT($O83,3)="DCI",MID($O83,5,2),IF(LEN($O83)>6,IF(RIGHT($O83,3)="240",240,IF(AND($AL83=2,LEFT($O83,4)="DIFF"),100,120)),IF(AND(E83="HD",RIGHT($O83,2)="48"),50,RIGHT($O83,2))))))) -> 0 | CC83: =IF($L83="No",0,$AS83/6) -> 0 | CD83: 0 | CF83: 0 | CG83: =IF(AND(E83<>"HD",OR(AND(LEFT($F83,3)<>"LVC",LEFT($F83,4)<>"MIPI"),ISNUMBER(OFFSET(IOB_DATA,$CK83,IF(E83="HP",14,12)))),$AL83<>2,($J83+$K83)>0),"CA3:CA5","CA1") -> CA1 | CH83: =IF(AND(OFFSET(IO_STANDARDS,$AJ83,45)>0,($J83+$K83)>0),"CC2:CC3","CC1") -> CC1 | CI83: 0 | CJ83: =OFFSET(IO_STANDARDS,$AJ83,IF(E83="HP",IF(LEFT(N83,3)="Hig",41,40),40))-1 -> 170 | CK83: =OFFSET(IO_STANDARDS,$AJ83,IF(E83="HP",43+IF(AND(OFFSET(IO_STANDARDS,$AJ83,45)>0,Q83="Yes"),1,0),42))-1 -> 234 | CL83: =IF(ISERROR($CJ83),0,OFFSET(IOB_DATA,$CJ83,5)*((1-$AT83)*I83+(1-U83)*K83))+DO83 -> 0 | CM83: =IF(ISERROR($CJ83),0,OFFSET(IOB_DATA,$CJ83,2)*AK83*((1-$AT83)*I83+(1-U83)*K83))*IF(CI83>0,0.93,1)+DP83 -> 0 | CN83: =IF(ISERROR($CJ83),0,OFFSET(IOB_DATA,$CJ83,6)*((1-$AT83)*I83+(1-U83)*K83))+DQ83 -> 0 | CO83: =IF(ISERROR($CJ83),0,OFFSET(IOB_DATA,$CJ83,3)*AK83*((1-$AT83)*I83+(1-U83)*K83))*IF(CI83>0,0.93,1)+DR83 -> 0 | CP83: =IF(ISERROR($CJ83),0,IF(AND(OR(LEFT($F83,3)="LVC",LEFT($F83,3)="LVT",AND(LEFT($F83,4)="MIPI",AL83<>2),AND(E83="HD",AL83=2)),OFFSET(IOB_DATA,$CJ83,7)<>"NA"),OFFSET(IOB_DATA,$CJ83,7)*((1-$AT83)*I83+(1-U83)*K83),DF83*1000/AP83*(IF(LEFT($F83,4)="Diff",2,1))*(IF(LEFT($F83,4)="MIPI",1-$AT83,1)*$I83+$K83*(1-$U83))))+DS83 -> 0 | CQ83: =IF(ISERROR($CJ83),0,IF(OFFSET(IOB_DATA,$CJ83,4)<>"NA",OFFSET(IOB_DATA,$CJ83,4)*AK83*((1-$AT83)*I83+(1-U83)*K83),0))+DT83 -> 0 | CR83: 0 | CS83: =IF(ISERROR($CK83),0,OFFSET(IOB_DATA,$CK83,6+IF(E83="HP",1,0))*($U83*(J83+K83)*IF(LEFT($F83,4)="Diff",2,1)))+DU83 -> 0 | CT83: =IF(ISERROR($CK83),0,OFFSET(IOB_DATA,$CK83,3+IF(E83="HP",1,0))*AK83*($U83*(J83+K83)*IF(LEFT($F83,4)="Diff",2,1))*IF($CI83>0,0.93,1))+DV83 -> 0 | CU83: =IF(ISERROR($CK83),0,OFFSET(IOB_DATA,$CK83,7+IF(E83="HP",1,0))*($U83*(J83+K83))*IF(LEFT($F83,4)="Diff",2,1))+DW83 -> 0 | CV83: =IF(ISERROR($CK83),0,IF(CF83>0,OFFSET(IOB_DATA,$CK83,4+IF(E83="HP",1,0))*40/CF83,OFFSET(IOB_DATA,$CK83,4+IF(E83="HP",1,0)))*AK83*($U83*(J83+K83))*IF(LEFT($F83,4)="Diff",2,1)*IF($CI83>0,0.93,1)*$AT$1)+DX83 -> 0 | CW83: =IF(ISERROR($CK83),0,IF(AND(FALSE,OFFSET(IOB_DATA,$CK83,8+IF(E83="HP",1,0))<>"NA"),OFFSET(IOB_DATA,$CK83,8+IF(E83="HP",1,0)),DK83*1000/AP83)*$CZ83*(IF(LEFT($F83,4)="Diff",2,1)))+DY83 -> 0 | CX83: =IF(ISERROR($CK83),0,IF(ISNUMBER(OFFSET(IOB_DATA,$CK83,5+IF(E83="HP",1,0))),OFFSET(IOB_DATA,$CK83,5+IF(E83="HP",1,0))*IF(NOT(ISERROR(FIND("LVDS",$F83))),1,(IF(E83="HD",6.5,2.5)+X83+IF(OFFSET(IOB_DATA,$CK83,15+IF(E83="HP",1,0))="HS",$CJ$2,$CK$2))/(IF(E83="HD",6.5,2.5)+OFFSET(IOB_DATA,$CK83,IF(E83="HP",15,13)))),0)*AK83*($U83*(J83+K83*IF($CI83>0,0.93,1))*IF(LEFT($F83,4)="Diff",2,1)))+DZ83 -> 0 | CY83: =IF(AND(NOT(ISNUMBER(OFFSET(IOB_DATA,$CK83,9))),OFFSET(IO_STANDARDS,$AJ83,46)>0),IF($CF83>0,IF(LEFT($F83,4)="Diff",2,1)*1000*($AP83/2)/($CF83+MAX(40,$BX83))/2,0),0) -> 0 | CZ83: 0 | DA83: 0.5 | DB83: 0 | DC83: 0 | DD83: 0 | DE83: =IF(OR(LEFT($F83,3)="HSU",LEFT($F83,8)="Diff HSU"),0,IF((I83+K83)>0,IF(LEFT($F83,13)="MIPI DPHY DCI", IF(ISNUMBER(OFFSET(IOB_DATA,$CJ83,7)),OFFSET(IOB_DATA,$CJ83,7)/1000,0),IF($AL83=2,IF($O83="DIFF_TERM",IF(ISNUMBER(OFFSET(IOB_DATA,$CJ83,7)),OFFSET(IOB_DATA,$CJ83,7),0),0),IF(CB83>0,IF(OR(LEFT($F83,3)="POD",LEFT($F83,8)="Diff POD"), (AP83-DD83)*( 1-DA83)/CB83*IF($CI83>1,0.36/0.5,1),(AP83-DC83)*DA83/(2*CB83) + (AP83- DD83)*(1-DA83)/(2*CB83))*(1-$V83),0))),0)) -> 0 | DF83: =IF(ISERROR($CJ83),0,IF(OR(LEFT($F83,3)="HSU",LEFT($F83,8)="Diff HSU"),0,IF((I83+K83)>0,IF($AL83=2,IF(OR(LEFT($F83,13)="MIPI DPHY DCI",$O83="DIFF_TERM"),OFFSET(IO_STANDARDS,$AJ83,18)/1000,0),IF(CB83>0,IF(OR(LEFT($F83,3)="POD",LEFT($F83,8)="Diff POD"),((AP83-DD83)^2 / CB83)*(1-DA83)*IF($CI83>0,0.36/0.5,1),((AP83-DC83)^2 / (2* CB83) + (DC83)^2 / (2 * CB83))*DA83 + ((AP83-DD83)^2 / (2* CB83) + (DD83)^2 / (2* CB83))*(1-DA83))*(1-$V83),0)),0))) -> 0 | DG83: 0 | DH83: =IF(OR(AND(OFFSET(IO_STANDARDS,$AJ83,13)>0,$AL83<>2),OR(LEFT($F83,3)="POD",LEFT($F83,8)="Diff POD")),IF(E83="HP",IF(OR(LEFT($F83,3)="POD",LEFT($F83,8)="Diff POD"),AP83,AP83-AP83/2*(CF83/(CF83+BX83))),AP83/2 + (IF(ISNUMBER(OFFSET(IOB_DATA,$CK83,8+IF(E83="HP",1,0))),OFFSET(IOB_DATA,$CK83,8+IF(E83="HP",1,0))*2 /1000)*DB83)),0) -> 0 | DI83: =IF(AND(OFFSET(IO_STANDARDS,$AJ83,13)>0,$AL83<>2),IF(E83="HP", IF(OR(LEFT($F83,3)="POD",LEFT($F83,8)="Diff POD"),AP83*(CF83/(CF83+BX83)),AP83/2*(CF83/(CF83+BX83))), AP83/2-((IF(ISNUMBER(OFFSET(IOB_DATA,$CK83,8+IF(E83="HP",1,0))),OFFSET(IOB_DATA,$CK83,8+IF(E83="HP",1,0))*2 /1000))*DB83)),0) -> 0 | DJ83: =IF(OR(LEFT($F83,3)="HSU",LEFT($F83,8)="Diff HSU",AND(IF(ISNUMBER(OFFSET(IOB_DATA,$CK83,8+IF(E83="HP",1,0))),OFFSET(IOB_DATA,$CK83,8+IF(E83="HP",1,0))=0))),0,IF((J83+K83)>0,IF(OFFSET(IO_STANDARDS,$AJ83,13)>0,IF(AL83=2, (OFFSET(IOB_DATA,$CK83,8+IF(E83="HP",1,0))/1000)*IF(AND($Q83="Yes",LEFT($F83,4)="LVDS"),1.25,1), IF(E83="HP", (AP83-DH83)*DA83/CF83, IF(ISNUMBER(OFFSET(IOB_DATA,$CK83,8+IF(E83="HP",1,0))),DA83*OFFSET(IOB_DATA,$CK83,8+IF(E83="HP",1,0))*2 /1000,0))),0),0)) -> 0 | DK83: =IF(ISERROR($CK83),0,IF(OR(LEFT($F83,3)="HSU",LEFT($F83,8)="Diff HSU",AND(IF(ISNUMBER(OFFSET(IOB_DATA,$CK83,8+IF(E83="HP",1,0))),OFFSET(IOB_DATA,$CK83,8+IF(E83="HP",1,0))=0))),0,IF((J83+K83)>0,IF(OFFSET(IO_STANDARDS,$AJ83,13)>0,IF(AL83=2, ((OFFSET(IOB_DATA,$CK83,8+IF(E83="HP",1,0))*AP83/1000) -IF(LEFT($F83,4)="MIPI",0.2*0.2/(100*100),((OFFSET(IOB_DATA,$CK83,8+IF(E83="HP",1,0))/1000/2)^2))*100)*IF(AND($Q83="Yes",LEFT($F83,4)="LVDS"),1.25,1)*(IF(LEFT($F83,4)="Diff",2,1)),IF(E83="HP",IF(OR(LEFT($F83,3)="POD",LEFT($F83,8)="Diff POD"),(DI83^2/CF83*(1-DA83)),((AP83-DH83)* DJ83 + DI83^2/CF83*(1-DA83))), (AP83-DH83)* DJ83 + DI83*(IF(ISNUMBER(OFFSET(IOB_DATA,$CK83,8+IF(E83="HP",1,0))),OFFSET(IOB_DATA,$CK83,8+IF(E83="HP",1,0))*2 /1000,0))*(1-DA83))),0),0))) -> 0 | DL83: =IF(ISERROR($CK83),0,IF((J83+K83)>0,IF(OFFSET(IO_STANDARDS,$AJ83,13)>0,(DJ83*AP83-DK83)*$CZ83*(IF(LEFT($F83,4)="Diff",2,1)),0),0)) -> 0 | DM83: =IF(AND(LEFT($F83,4)="MIPI",ISNUMBER(OFFSET(IO_STANDARDS,$AJ83,49))),OFFSET(IO_STANDARDS,$AJ83,49)-1,NA()) ->  | DN83: =IF(AND(LEFT($F83,4)="MIPI",ISNUMBER(OFFSET(IO_STANDARDS,$AJ83,48))),OFFSET(IO_STANDARDS,$AJ83,48)-1,NA()) ->  | DO83: =IF(ISERROR($DN83),0,OFFSET(IOB_DATA,$DN83,5)*(I83+K83)) -> 0 | DP83: =IF(ISERROR($DN83),0,OFFSET(IOB_DATA,$DN83,2)*OFFSET(IO_STANDARDS,$AJ83,50)*(I83+K83)) -> 0 | DQ83: =IF(ISERROR($DN83),0,(OFFSET(IOB_DATA,$DN83,6)+OFFSET(IO_STANDARDS,$AJ83,51))*(($AT83)*I83+(U83)*K83)) -> 0 | DR83: =IF(ISERROR($DN83),0,OFFSET(IOB_DATA,$DN83,3)*OFFSET(IO_STANDARDS,$AJ83,50)*(I83+K83)) -> 0 | DS83: =IF(ISERROR($DN83),0,OFFSET(IOB_DATA,$DN83,7)*(I83+K83)) -> 0 | DT83: =IF(ISERROR($DN83),0,IF(OFFSET(IOB_DATA,$DN83,4)<>"NA",OFFSET(IOB_DATA,$DN83,4)*OFFSET(IO_STANDARDS,$AJ83,50)*(I83+K83),0)) -> 0 | DU83: =IF(ISERROR($DM83),0,OFFSET(IOB_DATA,$DM83,6+IF(E83="HP",1,0))*((1-$U83)*(J83+K83)*IF(LEFT($F83,4)="Diff",2,1))) -> 0 | DV83: =IF(ISERROR($DM83),0,OFFSET(IOB_DATA,$DM83,3+IF(E83="HP",1,0))*OFFSET(IO_STANDARDS,$AJ83,50)*((1-$U83)*(J83+K83)*IF(LEFT($F83,4)="Diff",2,1))) -> 0 | DW83: =IF(ISERROR($DM83),0,OFFSET(IOB_DATA,$DM83,7+IF(E83="HP",1,0))*((1-$U83)*(J83+K83))*IF(LEFT($F83,4)="Diff",2,1)) -> 0 | DX83: =IF(ISERROR($DM83),0,OFFSET(IOB_DATA,$DM83,4+IF(E83="HP",1,0))*OFFSET(IO_STANDARDS,$AJ83,50)*((1-$U83)*(J83+K83))*IF(LEFT($F83,4)="Diff",2,1)*$AT$1) -> 0 | DY83: =IF(ISERROR($DM83),0,IF(OFFSET(IOB_DATA,$DM83,8+IF(E83="HP",1,0))<>"NA",OFFSET(IOB_DATA,$DM83,8+IF(E83="HP",1,0)),0)*$CZ83*(IF(LEFT($F83,4)="Diff",2,1))) -> 0 | DZ83: =IF(ISERROR($DM83),0,IF(ISNUMBER(OFFSET(IOB_DATA,$DM83,5+IF(E83="HP",1,0))),OFFSET(IOB_DATA,$DM83,5+IF(E83="HP",1,0))*(IF(E83="HD",6.5,2.5)+$CK$2+X83)/(IF(E83="HD",6.5,2.5)+OFFSET(IOB_DATA,$DM83,15)),0)*OFFSET(IO_STANDARDS,$AJ83,50)*((1-$U83)*(J83+K83)*IF(LEFT($F83,4)="Diff",2,1))) -> 0
E84: HP | F84: LVCMOS 1.8V 12mA | L84: No | M84: Off | N84: Low Power | S84: 0.125 | T84: SDR | U84: 1 | V84: 0 | W84: 0 | X84: 0 | Y84: =R84*IF(RIGHT(T84,1)="R",S84*IF(T84="DDR",2,1),2) -> 0 | Z84: 0 | AA84: 0 | AB84: 0 | AC84: 0 | AD84: None | AG84: 0 | AH84: 0 | AI84: 0 | AJ84: 94 | AK84: =R84*IF(RIGHT(T84,1)="R",S84*IF(T84="DDR",1,0.5),1) -> 0 | AL84: 1 | AP84: 1.8 | AQ84: 0 | AS84: =IF(RIGHT($F84,6) ="(pair)",2,1)*SUM(I84:K84) -> 0 | AT84: =IF(LEFT($F84,4)="MIPI",MIN($W84,0.3),$W84) -> 0 | AU84: 0 | AZ84: 0 | BA84: 0 | BC84: 0 | BD84: 0 | BE84: 0 | BF84: 0 | BG84: 0 | BH84: 0 | BI84: 0 | BJ84: 0 | BK84: 0 | BL84: 0 | BM84: 0 | BN84: 0 | BO84: 0 | BP84: 0 | BV84: 0 | BW84: =IF(OR($AL84=2),"BW2",IF(OR(MID(F84,IF(LEFT($F84,4)="Diff",6,1),4)="HSTL",MID(F84,IF(LEFT($F84,4)="Diff",6,1),4)="SSTL",MID(F84,IF(LEFT($F84,4)="Diff",6,1),3)="POD"),IF(E84="HD","BW6","BW3:BW5"),"BW1")) -> BW1 | BX84: =IF(OR(ISTEXT($AD84),$AD84="None"),0,$AD84) -> 0 | CA84: BV2 | CB84: 0 | CC84: 0 | CD84: =IF($L84="No",0,IF($K84>0,$AS84/4,$AS84/6)) -> 0 | CF84: =IF(OR(LEN($P84)<1,RIGHT($P84,4)="NONE"),IF(RIGHT(INDIRECT(LEFT($CG84,3)),2)="40",40,0),IF(LEFT($P84,3)="DCI",MID($P84,5,2),RIGHT($P84,2))) -> 0 | CG84: CA1 | CH84: CC1 | CI84: =IF(AND(LEFT($F84,3)="POD",$K84>0,$T84="DDR",NOT(ISERROR(SEARCH("ddr4_dq<",$B84,1)))),1,0) -> 0 | CJ84: 170 | CK84: 234 | CL84: 0 | CM84: 0 | CN84: 0 | CO84: 0 | CP84: 0 | CQ84: 0 | CR84: =IF($CB84>0,IF(LEFT($F84,4)="Diff",2,1)*($I84+$K84*(1-$U84))*IF(AND($AL84=2,$O84="DIFF_TERM"),OFFSET(IOB_DATA,$CJ84,7),IF($E84<>"HD",IF($CB84>0,1,0)*IF(AL84<>2,IF(OR(LEFT($F84,3)="POD",LEFT($F84,8)="Diff POD"),0.5*1000*$AP84/($CB84+40)*IF($CI84>0,0.36/0.5,1),$AQ84*500/$CB84),OFFSET(IOB_DATA,$CJ84,7)),IF(LEFT($O84,3)="RTT",$AQ84*500/$CB84,0))*(1-$V84))/1000,0) -> 0 | CS84: 0 | CT84: 0 | CU84: 0 | CV84: 0 | CW84: 0 | CX84: 0 | CY84: 0 | CZ84: =(($J84*IF(AND(E84="HP",$AL84<>2,LEFT($F84,2)<>"LV",RIGHT(T84,1)="R"),S84+(1-S84)/2,1)+K84*IF(AND(E84="HP",$AL84<>2,LEFT($F84,2)<>"LV",RIGHT(T84,1)="R"),S84,1))*$U84)*IF(AND($Q84="Yes",LEFT($F84,4)="LVDS"),1.25,1) -> 0 | DA84: =IF(LEFT($F84,3)="POD",0.64,0.5) -> 0.5 | DB84: =IF(CB84>0,IF(AND(ISNUMBER($AD84),$AD84<>"None"),$AD84,CB84),IF(OR($AL84=2),100,IF(OR(MID(F84,IF(LEFT($F84,4)="Diff",6,1),4)="HSTL",MID(F84,IF(LEFT($F84,4)="Diff",6,1),4)="SSTL",MID(F84,IF(LEFT($F84,4)="Diff",6,1),3)="POD"),IF(AND(ISNUMBER($AD84),$AD84<>"None"),$AD84,IF(E84="HD",50,40)),0))) -> 0 | DC84: =IF(CB84>0,IF(OR(LEFT($F84,3)="POD",LEFT($F84,8)="Diff POD"), AP84,AP84-AP84/2*(DB84/(CB84+ DB84))),0) -> 0 | DD84: =IF(CB84>0,IF(OR(LEFT($F84,3)="POD",LEFT($F84,8)="Diff POD"), AP84*(DB84/(CB84+DB84)),AP84/2*(DB84/(CB84+DB84))),0) -> 0 | DE84: 0 | DF84: 0 | DG84: =IF(ISERROR($CJ84),0,IF(CB84>0,DE84*AP84 -DF84,0)*(IF(LEFT($F84,4)="MIPI",1-$AT84,1)*$I84+$K84*(1-$U84))) -> 0 | DH84: 0 | DI84: 0 | DJ84: 0 | DK84: 0 | DL84: 0 | DO84: 0 | DP84: 0 | DQ84: 0 | DR84: 0 | DS84: 0 | DT84: 0 | DU84: 0 | DV84: 0 | DW84: 0 | DX84: 0 | DY84: 0 | DZ84: 0
E85: HP | F85: LVCMOS 1.8V 12mA | L85: No | M85: Off | N85: Low Power | S85: 0.125 | T85: SDR | U85: 1 | V85: 0 | W85: 0 | X85: 0 | Y85: 0 | Z85: 0 | AA85: 0 | AB85: 0 | AC85: 0 | AD85: None | AG85: 0 | AH85: 0 | AI85: 0 | AJ85: 94 | AK85: 0 | AL85: 1 | AP85: 1.8 | AQ85: 0 | AS85: 0 | AT85: 0 | AU85: 0 | AZ85: 0 | BA85: 0 | BC85: 0 | BD85: 0 | BE85: 0 | BF85: 0 | BG85: 0 | BH85: 0 | BI85: 0 | BJ85: 0 | BK85: 0 | BL85: 0 | BM85: 0 | BN85: 0 | BO85: 0 | BP85: 0 | BV85: 0 | BW85: BW1 | BX85: 0 | CA85: BV2 | CB85: 0 | CC85: 0 | CD85: 0 | CF85: 0 | CG85: CA1 | CH85: CC1 | CI85: 0 | CJ85: 170 | CK85: 234 | CL85: 0 | CM85: 0 | CN85: 0 | CO85: 0 | CP85: 0 | CQ85: 0 | CR85: 0 | CS85: 0 | CT85: 0 | CU85: 0 | CV85: 0 | CW85: 0 | CX85: 0 | CY85: 0 | CZ85: 0 | DA85: 0.5 | DB85: 0 | DC85: 0 | DD85: 0 | DE85: 0 | DF85: 0 | DG85: 0 | DH85: 0 | DI85: 0 | DJ85: 0 | DK85: 0 | DL85: 0 | DO85: 0 | DP85: 0 | DQ85: 0 | DR85: 0 | DS85: 0 | DT85: 0 | DU85: 0 | DV85: 0 | DW85: 0 | DX85: 0 | DY85: 0 | DZ85: 0
E86: HP | F86: LVCMOS 1.8V 12mA | L86: No | M86: Off | N86: Low Power | S86: 0.125 | T86: SDR | U86: 1 | V86: 0 | W86: 0 | X86: 0 | Y86: 0 | Z86: 0 | AA86: 0 | AB86: 0 | AC86: 0 | AD86: None | AG86: 0 | AH86: 0 | AI86: 0 | AJ86: 94 | AK86: 0 | AL86: 1 | AP86: 1.8 | AQ86: 0 | AS86: 0 | AT86: 0 | AU86: 0 | AZ86: 0 | BA86: 0 | BC86: 0 | BD86: 0 | BE86: 0 | BF86: 0 | BG86: 0 | BH86: 0 | BI86: 0 | BJ86: 0 | BK86: 0 | BL86: 0 | BM86: 0 | BN86: 0 | BO86: 0 | BP86: 0 | BV86: 0 | BW86: BW1 | BX86: 0 | CA86: BV2 | CB86: 0 | CC86: 0 | CD86: 0 | CF86: 0 | CG86: CA1 | CH86: CC1 | CI86: 0 | CJ86: 170 | CK86: 234 | CL86: 0 | CM86: 0 | CN86: 0 | CO86: 0 | CP86: 0 | CQ86: 0 | CR86: 0 | CS86: 0 | CT86: 0 | CU86: 0 | CV86: 0 | CW86: 0 | CX86: 0 | CY86: 0 | CZ86: 0 | DA86: 0.5 | DB86: 0 | DC86: 0 | DD86: 0 | DE86: 0 | DF86: 0 | DG86: 0 | DH86: 0 | DI86: 0 | DJ86: 0 | DK86: 0 | DL86: 0 | DO86: 0 | DP86: 0 | DQ86: 0 | DR86: 0 | DS86: 0 | DT86: 0 | DU86: 0 | DV86: 0 | DW86: 0 | DX86: 0 | DY86: 0 | DZ86: 0
E87: HP | F87: LVCMOS 1.8V 12mA | L87: No | M87: Off | N87: Low Power | S87: 0.125 | T87: SDR | U87: 1 | V87: 0 | W87: 0 | X87: 0 | Y87: 0 | Z87: 0 | AA87: 0 | AB87: 0 | AC87: 0 | AD87: None | AG87: 0 | AH87: 0 | AI87: 0 | AJ87: 94 | AK87: 0 | AL87: 1 | AP87: 1.8 | AQ87: 0 | AS87: 0 | AT87: 0 | AU87: 0 | AZ87: 0 | BA87: 0 | BC87: 0 | BD87: 0 | BE87: 0 | BF87: 0 | BG87: 0 | BH87: 0 | BI87: 0 | BJ87: 0 | BK87: 0 | BL87: 0 | BM87: 0 | BN87: 0 | BO87: 0 | BP87: 0 | BV87: 0 | BW87: BW1 | BX87: 0 | CA87: BV2 | CB87: 0 | CC87: 0 | CD87: 0 | CF87: 0 | CG87: CA1 | CH87: CC1 | CI87: 0 | CJ87: 170 | CK87: 234 | CL87: 0 | CM87: 0 | CN87: 0 | CO87: 0 | CP87: 0 | CQ87: 0 | CR87: 0 | CS87: 0 | CT87: 0 | CU87: 0 | CV87: 0 | CW87: 0 | CX87: 0 | CY87: 0 | CZ87: 0 | DA87: 0.5 | DB87: 0 | DC87: 0 | DD87: 0 | DE87: 0 | DF87: 0 | DG87: 0 | DH87: 0 | DI87: 0 | DJ87: 0 | DK87: 0 | DL87: 0 | DO87: 0 | DP87: 0 | DQ87: 0 | DR87: 0 | DS87: 0 | DT87: 0 | DU87: 0 | DV87: 0 | DW87: 0 | DX87: 0 | DY87: 0 | DZ87: 0
E88: HP | F88: LVCMOS 1.8V 12mA | L88: No | M88: Off | N88: Low Power | S88: 0.125 | T88: SDR | U88: 1 | V88: 0 | W88: 0 | X88: 0 | Y88: 0 | Z88: 0 | AA88: 0 | AB88: 0 | AC88: 0 | AD88: None | AG88: 0 | AH88: 0 | AI88: 0 | AJ88: 94 | AK88: 0 | AL88: 1 | AP88: 1.8 | AQ88: 0 | AS88: 0 | AT88: 0 | AU88: 0 | AZ88: 0 | BA88: 0 | BC88: 0 | BD88: 0 | BE88: 0 | BF88: 0 | BG88: 0 | BH88: 0 | BI88: 0 | BJ88: 0 | BK88: 0 | BL88: 0 | BM88: 0 | BN88: 0 | BO88: 0 | BP88: 0 | BV88: 0 | BW88: BW1 | BX88: 0 | CA88: BV2 | CB88: 0 | CC88: 0 | CD88: 0 | CF88: 0 | CG88: CA1 | CH88: CC1 | CI88: 0 | CJ88: 170 | CK88: 234 | CL88: 0 | CM88: 0 | CN88: 0 | CO88: 0 | CP88: 0 | CQ88: 0 | CR88: 0 | CS88: 0 | CT88: 0 | CU88: 0 | CV88: 0 | CW88: 0 | CX88: 0 | CY88: 0 | CZ88: 0 | DA88: 0.5 | DB88: 0 | DC88: 0 | DD88: 0 | DE88: 0 | DF88: 0 | DG88: 0 | DH88: 0 | DI88: 0 | DJ88: 0 | DK88: 0 | DL88: 0 | DO88: 0 | DP88: 0 | DQ88: 0 | DR88: 0 | DS88: 0 | DT88: 0 | DU88: 0 | DV88: 0 | DW88: 0 | DX88: 0 | DY88: 0 | DZ88: 0
E89: HP | F89: LVCMOS 1.8V 12mA | L89: No | M89: Off | N89: Low Power | S89: 0.125 | T89: SDR | U89: 1 | V89: 0 | W89: 0 | X89: 0 | Y89: 0 | Z89: 0 | AA89: 0 | AB89: 0 | AC89: 0 | AD89: None | AG89: 0 | AH89: 0 | AI89: 0 | AJ89: 94 | AK89: 0 | AL89: 1 | AP89: 1.8 | AQ89: 0 | AS89: 0 | AT89: 0 | AU89: 0 | AZ89: 0 | BA89: 0 | BC89: 0 | BD89: 0 | BE89: 0 | BF89: 0 | BG89: 0 | BH89: 0 | BI89: 0 | BJ89: 0 | BK89: 0 | BL89: 0 | BM89: 0 | BN89: 0 | BO89: 0 | BP89: 0 | BV89: 0 | BW89: BW1 | BX89: 0 | CA89: BV2 | CB89: 0 | CC89: 0 | CD89: 0 | CF89: 0 | CG89: CA1 | CH89: CC1 | CI89: 0 | CJ89: 170 | CK89: 234 | CL89: 0 | CM89: 0 | CN89: 0 | CO89: 0 | CP89: 0 | CQ89: 0 | CR89: 0 | CS89: 0 | CT89: 0 | CU89: 0 | CV89: 0 | CW89: 0 | CX89: 0 | CY89: 0 | CZ89: 0 | DA89: 0.5 | DB89: 0 | DC89: 0 | DD89: 0 | DE89: 0 | DF89: 0 | DG89: 0 | DH89: 0 | DI89: 0 | DJ89: 0 | DK89: 0 | DL89: 0 | DO89: 0 | DP89: 0 | DQ89: 0 | DR89: 0 | DS89: 0 | DT89: 0 | DU89: 0 | DV89: 0 | DW89: 0 | DX89: 0 | DY89: 0 | DZ89: 0
E90: HP | F90: LVCMOS 1.8V 12mA | L90: No | M90: Off | N90: Low Power | S90: 0.125 | T90: SDR | U90: 1 | V90: 0 | W90: 0 | X90: 0 | Y90: 0 | Z90: 0 | AA90: 0 | AB90: 0 | AC90: 0 | AD90: None | AG90: 0 | AH90: 0 | AI90: 0 | AJ90: 94 | AK90: 0 | AL90: 1 | AP90: 1.8 | AQ90: 0 | AS90: 0 | AT90: 0 | AU90: 0 | AZ90: 0 | BA90: 0 | BC90: 0 | BD90: 0 | BE90: 0 | BF90: 0 | BG90: 0 | BH90: 0 | BI90: 0 | BJ90: 0 | BK90: 0 | BL90: 0 | BM90: 0 | BN90: 0 | BO90: 0 | BP90: 0 | BV90: 0 | BW90: BW1 | BX90: 0 | CA90: BV2 | CB90: 0 | CC90: 0 | CD90: 0 | CF90: 0 | CG90: CA1 | CH90: CC1 | CI90: 0 | CJ90: 170 | CK90: 234 | CL90: 0 | CM90: 0 | CN90: 0 | CO90: 0 | CP90: 0 | CQ90: 0 | CR90: 0 | CS90: 0 | CT90: 0 | CU90: 0 | CV90: 0 | CW90: 0 | CX90: 0 | CY90: 0 | CZ90: 0 | DA90: 0.5 | DB90: 0 | DC90: 0 | DD90: 0 | DE90: 0 | DF90: 0 | DG90: 0 | DH90: 0 | DI90: 0 | DJ90: 0 | DK90: 0 | DL90: 0 | DO90: 0 | DP90: 0 | DQ90: 0 | DR90: 0 | DS90: 0 | DT90: 0 | DU90: 0 | DV90: 0 | DW90: 0 | DX90: 0 | DY90: 0 | DZ90: 0
E91: HP | F91: LVCMOS 1.8V 12mA | L91: No | M91: Off | N91: Low Power | S91: 0.125 | T91: SDR | U91: 1 | V91: 0 | W91: 0 | X91: 0 | Y91: 0 | Z91: 0 | AA91: 0 | AB91: 0 | AC91: 0 | AD91: None | AG91: 0 | AH91: 0 | AI91: 0 | AJ91: 94 | AK91: 0 | AL91: 1 | AP91: 1.8 | AQ91: 0 | AS91: 0 | AT91: 0 | AU91: 0 | AZ91: 0 | BA91: 0 | BC91: 0 | BD91: 0 | BE91: 0 | BF91: 0 | BG91: 0 | BH91: 0 | BI91: 0 | BJ91: 0 | BK91: 0 | BL91: 0 | BM91: 0 | BN91: 0 | BO91: 0 | BP91: 0 | BV91: 0 | BW91: BW1 | BX91: 0 | CA91: BV2 | CB91: 0 | CC91: 0 | CD91: 0 | CF91: 0 | CG91: CA1 | CH91: CC1 | CI91: 0 | CJ91: 170 | CK91: 234 | CL91: 0 | CM91: 0 | CN91: 0 | CO91: 0 | CP91: 0 | CQ91: 0 | CR91: 0 | CS91: 0 | CT91: 0 | CU91: 0 | CV91: 0 | CW91: 0 | CX91: 0 | CY91: 0 | CZ91: 0 | DA91: 0.5 | DB91: 0 | DC91: 0 | DD91: 0 | DE91: 0 | DF91: 0 | DG91: 0 | DH91: 0 | DI91: 0 | DJ91: 0 | DK91: 0 | DL91: 0 | DO91: 0 | DP91: 0 | DQ91: 0 | DR91: 0 | DS91: 0 | DT91: 0 | DU91: 0 | DV91: 0 | DW91: 0 | DX91: 0 | DY91: 0 | DZ91: 0
E92: HP | F92: LVCMOS 1.8V 12mA | L92: No | M92: Off | N92: Low Power | S92: 0.125 | T92: SDR | U92: 1 | V92: 0 | W92: 0 | X92: 0 | Y92: 0 | Z92: 0 | AA92: 0 | AB92: 0 | AC92: 0 | AD92: None | AG92: 0 | AH92: 0 | AI92: 0 | AJ92: 94 | AK92: 0 | AL92: 1 | AP92: 1.8 | AQ92: 0 | AS92: 0 | AT92: 0 | AU92: 0 | AZ92: 0 | BA92: 0 | BC92: 0 | BD92: 0 | BE92: 0 | BF92: 0 | BG92: 0 | BH92: 0 | BI92: 0 | BJ92: 0 | BK92: 0 | BL92: 0 | BM92: 0 | BN92: 0 | BO92: 0 | BP92: 0 | BV92: 0 | BW92: BW1 | BX92: 0 | CA92: BV2 | CB92: 0 | CC92: 0 | CD92: 0 | CF92: 0 | CG92: CA1 | CH92: CC1 | CI92: 0 | CJ92: 170 | CK92: 234 | CL92: 0 | CM92: 0 | CN92: 0 | CO92: 0 | CP92: 0 | CQ92: 0 | CR92: 0 | CS92: 0 | CT92: 0 | CU92: 0 | CV92: 0 | CW92: 0 | CX92: 0 | CY92: 0 | CZ92: 0 | DA92: 0.5 | DB92: 0 | DC92: 0 | DD92: 0 | DE92: 0 | DF92: 0 | DG92: 0 | DH92: 0 | DI92: 0 | DJ92: 0 | DK92: 0 | DL92: 0 | DO92: 0 | DP92: 0 | DQ92: 0 | DR92: 0 | DS92: 0 | DT92: 0 | DU92: 0 | DV92: 0 | DW92: 0 | DX92: 0 | DY92: 0 | DZ92: 0
E93: HP | F93: LVCMOS 1.8V 12mA | L93: No | M93: Off | N93: Low Power | S93: 0.125 | T93: SDR | U93: 1 | V93: 0 | W93: 0 | X93: 0 | Y93: 0 | Z93: 0 | AA93: 0 | AB93: 0 | AC93: 0 | AD93: None | AG93: 0 | AH93: 0 | AI93: 0 | AJ93: 94 | AK93: 0 | AL93: 1 | AP93: 1.8 | AQ93: 0 | AS93: 0 | AT93: 0 | AU93: 0 | AZ93: 0 | BA93: 0 | BC93: 0 | BD93: 0 | BE93: 0 | BF93: 0 | BG93: 0 | BH93: 0 | BI93: 0 | BJ93: 0 | BK93: 0 | BL93: 0 | BM93: 0 | BN93: 0 | BO93: 0 | BP93: 0 | BV93: 0 | BW93: BW1 | BX93: 0 | CA93: BV2 | CB93: 0 | CC93: 0 | CD93: 0 | CF93: 0 | CG93: CA1 | CH93: CC1 | CI93: 0 | CJ93: 170 | CK93: 234 | CL93: 0 | CM93: 0 | CN93: 0 | CO93: 0 | CP93: 0 | CQ93: 0 | CR93: 0 | CS93: 0 | CT93: 0 | CU93: 0 | CV93: 0 | CW93: 0 | CX93: 0 | CY93: 0 | CZ93: 0 | DA93: 0.5 | DB93: 0 | DC93: 0 | DD93: 0 | DE93: 0 | DF93: 0 | DG93: 0 | DH93: 0 | DI93: 0 | DJ93: 0 | DK93: 0 | DL93: 0 | DO93: 0 | DP93: 0 | DQ93: 0 | DR93: 0 | DS93: 0 | DT93: 0 | DU93: 0 | DV93: 0 | DW93: 0 | DX93: 0 | DY93: 0 | DZ93: 0
E94: HP | F94: LVCMOS 1.8V 12mA | L94: No | M94: Off | N94: Low Power | S94: 0.125 | T94: SDR | U94: 1 | V94: 0 | W94: 0 | X94: 0 | Y94: 0 | Z94: 0 | AA94: 0 | AB94: 0 | AC94: 0 | AD94: None | AG94: 0 | AH94: 0 | AI94: 0 | AJ94: 94 | AK94: 0 | AL94: 1 | AP94: 1.8 | AQ94: 0 | AS94: 0 | AT94: 0 | AU94: 0 | AZ94: 0 | BA94: 0 | BC94: 0 | BD94: 0 | BE94: 0 | BF94: 0 | BG94: 0 | BH94: 0 | BI94: 0 | BJ94: 0 | BK94: 0 | BL94: 0 | BM94: 0 | BN94: 0 | BO94: 0 | BP94: 0 | BV94: 0 | BW94: BW1 | BX94: 0 | CA94: BV2 | CB94: 0 | CC94: 0 | CD94: 0 | CF94: 0 | CG94: CA1 | CH94: CC1 | CI94: 0 | CJ94: 170 | CK94: 234 | CL94: 0 | CM94: 0 | CN94: 0 | CO94: 0 | CP94: 0 | CQ94: 0 | CR94: 0 | CS94: 0 | CT94: 0 | CU94: 0 | CV94: 0 | CW94: 0 | CX94: 0 | CY94: 0 | CZ94: 0 | DA94: 0.5 | DB94: 0 | DC94: 0 | DD94: 0 | DE94: 0 | DF94: 0 | DG94: 0 | DH94: 0 | DI94: 0 | DJ94: 0 | DK94: 0 | DL94: 0 | DO94: 0 | DP94: 0 | DQ94: 0 | DR94: 0 | DS94: 0 | DT94: 0 | DU94: 0 | DV94: 0 | DW94: 0 | DX94: 0 | DY94: 0 | DZ94: 0
E95: HP | F95: LVCMOS 1.8V 12mA | L95: No | M95: Off | N95: Low Power | S95: 0.125 | T95: SDR | U95: 1 | V95: 0 | W95: 0 | X95: 0 | Y95: 0 | Z95: 0 | AA95: 0 | AB95: 0 | AC95: 0 | AD95: None | AG95: 0 | AH95: 0 | AI95: 0 | AJ95: 94 | AK95: 0 | AL95: 1 | AP95: 1.8 | AQ95: 0 | AS95: 0 | AT95: 0 | AU95: 0 | AZ95: 0 | BA95: 0 | BC95: 0 | BD95: 0 | BE95: 0 | BF95: 0 | BG95: 0 | BH95: 0 | BI95: 0 | BJ95: 0 | BK95: 0 | BL95: 0 | BM95: 0 | BN95: 0 | BO95: 0 | BP95: 0 | BV95: 0 | BW95: BW1 | BX95: 0 | CA95: BV2 | CB95: 0 | CC95: 0 | CD95: 0 | CF95: 0 | CG95: CA1 | CH95: CC1 | CI95: 0 | CJ95: 170 | CK95: 234 | CL95: 0 | CM95: 0 | CN95: 0 | CO95: 0 | CP95: 0 | CQ95: 0 | CR95: 0 | CS95: 0 | CT95: 0 | CU95: 0 | CV95: 0 | CW95: 0 | CX95: 0 | CY95: 0 | CZ95: 0 | DA95: 0.5 | DB95: 0 | DC95: 0 | DD95: 0 | DE95: 0 | DF95: 0 | DG95: 0 | DH95: 0 | DI95: 0 | DJ95: 0 | DK95: 0 | DL95: 0 | DO95: 0 | DP95: 0 | DQ95: 0 | DR95: 0 | DS95: 0 | DT95: 0 | DU95: 0 | DV95: 0 | DW95: 0 | DX95: 0 | DY95: 0 | DZ95: 0
E96: HP | F96: LVCMOS 1.8V 12mA | L96: No | M96: Off | N96: Low Power | S96: 0.125 | T96: SDR | U96: 1 | V96: 0 | W96: 0 | X96: 0 | Y96: 0 | Z96: 0 | AA96: 0 | AB96: 0 | AC96: 0 | AD96: None | AG96: 0 | AH96: 0 | AI96: 0 | AJ96: 94 | AK96: 0 | AL96: 1 | AP96: 1.8 | AQ96: 0 | AS96: 0 | AT96: 0 | AU96: 0 | AZ96: 0 | BA96: 0 | BC96: 0 | BD96: 0 | BE96: 0 | BF96: 0 | BG96: 0 | BH96: 0 | BI96: 0 | BJ96: 0 | BK96: 0 | BL96: 0 | BM96: 0 | BN96: 0 | BO96: 0 | BP96: 0 | BV96: 0 | BW96: BW1 | BX96: 0 | CA96: BV2 | CB96: 0 | CC96: 0 | CD96: 0 | CF96: 0 | CG96: CA1 | CH96: CC1 | CI96: 0 | CJ96: 170 | CK96: 234 | CL96: 0 | CM96: 0 | CN96: 0 | CO96: 0 | CP96: 0 | CQ96: 0 | CR96: 0 | CS96: 0 | CT96: 0 | CU96: 0 | CV96: 0 | CW96: 0 | CX96: 0 | CY96: 0 | CZ96: 0 | DA96: 0.5 | DB96: 0 | DC96: 0 | DD96: 0 | DE96: 0 | DF96: 0 | DG96: 0 | DH96: 0 | DI96: 0 | DJ96: 0 | DK96: 0 | DL96: 0 | DO96: 0 | DP96: 0 | DQ96: 0 | DR96: 0 | DS96: 0 | DT96: 0 | DU96: 0 | DV96: 0 | DW96: 0 | DX96: 0 | DY96: 0 | DZ96: 0
E97: HP | F97: LVCMOS 1.8V 12mA | L97: No | M97: Off | N97: Low Power | S97: 0.125 | T97: SDR | U97: 1 | V97: 0 | W97: 0 | X97: 0 | Y97: 0 | Z97: 0 | AA97: 0 | AB97: 0 | AC97: 0 | AD97: None | AG97: 0 | AH97: 0 | AI97: 0 | AJ97: 94 | AK97: 0 | AL97: 1 | AP97: 1.8 | AQ97: 0 | AS97: 0 | AT97: 0 | AU97: 0 | AZ97: 0 | BA97: 0 | BC97: 0 | BD97: 0 | BE97: 0 | BF97: 0 | BG97: 0 | BH97: 0 | BI97: 0 | BJ97: 0 | BK97: 0 | BL97: 0 | BM97: 0 | BN97: 0 | BO97: 0 | BP97: 0 | BV97: 0 | BW97: BW1 | BX97: 0 | CA97: BV2 | CB97: 0 | CC97: 0 | CD97: 0 | CF97: 0 | CG97: CA1 | CH97: CC1 | CI97: 0 | CJ97: 170 | CK97: 234 | CL97: 0 | CM97: 0 | CN97: 0 | CO97: 0 | CP97: 0 | CQ97: 0 | CR97: 0 | CS97: 0 | CT97: 0 | CU97: 0 | CV97: 0 | CW97: 0 | CX97: 0 | CY97: 0 | CZ97: 0 | DA97: 0.5 | DB97: 0 | DC97: 0 | DD97: 0 | DE97: 0 | DF97: 0 | DG97: 0 | DH97: 0 | DI97: 0 | DJ97: 0 | DK97: 0 | DL97: 0 | DO97: 0 | DP97: 0 | DQ97: 0 | DR97: 0 | DS97: 0 | DT97: 0 | DU97: 0 | DV97: 0 | DW97: 0 | DX97: 0 | DY97: 0 | DZ97: 0
E98: HP | F98: LVCMOS 1.8V 12mA | L98: No | M98: Off | N98: Low Power | S98: 0.125 | T98: SDR | U98: 1 | V98: 0 | W98: 0 | X98: 0 | Y98: 0 | Z98: 0 | AA98: 0 | AB98: 0 | AC98: 0 | AD98: None | AG98: 0 | AH98: 0 | AI98: 0 | AJ98: 94 | AK98: 0 | AL98: 1 | AP98: 1.8 | AQ98: 0 | AS98: 0 | AT98: 0 | AU98: 0 | AZ98: 0 | BA98: 0 | BC98: 0 | BD98: 0 | BE98: 0 | BF98: 0 | BG98: 0 | BH98: 0 | BI98: 0 | BJ98: 0 | BK98: 0 | BL98: 0 | BM98: 0 | BN98: 0 | BO98: 0 | BP98: 0 | BV98: 0 | BW98: BW1 | BX98: 0 | CA98: BV2 | CB98: 0 | CC98: 0 | CD98: 0 | CF98: 0 | CG98: CA1 | CH98: CC1 | CI98: 0 | CJ98: 170 | CK98: 234 | CL98: 0 | CM98: 0 | CN98: 0 | CO98: 0 | CP98: 0 | CQ98: 0 | CR98: 0 | CS98: 0 | CT98: 0 | CU98: 0 | CV98: 0 | CW98: 0 | CX98: 0 | CY98: 0 | CZ98: 0 | DA98: 0.5 | DB98: 0 | DC98: 0 | DD98: 0 | DE98: 0 | DF98: 0 | DG98: 0 | DH98: 0 | DI98: 0 | DJ98: 0 | DK98: 0 | DL98: 0 | DO98: 0 | DP98: 0 | DQ98: 0 | DR98: 0 | DS98: 0 | DT98: 0 | DU98: 0 | DV98: 0 | DW98: 0 | DX98: 0 | DY98: 0 | DZ98: 0
E99: HP | F99: LVCMOS 1.8V 12mA | L99: No | M99: Off | N99: Low Power | S99: 0.125 | T99: SDR | U99: 1 | V99: 0 | W99: 0 | X99: 0 | Y99: 0 | Z99: 0 | AA99: 0 | AB99: 0 | AC99: 0 | AD99: None | AG99: 0 | AH99: 0 | AI99: 0 | AJ99: 94 | AK99: 0 | AL99: 1 | AP99: 1.8 | AQ99: 0 | AS99: 0 | AT99: 0 | AU99: 0 | AZ99: 0 | BA99: 0 | BC99: 0 | BD99: 0 | BE99: 0 | BF99: 0 | BG99: 0 | BH99: 0 | BI99: 0 | BJ99: 0 | BK99: 0 | BL99: 0 | BM99: 0 | BN99: 0 | BO99: 0 | BP99: 0 | BV99: 0 | BW99: BW1 | BX99: 0 | CA99: BV2 | CB99: 0 | CC99: 0 | CD99: 0 | CF99: 0 | CG99: CA1 | CH99: CC1 | CI99: 0 | CJ99: 170 | CK99: 234 | CL99: 0 | CM99: 0 | CN99: 0 | CO99: 0 | CP99: 0 | CQ99: 0 | CR99: 0 | CS99: 0 | CT99: 0 | CU99: 0 | CV99: 0 | CW99: 0 | CX99: 0 | CY99: 0 | CZ99: 0 | DA99: 0.5 | DB99: 0 | DC99: 0 | DD99: 0 | DE99: 0 | DF99: 0 | DG99: 0 | DH99: 0 | DI99: 0 | DJ99: 0 | DK99: 0 | DL99: 0 | DO99: 0 | DP99: 0 | DQ99: 0 | DR99: 0 | DS99: 0 | DT99: 0 | DU99: 0 | DV99: 0 | DW99: 0 | DX99: 0 | DY99: 0 | DZ99: 0
E100: HP | F100: LVCMOS 1.8V 12mA | L100: No | M100: Off | N100: Low Power | S100: 0.125 | T100: SDR | U100: 1 | V100: 0 | W100: 0 | X100: 0 | Y100: 0 | Z100: 0 | AA100: 0 | AB100: 0 | AC100: 0 | AD100: None | AG100: 0 | AH100: 0 | AI100: 0 | AJ100: 94 | AK100: 0 | AL100: 1 | AP100: 1.8 | AQ100: 0 | AS100: 0 | AT100: 0 | AU100: 0 | AZ100: 0 | BA100: 0 | BC100: 0 | BD100: 0 | BE100: 0 | BF100: 0 | BG100: 0 | BH100: 0 | BI100: 0 | BJ100: 0 | BK100: 0 | BL100: 0 | BM100: 0 | BN100: 0 | BO100: 0 | BP100: 0 | BV100: 0 | BW100: BW1 | BX100: 0 | CA100: BV2 | CB100: 0 | CC100: 0 | CD100: 0 | CF100: 0 | CG100: CA1 | CH100: CC1 | CI100: 0 | CJ100: 170 | CK100: 234 | CL100: 0 | CM100: 0 | CN100: 0 | CO100: 0 | CP100: 0 | CQ100: 0 | CR100: 0 | CS100: 0 | CT100: 0 | CU100: 0 | CV100: 0 | CW100: 0 | CX100: 0 | CY100: 0 | CZ100: 0 | DA100: 0.5 | DB100: 0 | DC100: 0 | DD100: 0 | DE100: 0 | DF100: 0 | DG100: 0 | DH100: 0 | DI100: 0 | DJ100: 0 | DK100: 0 | DL100: 0 | DO100: 0 | DP100: 0 | DQ100: 0 | DR100: 0 | DS100: 0 | DT100: 0 | DU100: 0 | DV100: 0 | DW100: 0 | DX100: 0 | DY100: 0 | DZ100: 0
E101: HP | F101: LVCMOS 1.8V 12mA | L101: No | M101: Off | N101: Low Power | S101: 0.125 | T101: SDR | U101: 1 | V101: 0 | W101: 0 | X101: 0 | Y101: 0 | Z101: 0 | AA101: 0 | AB101: 0 | AC101: 0 | AD101: None | AG101: 0 | AH101: 0 | AI101: 0 | AJ101: 94 | AK101: 0 | AL101: 1 | AP101: 1.8 | AQ101: 0 | AS101: 0 | AT101: 0 | AU101: 0 | AZ101: 0 | BA101: 0 | BC101: 0 | BD101: 0 | BE101: 0 | BF101: 0 | BG101: 0 | BH101: 0 | BI101: 0 | BJ101: 0 | BK101: 0 | BL101: 0 | BM101: 0 | BN101: 0 | BO101: 0 | BP101: 0 | BV101: 0 | BW101: BW1 | BX101: 0 | CA101: BV2 | CB101: 0 | CC101: 0 | CD101: 0 | CF101: 0 | CG101: CA1 | CH101: CC1 | CI101: 0 | CJ101: 170 | CK101: 234 | CL101: 0 | CM101: 0 | CN101: 0 | CO101: 0 | CP101: 0 | CQ101: 0 | CR101: 0 | CS101: 0 | CT101: 0 | CU101: 0 | CV101: 0 | CW101: 0 | CX101: 0 | CY101: 0 | CZ101: 0 | DA101: 0.5 | DB101: 0 | DC101: 0 | DD101: 0 | DE101: 0 | DF101: 0 | DG101: 0 | DH101: 0 | DI101: 0 | DJ101: 0 | DK101: 0 | DL101: 0 | DO101: 0 | DP101: 0 | DQ101: 0 | DR101: 0 | DS101: 0 | DT101: 0 | DU101: 0 | DV101: 0 | DW101: 0 | DX101: 0 | DY101: 0 | DZ101: 0
E102: HP | F102: LVCMOS 1.8V 12mA | L102: No | M102: Off | N102: Low Power | S102: 0.125 | T102: SDR | U102: 1 | V102: 0 | W102: 0 | X102: 0 | Y102: 0 | Z102: 0 | AA102: 0 | AB102: 0 | AC102: 0 | AD102: None | AG102: 0 | AH102: 0 | AI102: 0 | AJ102: 94 | AK102: 0 | AL102: 1 | AP102: 1.8 | AQ102: 0 | AS102: 0 | AT102: 0 | AU102: 0 | AZ102: 0 | BA102: 0 | BC102: 0 | BD102: 0 | BE102: 0 | BF102: 0 | BG102: 0 | BH102: 0 | BI102: 0 | BJ102: 0 | BK102: 0 | BL102: 0 | BM102: 0 | BN102: 0 | BO102: 0 | BP102: 0 | BV102: 0 | BW102: BW1 | BX102: 0 | CA102: BV2 | CB102: 0 | CC102: 0 | CD102: 0 | CF102: 0 | CG102: CA1 | CH102: CC1 | CI102: 0 | CJ102: 170 | CK102: 234 | CL102: 0 | CM102: 0 | CN102: 0 | CO102: 0 | CP102: 0 | CQ102: 0 | CR102: 0 | CS102: 0 | CT102: 0 | CU102: 0 | CV102: 0 | CW102: 0 | CX102: 0 | CY102: 0 | CZ102: 0 | DA102: 0.5 | DB102: 0 | DC102: 0 | DD102: 0 | DE102: 0 | DF102: 0 | DG102: 0 | DH102: 0 | DI102: 0 | DJ102: 0 | DK102: 0 | DL102: 0 | DO102: 0 | DP102: 0 | DQ102: 0 | DR102: 0 | DS102: 0 | DT102: 0 | DU102: 0 | DV102: 0 | DW102: 0 | DX102: 0 | DY102: 0 | DZ102: 0
E103: HP | F103: LVCMOS 1.8V 12mA | L103: No | M103: Off | N103: Low Power | S103: 0.125 | T103: SDR | U103: 1 | V103: 0 | W103: 0 | X103: 0 | Y103: 0 | Z103: 0 | AA103: 0 | AB103: 0 | AC103: 0 | AD103: None | AG103: 0 | AH103: 0 | AI103: 0 | AJ103: 94 | AK103: 0 | AL103: 1 | AP103: 1.8 | AQ103: 0 | AS103: 0 | AT103: 0 | AU103: 0 | AZ103: 0 | BA103: 0 | BC103: 0 | BD103: 0 | BE103: 0 | BF103: 0 | BG103: 0 | BH103: 0 | BI103: 0 | BJ103: 0 | BK103: 0 | BL103: 0 | BM103: 0 | BN103: 0 | BO103: 0 | BP103: 0 | BV103: 0 | BW103: BW1 | BX103: 0 | CA103: BV2 | CB103: 0 | CC103: 0 | CD103: 0 | CF103: 0 | CG103: CA1 | CH103: CC1 | CI103: 0 | CJ103: 170 | CK103: 234 | CL103: 0 | CM103: 0 | CN103: 0 | CO103: 0 | CP103: 0 | CQ103: 0 | CR103: 0 | CS103: 0 | CT103: 0 | CU103: 0 | CV103: 0 | CW103: 0 | CX103: 0 | CY103: 0 | CZ103: 0 | DA103: 0.5 | DB103: 0 | DC103: 0 | DD103: 0 | DE103: 0 | DF103: 0 | DG103: 0 | DH103: 0 | DI103: 0 | DJ103: 0 | DK103: 0 | DL103: 0 | DO103: 0 | DP103: 0 | DQ103: 0 | DR103: 0 | DS103: 0 | DT103: 0 | DU103: 0 | DV103: 0 | DW103: 0 | DX103: 0 | DY103: 0 | DZ103: 0
E104: HP | F104: LVCMOS 1.8V 12mA | L104: No | M104: Off | N104: Low Power | S104: 0.125 | T104: SDR | U104: 1 | V104: 0 | W104: 0 | X104: 0 | Y104: 0 | Z104: 0 | AA104: 0 | AB104: 0 | AC104: 0 | AD104: None | AG104: 0 | AH104: 0 | AI104: 0 | AJ104: 94 | AK104: 0 | AL104: 1 | AP104: 1.8 | AQ104: 0 | AS104: 0 | AT104: 0 | AU104: 0 | AZ104: 0 | BA104: 0 | BC104: 0 | BD104: 0 | BE104: 0 | BF104: 0 | BG104: 0 | BH104: 0 | BI104: 0 | BJ104: 0 | BK104: 0 | BL104: 0 | BM104: 0 | BN104: 0 | BO104: 0 | BP104: 0 | BV104: 0 | BW104: BW1 | BX104: 0 | CA104: BV2 | CB104: 0 | CC104: 0 | CD104: 0 | CF104: 0 | CG104: CA1 | CH104: CC1 | CI104: 0 | CJ104: 170 | CK104: 234 | CL104: 0 | CM104: 0 | CN104: 0 | CO104: 0 | CP104: 0 | CQ104: 0 | CR104: 0 | CS104: 0 | CT104: 0 | CU104: 0 | CV104: 0 | CW104: 0 | CX104: 0 | CY104: 0 | CZ104: 0 | DA104: 0.5 | DB104: 0 | DC104: 0 | DD104: 0 | DE104: 0 | DF104: 0 | DG104: 0 | DH104: 0 | DI104: 0 | DJ104: 0 | DK104: 0 | DL104: 0 | DO104: 0 | DP104: 0 | DQ104: 0 | DR104: 0 | DS104: 0 | DT104: 0 | DU104: 0 | DV104: 0 | DW104: 0 | DX104: 0 | DY104: 0 | DZ104: 0
E105: HP | F105: LVCMOS 1.8V 12mA | L105: No | M105: Off | N105: Low Power | S105: 0.125 | T105: SDR | U105: 1 | V105: 0 | W105: 0 | X105: 0 | Y105: 0 | Z105: 0 | AA105: 0 | AB105: 0 | AC105: 0 | AD105: None | AG105: 0 | AH105: 0 | AI105: 0 | AJ105: 94 | AK105: 0 | AL105: 1 | AP105: 1.8 | AQ105: 0 | AS105: 0 | AT105: 0 | AU105: 0 | AZ105: 0 | BA105: 0 | BC105: 0 | BD105: 0 | BE105: 0 | BF105: 0 | BG105: 0 | BH105: 0 | BI105: 0 | BJ105: 0 | BK105: 0 | BL105: 0 | BM105: 0 | BN105: 0 | BO105: 0 | BP105: 0 | BV105: 0 | BW105: BW1 | BX105: 0 | CA105: BV2 | CB105: 0 | CC105: 0 | CD105: 0 | CF105: 0 | CG105: CA1 | CH105: CC1 | CI105: 0 | CJ105: 170 | CK105: 234 | CL105: 0 | CM105: 0 | CN105: 0 | CO105: 0 | CP105: 0 | CQ105: 0 | CR105: 0 | CS105: 0 | CT105: 0 | CU105: 0 | CV105: 0 | CW105: 0 | CX105: 0 | CY105: 0 | CZ105: 0 | DA105: 0.5 | DB105: 0 | DC105: 0 | DD105: 0 | DE105: 0 | DF105: 0 | DG105: 0 | DH105: 0 | DI105: 0 | DJ105: 0 | DK105: 0 | DL105: 0 | DO105: 0 | DP105: 0 | DQ105: 0 | DR105: 0 | DS105: 0 | DT105: 0 | DU105: 0 | DV105: 0 | DW105: 0 | DX105: 0 | DY105: 0 | DZ105: 0
E106: HP | F106: LVCMOS 1.8V 12mA | L106: No | M106: Off | N106: Low Power | S106: 0.125 | T106: SDR | U106: 1 | V106: 0 | W106: 0 | X106: 0 | Y106: 0 | Z106: 0 | AA106: 0 | AB106: 0 | AC106: 0 | AD106: None | AG106: 0 | AH106: 0 | AI106: 0 | AJ106: 94 | AK106: 0 | AL106: 1 | AP106: 1.8 | AQ106: 0 | AS106: 0 | AT106: 0 | AU106: 0 | AZ106: 0 | BA106: 0 | BC106: 0 | BD106: 0 | BE106: 0 | BF106: 0 | BG106: 0 | BH106: 0 | BI106: 0 | BJ106: 0 | BK106: 0 | BL106: 0 | BM106: 0 | BN106: 0 | BO106: 0 | BP106: 0 | BV106: 0 | BW106: BW1 | BX106: 0 | CA106: BV2 | CB106: 0 | CC106: 0 | CD106: 0 | CF106: 0 | CG106: CA1 | CH106: CC1 | CI106: 0 | CJ106: 170 | CK106: 234 | CL106: 0 | CM106: 0 | CN106: 0 | CO106: 0 | CP106: 0 | CQ106: 0 | CR106: 0 | CS106: 0 | CT106: 0 | CU106: 0 | CV106: 0 | CW106: 0 | CX106: 0 | CY106: 0 | CZ106: 0 | DA106: 0.5 | DB106: 0 | DC106: 0 | DD106: 0 | DE106: 0 | DF106: 0 | DG106: 0 | DH106: 0 | DI106: 0 | DJ106: 0 | DK106: 0 | DL106: 0 | DO106: 0 | DP106: 0 | DQ106: 0 | DR106: 0 | DS106: 0 | DT106: 0 | DU106: 0 | DV106: 0 | DW106: 0 | DX106: 0 | DY106: 0 | DZ106: 0
E107: HP | F107: LVCMOS 1.8V 12mA | L107: No | M107: Off | N107: Low Power | S107: 0.125 | T107: SDR | U107: 1 | V107: 0 | W107: 0 | X107: 0 | Y107: 0 | Z107: 0 | AA107: 0 | AB107: 0 | AC107: 0 | AD107: None | AG107: 0 | AH107: 0 | AI107: 0 | AJ107: 94 | AK107: 0 | AL107: 1 | AP107: 1.8 | AQ107: 0 | AS107: 0 | AT107: 0 | AU107: 0 | AZ107: 0 | BA107: 0 | BC107: 0 | BD107: 0 | BE107: 0 | BF107: 0 | BG107: 0 | BH107: 0 | BI107: 0 | BJ107: 0 | BK107: 0 | BL107: 0 | BM107: 0 | BN107: 0 | BO107: 0 | BP107: 0 | BV107: 0 | BW107: BW1 | BX107: 0 | CA107: BV2 | CB107: 0 | CC107: 0 | CD107: 0 | CF107: 0 | CG107: CA1 | CH107: CC1 | CI107: 0 | CJ107: 170 | CK107: 234 | CL107: 0 | CM107: 0 | CN107: 0 | CO107: 0 | CP107: 0 | CQ107: 0 | CR107: 0 | CS107: 0 | CT107: 0 | CU107: 0 | CV107: 0 | CW107: 0 | CX107: 0 | CY107: 0 | CZ107: 0 | DA107: 0.5 | DB107: 0 | DC107: 0 | DD107: 0 | DE107: 0 | DF107: 0 | DG107: 0 | DH107: 0 | DI107: 0 | DJ107: 0 | DK107: 0 | DL107: 0 | DO107: 0 | DP107: 0 | DQ107: 0 | DR107: 0 | DS107: 0 | DT107: 0 | DU107: 0 | DV107: 0 | DW107: 0 | DX107: 0 | DY107: 0 | DZ107: 0
E108: HP | F108: LVCMOS 1.8V 12mA | L108: No | M108: Off | N108: Low Power | S108: 0.125 | T108: SDR | U108: 1 | V108: 0 | W108: 0 | X108: 0 | Y108: 0 | Z108: 0 | AA108: 0 | AB108: 0 | AC108: 0 | AD108: None | AG108: 0 | AH108: 0 | AI108: 0 | AJ108: 94 | AK108: 0 | AL108: 1 | AP108: 1.8 | AQ108: 0 | AS108: 0 | AT108: 0 | AU108: 0 | AZ108: 0 | BA108: 0 | BC108: 0 | BD108: 0 | BE108: 0 | BF108: 0 | BG108: 0 | BH108: 0 | BI108: 0 | BJ108: 0 | BK108: 0 | BL108: 0 | BM108: 0 | BN108: 0 | BO108: 0 | BP108: 0 | BV108: 0 | BW108: BW1 | BX108: 0 | CA108: BV2 | CB108: 0 | CC108: 0 | CD108: 0 | CF108: 0 | CG108: CA1 | CH108: CC1 | CI108: 0 | CJ108: 170 | CK108: 234 | CL108: 0 | CM108: 0 | CN108: 0 | CO108: 0 | CP108: 0 | CQ108: 0 | CR108: 0 | CS108: 0 | CT108: 0 | CU108: 0 | CV108: 0 | CW108: 0 | CX108: 0 | CY108: 0 | CZ108: 0 | DA108: 0.5 | DB108: 0 | DC108: 0 | DD108: 0 | DE108: 0 | DF108: 0 | DG108: 0 | DH108: 0 | DI108: 0 | DJ108: 0 | DK108: 0 | DL108: 0 | DO108: 0 | DP108: 0 | DQ108: 0 | DR108: 0 | DS108: 0 | DT108: 0 | DU108: 0 | DV108: 0 | DW108: 0 | DX108: 0 | DY108: 0 | DZ108: 0
E109: HP | F109: LVCMOS 1.8V 12mA | L109: No | M109: Off | N109: Low Power | S109: 0.125 | T109: SDR | U109: 1 | V109: 0 | W109: 0 | X109: 0 | Y109: 0 | Z109: 0 | AA109: 0 | AB109: 0 | AC109: 0 | AD109: None | AG109: 0 | AH109: 0 | AI109: 0 | AJ109: 94 | AK109: 0 | AL109: 1 | AP109: 1.8 | AQ109: 0 | AS109: 0 | AT109: 0 | AU109: 0 | AZ109: 0 | BA109: 0 | BC109: 0 | BD109: 0 | BE109: 0 | BF109: 0 | BG109: 0 | BH109: 0 | BI109: 0 | BJ109: 0 | BK109: 0 | BL109: 0 | BM109: 0 | BN109: 0 | BO109: 0 | BP109: 0 | BV109: 0 | BW109: BW1 | BX109: 0 | CA109: BV2 | CB109: 0 | CC109: 0 | CD109: 0 | CF109: 0 | CG109: CA1 | CH109: CC1 | CI109: 0 | CJ109: 170 | CK109: 234 | CL109: 0 | CM109: 0 | CN109: 0 | CO109: 0 | CP109: 0 | CQ109: 0 | CR109: 0 | CS109: 0 | CT109: 0 | CU109: 0 | CV109: 0 | CW109: 0 | CX109: 0 | CY109: 0 | CZ109: 0 | DA109: 0.5 | DB109: 0 | DC109: 0 | DD109: 0 | DE109: 0 | DF109: 0 | DG109: 0 | DH109: 0 | DI109: 0 | DJ109: 0 | DK109: 0 | DL109: 0 | DO109: 0 | DP109: 0 | DQ109: 0 | DR109: 0 | DS109: 0 | DT109: 0 | DU109: 0 | DV109: 0 | DW109: 0 | DX109: 0 | DY109: 0 | DZ109: 0
E110: HP | F110: LVCMOS 1.8V 12mA | L110: No | M110: Off | N110: Low Power | S110: 0.125 | T110: SDR | U110: 1 | V110: 0 | W110: 0 | X110: 0 | Y110: 0 | Z110: 0 | AA110: 0 | AB110: 0 | AC110: 0 | AD110: None | AG110: 0 | AH110: 0 | AI110: 0 | AJ110: 94 | AK110: 0 | AL110: 1 | AP110: 1.8 | AQ110: 0 | AS110: 0 | AT110: 0 | AU110: 0 | AZ110: 0 | BA110: 0 | BC110: 0 | BD110: 0 | BE110: 0 | BF110: 0 | BG110: 0 | BH110: 0 | BI110: 0 | BJ110: 0 | BK110: 0 | BL110: 0 | BM110: 0 | BN110: 0 | BO110: 0 | BP110: 0 | BV110: 0 | BW110: BW1 | BX110: 0 | CA110: BV2 | CB110: 0 | CC110: 0 | CD110: 0 | CF110: 0 | CG110: CA1 | CH110: CC1 | CI110: 0 | CJ110: 170 | CK110: 234 | CL110: 0 | CM110: 0 | CN110: 0 | CO110: 0 | CP110: 0 | CQ110: 0 | CR110: 0 | CS110: 0 | CT110: 0 | CU110: 0 | CV110: 0 | CW110: 0 | CX110: 0 | CY110: 0 | CZ110: 0 | DA110: 0.5 | DB110: 0 | DC110: 0 | DD110: 0 | DE110: 0 | DF110: 0 | DG110: 0 | DH110: 0 | DI110: 0 | DJ110: 0 | DK110: 0 | DL110: 0 | DO110: 0 | DP110: 0 | DQ110: 0 | DR110: 0 | DS110: 0 | DT110: 0 | DU110: 0 | DV110: 0 | DW110: 0 | DX110: 0 | DY110: 0 | DZ110: 0
E111: HP | F111: LVCMOS 1.8V 12mA | L111: No | M111: Off | N111: Low Power | S111: 0.125 | T111: SDR | U111: 1 | V111: 0 | W111: 0 | X111: 0 | Y111: 0 | Z111: 0 | AA111: 0 | AB111: 0 | AC111: 0 | AD111: None | AG111: 0 | AH111: 0 | AI111: 0 | AJ111: 94 | AK111: 0 | AL111: 1 | AP111: 1.8 | AQ111: 0 | AS111: 0 | AT111: 0 | AU111: 0 | AZ111: 0 | BA111: 0 | BC111: 0 | BD111: 0 | BE111: 0 | BF111: 0 | BG111: 0 | BH111: 0 | BI111: 0 | BJ111: 0 | BK111: 0 | BL111: 0 | BM111: 0 | BN111: 0 | BO111: 0 | BP111: 0 | BV111: 0 | BW111: BW1 | BX111: 0 | CA111: BV2 | CB111: 0 | CC111: 0 | CD111: 0 | CF111: 0 | CG111: CA1 | CH111: CC1 | CI111: 0 | CJ111: 170 | CK111: 234 | CL111: 0 | CM111: 0 | CN111: 0 | CO111: 0 | CP111: 0 | CQ111: 0 | CR111: 0 | CS111: 0 | CT111: 0 | CU111: 0 | CV111: 0 | CW111: 0 | CX111: 0 | CY111: 0 | CZ111: 0 | DA111: 0.5 | DB111: 0 | DC111: 0 | DD111: 0 | DE111: 0 | DF111: 0 | DG111: 0 | DH111: 0 | DI111: 0 | DJ111: 0 | DK111: 0 | DL111: 0 | DO111: 0 | DP111: 0 | DQ111: 0 | DR111: 0 | DS111: 0 | DT111: 0 | DU111: 0 | DV111: 0 | DW111: 0 | DX111: 0 | DY111: 0 | DZ111: 0
E112: HP | F112: LVCMOS 1.8V 12mA | L112: No | M112: Off | N112: Low Power | S112: 0.125 | T112: SDR | U112: 1 | V112: 0 | W112: 0 | X112: 0 | Y112: 0 | Z112: 0 | AA112: 0 | AB112: 0 | AC112: 0 | AD112: None | AG112: 0 | AH112: 0 | AI112: 0 | AJ112: 94 | AK112: 0 | AL112: 1 | AP112: 1.8 | AQ112: 0 | AS112: 0 | AT112: 0 | AU112: 0 | AZ112: 0 | BA112: 0 | BC112: 0 | BD112: 0 | BE112: 0 | BF112: 0 | BG112: 0 | BH112: 0 | BI112: 0 | BJ112: 0 | BK112: 0 | BL112: 0 | BM112: 0 | BN112: 0 | BO112: 0 | BP112: 0 | BV112: 0 | BW112: BW1 | BX112: 0 | CA112: BV2 | CB112: 0 | CC112: 0 | CD112: 0 | CF112: 0 | CG112: CA1 | CH112: CC1 | CI112: 0 | CJ112: 170 | CK112: 234 | CL112: 0 | CM112: 0 | CN112: 0 | CO112: 0 | CP112: 0 | CQ112: 0 | CR112: 0 | CS112: 0 | CT112: 0 | CU112: 0 | CV112: 0 | CW112: 0 | CX112: 0 | CY112: 0 | CZ112: 0 | DA112: 0.5 | DB112: 0 | DC112: 0 | DD112: 0 | DE112: 0 | DF112: 0 | DG112: 0 | DH112: 0 | DI112: 0 | DJ112: 0 | DK112: 0 | DL112: 0 | DO112: 0 | DP112: 0 | DQ112: 0 | DR112: 0 | DS112: 0 | DT112: 0 | DU112: 0 | DV112: 0 | DW112: 0 | DX112: 0 | DY112: 0 | DZ112: 0
E113: HP | F113: LVCMOS 1.8V 12mA | L113: No | M113: Off | N113: Low Power | S113: 0.125 | T113: SDR | U113: 1 | V113: 0 | W113: 0 | X113: 0 | Y113: 0 | Z113: 0 | AA113: 0 | AB113: 0 | AC113: 0 | AD113: None | AG113: 0 | AH113: 0 | AI113: 0 | AJ113: 94 | AK113: 0 | AL113: 1 | AP113: 1.8 | AQ113: 0 | AS113: 0 | AT113: 0 | AU113: 0 | AZ113: 0 | BA113: 0 | BC113: 0 | BD113: 0 | BE113: 0 | BF113: 0 | BG113: 0 | BH113: 0 | BI113: 0 | BJ113: 0 | BK113: 0 | BL113: 0 | BM113: 0 | BN113: 0 | BO113: 0 | BP113: 0 | BV113: 0 | BW113: BW1 | BX113: 0 | CA113: BV2 | CB113: 0 | CC113: 0 | CD113: 0 | CF113: 0 | CG113: CA1 | CH113: CC1 | CI113: 0 | CJ113: 170 | CK113: 234 | CL113: 0 | CM113: 0 | CN113: 0 | CO113: 0 | CP113: 0 | CQ113: 0 | CR113: 0 | CS113: 0 | CT113: 0 | CU113: 0 | CV113: 0 | CW113: 0 | CX113: 0 | CY113: 0 | CZ113: 0 | DA113: 0.5 | DB113: 0 | DC113: 0 | DD113: 0 | DE113: 0 | DF113: 0 | DG113: 0 | DH113: 0 | DI113: 0 | DJ113: 0 | DK113: 0 | DL113: 0 | DO113: 0 | DP113: 0 | DQ113: 0 | DR113: 0 | DS113: 0 | DT113: 0 | DU113: 0 | DV113: 0 | DW113: 0 | DX113: 0 | DY113: 0 | DZ113: 0
E114: HP | F114: LVCMOS 1.8V 12mA | L114: No | M114: Off | N114: Low Power | S114: 0.125 | T114: SDR | U114: 1 | V114: 0 | W114: 0 | X114: 0 | Y114: 0 | Z114: 0 | AA114: 0 | AB114: 0 | AC114: 0 | AD114: None | AG114: 0 | AH114: 0 | AI114: 0 | AJ114: 94 | AK114: 0 | AL114: 1 | AP114: 1.8 | AQ114: 0 | AS114: 0 | AT114: 0 | AU114: 0 | AZ114: 0 | BA114: 0 | BC114: 0 | BD114: 0 | BE114: 0 | BF114: 0 | BG114: 0 | BH114: 0 | BI114: 0 | BJ114: 0 | BK114: 0 | BL114: 0 | BM114: 0 | BN114: 0 | BO114: 0 | BP114: 0 | BV114: 0 | BW114: BW1 | BX114: 0 | CA114: BV2 | CB114: 0 | CC114: 0 | CD114: 0 | CF114: 0 | CG114: CA1 | CH114: CC1 | CI114: 0 | CJ114: 170 | CK114: 234 | CL114: 0 | CM114: 0 | CN114: 0 | CO114: 0 | CP114: 0 | CQ114: 0 | CR114: 0 | CS114: 0 | CT114: 0 | CU114: 0 | CV114: 0 | CW114: 0 | CX114: 0 | CY114: 0 | CZ114: 0 | DA114: 0.5 | DB114: 0 | DC114: 0 | DD114: 0 | DE114: 0 | DF114: 0 | DG114: 0 | DH114: 0 | DI114: 0 | DJ114: 0 | DK114: 0 | DL114: 0 | DO114: 0 | DP114: 0 | DQ114: 0 | DR114: 0 | DS114: 0 | DT114: 0 | DU114: 0 | DV114: 0 | DW114: 0 | DX114: 0 | DY114: 0 | DZ114: 0
E115: HP | F115: LVCMOS 1.8V 12mA | L115: No | M115: Off | N115: Low Power | S115: 0.125 | T115: SDR | U115: 1 | V115: 0 | W115: 0 | X115: 0 | Y115: 0 | Z115: 0 | AA115: 0 | AB115: 0 | AC115: 0 | AD115: None | AG115: 0 | AH115: 0 | AI115: 0 | AJ115: 94 | AK115: 0 | AL115: 1 | AP115: 1.8 | AQ115: 0 | AS115: 0 | AT115: 0 | AU115: 0 | AZ115: 0 | BA115: 0 | BC115: 0 | BD115: 0 | BE115: 0 | BF115: 0 | BG115: 0 | BH115: 0 | BI115: 0 | BJ115: 0 | BK115: 0 | BL115: 0 | BM115: 0 | BN115: 0 | BO115: 0 | BP115: 0 | BV115: 0 | BW115: BW1 | BX115: 0 | CA115: BV2 | CB115: 0 | CC115: 0 | CD115: 0 | CF115: 0 | CG115: CA1 | CH115: CC1 | CI115: 0 | CJ115: 170 | CK115: 234 | CL115: 0 | CM115: 0 | CN115: 0 | CO115: 0 | CP115: 0 | CQ115: 0 | CR115: 0 | CS115: 0 | CT115: 0 | CU115: 0 | CV115: 0 | CW115: 0 | CX115: 0 | CY115: 0 | CZ115: 0 | DA115: 0.5 | DB115: 0 | DC115: 0 | DD115: 0 | DE115: 0 | DF115: 0 | DG115: 0 | DH115: 0 | DI115: 0 | DJ115: 0 | DK115: 0 | DL115: 0 | DO115: 0 | DP115: 0 | DQ115: 0 | DR115: 0 | DS115: 0 | DT115: 0 | DU115: 0 | DV115: 0 | DW115: 0 | DX115: 0 | DY115: 0 | DZ115: 0
E116: HP | F116: LVCMOS 1.8V 12mA | L116: No | M116: Off | N116: Low Power | S116: 0.125 | T116: SDR | U116: 1 | V116: 0 | W116: 0 | X116: 0 | Y116: 0 | Z116: 0 | AA116: 0 | AB116: 0 | AC116: 0 | AD116: None | AG116: 0 | AH116: 0 | AI116: 0 | AJ116: 94 | AK116: 0 | AL116: 1 | AP116: 1.8 | AQ116: 0 | AS116: 0 | AT116: 0 | AU116: 0 | AZ116: 0 | BA116: 0 | BC116: 0 | BD116: 0 | BE116: 0 | BF116: 0 | BG116: 0 | BH116: 0 | BI116: 0 | BJ116: 0 | BK116: 0 | BL116: 0 | BM116: 0 | BN116: 0 | BO116: 0 | BP116: 0 | BV116: 0 | BW116: BW1 | BX116: 0 | CA116: BV2 | CB116: 0 | CC116: 0 | CD116: 0 | CF116: 0 | CG116: CA1 | CH116: CC1 | CI116: 0 | CJ116: 170 | CK116: 234 | CL116: 0 | CM116: 0 | CN116: 0 | CO116: 0 | CP116: 0 | CQ116: 0 | CR116: 0 | CS116: 0 | CT116: 0 | CU116: 0 | CV116: 0 | CW116: 0 | CX116: 0 | CY116: 0 | CZ116: 0 | DA116: 0.5 | DB116: 0 | DC116: 0 | DD116: 0 | DE116: 0 | DF116: 0 | DG116: 0 | DH116: 0 | DI116: 0 | DJ116: 0 | DK116: 0 | DL116: 0 | DO116: 0 | DP116: 0 | DQ116: 0 | DR116: 0 | DS116: 0 | DT116: 0 | DU116: 0 | DV116: 0 | DW116: 0 | DX116: 0 | DY116: 0 | DZ116: 0
E117: HP | F117: LVCMOS 1.8V 12mA | L117: No | M117: Off | N117: Low Power | S117: 0.125 | T117: SDR | U117: 1 | V117: 0 | W117: 0 | X117: 0 | Y117: 0 | Z117: 0 | AA117: 0 | AB117: 0 | AC117: 0 | AD117: None | AG117: 0 | AH117: 0 | AI117: 0 | AJ117: 94 | AK117: 0 | AL117: 1 | AP117: 1.8 | AQ117: 0 | AS117: 0 | AT117: 0 | AU117: 0 | AZ117: 0 | BA117: 0 | BC117: 0 | BD117: 0 | BE117: 0 | BF117: 0 | BG117: 0 | BH117: 0 | BI117: 0 | BJ117: 0 | BK117: 0 | BL117: 0 | BM117: 0 | BN117: 0 | BO117: 0 | BP117: 0 | BV117: 0 | BW117: BW1 | BX117: 0 | CA117: BV2 | CB117: 0 | CC117: 0 | CD117: 0 | CF117: 0 | CG117: CA1 | CH117: CC1 | CI117: 0 | CJ117: 170 | CK117: 234 | CL117: 0 | CM117: 0 | CN117: 0 | CO117: 0 | CP117: 0 | CQ117: 0 | CR117: 0 | CS117: 0 | CT117: 0 | CU117: 0 | CV117: 0 | CW117: 0 | CX117: 0 | CY117: 0 | CZ117: 0 | DA117: 0.5 | DB117: 0 | DC117: 0 | DD117: 0 | DE117: 0 | DF117: 0 | DG117: 0 | DH117: 0 | DI117: 0 | DJ117: 0 | DK117: 0 | DL117: 0 | DO117: 0 | DP117: 0 | DQ117: 0 | DR117: 0 | DS117: 0 | DT117: 0 | DU117: 0 | DV117: 0 | DW117: 0 | DX117: 0 | DY117: 0 | DZ117: 0
E118: HP | F118: LVCMOS 1.8V 12mA | L118: No | M118: Off | N118: Low Power | S118: 0.125 | T118: SDR | U118: 1 | V118: 0 | W118: 0 | X118: 0 | Y118: 0 | Z118: 0 | AA118: 0 | AB118: 0 | AC118: 0 | AD118: None | AG118: 0 | AH118: 0 | AI118: 0 | AJ118: 94 | AK118: 0 | AL118: 1 | AP118: 1.8 | AQ118: 0 | AS118: 0 | AT118: 0 | AU118: 0 | AZ118: 0 | BA118: 0 | BC118: 0 | BD118: 0 | BE118: 0 | BF118: 0 | BG118: 0 | BH118: 0 | BI118: 0 | BJ118: 0 | BK118: 0 | BL118: 0 | BM118: 0 | BN118: 0 | BO118: 0 | BP118: 0 | BV118: 0 | BW118: BW1 | BX118: 0 | CA118: BV2 | CB118: 0 | CC118: 0 | CD118: 0 | CF118: 0 | CG118: CA1 | CH118: CC1 | CI118: 0 | CJ118: 170 | CK118: 234 | CL118: 0 | CM118: 0 | CN118: 0 | CO118: 0 | CP118: 0 | CQ118: 0 | CR118: 0 | CS118: 0 | CT118: 0 | CU118: 0 | CV118: 0 | CW118: 0 | CX118: 0 | CY118: 0 | CZ118: 0 | DA118: 0.5 | DB118: 0 | DC118: 0 | DD118: 0 | DE118: 0 | DF118: 0 | DG118: 0 | DH118: 0 | DI118: 0 | DJ118: 0 | DK118: 0 | DL118: 0 | DO118: 0 | DP118: 0 | DQ118: 0 | DR118: 0 | DS118: 0 | DT118: 0 | DU118: 0 | DV118: 0 | DW118: 0 | DX118: 0 | DY118: 0 | DZ118: 0
E119: HP | F119: LVCMOS 1.8V 12mA | L119: No | M119: Off | N119: Low Power | S119: 0.125 | T119: SDR | U119: 1 | V119: 0 | W119: 0 | X119: 0 | Y119: 0 | Z119: 0 | AA119: 0 | AB119: 0 | AC119: 0 | AD119: None | AG119: 0 | AH119: 0 | AI119: 0 | AJ119: 94 | AK119: 0 | AL119: 1 | AP119: 1.8 | AQ119: 0 | AS119: 0 | AT119: 0 | AU119: 0 | AZ119: 0 | BA119: 0 | BC119: 0 | BD119: 0 | BE119: 0 | BF119: 0 | BG119: 0 | BH119: 0 | BI119: 0 | BJ119: 0 | BK119: 0 | BL119: 0 | BM119: 0 | BN119: 0 | BO119: 0 | BP119: 0 | BV119: 0 | BW119: BW1 | BX119: 0 | CA119: BV2 | CB119: 0 | CC119: 0 | CD119: 0 | CF119: 0 | CG119: CA1 | CH119: CC1 | CI119: 0 | CJ119: 170 | CK119: 234 | CL119: 0 | CM119: 0 | CN119: 0 | CO119: 0 | CP119: 0 | CQ119: 0 | CR119: 0 | CS119: 0 | CT119: 0 | CU119: 0 | CV119: 0 | CW119: 0 | CX119: 0 | CY119: 0 | CZ119: 0 | DA119: 0.5 | DB119: 0 | DC119: 0 | DD119: 0 | DE119: 0 | DF119: 0 | DG119: 0 | DH119: 0 | DI119: 0 | DJ119: 0 | DK119: 0 | DL119: 0 | DO119: 0 | DP119: 0 | DQ119: 0 | DR119: 0 | DS119: 0 | DT119: 0 | DU119: 0 | DV119: 0 | DW119: 0 | DX119: 0 | DY119: 0 | DZ119: 0
E120: HP | F120: LVCMOS 1.8V 12mA | L120: No | M120: Off | N120: Low Power | S120: 0.125 | T120: SDR | U120: 1 | V120: 0 | W120: 0 | X120: 0 | Y120: 0 | Z120: 0 | AA120: 0 | AB120: 0 | AC120: 0 | AD120: None | AG120: 0 | AH120: 0 | AI120: 0 | AJ120: 94 | AK120: 0 | AL120: 1 | AP120: 1.8 | AQ120: 0 | AS120: 0 | AT120: 0 | AU120: 0 | AZ120: 0 | BA120: 0 | BC120: =IF(ISERROR($AJ120),0,IF($AP120=VCCO33,$AC120/$AP120+$AZ120,0)) -> 0 | BD120: =IF(ISERROR($AJ120),0,IF($AP120=VCCO25,$AC120/$AP120+$AZ120,0)) -> 0 | BE120: =IF(ISERROR($AJ120),0,IF($AP120=VCCO18,$AC120/$AP120,0)) -> 0 | BF120: =IF(ISERROR($AJ120),0,IF($AP120=VCCO15,$AC120/$AP120,0)) -> 0 | BG120: =IF(ISERROR($AJ120),0,IF($AP120=VCCO135,$AC120/$AP120,0)) -> 0 | BH120: =IF(ISERROR($AJ120),0,IF($AP120=VCCO12,$AC120/$AP120,0)) -> 0 | BI120: 0 | BJ120: 0 | BK120: 0 | BL120: 0 | BM120: 0 | BN120: 0 | BO120: 0 | BP120: 0 | BV120: 0 | BW120: BW1 | BX120: 0 | CA120: BV2 | CB120: 0 | CC120: 0 | CD120: 0 | CF120: 0 | CG120: CA1 | CH120: CC1 | CI120: 0 | CJ120: 170 | CK120: 234 | CL120: 0 | CM120: 0 | CN120: 0 | CO120: 0 | CP120: 0 | CQ120: 0 | CR120: 0 | CS120: 0 | CT120: 0 | CU120: 0 | CV120: 0 | CW120: 0 | CX120: 0 | CY120: 0 | CZ120: 0 | DA120: 0.5 | DB120: 0 | DC120: 0 | DD120: 0 | DE120: 0 | DF120: 0 | DG120: 0 | DH120: 0 | DI120: 0 | DJ120: 0 | DK120: 0 | DL120: 0 | DO120: 0 | DP120: 0 | DQ120: 0 | DR120: 0 | DS120: 0 | DT120: 0 | DU120: 0 | DV120: 0 | DW120: 0 | DX120: 0 | DY120: 0 | DZ120: 0
E121: HP | F121: LVCMOS 1.8V 12mA | L121: No | M121: Off | N121: Low Power | S121: 0.125 | T121: SDR | U121: 1 | V121: 0 | W121: 0 | X121: 0 | Y121: 0 | Z121: 0 | AA121: 0 | AB121: 0 | AC121: 0 | AD121: None | AG121: 0 | AH121: 0 | AI121: 0 | AJ121: 94 | AK121: 0 | AL121: 1 | AP121: 1.8 | AQ121: 0 | AS121: 0 | AT121: 0 | AU121: 0 | AZ121: 0 | BA121: 0 | BC121: 0 | BD121: 0 | BE121: 0 | BF121: 0 | BG121: 0 | BH121: 0 | BI121: 0 | BJ121: 0 | BK121: 0 | BL121: 0 | BM121: 0 | BN121: 0 | BO121: 0 | BP121: 0 | BV121: 0 | BW121: BW1 | BX121: 0 | CA121: BV2 | CB121: 0 | CC121: 0 | CD121: 0 | CF121: 0 | CG121: CA1 | CH121: CC1 | CI121: 0 | CJ121: 170 | CK121: 234 | CL121: 0 | CM121: 0 | CN121: 0 | CO121: 0 | CP121: 0 | CQ121: 0 | CR121: 0 | CS121: 0 | CT121: 0 | CU121: 0 | CV121: 0 | CW121: 0 | CX121: 0 | CY121: 0 | CZ121: 0 | DA121: 0.5 | DB121: 0 | DC121: 0 | DD121: 0 | DE121: 0 | DF121: 0 | DG121: 0 | DH121: 0 | DI121: 0 | DJ121: 0 | DK121: 0 | DL121: 0 | DO121: 0 | DP121: 0 | DQ121: 0 | DR121: 0 | DS121: 0 | DT121: 0 | DU121: 0 | DV121: 0 | DW121: 0 | DX121: 0 | DY121: 0 | DZ121: 0
E122: HP | F122: LVCMOS 1.8V 12mA | L122: No | M122: Off | N122: Low Power | S122: 0.125 | T122: SDR | U122: 1 | V122: 0 | W122: 0 | X122: 0 | Y122: 0 | Z122: 0 | AA122: 0 | AB122: 0 | AC122: 0 | AD122: None | AG122: 0 | AH122: 0 | AI122: 0 | AJ122: 94 | AK122: 0 | AL122: 1 | AP122: 1.8 | AQ122: 0 | AS122: 0 | AT122: 0 | AU122: 0 | AZ122: 0 | BA122: 0 | BC122: 0 | BD122: 0 | BE122: 0 | BF122: 0 | BG122: 0 | BH122: 0 | BI122: 0 | BJ122: 0 | BK122: 0 | BL122: 0 | BM122: 0 | BN122: 0 | BO122: 0 | BP122: 0 | BV122: 0 | BW122: BW1 | BX122: 0 | CA122: BV2 | CB122: 0 | CC122: 0 | CD122: 0 | CF122: 0 | CG122: CA1 | CH122: CC1 | CI122: 0 | CJ122: 170 | CK122: 234 | CL122: 0 | CM122: 0 | CN122: 0 | CO122: 0 | CP122: 0 | CQ122: 0 | CR122: 0 | CS122: 0 | CT122: 0 | CU122: 0 | CV122: 0 | CW122: 0 | CX122: 0 | CY122: 0 | CZ122: 0 | DA122: 0.5 | DB122: 0 | DC122: 0 | DD122: 0 | DE122: 0 | DF122: 0 | DG122: 0 | DH122: 0 | DI122: 0 | DJ122: 0 | DK122: 0 | DL122: 0 | DO122: 0 | DP122: 0 | DQ122: 0 | DR122: 0 | DS122: 0 | DT122: 0 | DU122: 0 | DV122: 0 | DW122: 0 | DX122: 0 | DY122: 0 | DZ122: 0
E123: HP | F123: LVCMOS 1.8V 12mA | L123: No | M123: Off | N123: Low Power | S123: 0.125 | T123: SDR | U123: 1 | V123: 0 | W123: 0 | X123: 0 | Y123: 0 | Z123: 0 | AA123: 0 | AB123: 0 | AC123: 0 | AD123: None | AG123: 0 | AH123: 0 | AI123: 0 | AJ123: 94 | AK123: 0 | AL123: 1 | AP123: 1.8 | AQ123: 0 | AS123: 0 | AT123: 0 | AU123: 0 | AZ123: 0 | BA123: 0 | BC123: 0 | BD123: 0 | BE123: 0 | BF123: 0 | BG123: 0 | BH123: 0 | BI123: 0 | BJ123: 0 | BK123: 0 | BL123: 0 | BM123: 0 | BN123: 0 | BO123: 0 | BP123: 0 | BV123: 0 | BW123: BW1 | BX123: 0 | CA123: BV2 | CB123: 0 | CC123: 0 | CD123: 0 | CF123: 0 | CG123: CA1 | CH123: CC1 | CI123: 0 | CJ123: 170 | CK123: 234 | CL123: 0 | CM123: 0 | CN123: 0 | CO123: 0 | CP123: 0 | CQ123: 0 | CR123: 0 | CS123: 0 | CT123: 0 | CU123: 0 | CV123: 0 | CW123: 0 | CX123: 0 | CY123: 0 | CZ123: 0 | DA123: 0.5 | DB123: 0 | DC123: 0 | DD123: 0 | DE123: 0 | DF123: 0 | DG123: 0 | DH123: 0 | DI123: 0 | DJ123: 0 | DK123: 0 | DL123: 0 | DO123: 0 | DP123: 0 | DQ123: 0 | DR123: 0 | DS123: 0 | DT123: 0 | DU123: 0 | DV123: 0 | DW123: 0 | DX123: 0 | DY123: 0 | DZ123: 0
